Workbook

Sheet Einstellungen (hidden)
A1: Zulässige Tarife (Bereichname: Tarife): | B1: Max. Stufe | C1: SV Pflicht | D1: ZV Pflicht | E1: Zuwendung Monat | F1: Zuwendung Bemessungsmonat | G1: Zuw Kind | H1: TWNummer | J1: Zulässige Vergütungsgruppen, Bereich jeweils wie Tarif benennen | W1: Einmalzahlungen / Monat | X1: 1 | Y1: 2 | Z1: 3 | AA1: 4 | AB1: 5 | AC1: 6 | AD1: 7 | AE1: 8 | AF1: 9 | AG1: 10 | AH1: 11 | AI1: 12
A2: KAVO | B2: 12 | C2: TRUE | D2: TRUE | E2: 11 | F2: 9 | G2: 20 | H2: 206 | J2: KAVO nF, EG 15 Ü | K2: TVöD, EG 15 Ü | L2: KAVO, K XII | M2: SuE, TVöD S18 | N2: SuE, KAVO S18 | P2: BesO, A 5 | Q2: BesO, B 1 | R2: BesO, C 1 | S2: BesO, W 1 | T2: Priester, P 1 | U2: TVL, EG 15 Ü | V2: SuE TVL, S 18 | W2: KAVO nF, EG 15 Ü
A3: KAVO nF | B3: 6 | C3: TRUE | D3: TRUE | E3: 11 | F3: 9 | G3: 20 | H3: 275 | J3: KAVO nF, EG 15 | K3: TVöD, EG 15 | L3: KAVO, K XI | M3: SuE, TVöD S17 | N3: SuE, KAVO S17 | P3: BesO, A 6 | Q3: BesO, B 2 | R3: BesO, C 2 | S3: BesO, W 2 | T3: Priester, P 2 | U3: TVL, EG 15 | V3: SuE TVL, S 17 | W3: KAVO nF, EG 15
A4: SuE KAVO | B4: 6 | C4: TRUE | D4: TRUE | E4: 11 | F4: 9 | G4: 20 | H4: 007 | J4: KAVO nF, EG 14 | K4: TVöD, EG 14 | L4: KAVO, K X | M4: SuE, TVöD S16 | N4: SuE, KAVO S16 Ü | P4: BesO, A 7 | Q4: BesO, B 3 | R4: BesO, C 3 | S4: BesO, W 3 | T4: Priester, P 3 | U4: TVL, EG 14 | V4: SuE TVL, S 16 | W4: KAVO nF, EG 14
A5: TVöD | B5: 6 | C5: TRUE | D5: TRUE | E5: 11 | F5: 7 | G5: 0 | H5: 075 | J5: KAVO nF, EG 13 | K5: TVöD, EG 13 | L5: KAVO, K IX | M5: SuE, TVöD S15 | N5: SuE, KAVO S16 | P5: BesO, A 8 | Q5: BesO, B 4 | R5: BesO, C 4 | T5: Priester, P 4 | U5: TVL, EG 13 Ü | V5: SuE TVL, S 15 | W5: KAVO nF, EG 13
A6: SuE TVöD | B6: 6 | C6: TRUE | D6: TRUE | E6: 11 | F6: 7 | G6: 25.56 | H6: 006 | J6: KAVO nF, EG 12 | K6: TVöD, EG 12 | L6: KAVO, K VIII | M6: SuE, TVöD S14 | N6: SuE, KAVO S15 | P6: BesO, A 9 | Q6: BesO, B 5 | U6: TVL, EG 13 | V6: SuE TVL, S 14 | W6: KAVO nF, EG 12
A7: TV-L | B7: 6 | C7: TRUE | D7: TRUE | E7: 11 | F7: 7 | G7: 0 | H7: 080 | J7: KAVO nF, EG 11 | K7: TVöD, EG 11 | L7: KAVO, K VII | M7: SuE, TVöD S13 | N7: SuE, KAVO S14 | P7: BesO, A 10 | Q7: BesO, B 6 | U7: TVL, EG 12 | V7: SuE TVL, S 13 | W7: KAVO nF, EG 11
A8: SuE TVL | B8: 6 | C8: TRUE | D8: TRUE | E8: 11 | F8: 7 | G8: 0 | H8: 081 | J8: KAVO nF, EG 10 | K8: TVöD, EG 10 | L8: KAVO, K VI b | M8: SuE, TVöD S12 | N8: SuE, KAVO S13 Ü | P8: BesO, A 11 | Q8: BesO, B 7 | U8: TVL, EG 11 | V8: SuE TVL, S 12 | W8: KAVO nF, EG 10
A9: BesO A | B9: 12 | C9: FALSE | D9: FALSE | F9: 9 | H9: 001 | J9: KAVO nF, EG 9c | K9: TVöD, EG 9c | L9: KAVO, K V c | M9: SuE, TVöD S11b | N9: SuE, KAVO S13 | P9: BesO, A 12 | Q9: BesO, B 8 | U9: TVL, EG 10 | V9: SuE TVL, S 11b | W9: KAVO nF, EG 9c
A10: BesO B | B10: 1 | C10: FALSE | D10: FALSE | F10: 9 | H10: 002 | J10: KAVO nF, EG 9b | K10: TVöD, EG 9b | L10: KAVO, K V b | M10: SuE, TVöD S11a | N10: SuE, KAVO S12 | P10: BesO, A 13 | Q10: BesO, B 9 | U10: TVL, EG 9b | V10: SuE TVL, S 11a | W10: KAVO nF, EG 9b
A11: BesO C | B11: 15 | C11: FALSE | D11: FALSE | F11: 9 | H11: 003 | J11: KAVO nF, EG 9a | K11: TVöD, EG 9a | L11: KAVO, K IV b | M11: SuE, TVöD S10 | N11: SuE, KAVO S11b | P11: BesO, A 14 | Q11: BesO, B 10 | U11: TVL, EG 9a | V11: SuE TVL, S 10 | W11: KAVO nF, EG 9a
A12: BesO W | B12: 1 | C12: FALSE | D12: FALSE | F12: 9 | H12: 046 | J12: KAVO nF, EG 8 | K12: TVöD, EG 8 | L12: KAVO, K IV a | M12: SuE, TVöD S9 | N12: SuE, KAVO S11a | P12: BesO, A 15 | Q12: BesO, B 11 | U12: TVL, EG 8 | V12: SuE TVL, S 9 | W12: KAVO nF, EG 8
A13: Priester | B13: 12 | C13: FALSE | D13: FALSE | F13: 9 | H13: 282 | J13: KAVO nF, EG 7 | K13: TVöD, EG 7 | L13: KAVO, K III | M13: SuE, TVöD S8b | N13: SuE, KAVO S10 | P13: BesO, A 16 | U13: TVL, EG 7 | V13: SuE TVL, S 8b | W13: KAVO nF, EG 7
J14: KAVO nF, EG 6 | K14: TVöD, EG 6 | L14: KAVO, K II | M14: SuE, TVöD S8a | N14: SuE, KAVO S9 | U14: TVL, EG 6 | V14: SuE TVL, S 8a | W14: KAVO nF, EG 6
J15: KAVO nF, EG 5 | K15: TVöD, EG 5 | L15: KAVO, K I b | M15: SuE, TVöD S7 | N15: SuE, KAVO S8b | U15: TVL, EG 5 | V15: SuE TVL, S 7 | W15: KAVO nF, EG 5
J16: KAVO nF, EG 4 | K16: TVöD, EG 4 | L16: KAVO, K I a | M16: SuE, TVöD S4 | N16: SuE, KAVO S8a | U16: TVL, EG 4 | V16: SuE TVL, S 4 | W16: KAVO nF, EG 4
J17: KAVO nF, EG 3 | K17: TVöD, EG 3 | L17: KAVO, K I | M17: SuE, TVöD S3 | N17: SuE, KAVO S7 | U17: TVL, EG 3 | V17: SuE TVL, S 3 | W17: KAVO nF, EG 3
J18: KAVO nF, EG 2 | K18: TVöD, EG 2 Ü | M18: SuE, TVöD S2 | N18: SuE, KAVO S4 | U18: TVL, EG 2 Ü | V18: SuE TVL, S 2 | W18: KAVO nF, EG 2 Ü
J19: KAVO nF, EG 1 | K19: TVöD, EG 2 | N19: SuE, KAVO S3 | U19: TVL, EG 2 | W19: KAVO nF, EG 2
K20: TVöD, EG 1 | N20: SuE, KAVO S2 | U20: TVL, EG 1 | W20: KAVO nF, EG 1
W21: TVöD, EG 15 Ü
W22: TVöD, EG 15
W23: TVöD, EG 14
W24: TVöD, EG 13
W25: TVöD, EG 12
W26: TVöD, EG 11
W27: TVöD, EG 10
A28: Monatsnamen: | B28: VL Zulagen | C28: Tarifzulage | D28: Anpassungsfaktoren | W28: TVöD, EG 9c
A29: Januar | B29: 0 | C29: keine | D29: 1 | W29: TVöD, EG 9b
A30: Februar | B30: 6.65 | C30: normal | D30: 0.99458 | W30: TVöD, EG 9a
A31: März | B31: 13.29 | C31: kleine Zulage (Lehrer) | D31: 0.98917 | W31: TVöD, EG 9
A32: April | D32: 0.98375 | W32: TVöD, EG 8
A33: Mai | D33: 0.97833 | W33: TVöD, EG 7
A34: Juni | D34: 0.97292 | W34: TVöD, EG 6
A35: Juli | D35: 0.9675 | W35: TVöD, EG 5
A36: August | D36: 0.96208 | W36: TVöD, EG 4
A37: September | W37: TVöD, EG 3
A38: Oktober | W38: TVöD, EG 2 Ü
A39: November | W39: TVöD, EG 2
A40: Dezember | W40: TVöD, EG 1
W41: KAVO, K XII
A42: Familienstände | B42: Verh. Anteil | C42: Persgrp Steuer | W42: KAVO, K XI
A43: ledig | B43: kein | C43: 0 = gesetzl. KV | W43: KAVO, K X
A44: verheiratet | B44: halb | C44: 1 = privat KV ohne Zuschuss | W44: KAVO, K IX
A45: geschieden | B45: voll | C45: 2 = privat KV mit Zuschuss | W45: KAVO, K VIII
A46: verwitwet | W46: KAVO, K VII
W47: KAVO, K VI b
W48: KAVO, K V c
W49: KAVO, K V b
A50: ZV Kassen | B50: AG Umlage | C50: AN Beitrag | D50: Pausch Grenze | W50: KAVO, K IV b
A51: KZVK | B51: 5.6 | C51: 0.4 | D51: 89.48 | W51: KAVO, K IV a
A52: VBL | B52: 6.45 | C52: 1.71 | D52: 92.03 | W52: KAVO, K III
W53: KAVO, K II
W54: KAVO, K I b
W55: KAVO, K I a
W56: KAVO, K I
W57: SuE, KAVO S18
W58: SuE, KAVO S17
W59: SuE, KAVO S16 Ü
W60: SuE, KAVO S16
W61: SuE, KAVO S15
W62: SuE, KAVO S14
W63: SuE, KAVO S13 Ü
W64: SuE, KAVO S13
W65: SuE, KAVO S12
W66: SuE, KAVO S11b
W67: SuE, KAVO S11a
W68: SuE, KAVO S10
W69: SuE, KAVO S9
W70: SuE, KAVO S8b
W71: SuE, KAVO S8a
W72: SuE, KAVO S7
W73: SuE, KAVO S4
W74: SuE, KAVO S3
W75: SuE, KAVO S2
W76: SuE, TVöD S18
W77: SuE, TVöD S17
W78: SuE, TVöD S16
W79: SuE, TVöD S15
W80: SuE, TVöD S14
W81: SuE, TVöD S13
W82: SuE, TVöD S12
W83: SuE, TVöD S11b
W84: SuE, TVöD S11a
W85: SuE, TVöD S10
W86: SuE, TVöD S9
W87: SuE, TVöD S8b
W88: SuE, TVöD S8a
W89: SuE, TVöD S7
W90: SuE, TVöD S4
W91: SuE, TVöD S3
W92: SuE, TVöD S2
W95: BesO, A 5
W96: BesO, A 6
W97: BesO, A 7
W98: BesO, A 8
W99: BesO, A 9
W100: BesO, A 10
W101: BesO, A 11
W102: BesO, A 12
W103: BesO, A 13
W104: BesO, A 14
W105: BesO, A 15
W106: BesO, A 16
W107: BesO, B 1
W108: BesO, B 2
W109: BesO, B 3
W110: BesO, B 4
W111: BesO, B 5
W112: BesO, B 6
W113: BesO, B 7
W114: BesO, B 8
W115: BesO, B 9
W116: BesO, B 10
W117: BesO, B 11
W118: BesO, W 1
W119: BesO, W 2
W120: BesO, W 3
W121: Priester, P 1
W122: Priester, P 2
W123: Priester, P 3
W124: Priester, P 4
W125: TVL, EG 15 Ü
W126: TVL, EG 15
W127: TVL, EG 14
W128: TVL, EG 13 Ü
W129: TVL, EG 13
W130: TVL, EG 12
W131: TVL, EG 11
W132: TVL, EG 10
W133: TVL, EG 9b
W134: TVL, EG 9a
W135: TVL, EG 8
W136: TVL, EG 7
W137: TVL, EG 6
W138: TVL, EG 5
W139: TVL, EG 4
W140: TVL, EG 3
W141: TVL, EG 2 Ü
W142: TVL, EG 2
W143: TVL, EG 1
W145: SuE TVL, S 18
W146: SuE TVL, S 17
W147: SuE TVL, S 16
W148: SuE TVL, S 15
W149: SuE TVL, S 14
W150: SuE TVL, S 13
W151: SuE TVL, S 12
W152: SuE TVL, S 11b
W153: SuE TVL, S 11a
W154: SuE TVL, S 10
W155: SuE TVL, S 9
W156: SuE TVL, S 8b
W157: SuE TVL, S 8a
W158: SuE TVL, S 7
W159: SuE TVL, S 4
W160: SuE TVL, S 3
W161: SuE TVL, S 2

Sheet Datenausgabe (hidden)
A1: 2020 | B1: TRUE | C1: TRUE | D1: TRUE | E1: TRUE | F1: TRUE | G1: TRUE | H1: TRUE | I1: TRUE | J1: TRUE | K1: TRUE | L1: TRUE | M1: TRUE | O1: Erststart:
A2: MonatsNr | B2: 1 | C2: 2 | D2: 3 | E2: 4 | F2: 5 | G2: 6 | H2: 7 | I2: 8 | J2: 9 | K2: 10 | L2: 11 | M2: 12 | O2: TRUE
A3: Monat | B3: Januar | C3: Februar | D3: März | E3: April | F3: Mai | G3: Juni | H3: Juli | I3: August | J3: September | K3: Oktober | L3: November | M3: Dezember
A4: Tarif | B4: KAVO nF | C4: =B4 -> KAVO nF | D4: =C4 -> KAVO nF | E4: KAVO nF | F4: KAVO nF | G4: KAVO nF | H4: KAVO nF | I4: KAVO nF | J4: KAVO nF | K4: KAVO nF | L4: KAVO nF | M4: KAVO nF | O4: ZuwManuell | P4: TRUE
A5: Tarif-2 | B5: KAVO nF | C5: KAVO nF | D5: =C5 -> KAVO nF | E5: KAVO nF | F5: KAVO nF | G5: KAVO nF | H5: KAVO nF | I5: KAVO nF | J5: KAVO nF | K5: KAVO nF | L5: KAVO nF | M5: KAVO nF | O5: SVManuell | P5: FALSE
A6: Tarifgruppe | B6: KAVO nF, EG 15 Ü | C6: =B6 -> KAVO nF, EG 15 Ü | D6: KAVO nF, EG 15 Ü | E6: KAVO nF, EG 15 Ü | F6: KAVO nF, EG 15 Ü | G6: KAVO nF, EG 15 Ü | H6: KAVO nF, EG 15 Ü | I6: KAVO nF, EG 15 Ü | J6: KAVO nF, EG 15 Ü | K6: KAVO nF, EG 15 Ü | L6: KAVO nF, EG 15 Ü | M6: KAVO nF, EG 15 Ü | O6: ZVManuell | P6: FALSE
A7: Tarifgruppe-2 | B7: KAVO nF, EG 10 | C7: KAVO nF, EG 10 | D7: =C7 -> KAVO nF, EG 10 | E7: KAVO nF, EG 10 | F7: KAVO nF, EG 10 | G7: KAVO nF, EG 10 | H7: KAVO nF, EG 10 | I7: KAVO nF, EG 10 | J7: KAVO nF, EG 10 | K7: KAVO nF, EG 10 | L7: KAVO nF, EG 10 | M7: KAVO nF, EG 10 | O7: ZuwKindManuell | P7: TRUE
A8: Tarifstufe | B8: 1 | C8: 1 | D8: =C8 -> 1 | E8: 1 | F8: 1 | G8: 1 | H8: 1 | I8: 1 | J8: 1 | K8: 1 | L8: 1 | M8: 1
A9: Tarifstufe-2 | B9: 2 | C9: 2 | D9: =C9 -> 2 | E9: 2 | F9: 2 | G9: 2 | H9: 2 | I9: 2 | J9: 2 | K9: 2 | L9: 2 | M9: 2
A10: Indiv.Stufe | B10: 0 | C10: 0 | D10: 0 | E10: =D10 -> 0 | F10: 0 | G10: 0 | H10: 0 | I10: 0 | J10: 0 | K10: 0 | L10: 0 | M10: 0
A11: Indiv.Stufe-2 | B11: 0 | C11: 0 | D11: =C11 -> 0 | E11: 0 | F11: 0 | G11: 0 | H11: 0 | I11: 0 | J11: 0 | K11: 0 | L11: 0 | M11: 0
A12: Pauschalverg | B12: 0 | C12: 0 | D12: =C12 -> 0 | E12: 0 | F12: 0 | G12: 0 | H12: 0 | I12: 0 | J12: 0 | K12: 0 | L12: 0 | M12: 0
A13: Pauschalverg-2 | B13: 0 | C13: 0 | D13: =C13 -> 0 | E13: 0 | F13: 0 | G13: 0 | H13: 0 | I13: 0 | J13: 0 | K13: 0 | L13: 0 | M13: 0
A14: GBZ2 MKM | B14: FALSE | C14: FALSE | D14: =C14 -> FALSE | E14: FALSE | F14: FALSE | G14: FALSE | H14: FALSE | I14: FALSE | J14: FALSE | K14: FALSE | L14: FALSE | M14: FALSE
A15: Monatsplit | B15: FALSE | C15: FALSE | D15: FALSE | E15: FALSE | F15: FALSE | G15: FALSE | H15: FALSE | I15: FALSE | J15: FALSE | K15: FALSE | L15: FALSE | M15: FALSE
A16: HT | B16: FALSE | C16: FALSE | D16: FALSE | E16: FALSE | F16: FALSE | G16: FALSE | H16: FALSE | I16: FALSE | J16: FALSE | K16: FALSE | L16: FALSE | M16: FALSE
A17: Erweiterungen
A18: der
A19: Grundverütung
A20: TZ-Zähler | B20: 39 | C20: =B20 -> 39 | D20: =C20 -> 39 | E20: 39 | F20: 39 | G20: 39 | H20: 39 | I20: 39 | J20: 39 | K20: =J20 -> 39 | L20: 39 | M20: 39
A21: TZ-Nenner | B21: 39 | C21: =B21 -> 39 | D21: 39 | E21: 39 | F21: 39 | G21: 39 | H21: 39 | I21: 39 | J21: 39 | K21: 39 | L21: 39 | M21: 39
A22: Tage | B22: 31 | C22: 28 | D22: 31 | E22: 30 | F22: 31 | G22: 30 | H22: 31 | I22: 31 | J22: 30 | K22: 31 | L22: 30 | M22: 31
A23: TZ-Zähler-2 | B23: 39 | C23: =B23 -> 39 | D23: =C23 -> 39 | E23: 39 | F23: 39 | G23: 39 | H23: 39 | I23: 39 | J23: 39 | K23: 39 | L23: 39 | M23: 39
A24: TZ-Nenner-2 | B24: 39 | C24: =B24 -> 39 | D24: 39 | E24: 39 | F24: 39 | G24: 39 | H24: 39 | I24: 39 | J24: 39 | K24: 39 | L24: 39 | M24: 39
A25: Tage-2 | B25: 31 | C25: 28 | D25: 31 | E25: 30 | F25: 31 | G25: 30 | H25: 31 | I25: 31 | J25: 30 | K25: 31 | L25: 30 | M25: 31
A26: Tage Gesamt | B26: 31 | C26: 28 | D26: 31 | E26: 30 | F26: 31 | G26: 30 | H26: 31 | I26: 31 | J26: 30 | K26: 31 | L26: 30 | M26: 31
A27: ReserveZeilen
A28: für zukünftige
A29: Erweiterungen
A30: des
A31: BU
A32: Familienstand | B32: ledig | C32: =B32 -> ledig | D32: =C32 -> ledig | E32: ledig | F32: ledig | G32: ledig | H32: ledig | I32: ledig | J32: ledig | K32: ledig | L32: ledig | M32: ledig
A33: Verh Höhe | B33: voll | C33: voll | D33: voll | E33: voll | F33: voll | G33: voll | H33: voll | I33: voll | J33: voll | K33: voll | L33: voll | M33: voll
A34: Verh. TZ | B34: TRUE | C34: TRUE | D34: TRUE | E34: TRUE | F34: TRUE | G34: TRUE | H34: TRUE | I34: TRUE | J34: TRUE | K34: TRUE | L34: TRUE | M34: TRUE
A36: Anzahl Kinder | B36: 0 | C36: 0 | D36: 0 | E36: 0 | F36: 0 | G36: 0 | H36: 0 | I36: 0 | J36: 0 | K36: 0 | L36: 0 | M36: 0
A37: Kinder TZ | B37: TRUE | C37: TRUE | D37: TRUE | E37: TRUE | F37: TRUE | G37: TRUE | H37: TRUE | I37: TRUE | J37: TRUE | K37: TRUE | L37: TRUE | M37: TRUE
A41: Konkurrenz | B41: FALSE | C41: FALSE | D41: FALSE | E41: FALSE | F41: FALSE | G41: FALSE | H41: FALSE | I41: FALSE | J41: FALSE | K41: FALSE | L41: FALSE | M41: FALSE
A42: für zukünftige
A43: Erweiterungen
A44: des
A45: Familienbestandt.
A46: VL Zulage | B46: 6.65 | C46: =B46 -> 6.65 | D46: 6.65 | E46: 6.65 | F46: 6.65 | G46: 6.65 | H46: 6.65 | I46: 6.65 | J46: 6.65 | K46: 6.65 | L46: 6.65 | M46: 6.65
A47: Tarifzulage | B47: normal | C47: =B47 -> normal | D47: normal | E47: normal | F47: normal | G47: normal | H47: normal | I47: normal | J47: normal | K47: normal | L47: normal | M47: normal
A48: Name Zulage 1
A49: Name Zulage 2
A50: Name Zulage 3
A51: Name Zulage 4
A52: Betrag Zulage 1 | B52: 0 | C52: =B52 -> 0 | D52: 0 | E52: 0 | F52: 0 | G52: 0 | H52: 0 | I52: 0 | J52: 0 | K52: 0 | L52: 0 | M52: 0
A53: Betrag Zulage 2 | C53: =B53 -> 0 | D53: 0 | E53: 0 | F53: 0 | G53: 0 | H53: 0 | I53: 0 | J53: 0 | K53: 0 | L53: 0 | M53: 0
A54: Betrag Zulage 3 | C54: =B54 -> 0 | D54: 0 | E54: 0 | F54: 0 | G54: 0 | H54: 0 | I54: 0 | J54: 0 | K54: 0 | L54: 0 | M54: 0
A55: Betrag Zulage 4 | C55: =B55 -> 0 | D55: 0 | E55: 0 | F55: 0 | G55: 0 | H55: 0 | I55: 0 | J55: 0 | K55: 0 | L55: 0 | M55: 0
A56: Klassif Zulage 1 | B56: JJJJ1J
A57: Klassif Zulage 2 | B57: JJJJ1J
A58: Klassif Zulage 3 | B58: JJJJ1J
A59: Klassif Zulage 4 | B59: JJJJ1J
A60: ReserveZeilen
A61: für zukünftige
A62: Erweiterungen
A63: des
A64: Zulagen
A65: Urlaubsgeld | B65: FALSE | C65: FALSE | D65: FALSE | E65: FALSE | F65: FALSE | G65: FALSE | H65: FALSE | I65: FALSE | J65: FALSE | K65: FALSE | L65: FALSE | M65: FALSE
A66: Betrag | B66: 0 | C66: =B66 -> 0 | D66: 0 | E66: 0 | F66: 0 | G66: 0 | H66: 0 | I66: 0 | J66: 0 | K66: 0 | L66: 0 | M66: 0
A67: Klassifizierung | B67: JJEN1J
A68: Zuwendung | B68: FALSE | C68: FALSE | D68: FALSE | E68: FALSE | F68: FALSE | G68: FALSE | H68: FALSE | I68: FALSE | J68: FALSE | K68: FALSE | L68: TRUE | M68: FALSE
A69: Zuw Prozent | B69: 77.2 | C69: =C77 -> 68.81 | D69: 68.09 | E69: 68.09 | F69: 68.09 | G69: 68.09 | H69: 68.09 | I69: 68.09 | J69: 68.09 | K69: 68.09 | L69: 68.09 | M69: 68.09
A70: Zuw Erhöhung | B70: 0 | C70: =B70 -> 0 | D70: 0 | E70: 0 | F70: 0 | G70: 0 | H70: 0 | I70: 0 | J70: 0 | K70: 0 | L70: 0 | M70: 0
A71: Zuw Kind | B71: 20 | C71: =B71 -> 20 | D71: 20 | E71: 20 | F71: 20 | G71: 20 | H71: 20 | I71: 20 | J71: 20 | K71: 20 | L71: 20 | M71: 20
A72: Bem Monat 1 | B72: 9 | C72: =VLOOKUP(C4,Einstellungen!$A$2:$F$13,6,0) -> 9 | D72: =VLOOKUP(D4,Einstellungen!$A$2:$F$13,6,0) -> 9 | E72: =VLOOKUP(E4,Einstellungen!$A$2:$F$13,6,0) -> 9 | F72: =VLOOKUP(F4,Einstellungen!$A$2:$F$13,6,0) -> 9 | G72: =VLOOKUP(G4,Einstellungen!$A$2:$F$13,6,0) -> 9 | H72: =VLOOKUP(H4,Einstellungen!$A$2:$F$13,6,0) -> 9 | I72: =VLOOKUP(I4,Einstellungen!$A$2:$F$13,6,0) -> 9 | J72: =VLOOKUP(J4,Einstellungen!$A$2:$F$13,6,0) -> 9 | K72: =VLOOKUP(K4,Einstellungen!$A$2:$F$13,6,0) -> 9 | L72: =VLOOKUP(L4,Einstellungen!$A$2:$F$13,6,0) -> 9 | M72: =VLOOKUP(M4,Einstellungen!$A$2:$F$13,6,0) -> 9
A73: Bem Monat 2 | B73: =IF(B72<11,B72+1,B72) -> 10 | C73: =IF(C72<11,C72+1,C72) -> 10 | D73: 10 | E73: 10 | F73: 10 | G73: 10 | H73: 10 | I73: 10 | J73: 10 | K73: 10 | L73: 10 | M73: 10
A74: Bem Monat 3 | B74: =IF(B73<11,B73+1,B73) -> 11 | C74: 11 | D74: 11 | E74: 11 | F74: 11 | G74: 11 | H74: 11 | I74: 11 | J74: 11 | K74: 11 | L74: 11 | M74: 11
A75: Ber. 3 Monate | B75: FALSE | C75: =B75 -> FALSE | D75: FALSE | E75: FALSE | F75: FALSE | G75: FALSE | H75: FALSE | I75: FALSE | J75: FALSE | K75: FALSE | L75: FALSE | M75: FALSE
A76: Klassifizierung | B76: JSEJ1J
A77: Tariif Zuw % | B77: =VLOOKUP(Datenausgabe!B$6,[2]!Verguetung,26,0)*100 -> 68.81 | C77: =VLOOKUP(Datenausgabe!C$6,[2]!Verguetung,26,0)*100 -> 68.81 | D77: =VLOOKUP(Datenausgabe!D$6,[3]!Verguetung,26,0)*100 -> 68.09 | E77: =VLOOKUP(Datenausgabe!E$6,[3]!Verguetung,26,0)*100 -> 68.09 | F77: =VLOOKUP(Datenausgabe!F$6,[3]!Verguetung,26,0)*100 -> 68.09 | G77: =VLOOKUP(Datenausgabe!G$6,[3]!Verguetung,26,0)*100 -> 68.09 | H77: =VLOOKUP(Datenausgabe!H$6,[3]!Verguetung,26,0)*100 -> 68.09 | I77: =VLOOKUP(Datenausgabe!I$6,[3]!Verguetung,26,0)*100 -> 68.09 | J77: =VLOOKUP(Datenausgabe!J$6,[3]!Verguetung,26,0)*100 -> 68.09 | K77: =VLOOKUP(Datenausgabe!K$6,[3]!Verguetung,26,0)*100 -> 68.09 | L77: =VLOOKUP(Datenausgabe!L$6,[3]!Verguetung,26,0)*100 -> 68.09 | M77: =VLOOKUP(Datenausgabe!M$6,[3]!Verguetung,26,0)*100 -> 68.09
A78: Abweichender % Satz: | B78: FALSE | C78: =B78 -> FALSE | D78: FALSE | E78: FALSE | F78: FALSE | G78: FALSE | H78: FALSE | I78: FALSE | J78: FALSE | K78: FALSE | L78: FALSE | M78: FALSE
A79: EZ | B79: FALSE | C79: =IF(OR(Nebenrechnungen!C114>0,Nebenrechnungen!C115>0),TRUE,FALSE) -> FALSE | D79: =IF(OR(Nebenrechnungen!D114>0,Nebenrechnungen!D115>0),TRUE,FALSE) -> FALSE | E79: =IF(OR(Nebenrechnungen!E114>0,Nebenrechnungen!E115>0),TRUE,FALSE) -> FALSE | F79: =IF(OR(Nebenrechnungen!F114>0,Nebenrechnungen!F115>0),TRUE,FALSE) -> FALSE | G79: =IF(OR(Nebenrechnungen!G114>0,Nebenrechnungen!G115>0),TRUE,FALSE) -> FALSE | H79: =IF(OR(Nebenrechnungen!H114>0,Nebenrechnungen!H115>0),TRUE,FALSE) -> FALSE | I79: =IF(OR(Nebenrechnungen!I114>0,Nebenrechnungen!I115>0),TRUE,FALSE) -> FALSE | J79: =IF(OR(Nebenrechnungen!J114>0,Nebenrechnungen!J115>0),TRUE,FALSE) -> FALSE | K79: =IF(OR(Nebenrechnungen!K114>0,Nebenrechnungen!K115>0),TRUE,FALSE) -> FALSE | L79: =IF(OR(Nebenrechnungen!L114>0,Nebenrechnungen!L115>0),TRUE,FALSE) -> FALSE | M79: =IF(OR(Nebenrechnungen!M114>0,Nebenrechnungen!M115>0),TRUE,FALSE) -> FALSE
A80: EZ betrag | B80: 0 | C80: 0 | D80: 0 | E80: 0 | F80: 0 | G80: 0 | H80: 0 | I80: 0 | J80: 0 | K80: 0 | L80: 0 | M80: 0
A81: Ez klass | B81: JJEJ1J
A82: Versorgung | B82: FALSE | C82: =B82 -> FALSE | D82: =C82 -> FALSE | E82: FALSE | F82: FALSE | G82: FALSE | H82: FALSE | I82: FALSE | J82: FALSE | K82: FALSE | L82: FALSE | M82: FALSE
A83: Versorgung % | B83: 0 | C83: =B83 -> 0 | D83: 0 | E83: 0 | F83: 0 | G83: 0 | H83: 0 | I83: 0 | J83: 0 | K83: 0 | L83: 0 | M83: 0
A84: Vers Abschlag | B84: 0 | C84: 0 | D84: 0 | E84: 0 | F84: 0 | G84: 0 | H84: 0 | I84: 0 | J84: 0 | K84: 0 | L84: 0 | M84: 0
A85: Anpassungsfaktor | B85: 0.99458 | C85: 0.99458 | D85: 0.99458 | E85: 0.99458 | F85: 0.99458 | G85: 0.99458 | H85: 0.99458 | I85: 0.99458 | J85: 0.99458 | K85: 0.99458 | L85: 0.99458 | M85: 0.99458
A86: Höhergrp MKM | B86: FALSE | C86: FALSE | D86: FALSE | E86: FALSE | F86: FALSE | G86: FALSE | H86: FALSE | I86: FALSE | J86: FALSE | K86: FALSE | L86: FALSE | M86: FALSE
A87: Tarifgrp Höhergrp. | B87: KAVO nF, EG 15 Ü | C87: =B87 -> KAVO nF, EG 15 Ü | D87: KAVO nF, EG 15 Ü | E87: KAVO nF, EG 15 Ü | F87: KAVO nF, EG 15 Ü | G87: KAVO nF, EG 15 Ü | H87: KAVO nF, EG 15 Ü | I87: KAVO nF, EG 15 Ü | J87: KAVO nF, EG 15 Ü | K87: KAVO nF, EG 15 Ü | L87: KAVO nF, EG 15 Ü | M87: KAVO nF, EG 15 Ü
A88: Garantiebetrag Höhergrp. | B88: 60 | C88: 60 | D88: 60 | E88: 60 | F88: 60 | G88: 60 | H88: 60 | I88: 60 | J88: 60 | K88: 60 | L88: 60 | M88: 60
A89: Endstufe Aufstiegsgruppe | B89: 6 | C89: 6 | D89: 6 | E89: 6 | F89: 6 | G89: 6 | H89: 6 | I89: 6 | J89: 6 | K89: 6 | L89: 6 | M89: 6
A90: LEG Ob 1 | B90: TRUE | C90: =B90 -> TRUE | D90: =C90 -> TRUE | E90: TRUE | F90: TRUE | G90: TRUE | H90: TRUE | I90: TRUE | J90: TRUE | K90: TRUE | L90: TRUE | M90: FALSE
A91: LEG Ob 2 | B91: FALSE | C91: FALSE | D91: FALSE | E91: FALSE | F91: FALSE | G91: FALSE | H91: FALSE | I91: FALSE | J91: FALSE | K91: FALSE | L91: FALSE | M91: FALSE
A92: LEG Ob 3 | B92: FALSE | C92: FALSE | D92: FALSE | E92: FALSE | F92: FALSE | G92: FALSE | H92: FALSE | I92: FALSE | J92: FALSE | K92: FALSE | L92: FALSE | M92: FALSE
A93: LEG Betrag | B93: 0 | C93: =B93 -> 0 | D93: =C93 -> 0 | E93: 0 | F93: 0 | G93: 0 | H93: 0 | I93: 0 | J93: 0 | K93: 0 | L93: 0 | M93: 0
A94: LEG VH | B94: 24 | C94: =B94 -> 24 | D94: 24 | E94: 24 | F94: 24 | G94: 24 | H94: 24 | I94: 24 | J94: 24 | K94: 24 | L94: 24 | M94: 24
A95: LEG Bem Monat | B95: 8 | C95: =B95 -> 8 | D95: 8 | E95: 8 | F95: 8 | G95: 8 | H95: 8 | I95: 8 | J95: 8 | K95: 8 | L95: 8 | M95: 8
A96: Zuw Kind Tarif | B96: =VLOOKUP(Datenausgabe!B$6,[2]!Verguetung,27,0) -> 20 | C96: =VLOOKUP(Datenausgabe!C$6,[2]!Verguetung,27,0) -> 20 | D96: =VLOOKUP(Datenausgabe!D$6,[3]!Verguetung,27,0) -> 20 | E96: =VLOOKUP(Datenausgabe!E$6,[3]!Verguetung,27,0) -> 20 | F96: =VLOOKUP(Datenausgabe!F$6,[3]!Verguetung,27,0) -> 20 | G96: =VLOOKUP(Datenausgabe!G$6,[3]!Verguetung,27,0) -> 20 | H96: =VLOOKUP(Datenausgabe!H$6,[3]!Verguetung,27,0) -> 20 | I96: =VLOOKUP(Datenausgabe!I$6,[3]!Verguetung,27,0) -> 20 | J96: =VLOOKUP(Datenausgabe!J$6,[3]!Verguetung,27,0) -> 20 | K96: =VLOOKUP(Datenausgabe!K$6,[3]!Verguetung,27,0) -> 20 | L96: =VLOOKUP(Datenausgabe!L$6,[3]!Verguetung,27,0) -> 20 | M96: =VLOOKUP(Datenausgabe!M$6,[3]!Verguetung,27,0) -> 20
A97: ReserveZeilen
A98: für zukünftige
A99: Erweiterungen
A101: Steuerpflicht | B101: TRUE | C101: =B101 -> TRUE | D101: =C101 -> TRUE | E101: TRUE | F101: TRUE | G101: TRUE | H101: TRUE | I101: TRUE | J101: TRUE | K101: TRUE | L101: TRUE | M101: TRUE
A102: Steuerklasse | B102: 1 | C102: 1 | D102: =C102 -> 1 | E102: 1 | F102: 1 | G102: 1 | H102: 1 | I102: 1 | J102: 1 | K102: 1 | L102: 1 | M102: 1
A103: Kindeerfreibeträge | B103: 0 | C103: 0 | D103: =C103 -> 0 | E103: 0 | F103: 0 | G103: 0 | H103: 0 | I103: 0 | J103: 0 | K103: 0 | L103: 0 | M103: 0
A104: Steuertabelle | B104: 0 | C104: 0 | D104: =C104 -> 0 | E104: 0 | F104: 0 | G104: 0 | H104: 0 | I104: 0 | J104: 0 | K104: 0 | L104: 0 | M104: 0
A105: Geburtsjahr | B105: 1960 | C105: 1960 | D105: =C105 -> 1960 | E105: =D105 -> 1960 | F105: 1960 | G105: 1960 | H105: 1960 | I105: 1960 | J105: 1960 | K105: 1960 | L105: 1960 | M105: 1960
A106: Versorgungsbeginn | B106: 0 | C106: 0 | D106: =C106 -> 0 | E106: 0 | F106: 0 | G106: 0 | H106: 0 | I106: 0 | J106: 0 | K106: 0 | L106: 0 | M106: 0
A107: Vers. Sonderz. | B107: 0 | C107: 0 | D107: =C107 -> 0 | E107: 0 | F107: 0 | G107: 0 | H107: 0 | I107: 0 | J107: 0 | K107: 0 | L107: 0 | M107: 0
A108: STM Freib. | B108: 0 | C108: 0 | D108: =C108 -> 0 | E108: 0 | F108: 0 | G108: 0 | H108: 0 | I108: 0 | J108: 0 | K108: 0 | L108: 0 | M108: 0
A109: STM Hinzur. | B109: 0 | C109: 0 | D109: =C109 -> 0 | E109: 0 | F109: 0 | G109: 0 | H109: 0 | I109: 0 | J109: 0 | K109: 0 | L109: 0 | M109: 0
A110: STJ Freib. | B110: 0 | C110: 0 | D110: =C110 -> 0 | E110: 0 | F110: 0 | G110: 0 | H110: 0 | I110: 0 | J110: 0 | K110: 0 | L110: 0 | M110: 0
A111: STJ Hinzur. | B111: 0 | C111: 0 | D111: =C111 -> 0 | E111: 0 | F111: 0 | G111: 0 | H111: 0 | I111: 0 | J111: 0 | K111: 0 | L111: 0 | M111: 0
A112: P Lst KZVK | B112: 20 | C112: 20 | D112: =C112 -> 20 | E112: 20 | F112: 20 | G112: 20 | H112: 20 | I112: 20 | J112: 20 | K112: 20 | L112: 20 | M112: 20
A113: P Solz KZVK | B113: 5.5 | C113: 5.5 | D113: =C113 -> 5.5 | E113: 5.5 | F113: 5.5 | G113: 5.5 | H113: 5.5 | I113: 5.5 | J113: 5.5 | K113: 5.5 | L113: 5.5 | M113: 5.5
A114: P Kist KZVK | B114: 7 | C114: 7 | D114: =C114 -> 7 | E114: 7 | F114: 7 | G114: 7 | H114: 7 | I114: 7 | J114: 7 | K114: 7 | L114: 7 | M114: 7
A115: P Lst Zulagen | B115: 15 | C115: 15 | D115: =C115 -> 15 | E115: 15 | F115: 15 | G115: 15 | H115: 15 | I115: 15 | J115: 15 | K115: 15 | L115: 15 | M115: 15
A116: P Solz Zulagen | B116: 5 | C116: 5 | D116: =C116 -> 5 | E116: =D116 -> 5 | F116: =E116 -> 5 | G116: 5 | H116: 5 | I116: 5 | J116: 5 | K116: 5 | L116: 5 | M116: 5
A117: P Kist Zulagen | B117: 7 | C117: 7 | D117: =C117 -> 7 | E117: 7 | F117: 7 | G117: 7 | H117: 7 | I117: 7 | J117: 7 | K117: 7 | L117: 7 | M117: 7
A118: P Steuer AG | B118: FALSE | C118: FALSE | D118: =C118 -> FALSE | E118: FALSE | F118: FALSE | G118: FALSE | H118: FALSE | I118: FALSE | J118: FALSE | K118: FALSE | L118: FALSE | M118: FALSE
A119: Altersentlastungsbetrag | B119: FALSE | C119: FALSE | D119: FALSE | E119: FALSE | F119: FALSE | G119: FALSE | H119: FALSE | I119: FALSE | J119: FALSE | K119: FALSE | L119: FALSE | M119: FALSE
A120: Faktor | B120: 0 | C120: 0 | D120: =C120 -> 0 | E120: 0 | F120: 0 | G120: 0 | H120: 0 | I120: 0 | J120: 0 | K120: 0 | L120: 0 | M120: 0
A121: KVPVBeitr | B121: 0 | C121: =B121 -> 0 | D121: 0 | E121: 0 | F121: 0 | G121: 0 | H121: 0 | I121: 0 | J121: 0 | K121: 0 | L121: 0 | M121: 0
A122: kvpfl | B122: 0 | C122: 0 | D122: 0 | E122: 0 | F122: 0 | G122: 0 | H122: 0 | I122: 0 | J122: 0 | K122: 0 | L122: 0 | M122: 0
A123: ReserveZeilen
A124: für zukünftige
A125: Erweiterungen
A126: der
A127: Steuerberechnung
A129: SVPflicht | B129: TRUE | C129: =B129 -> TRUE | D129: =C129 -> TRUE | E129: TRUE | F129: TRUE | G129: TRUE | H129: TRUE | I129: TRUE | J129: TRUE | K129: TRUE | L129: TRUE | M129: TRUE
A130: FreiwKV | B130: FALSE | C130: FALSE | D130: =C130 -> FALSE | E130: FALSE | F130: FALSE | G130: FALSE | H130: FALSE | I130: FALSE | J130: FALSE | K130: FALSE | L130: FALSE | M130: FALSE
A131: KVZuschuss | B131: FALSE | C131: FALSE | D131: =C131 -> FALSE | E131: FALSE | F131: FALSE | G131: FALSE | H131: FALSE | I131: FALSE | J131: FALSE | K131: FALSE | L131: FALSE | M131: FALSE
A132: Eltern | B132: FALSE | C132: FALSE | D132: =C132 -> FALSE | E132: FALSE | F132: FALSE | G132: FALSE | H132: FALSE | I132: FALSE | J132: FALSE | K132: FALSE | L132: FALSE | M132: FALSE
A133: KVbbg | B133: 4687.5 | C133: 4687.5 | D133: 4687.5 | E133: 4687.5 | F133: 4687.5 | G133: 4687.5 | H133: =G133 -> 4687.5 | I133: 4687.5 | J133: 4687.5 | K133: 4687.5 | L133: 4687.5 | M133: 4687.5
A134: RVbbg | B134: 6900 | C134: 6900 | D134: 6900 | E134: 6900 | F134: 6900 | G134: =F134 -> 6900 | H134: 6900 | I134: 6900 | J134: 6900 | K134: 6900 | L134: 6900 | M134: 6900
A135: KVpflGrenze | B135: 1 | C135: 1 | D135: =C135 -> 1 | E135: 1 | F135: 1 | G135: 1 | H135: 1 | I135: 1 | J135: 1 | K135: 1 | L135: 1 | M135: 1
A136: U1Prozent | B136: 0 | C136: 0 | D136: =C136 -> 0 | E136: 0 | F136: 0 | G136: 0 | H136: 0 | I136: 0 | J136: 0 | K136: 0 | L136: 0 | M136: 0
A137: U2Prozent | B137: 0.09 | C137: 0.09 | D137: =C137 -> 0.09 | E137: 0.09 | F137: 0.09 | G137: 0.09 | H137: 0.09 | I137: 0.09 | J137: 0.09 | K137: 0.09 | L137: 0.09 | M137: 0.09
A138: KVAGProzent | B138: 7.3 | C138: 7.3 | D138: =C138 -> 7.3 | E138: 7.3 | F138: 7.3 | G138: 7.3 | H138: 7.3 | I138: 7.3 | J138: 7.3 | K138: 7.3 | L138: 7.3 | M138: 7.3
A139: PVAGProzent | B139: 1.525 | C139: 1.525 | D139: =C139 -> 1.525 | E139: 1.525 | F139: 1.525 | G139: 1.525 | H139: 1.525 | I139: 1.525 | J139: 1.525 | K139: 1.525 | L139: 1.525 | M139: 1.525
A140: RVAGProzent | B140: 9.3 | C140: 9.3 | D140: =C140 -> 9.3 | E140: 9.3 | F140: 9.3 | G140: 9.3 | H140: 9.3 | I140: 9.3 | J140: 9.3 | K140: 9.3 | L140: 9.3 | M140: 9.3
A141: AVAGProzent | B141: 1.2 | C141: 1.2 | D141: =C141 -> 1.2 | E141: 1.2 | F141: 1.2 | G141: 1.2 | H141: 1.2 | I141: 1.2 | J141: 1.2 | K141: 1.2 | L141: 1.2 | M141: 1.2
A142: KVANProzent | B142: 1.1 | C142: 1.1 | D142: =C142 -> 1.1 | E142: 1.1 | F142: 1.1 | G142: 1.1 | H142: 1.1 | I142: 1.1 | J142: 1.1 | K142: 1.1 | L142: 1.1 | M142: 1.1
A143: PVANProzent | B143: 0.25 | C143: 0.25 | D143: =C143 -> 0.25 | E143: 0.25 | F143: 0.25 | G143: 0.25 | H143: 0.25 | I143: 0.25 | J143: 0.25 | K143: 0.25 | L143: 0.25 | M143: 0.25
A144: RVANProzent | B144: 0 | C144: =B144 -> 0 | D144: 0 | E144: 0 | F144: 0 | G144: 0 | H144: 0 | I144: 0 | J144: 0 | K144: 0 | L144: 0 | M144: 0
A145: AVANProzent | B145: 0 | C145: =B145 -> 0 | D145: 0 | E145: 0 | F145: 0 | G145: 0 | H145: 0 | I145: 0 | J145: 0 | K145: 0 | L145: 0 | M145: 0
A146: KV Art | B146: 1 | C146: 1 | D146: 1 | E146: 1 | F146: 1 | G146: 1 | H146: 1 | I146: 1 | J146: 1 | K146: 1 | L146: 1 | M146: 1
A147: ReserveZeilen
A148: für zukünftige
A149: Erweiterungen
A150: der
A151: SV
A156: ZVPflicht | B156: TRUE | C156: =B156 -> TRUE | D156: =C156 -> TRUE | E156: TRUE | F156: TRUE | G156: TRUE | H156: TRUE | I156: TRUE | J156: TRUE | K156: TRUE | L156: TRUE | M156: TRUE
A157: ZVKasse | B157: KZVK | C157: =B157 -> KZVK | D157: KZVK | E157: KZVK | F157: KZVK | G157: KZVK | H157: KZVK | I157: KZVK | J157: KZVK | K157: KZVK | L157: KZVK | M157: KZVK
A158: UmlagesAGProzent | B158: 5.6 | C158: 5.6 | D158: =C158 -> 5.6 | E158: =D158 -> 5.6 | F158: =E158 -> 5.6 | G158: =F158 -> 5.6 | H158: =G158 -> 5.6 | I158: =H158 -> 5.6 | J158: =I158 -> 5.6 | K158: =J158 -> 5.6 | L158: =K158 -> 5.6 | M158: =L158 -> 5.6
A159: UmlageANProzent | B159: 0.4 | C159: 0.4 | D159: =C159 -> 0.4 | E159: 0.4 | F159: 0.4 | G159: 0.4 | H159: 0.4 | I159: 0.4 | J159: 0.4 | K159: 0.4 | L159: 0.4 | M159: 0.4
A160: HinzurProzent | B160: 2.5 | C160: 2.5 | D160: 2.5 | E160: 2.5 | F160: 2.5 | G160: 2.5 | H160: 2.5 | I160: 2.5 | J160: 2.5 | K160: 2.5 | L160: 2.5 | M160: 2.5
A161: PauschGrenze | B161: 89.48 | C161: 89.48 | D161: 89.48 | E161: 89.48 | F161: 89.48 | G161: 89.48 | H161: 89.48 | I161: 89.48 | J161: 89.48 | K161: 89.48 | L161: 89.48 | M161: 89.48
A162: PauschFreibetrag | B162: 13.3 | C162: 13.3 | D162: 13.3 | E162: 13.3 | F162: 13.3 | G162: 13.3 | H162: 13.3 | I162: 13.3 | J162: 13.3 | K162: 13.3 | L162: 13.3 | M162: 13.3
A163: FreigrenzeEGU | B163: 4 | C163: 4 | D163: 4 | E163: 4 | F163: 4 | G163: 4 | H163: 4 | I163: 4 | J163: 4 | K163: 4 | L163: 4 | M163: 4
A164: VBLSanierungProzent | B164: 0.5 | C164: 0.5 | D164: 0.5 | E164: 0.5 | F164: 0.5 | G164: 0.5 | H164: 0.5 | I164: 0.5 | J164: 0.5 | K164: 0.5 | L164: 0.5 | M164: 0.5
A165: 3 56 Frei % | B165: 2 | C165: 2 | D165: 2 | E165: 2 | F165: 2 | G165: 2 | H165: 2 | I165: 2 | J165: 2 | K165: 2 | L165: 2 | M165: 2
A166: frei SREV | B166: 100 | C166: 100 | D166: 100 | E166: 100 | F166: 100 | G166: 100 | H166: 100 | I166: 100 | J166: 100 | K166: 100 | L166: 100 | M166: 100
A168: ReserveZeilen
A169: für zukünftige
A170: Erweiterungen
A171: der
A172: ZVK
A175: SVArt | B175: 0 | C175: =B175 -> 0 | D175: 0 | E175: 0 | F175: 0 | G175: 0 | H175: 0 | I175: 0 | J175: 0 | K175: 0 | L175: 0 | M175: 0
A176: ErmRV | B176: FALSE | C176: =B176 -> FALSE | D176: FALSE | E176: FALSE | F176: FALSE | G176: FALSE | H176: FALSE | I176: FALSE | J176: FALSE | K176: FALSE | L176: FALSE | M176: FALSE
A178: GleitFaktor F | B178: 0.7528 | C178: =B178 -> 0.7528 | D178: 0.7528 | E178: 0.7528 | F178: 0.7528 | G178: 0.7528 | H178: 0.7528 | I178: 0.7528 | J178: 0.7528 | K178: 0.7528 | L178: 0.7528 | M178: 0.7528
A179: GleitGrenze | B179: 1300 | C179: =B179 -> 1300 | D179: 1300 | E179: 1300 | F179: 1300 | G179: 1300 | H179: 1300 | I179: 1300 | J179: 1300 | K179: 1300 | L179: 1300 | M179: 1300
A180: GFBGrenze | B180: 450 | C180: 450 | D180: 450 | E180: 450 | F180: 450 | G180: 450 | H180: 450 | I180: 450 | J180: 450 | K180: 450 | L180: 450 | M180: 450
A181: GFBPSteuersatz | B181: 2 | C181: =B181 -> 2 | D181: 2 | E181: 2 | F181: 2 | G181: 2 | H181: 2 | I181: 2 | J181: 2 | K181: 2 | L181: 2 | M181: 2
A182: GFBPKV | B182: 13 | C182: =B182 -> 13 | D182: 13 | E182: 13 | F182: 13 | G182: 13 | H182: 13 | I182: 13 | J182: 13 | K182: 13 | L182: 13 | M182: 13
A183: GFBPRV | B183: 15 | C183: =B183 -> 15 | D183: 15 | E183: 15 | F183: 15 | G183: 15 | H183: 15 | I183: 15 | J183: 15 | K183: 15 | L183: 15 | M183: 15
A184: GFBSteuerart | B184: 2 | C184: =B184 -> 2 | D184: 2 | E184: 2 | F184: 2 | G184: 2 | H184: 2 | I184: 2 | J184: 2 | K184: 2 | L184: 2 | M184: 2
A185: GFBUmlage | B185: FALSE | C185: =B185 -> FALSE | D185: FALSE | E185: FALSE | F185: FALSE | G185: FALSE | H185: FALSE | I185: FALSE | J185: FALSE | K185: FALSE | L185: FALSE | M185: FALSE
A186: GFBAufstRV | B186: TRUE | C186: =B186 -> TRUE | D186: TRUE | E186: TRUE | F186: TRUE | G186: TRUE | H186: TRUE | I186: TRUE | J186: TRUE | K186: TRUE | L186: TRUE | M186: TRUE
A187: GFBMindBemGrdl | B187: 175 | C187: =B187 -> 175 | D187: 175 | E187: 175 | F187: 175 | G187: 175 | H187: 175 | I187: 175 | J187: 175 | K187: 175 | L187: 175 | M187: 175
A188: ReserveZeilen | B188: ="public const z"&A188&" = "&ROW() -> public const zReserveZeilen = 188
A189: für zukünftige
A190: Erweiterungen
A191: der
A192: GFB + Gleitz.
A193: VL Gesamt | B193: 0 | C193: =B193 -> 0 | D193: 0 | E193: 0 | F193: 0 | G193: 0 | H193: 0 | I193: 0 | J193: 0 | K193: 0 | L193: 0 | M193: 0
A194: Abzug 1 Bezeichnung
A195: Abzugg 1 Betrag | B195: 0 | C195: 0 | D195: 0 | E195: 0 | F195: 0 | G195: 0 | H195: 0 | I195: 0 | J195: 0 | K195: 0 | L195: 0 | M195: 0
A196: Abzug 2 Bezeichnung
A197: Abzugg 2 Betrag | B197: 0 | C197: 0 | D197: 0 | E197: 0 | F197: 0 | G197: 0 | H197: 0 | I197: 0 | J197: 0 | K197: 0 | L197: 0 | M197: 0

Sheet Nebenrechnungen (hidden)
B1: =Datenausgabe!B3 -> Januar | C1: =Datenausgabe!C3 -> Februar | D1: =Datenausgabe!D3 -> März | E1: =Datenausgabe!E3 -> April | F1: =Datenausgabe!F3 -> Mai | G1: =Datenausgabe!G3 -> Juni | H1: =Datenausgabe!H3 -> Juli | I1: =Datenausgabe!I3 -> August | J1: =Datenausgabe!J3 -> September | K1: =Datenausgabe!K3 -> Oktober | L1: =Datenausgabe!L3 -> November | M1: =Datenausgabe!M3 -> Dezember | N1: Erläuterungen
A2: Tabellenwerte der Vergütungsgruppen ermitteln. Wenn eine Pauschalvergütung eingegeben wurde, diese verwenden
A3: Grundgehalt 1 | B3: =IF(Datenausgabe!B12<>0,Datenausgabe!B12,VLOOKUP(Datenausgabe!B$6,[2]!Verguetung,Datenausgabe!B$8+1,0)) -> 0 | C3: =IF(Datenausgabe!C12<>0,Datenausgabe!C12,VLOOKUP(Datenausgabe!C$6,[2]!Verguetung,Datenausgabe!C$8+1,0)) -> 0 | D3: =IF(Datenausgabe!D12<>0,Datenausgabe!D12,VLOOKUP(Datenausgabe!D$6,[3]!Verguetung,Datenausgabe!D$8+1,0)) -> 0 | E3: =IF(Datenausgabe!E12<>0,Datenausgabe!E12,VLOOKUP(Datenausgabe!E$6,[3]!Verguetung,Datenausgabe!E$8+1,0)) -> 0 | F3: =IF(Datenausgabe!F12<>0,Datenausgabe!F12,VLOOKUP(Datenausgabe!F$6,[3]!Verguetung,Datenausgabe!F$8+1,0)) -> 0 | G3: =IF(Datenausgabe!G12<>0,Datenausgabe!G12,VLOOKUP(Datenausgabe!G$6,[3]!Verguetung,Datenausgabe!G$8+1,0)) -> 0 | H3: =IF(Datenausgabe!H12<>0,Datenausgabe!H12,VLOOKUP(Datenausgabe!H$6,[3]!Verguetung,Datenausgabe!H$8+1,0)) -> 0 | I3: =IF(Datenausgabe!I12<>0,Datenausgabe!I12,VLOOKUP(Datenausgabe!I$6,[3]!Verguetung,Datenausgabe!I$8+1,0)) -> 0 | J3: =IF(Datenausgabe!J12<>0,Datenausgabe!J12,VLOOKUP(Datenausgabe!J$6,[3]!Verguetung,Datenausgabe!J$8+1,0)) -> 0 | K3: =IF(Datenausgabe!K12<>0,Datenausgabe!K12,VLOOKUP(Datenausgabe!K$6,[3]!Verguetung,Datenausgabe!K$8+1,0)) -> 0 | L3: =IF(Datenausgabe!L12<>0,Datenausgabe!L12,VLOOKUP(Datenausgabe!L$6,[3]!Verguetung,Datenausgabe!L$8+1,0)) -> 0 | M3: =IF(Datenausgabe!M12<>0,Datenausgabe!M12,VLOOKUP(Datenausgabe!M$6,[3]!Verguetung,Datenausgabe!M$8+1,0)) -> 0
A4: Grundgehalt 2 | B4: =IF(Datenausgabe!B13<>0,Datenausgabe!B13,VLOOKUP(Datenausgabe!B$7,[2]!Verguetung,Datenausgabe!B$9+1,0)) -> 3613.93 | C4: =IF(Datenausgabe!C13<>0,Datenausgabe!C13,VLOOKUP(Datenausgabe!C$7,[2]!Verguetung,Datenausgabe!C$9+1,0)) -> 3613.93 | D4: =IF(Datenausgabe!D13<>0,Datenausgabe!D13,VLOOKUP(Datenausgabe!D$7,[3]!Verguetung,Datenausgabe!D$9+1,0)) -> 3655.13 | E4: =IF(Datenausgabe!E13<>0,Datenausgabe!E13,VLOOKUP(Datenausgabe!E$7,[3]!Verguetung,Datenausgabe!E$9+1,0)) -> 3655.13 | F4: =IF(Datenausgabe!F13<>0,Datenausgabe!F13,VLOOKUP(Datenausgabe!F$7,[3]!Verguetung,Datenausgabe!F$9+1,0)) -> 3655.13 | G4: =IF(Datenausgabe!G13<>0,Datenausgabe!G13,VLOOKUP(Datenausgabe!G$7,[3]!Verguetung,Datenausgabe!G$9+1,0)) -> 3655.13 | H4: =IF(Datenausgabe!H13<>0,Datenausgabe!H13,VLOOKUP(Datenausgabe!H$7,[3]!Verguetung,Datenausgabe!H$9+1,0)) -> 3655.13 | I4: =IF(Datenausgabe!I13<>0,Datenausgabe!I13,VLOOKUP(Datenausgabe!I$7,[3]!Verguetung,Datenausgabe!I$9+1,0)) -> 3655.13 | J4: =IF(Datenausgabe!J13<>0,Datenausgabe!J13,VLOOKUP(Datenausgabe!J$7,[3]!Verguetung,Datenausgabe!J$9+1,0)) -> 3655.13 | K4: =IF(Datenausgabe!K13<>0,Datenausgabe!K13,VLOOKUP(Datenausgabe!K$7,[3]!Verguetung,Datenausgabe!K$9+1,0)) -> 3655.13 | L4: =IF(Datenausgabe!L13<>0,Datenausgabe!L13,VLOOKUP(Datenausgabe!L$7,[3]!Verguetung,Datenausgabe!L$9+1,0)) -> 3655.13 | M4: =IF(Datenausgabe!M13<>0,Datenausgabe!M13,VLOOKUP(Datenausgabe!M$7,[3]!Verguetung,Datenausgabe!M$9+1,0)) -> 3655.13
A5: GG TZ Klassif: | B5: =VALUE(MID(Arbeitgeberkosten!$E$7,5,1)) -> 1 | C5: 1 = Teilzeit & Tage ' 2 = ungekürzt' 3 = Tage-Kürzung' 4 = Teilzeit-Kürzung
A6: HT Zulage | B6: =IF(AND(Datenausgabe!B16,B3>0,B4>0,B4>B3),(B4-B3)*0.5,0)*IF($B$5=1,Datenausgabe!B20/Datenausgabe!B21*Datenausgabe!B22/Datenausgabe!B26,1)*IF($B$5=2,1,1)*IF($B$5=3,Datenausgabe!B22/Datenausgabe!B26,1)*IF($B$5=4,Datenausgabe!B20/Datenausgabe!B21,1) -> 0 | C6: =IF(AND(Datenausgabe!C16,C3>0,C4>0,C4>C3),(C4-C3)*0.5,0)*IF($B$5=1,Datenausgabe!C20/Datenausgabe!C21*Datenausgabe!C22/Datenausgabe!C26,1)*IF($B$5=2,1,1)*IF($B$5=3,Datenausgabe!C22/Datenausgabe!C26,1)*IF($B$5=4,Datenausgabe!C20/Datenausgabe!C21,1) -> 0 | D6: =IF(AND(Datenausgabe!D16,D3>0,D4>0,D4>D3),(D4-D3)*0.5,0)*IF($B$5=1,Datenausgabe!D20/Datenausgabe!D21*Datenausgabe!D22/Datenausgabe!D26,1)*IF($B$5=2,1,1)*IF($B$5=3,Datenausgabe!D22/Datenausgabe!D26,1)*IF($B$5=4,Datenausgabe!D20/Datenausgabe!D21,1) -> 0 | E6: =IF(AND(Datenausgabe!E16,E3>0,E4>0,E4>E3),(E4-E3)*0.5,0)*IF($B$5=1,Datenausgabe!E20/Datenausgabe!E21*Datenausgabe!E22/Datenausgabe!E26,1)*IF($B$5=2,1,1)*IF($B$5=3,Datenausgabe!E22/Datenausgabe!E26,1)*IF($B$5=4,Datenausgabe!E20/Datenausgabe!E21,1) -> 0 | F6: =IF(AND(Datenausgabe!F16,F3>0,F4>0,F4>F3),(F4-F3)*0.5,0)*IF($B$5=1,Datenausgabe!F20/Datenausgabe!F21*Datenausgabe!F22/Datenausgabe!F26,1)*IF($B$5=2,1,1)*IF($B$5=3,Datenausgabe!F22/Datenausgabe!F26,1)*IF($B$5=4,Datenausgabe!F20/Datenausgabe!F21,1) -> 0 | G6: =IF(AND(Datenausgabe!G16,G3>0,G4>0,G4>G3),(G4-G3)*0.5,0)*IF($B$5=1,Datenausgabe!G20/Datenausgabe!G21*Datenausgabe!G22/Datenausgabe!G26,1)*IF($B$5=2,1,1)*IF($B$5=3,Datenausgabe!G22/Datenausgabe!G26,1)*IF($B$5=4,Datenausgabe!G20/Datenausgabe!G21,1) -> 0 | H6: =IF(AND(Datenausgabe!H16,H3>0,H4>0,H4>H3),(H4-H3)*0.5,0)*IF($B$5=1,Datenausgabe!H20/Datenausgabe!H21*Datenausgabe!H22/Datenausgabe!H26,1)*IF($B$5=2,1,1)*IF($B$5=3,Datenausgabe!H22/Datenausgabe!H26,1)*IF($B$5=4,Datenausgabe!H20/Datenausgabe!H21,1) -> 0 | I6: =IF(AND(Datenausgabe!I16,I3>0,I4>0,I4>I3),(I4-I3)*0.5,0)*IF($B$5=1,Datenausgabe!I20/Datenausgabe!I21*Datenausgabe!I22/Datenausgabe!I26,1)*IF($B$5=2,1,1)*IF($B$5=3,Datenausgabe!I22/Datenausgabe!I26,1)*IF($B$5=4,Datenausgabe!I20/Datenausgabe!I21,1) -> 0 | J6: =IF(AND(Datenausgabe!J16,J3>0,J4>0,J4>J3),(J4-J3)*0.5,0)*IF($B$5=1,Datenausgabe!J20/Datenausgabe!J21*Datenausgabe!J22/Datenausgabe!J26,1)*IF($B$5=2,1,1)*IF($B$5=3,Datenausgabe!J22/Datenausgabe!J26,1)*IF($B$5=4,Datenausgabe!J20/Datenausgabe!J21,1) -> 0 | K6: =IF(AND(Datenausgabe!K16,K3>0,K4>0,K4>K3),(K4-K3)*0.5,0)*IF($B$5=1,Datenausgabe!K20/Datenausgabe!K21*Datenausgabe!K22/Datenausgabe!K26,1)*IF($B$5=2,1,1)*IF($B$5=3,Datenausgabe!K22/Datenausgabe!K26,1)*IF($B$5=4,Datenausgabe!K20/Datenausgabe!K21,1) -> 0 | L6: =IF(AND(Datenausgabe!L16,L3>0,L4>0,L4>L3),(L4-L3)*0.5,0)*IF($B$5=1,Datenausgabe!L20/Datenausgabe!L21*Datenausgabe!L22/Datenausgabe!L26,1)*IF($B$5=2,1,1)*IF($B$5=3,Datenausgabe!L22/Datenausgabe!L26,1)*IF($B$5=4,Datenausgabe!L20/Datenausgabe!L21,1) -> 0 | M6: =IF(AND(Datenausgabe!M16,M3>0,M4>0,M4>M3),(M4-M3)*0.5,0)*IF($B$5=1,Datenausgabe!M20/Datenausgabe!M21*Datenausgabe!M22/Datenausgabe!M26,1)*IF($B$5=2,1,1)*IF($B$5=3,Datenausgabe!M22/Datenausgabe!M26,1)*IF($B$5=4,Datenausgabe!M20/Datenausgabe!M21,1) -> 0
A7: GG 1 TZ: | B7: =B3*IF($B$5=1,Datenausgabe!B20/Datenausgabe!B21*Datenausgabe!B22/Datenausgabe!B26,1)*IF($B$5=2,1,1)*IF($B$5=3,Datenausgabe!B22/Datenausgabe!B26,1)*IF($B$5=4,Datenausgabe!B20/Datenausgabe!B21,1) -> 0 | C7: =C3*IF($B$5=1,Datenausgabe!C20/Datenausgabe!C21*Datenausgabe!C22/Datenausgabe!C26,1)*IF($B$5=2,1,1)*IF($B$5=3,Datenausgabe!C22/Datenausgabe!C26,1)*IF($B$5=4,Datenausgabe!C20/Datenausgabe!C21,1) -> 0 | D7: =D3*IF($B$5=1,Datenausgabe!D20/Datenausgabe!D21*Datenausgabe!D22/Datenausgabe!D26,1)*IF($B$5=2,1,1)*IF($B$5=3,Datenausgabe!D22/Datenausgabe!D26,1)*IF($B$5=4,Datenausgabe!D20/Datenausgabe!D21,1) -> 0 | E7: =E3*IF($B$5=1,Datenausgabe!E20/Datenausgabe!E21*Datenausgabe!E22/Datenausgabe!E26,1)*IF($B$5=2,1,1)*IF($B$5=3,Datenausgabe!E22/Datenausgabe!E26,1)*IF($B$5=4,Datenausgabe!E20/Datenausgabe!E21,1) -> 0 | F7: =F3*IF($B$5=1,Datenausgabe!F20/Datenausgabe!F21*Datenausgabe!F22/Datenausgabe!F26,1)*IF($B$5=2,1,1)*IF($B$5=3,Datenausgabe!F22/Datenausgabe!F26,1)*IF($B$5=4,Datenausgabe!F20/Datenausgabe!F21,1) -> 0 | G7: =G3*IF($B$5=1,Datenausgabe!G20/Datenausgabe!G21*Datenausgabe!G22/Datenausgabe!G26,1)*IF($B$5=2,1,1)*IF($B$5=3,Datenausgabe!G22/Datenausgabe!G26,1)*IF($B$5=4,Datenausgabe!G20/Datenausgabe!G21,1) -> 0 | H7: =H3*IF($B$5=1,Datenausgabe!H20/Datenausgabe!H21*Datenausgabe!H22/Datenausgabe!H26,1)*IF($B$5=2,1,1)*IF($B$5=3,Datenausgabe!H22/Datenausgabe!H26,1)*IF($B$5=4,Datenausgabe!H20/Datenausgabe!H21,1) -> 0 | I7: =I3*IF($B$5=1,Datenausgabe!I20/Datenausgabe!I21*Datenausgabe!I22/Datenausgabe!I26,1)*IF($B$5=2,1,1)*IF($B$5=3,Datenausgabe!I22/Datenausgabe!I26,1)*IF($B$5=4,Datenausgabe!I20/Datenausgabe!I21,1) -> 0 | J7: =J3*IF($B$5=1,Datenausgabe!J20/Datenausgabe!J21*Datenausgabe!J22/Datenausgabe!J26,1)*IF($B$5=2,1,1)*IF($B$5=3,Datenausgabe!J22/Datenausgabe!J26,1)*IF($B$5=4,Datenausgabe!J20/Datenausgabe!J21,1) -> 0 | K7: =K3*IF($B$5=1,Datenausgabe!K20/Datenausgabe!K21*Datenausgabe!K22/Datenausgabe!K26,1)*IF($B$5=2,1,1)*IF($B$5=3,Datenausgabe!K22/Datenausgabe!K26,1)*IF($B$5=4,Datenausgabe!K20/Datenausgabe!K21,1) -> 0 | L7: =L3*IF($B$5=1,Datenausgabe!L20/Datenausgabe!L21*Datenausgabe!L22/Datenausgabe!L26,1)*IF($B$5=2,1,1)*IF($B$5=3,Datenausgabe!L22/Datenausgabe!L26,1)*IF($B$5=4,Datenausgabe!L20/Datenausgabe!L21,1) -> 0 | M7: =M3*IF($B$5=1,Datenausgabe!M20/Datenausgabe!M21*Datenausgabe!M22/Datenausgabe!M26,1)*IF($B$5=2,1,1)*IF($B$5=3,Datenausgabe!M22/Datenausgabe!M26,1)*IF($B$5=4,Datenausgabe!M20/Datenausgabe!M21,1) -> 0
A8: GG 2 TZ: | B8: =B4*IF($B$5=1,Datenausgabe!B23/Datenausgabe!B24*Datenausgabe!B25/Datenausgabe!B26,1)*IF($B$5=2,1,1)*IF($B$5=3,Datenausgabe!B25/Datenausgabe!B26,1)*IF($B$5=4,Datenausgabe!B23/Datenausgabe!B24,1) -> 3613.93 | C8: =C4*IF($B$5=1,Datenausgabe!C23/Datenausgabe!C24*Datenausgabe!C25/Datenausgabe!C26,1)*IF($B$5=2,1,1)*IF($B$5=3,Datenausgabe!C25/Datenausgabe!C26,1)*IF($B$5=4,Datenausgabe!C23/Datenausgabe!C24,1) -> 3613.93 | D8: =D4*IF($B$5=1,Datenausgabe!D23/Datenausgabe!D24*Datenausgabe!D25/Datenausgabe!D26,1)*IF($B$5=2,1,1)*IF($B$5=3,Datenausgabe!D25/Datenausgabe!D26,1)*IF($B$5=4,Datenausgabe!D23/Datenausgabe!D24,1) -> 3655.13 | E8: =E4*IF($B$5=1,Datenausgabe!E23/Datenausgabe!E24*Datenausgabe!E25/Datenausgabe!E26,1)*IF($B$5=2,1,1)*IF($B$5=3,Datenausgabe!E25/Datenausgabe!E26,1)*IF($B$5=4,Datenausgabe!E23/Datenausgabe!E24,1) -> 3655.13 | F8: =F4*IF($B$5=1,Datenausgabe!F23/Datenausgabe!F24*Datenausgabe!F25/Datenausgabe!F26,1)*IF($B$5=2,1,1)*IF($B$5=3,Datenausgabe!F25/Datenausgabe!F26,1)*IF($B$5=4,Datenausgabe!F23/Datenausgabe!F24,1) -> 3655.13 | G8: =G4*IF($B$5=1,Datenausgabe!G23/Datenausgabe!G24*Datenausgabe!G25/Datenausgabe!G26,1)*IF($B$5=2,1,1)*IF($B$5=3,Datenausgabe!G25/Datenausgabe!G26,1)*IF($B$5=4,Datenausgabe!G23/Datenausgabe!G24,1) -> 3655.13 | H8: =H4*IF($B$5=1,Datenausgabe!H23/Datenausgabe!H24*Datenausgabe!H25/Datenausgabe!H26,1)*IF($B$5=2,1,1)*IF($B$5=3,Datenausgabe!H25/Datenausgabe!H26,1)*IF($B$5=4,Datenausgabe!H23/Datenausgabe!H24,1) -> 3655.13 | I8: =I4*IF($B$5=1,Datenausgabe!I23/Datenausgabe!I24*Datenausgabe!I25/Datenausgabe!I26,1)*IF($B$5=2,1,1)*IF($B$5=3,Datenausgabe!I25/Datenausgabe!I26,1)*IF($B$5=4,Datenausgabe!I23/Datenausgabe!I24,1) -> 3655.13 | J8: =J4*IF($B$5=1,Datenausgabe!J23/Datenausgabe!J24*Datenausgabe!J25/Datenausgabe!J26,1)*IF($B$5=2,1,1)*IF($B$5=3,Datenausgabe!J25/Datenausgabe!J26,1)*IF($B$5=4,Datenausgabe!J23/Datenausgabe!J24,1) -> 3655.13 | K8: =K4*IF($B$5=1,Datenausgabe!K23/Datenausgabe!K24*Datenausgabe!K25/Datenausgabe!K26,1)*IF($B$5=2,1,1)*IF($B$5=3,Datenausgabe!K25/Datenausgabe!K26,1)*IF($B$5=4,Datenausgabe!K23/Datenausgabe!K24,1) -> 3655.13 | L8: =L4*IF($B$5=1,Datenausgabe!L23/Datenausgabe!L24*Datenausgabe!L25/Datenausgabe!L26,1)*IF($B$5=2,1,1)*IF($B$5=3,Datenausgabe!L25/Datenausgabe!L26,1)*IF($B$5=4,Datenausgabe!L23/Datenausgabe!L24,1) -> 3655.13 | M8: =M4*IF($B$5=1,Datenausgabe!M23/Datenausgabe!M24*Datenausgabe!M25/Datenausgabe!M26,1)*IF($B$5=2,1,1)*IF($B$5=3,Datenausgabe!M25/Datenausgabe!M26,1)*IF($B$5=4,Datenausgabe!M23/Datenausgabe!M24,1) -> 3655.13
A9: Grundgehalt Gesamt: | B9: =IF(Datenausgabe!B1,B7+B6+IF(Datenausgabe!B14,B8,0),0) -> 0 | C9: =IF(Datenausgabe!C1,C7+C6+IF(Datenausgabe!C14,C8,0),0) -> 0 | D9: =IF(Datenausgabe!D1,D7+D6+IF(Datenausgabe!D14,D8,0),0) -> 0 | E9: =IF(Datenausgabe!E1,E7+E6+IF(Datenausgabe!E14,E8,0),0) -> 0 | F9: =IF(Datenausgabe!F1,F7+F6+IF(Datenausgabe!F14,F8,0),0) -> 0 | G9: =IF(Datenausgabe!G1,G7+G6+IF(Datenausgabe!G14,G8,0),0) -> 0 | H9: =IF(Datenausgabe!H1,H7+H6+IF(Datenausgabe!H14,H8,0),0) -> 0 | I9: =IF(Datenausgabe!I1,I7+I6+IF(Datenausgabe!I14,I8,0),0) -> 0 | J9: =IF(Datenausgabe!J1,J7+J6+IF(Datenausgabe!J14,J8,0),0) -> 0 | K9: =IF(Datenausgabe!K1,K7+K6+IF(Datenausgabe!K14,K8,0),0) -> 0 | L9: =IF(Datenausgabe!L1,L7+L6+IF(Datenausgabe!L14,L8,0),0) -> 0 | M9: =IF(Datenausgabe!M1,M7+M6+IF(Datenausgabe!M14,M8,0),0) -> 0
A10: Differenz zum Tabellenentgelt ermitteln, wenn eine individuelle Stufe eingegeben wurde
A11: Differenz indiv. Stufe 1 | B11: =IF(Datenausgabe!B10<>0,Datenausgabe!B10-B3,0) -> 0 | C11: =IF(Datenausgabe!C10<>0,Datenausgabe!C10-C3,0) -> 0 | D11: =IF(Datenausgabe!D10<>0,Datenausgabe!D10-D3,0) -> 0 | E11: =IF(Datenausgabe!E10<>0,Datenausgabe!E10-E3,0) -> 0 | F11: =IF(Datenausgabe!F10<>0,Datenausgabe!F10-F3,0) -> 0 | G11: =IF(Datenausgabe!G10<>0,Datenausgabe!G10-G3,0) -> 0 | H11: =IF(Datenausgabe!H10<>0,Datenausgabe!H10-H3,0) -> 0 | I11: =IF(Datenausgabe!I10<>0,Datenausgabe!I10-I3,0) -> 0 | J11: =IF(Datenausgabe!J10<>0,Datenausgabe!J10-J3,0) -> 0 | K11: =IF(Datenausgabe!K10<>0,Datenausgabe!K10-K3,0) -> 0 | L11: =IF(Datenausgabe!L10<>0,Datenausgabe!L10-L3,0) -> 0 | M11: =IF(Datenausgabe!M10<>0,Datenausgabe!M10-M3,0) -> 0
A12: Differenz indiv. Stufe 2 | B12: =IF(Datenausgabe!B11<>0,Datenausgabe!B11-B4,0) -> 0 | C12: =IF(Datenausgabe!C11<>0,Datenausgabe!C11-C4,0) -> 0 | D12: =IF(Datenausgabe!D11<>0,Datenausgabe!D11-D4,0) -> 0 | E12: =IF(Datenausgabe!E11<>0,Datenausgabe!E11-E4,0) -> 0 | F12: =IF(Datenausgabe!F11<>0,Datenausgabe!F11-F4,0) -> 0 | G12: =IF(Datenausgabe!G11<>0,Datenausgabe!G11-G4,0) -> 0 | H12: =IF(Datenausgabe!H11<>0,Datenausgabe!H11-H4,0) -> 0 | I12: =IF(Datenausgabe!I11<>0,Datenausgabe!I11-I4,0) -> 0 | J12: =IF(Datenausgabe!J11<>0,Datenausgabe!J11-J4,0) -> 0 | K12: =IF(Datenausgabe!K11<>0,Datenausgabe!K11-K4,0) -> 0 | L12: =IF(Datenausgabe!L11<>0,Datenausgabe!L11-L4,0) -> 0 | M12: =IF(Datenausgabe!M11<>0,Datenausgabe!M11-M4,0) -> 0
A13: Indiv Stufe TZ 1 | B13: =B11*IF($B$5=1,Datenausgabe!B20/Datenausgabe!B21*Datenausgabe!B22/Datenausgabe!B26,1)*IF($B$5=2,1,1)*IF($B$5=3,Datenausgabe!B22/Datenausgabe!B26,1)*IF($B$5=4,Datenausgabe!B20/Datenausgabe!B21,1) -> 0 | C13: =C11*IF($B$5=1,Datenausgabe!C20/Datenausgabe!C21*Datenausgabe!C22/Datenausgabe!C26,1)*IF($B$5=2,1,1)*IF($B$5=3,Datenausgabe!C22/Datenausgabe!C26,1)*IF($B$5=4,Datenausgabe!C20/Datenausgabe!C21,1) -> 0 | D13: =D11*IF($B$5=1,Datenausgabe!D20/Datenausgabe!D21*Datenausgabe!D22/Datenausgabe!D26,1)*IF($B$5=2,1,1)*IF($B$5=3,Datenausgabe!D22/Datenausgabe!D26,1)*IF($B$5=4,Datenausgabe!D20/Datenausgabe!D21,1) -> 0 | E13: =E11*IF($B$5=1,Datenausgabe!E20/Datenausgabe!E21*Datenausgabe!E22/Datenausgabe!E26,1)*IF($B$5=2,1,1)*IF($B$5=3,Datenausgabe!E22/Datenausgabe!E26,1)*IF($B$5=4,Datenausgabe!E20/Datenausgabe!E21,1) -> 0 | F13: =F11*IF($B$5=1,Datenausgabe!F20/Datenausgabe!F21*Datenausgabe!F22/Datenausgabe!F26,1)*IF($B$5=2,1,1)*IF($B$5=3,Datenausgabe!F22/Datenausgabe!F26,1)*IF($B$5=4,Datenausgabe!F20/Datenausgabe!F21,1) -> 0 | G13: =G11*IF($B$5=1,Datenausgabe!G20/Datenausgabe!G21*Datenausgabe!G22/Datenausgabe!G26,1)*IF($B$5=2,1,1)*IF($B$5=3,Datenausgabe!G22/Datenausgabe!G26,1)*IF($B$5=4,Datenausgabe!G20/Datenausgabe!G21,1) -> 0 | H13: =H11*IF($B$5=1,Datenausgabe!H20/Datenausgabe!H21*Datenausgabe!H22/Datenausgabe!H26,1)*IF($B$5=2,1,1)*IF($B$5=3,Datenausgabe!H22/Datenausgabe!H26,1)*IF($B$5=4,Datenausgabe!H20/Datenausgabe!H21,1) -> 0 | I13: =I11*IF($B$5=1,Datenausgabe!I20/Datenausgabe!I21*Datenausgabe!I22/Datenausgabe!I26,1)*IF($B$5=2,1,1)*IF($B$5=3,Datenausgabe!I22/Datenausgabe!I26,1)*IF($B$5=4,Datenausgabe!I20/Datenausgabe!I21,1) -> 0 | J13: =J11*IF($B$5=1,Datenausgabe!J20/Datenausgabe!J21*Datenausgabe!J22/Datenausgabe!J26,1)*IF($B$5=2,1,1)*IF($B$5=3,Datenausgabe!J22/Datenausgabe!J26,1)*IF($B$5=4,Datenausgabe!J20/Datenausgabe!J21,1) -> 0 | K13: =K11*IF($B$5=1,Datenausgabe!K20/Datenausgabe!K21*Datenausgabe!K22/Datenausgabe!K26,1)*IF($B$5=2,1,1)*IF($B$5=3,Datenausgabe!K22/Datenausgabe!K26,1)*IF($B$5=4,Datenausgabe!K20/Datenausgabe!K21,1) -> 0 | L13: =L11*IF($B$5=1,Datenausgabe!L20/Datenausgabe!L21*Datenausgabe!L22/Datenausgabe!L26,1)*IF($B$5=2,1,1)*IF($B$5=3,Datenausgabe!L22/Datenausgabe!L26,1)*IF($B$5=4,Datenausgabe!L20/Datenausgabe!L21,1) -> 0 | M13: =M11*IF($B$5=1,Datenausgabe!M20/Datenausgabe!M21*Datenausgabe!M22/Datenausgabe!M26,1)*IF($B$5=2,1,1)*IF($B$5=3,Datenausgabe!M22/Datenausgabe!M26,1)*IF($B$5=4,Datenausgabe!M20/Datenausgabe!M21,1) -> 0
A14: Indiv Stufe TZ 2 | B14: =B12*IF($B$5=1,Datenausgabe!B23/Datenausgabe!B24*Datenausgabe!B25/Datenausgabe!B26,1)*IF($B$5=2,1,1)*IF($B$5=3,Datenausgabe!B25/Datenausgabe!B26,1)*IF($B$5=4,Datenausgabe!B23/Datenausgabe!B24,1) -> 0 | C14: =C12*IF($B$5=1,Datenausgabe!C23/Datenausgabe!C24*Datenausgabe!C25/Datenausgabe!C26,1)*IF($B$5=2,1,1)*IF($B$5=3,Datenausgabe!C25/Datenausgabe!C26,1)*IF($B$5=4,Datenausgabe!C23/Datenausgabe!C24,1) -> 0 | D14: =D12*IF($B$5=1,Datenausgabe!D23/Datenausgabe!D24*Datenausgabe!D25/Datenausgabe!D26,1)*IF($B$5=2,1,1)*IF($B$5=3,Datenausgabe!D25/Datenausgabe!D26,1)*IF($B$5=4,Datenausgabe!D23/Datenausgabe!D24,1) -> 0 | E14: =E12*IF($B$5=1,Datenausgabe!E23/Datenausgabe!E24*Datenausgabe!E25/Datenausgabe!E26,1)*IF($B$5=2,1,1)*IF($B$5=3,Datenausgabe!E25/Datenausgabe!E26,1)*IF($B$5=4,Datenausgabe!E23/Datenausgabe!E24,1) -> 0 | F14: =F12*IF($B$5=1,Datenausgabe!F23/Datenausgabe!F24*Datenausgabe!F25/Datenausgabe!F26,1)*IF($B$5=2,1,1)*IF($B$5=3,Datenausgabe!F25/Datenausgabe!F26,1)*IF($B$5=4,Datenausgabe!F23/Datenausgabe!F24,1) -> 0 | G14: =G12*IF($B$5=1,Datenausgabe!G23/Datenausgabe!G24*Datenausgabe!G25/Datenausgabe!G26,1)*IF($B$5=2,1,1)*IF($B$5=3,Datenausgabe!G25/Datenausgabe!G26,1)*IF($B$5=4,Datenausgabe!G23/Datenausgabe!G24,1) -> 0 | H14: =H12*IF($B$5=1,Datenausgabe!H23/Datenausgabe!H24*Datenausgabe!H25/Datenausgabe!H26,1)*IF($B$5=2,1,1)*IF($B$5=3,Datenausgabe!H25/Datenausgabe!H26,1)*IF($B$5=4,Datenausgabe!H23/Datenausgabe!H24,1) -> 0 | I14: =I12*IF($B$5=1,Datenausgabe!I23/Datenausgabe!I24*Datenausgabe!I25/Datenausgabe!I26,1)*IF($B$5=2,1,1)*IF($B$5=3,Datenausgabe!I25/Datenausgabe!I26,1)*IF($B$5=4,Datenausgabe!I23/Datenausgabe!I24,1) -> 0 | J14: =J12*IF($B$5=1,Datenausgabe!J23/Datenausgabe!J24*Datenausgabe!J25/Datenausgabe!J26,1)*IF($B$5=2,1,1)*IF($B$5=3,Datenausgabe!J25/Datenausgabe!J26,1)*IF($B$5=4,Datenausgabe!J23/Datenausgabe!J24,1) -> 0 | K14: =K12*IF($B$5=1,Datenausgabe!K23/Datenausgabe!K24*Datenausgabe!K25/Datenausgabe!K26,1)*IF($B$5=2,1,1)*IF($B$5=3,Datenausgabe!K25/Datenausgabe!K26,1)*IF($B$5=4,Datenausgabe!K23/Datenausgabe!K24,1) -> 0 | L14: =L12*IF($B$5=1,Datenausgabe!L23/Datenausgabe!L24*Datenausgabe!L25/Datenausgabe!L26,1)*IF($B$5=2,1,1)*IF($B$5=3,Datenausgabe!L25/Datenausgabe!L26,1)*IF($B$5=4,Datenausgabe!L23/Datenausgabe!L24,1) -> 0 | M14: =M12*IF($B$5=1,Datenausgabe!M23/Datenausgabe!M24*Datenausgabe!M25/Datenausgabe!M26,1)*IF($B$5=2,1,1)*IF($B$5=3,Datenausgabe!M25/Datenausgabe!M26,1)*IF($B$5=4,Datenausgabe!M23/Datenausgabe!M24,1) -> 0
A15: Indiv Stufe Gesamt | B15: =IF(Datenausgabe!B1,B13+IF(Datenausgabe!B14,B14,0),0) -> 0 | C15: =IF(Datenausgabe!C1,C13+IF(Datenausgabe!C14,C14,0),0) -> 0 | D15: =IF(Datenausgabe!D1,D13+IF(Datenausgabe!D14,D14,0),0) -> 0 | E15: =IF(Datenausgabe!E1,E13+IF(Datenausgabe!E14,E14,0),0) -> 0 | F15: =IF(Datenausgabe!F1,F13+IF(Datenausgabe!F14,F14,0),0) -> 0 | G15: =IF(Datenausgabe!G1,G13+IF(Datenausgabe!G14,G14,0),0) -> 0 | H15: =IF(Datenausgabe!H1,H13+IF(Datenausgabe!H14,H14,0),0) -> 0 | I15: =IF(Datenausgabe!I1,I13+IF(Datenausgabe!I14,I14,0),0) -> 0 | J15: =IF(Datenausgabe!J1,J13+IF(Datenausgabe!J14,J14,0),0) -> 0 | K15: =IF(Datenausgabe!K1,K13+IF(Datenausgabe!K14,K14,0),0) -> 0 | L15: =IF(Datenausgabe!L1,L13+IF(Datenausgabe!L14,L14,0),0) -> 0 | M15: =IF(Datenausgabe!M1,M13+IF(Datenausgabe!M14,M14,0),0) -> 0
A16: Ermittlung der Werte für den ledigen OZ (nur wenn keine Pauschalvergütung angegeben wurde)
A17: Tabellenwert 1 | B17: =IF(Datenausgabe!B12<>0,0,VLOOKUP(Datenausgabe!B$6,[2]!Verguetung,17,0)) -> 0 | C17: =IF(Datenausgabe!C12<>0,0,VLOOKUP(Datenausgabe!C$6,[2]!Verguetung,17,0)) -> 0 | D17: =IF(Datenausgabe!D12<>0,0,VLOOKUP(Datenausgabe!D$6,[3]!Verguetung,17,0)) -> 0 | E17: =IF(Datenausgabe!E12<>0,0,VLOOKUP(Datenausgabe!E$6,[3]!Verguetung,17,0)) -> 0 | F17: =IF(Datenausgabe!F12<>0,0,VLOOKUP(Datenausgabe!F$6,[3]!Verguetung,17,0)) -> 0 | G17: =IF(Datenausgabe!G12<>0,0,VLOOKUP(Datenausgabe!G$6,[3]!Verguetung,17,0)) -> 0 | H17: =IF(Datenausgabe!H12<>0,0,VLOOKUP(Datenausgabe!H$6,[3]!Verguetung,17,0)) -> 0 | I17: =IF(Datenausgabe!I12<>0,0,VLOOKUP(Datenausgabe!I$6,[3]!Verguetung,17,0)) -> 0 | J17: =IF(Datenausgabe!J12<>0,0,VLOOKUP(Datenausgabe!J$6,[3]!Verguetung,17,0)) -> 0 | K17: =IF(Datenausgabe!K12<>0,0,VLOOKUP(Datenausgabe!K$6,[3]!Verguetung,17,0)) -> 0 | L17: =IF(Datenausgabe!L12<>0,0,VLOOKUP(Datenausgabe!L$6,[3]!Verguetung,17,0)) -> 0 | M17: =IF(Datenausgabe!M12<>0,0,VLOOKUP(Datenausgabe!M$6,[3]!Verguetung,17,0)) -> 0
A18: Tabellenwert 2 | B18: =IF(Datenausgabe!B13<>0,0,VLOOKUP(Datenausgabe!B$7,[2]!Verguetung,17,0)) -> 0 | C18: =IF(Datenausgabe!C13<>0,0,VLOOKUP(Datenausgabe!C$7,[2]!Verguetung,17,0)) -> 0 | D18: =IF(Datenausgabe!D13<>0,0,VLOOKUP(Datenausgabe!D$7,[3]!Verguetung,17,0)) -> 0 | E18: =IF(Datenausgabe!E13<>0,0,VLOOKUP(Datenausgabe!E$7,[3]!Verguetung,17,0)) -> 0 | F18: =IF(Datenausgabe!F13<>0,0,VLOOKUP(Datenausgabe!F$7,[3]!Verguetung,17,0)) -> 0 | G18: =IF(Datenausgabe!G13<>0,0,VLOOKUP(Datenausgabe!G$7,[3]!Verguetung,17,0)) -> 0 | H18: =IF(Datenausgabe!H13<>0,0,VLOOKUP(Datenausgabe!H$7,[3]!Verguetung,17,0)) -> 0 | I18: =IF(Datenausgabe!I13<>0,0,VLOOKUP(Datenausgabe!I$7,[3]!Verguetung,17,0)) -> 0 | J18: =IF(Datenausgabe!J13<>0,0,VLOOKUP(Datenausgabe!J$7,[3]!Verguetung,17,0)) -> 0 | K18: =IF(Datenausgabe!K13<>0,0,VLOOKUP(Datenausgabe!K$7,[3]!Verguetung,17,0)) -> 0 | L18: =IF(Datenausgabe!L13<>0,0,VLOOKUP(Datenausgabe!L$7,[3]!Verguetung,17,0)) -> 0 | M18: =IF(Datenausgabe!M13<>0,0,VLOOKUP(Datenausgabe!M$7,[3]!Verguetung,17,0)) -> 0
A19: ledigen OZ TZ Klassif: | B19: =VALUE(MID(Arbeitgeberkosten!$E$9,5,1)) -> 1 | C19: 1 = Teilzeit & Tage ' 2 = ungekürzt' 3 = Tage-Kürzung' 4 = Teilzeit-Kürzung
A20: ledigen OZ TZ 1 | B20: =B17*IF($B$19=1,Datenausgabe!B20/Datenausgabe!B21*Datenausgabe!B22/Datenausgabe!B26,1)*IF($B$19=2,1,1)*IF($B$19=3,Datenausgabe!B22/Datenausgabe!B26,1)*IF($B$19=4,Datenausgabe!B20/Datenausgabe!B21,1) -> 0 | C20: =C17*IF($B$19=1,Datenausgabe!C20/Datenausgabe!C21*Datenausgabe!C22/Datenausgabe!C26,1)*IF($B$19=2,1,1)*IF($B$19=3,Datenausgabe!C22/Datenausgabe!C26,1)*IF($B$19=4,Datenausgabe!C20/Datenausgabe!C21,1) -> 0 | D20: =D17*IF($B$19=1,Datenausgabe!D20/Datenausgabe!D21*Datenausgabe!D22/Datenausgabe!D26,1)*IF($B$19=2,1,1)*IF($B$19=3,Datenausgabe!D22/Datenausgabe!D26,1)*IF($B$19=4,Datenausgabe!D20/Datenausgabe!D21,1) -> 0 | E20: =E17*IF($B$19=1,Datenausgabe!E20/Datenausgabe!E21*Datenausgabe!E22/Datenausgabe!E26,1)*IF($B$19=2,1,1)*IF($B$19=3,Datenausgabe!E22/Datenausgabe!E26,1)*IF($B$19=4,Datenausgabe!E20/Datenausgabe!E21,1) -> 0 | F20: =F17*IF($B$19=1,Datenausgabe!F20/Datenausgabe!F21*Datenausgabe!F22/Datenausgabe!F26,1)*IF($B$19=2,1,1)*IF($B$19=3,Datenausgabe!F22/Datenausgabe!F26,1)*IF($B$19=4,Datenausgabe!F20/Datenausgabe!F21,1) -> 0 | G20: =G17*IF($B$19=1,Datenausgabe!G20/Datenausgabe!G21*Datenausgabe!G22/Datenausgabe!G26,1)*IF($B$19=2,1,1)*IF($B$19=3,Datenausgabe!G22/Datenausgabe!G26,1)*IF($B$19=4,Datenausgabe!G20/Datenausgabe!G21,1) -> 0 | H20: =H17*IF($B$19=1,Datenausgabe!H20/Datenausgabe!H21*Datenausgabe!H22/Datenausgabe!H26,1)*IF($B$19=2,1,1)*IF($B$19=3,Datenausgabe!H22/Datenausgabe!H26,1)*IF($B$19=4,Datenausgabe!H20/Datenausgabe!H21,1) -> 0 | I20: =I17*IF($B$19=1,Datenausgabe!I20/Datenausgabe!I21*Datenausgabe!I22/Datenausgabe!I26,1)*IF($B$19=2,1,1)*IF($B$19=3,Datenausgabe!I22/Datenausgabe!I26,1)*IF($B$19=4,Datenausgabe!I20/Datenausgabe!I21,1) -> 0 | J20: =J17*IF($B$19=1,Datenausgabe!J20/Datenausgabe!J21*Datenausgabe!J22/Datenausgabe!J26,1)*IF($B$19=2,1,1)*IF($B$19=3,Datenausgabe!J22/Datenausgabe!J26,1)*IF($B$19=4,Datenausgabe!J20/Datenausgabe!J21,1) -> 0 | K20: =K17*IF($B$19=1,Datenausgabe!K20/Datenausgabe!K21*Datenausgabe!K22/Datenausgabe!K26,1)*IF($B$19=2,1,1)*IF($B$19=3,Datenausgabe!K22/Datenausgabe!K26,1)*IF($B$19=4,Datenausgabe!K20/Datenausgabe!K21,1) -> 0 | L20: =L17*IF($B$19=1,Datenausgabe!L20/Datenausgabe!L21*Datenausgabe!L22/Datenausgabe!L26,1)*IF($B$19=2,1,1)*IF($B$19=3,Datenausgabe!L22/Datenausgabe!L26,1)*IF($B$19=4,Datenausgabe!L20/Datenausgabe!L21,1) -> 0 | M20: =M17*IF($B$19=1,Datenausgabe!M20/Datenausgabe!M21*Datenausgabe!M22/Datenausgabe!M26,1)*IF($B$19=2,1,1)*IF($B$19=3,Datenausgabe!M22/Datenausgabe!M26,1)*IF($B$19=4,Datenausgabe!M20/Datenausgabe!M21,1) -> 0
A21: ledigen OZ TZ 2 | B21: =B18*IF($B$19=1,Datenausgabe!B23/Datenausgabe!B24*Datenausgabe!B25/Datenausgabe!B26,1)*IF($B$19=2,1,1)*IF($B$19=3,Datenausgabe!B25/Datenausgabe!B26,1)*IF($B$19=4,Datenausgabe!B23/Datenausgabe!B24,1) -> 0 | C21: =C18*IF($B$19=1,Datenausgabe!C23/Datenausgabe!C24*Datenausgabe!C25/Datenausgabe!C26,1)*IF($B$19=2,1,1)*IF($B$19=3,Datenausgabe!C25/Datenausgabe!C26,1)*IF($B$19=4,Datenausgabe!C23/Datenausgabe!C24,1) -> 0 | D21: =D18*IF($B$19=1,Datenausgabe!D23/Datenausgabe!D24*Datenausgabe!D25/Datenausgabe!D26,1)*IF($B$19=2,1,1)*IF($B$19=3,Datenausgabe!D25/Datenausgabe!D26,1)*IF($B$19=4,Datenausgabe!D23/Datenausgabe!D24,1) -> 0 | E21: =E18*IF($B$19=1,Datenausgabe!E23/Datenausgabe!E24*Datenausgabe!E25/Datenausgabe!E26,1)*IF($B$19=2,1,1)*IF($B$19=3,Datenausgabe!E25/Datenausgabe!E26,1)*IF($B$19=4,Datenausgabe!E23/Datenausgabe!E24,1) -> 0 | F21: =F18*IF($B$19=1,Datenausgabe!F23/Datenausgabe!F24*Datenausgabe!F25/Datenausgabe!F26,1)*IF($B$19=2,1,1)*IF($B$19=3,Datenausgabe!F25/Datenausgabe!F26,1)*IF($B$19=4,Datenausgabe!F23/Datenausgabe!F24,1) -> 0 | G21: =G18*IF($B$19=1,Datenausgabe!G23/Datenausgabe!G24*Datenausgabe!G25/Datenausgabe!G26,1)*IF($B$19=2,1,1)*IF($B$19=3,Datenausgabe!G25/Datenausgabe!G26,1)*IF($B$19=4,Datenausgabe!G23/Datenausgabe!G24,1) -> 0 | H21: =H18*IF($B$19=1,Datenausgabe!H23/Datenausgabe!H24*Datenausgabe!H25/Datenausgabe!H26,1)*IF($B$19=2,1,1)*IF($B$19=3,Datenausgabe!H25/Datenausgabe!H26,1)*IF($B$19=4,Datenausgabe!H23/Datenausgabe!H24,1) -> 0 | I21: =I18*IF($B$19=1,Datenausgabe!I23/Datenausgabe!I24*Datenausgabe!I25/Datenausgabe!I26,1)*IF($B$19=2,1,1)*IF($B$19=3,Datenausgabe!I25/Datenausgabe!I26,1)*IF($B$19=4,Datenausgabe!I23/Datenausgabe!I24,1) -> 0 | J21: =J18*IF($B$19=1,Datenausgabe!J23/Datenausgabe!J24*Datenausgabe!J25/Datenausgabe!J26,1)*IF($B$19=2,1,1)*IF($B$19=3,Datenausgabe!J25/Datenausgabe!J26,1)*IF($B$19=4,Datenausgabe!J23/Datenausgabe!J24,1) -> 0 | K21: =K18*IF($B$19=1,Datenausgabe!K23/Datenausgabe!K24*Datenausgabe!K25/Datenausgabe!K26,1)*IF($B$19=2,1,1)*IF($B$19=3,Datenausgabe!K25/Datenausgabe!K26,1)*IF($B$19=4,Datenausgabe!K23/Datenausgabe!K24,1) -> 0 | L21: =L18*IF($B$19=1,Datenausgabe!L23/Datenausgabe!L24*Datenausgabe!L25/Datenausgabe!L26,1)*IF($B$19=2,1,1)*IF($B$19=3,Datenausgabe!L25/Datenausgabe!L26,1)*IF($B$19=4,Datenausgabe!L23/Datenausgabe!L24,1) -> 0 | M21: =M18*IF($B$19=1,Datenausgabe!M23/Datenausgabe!M24*Datenausgabe!M25/Datenausgabe!M26,1)*IF($B$19=2,1,1)*IF($B$19=3,Datenausgabe!M25/Datenausgabe!M26,1)*IF($B$19=4,Datenausgabe!M23/Datenausgabe!M24,1) -> 0
A22: ledigen OZ Gesamt | B22: =IF(Datenausgabe!B1,B20+IF(Datenausgabe!B14,B21,0),0) -> 0 | C22: =IF(Datenausgabe!C1,C20+IF(Datenausgabe!C14,C21,0),0) -> 0 | D22: =IF(Datenausgabe!D1,D20+IF(Datenausgabe!D14,D21,0),0) -> 0 | E22: =IF(Datenausgabe!E1,E20+IF(Datenausgabe!E14,E21,0),0) -> 0 | F22: =IF(Datenausgabe!F1,F20+IF(Datenausgabe!F14,F21,0),0) -> 0 | G22: =IF(Datenausgabe!G1,G20+IF(Datenausgabe!G14,G21,0),0) -> 0 | H22: =IF(Datenausgabe!H1,H20+IF(Datenausgabe!H14,H21,0),0) -> 0 | I22: =IF(Datenausgabe!I1,I20+IF(Datenausgabe!I14,I21,0),0) -> 0 | J22: =IF(Datenausgabe!J1,J20+IF(Datenausgabe!J14,J21,0),0) -> 0 | K22: =IF(Datenausgabe!K1,K20+IF(Datenausgabe!K14,K21,0),0) -> 0 | L22: =IF(Datenausgabe!L1,L20+IF(Datenausgabe!L14,L21,0),0) -> 0 | M22: =IF(Datenausgabe!M1,M20+IF(Datenausgabe!M14,M21,0),0) -> 0
A23: Ermittlung der Werte für den verh. OZ (nur wenn keine Pauschalvergütung angegeben wurde)
A24: Tabellenwert 1 | B24: =IF(Datenausgabe!B12<>0,0,VLOOKUP(Datenausgabe!B$6,[2]!Verguetung,18,0)) -> 0 | C24: =IF(Datenausgabe!C12<>0,0,VLOOKUP(Datenausgabe!C$6,[2]!Verguetung,18,0)) -> 0 | D24: =IF(Datenausgabe!D12<>0,0,VLOOKUP(Datenausgabe!D$6,[3]!Verguetung,18,0)) -> 0 | E24: =IF(Datenausgabe!E12<>0,0,VLOOKUP(Datenausgabe!E$6,[3]!Verguetung,18,0)) -> 0 | F24: =IF(Datenausgabe!F12<>0,0,VLOOKUP(Datenausgabe!F$6,[3]!Verguetung,18,0)) -> 0 | G24: =IF(Datenausgabe!G12<>0,0,VLOOKUP(Datenausgabe!G$6,[3]!Verguetung,18,0)) -> 0 | H24: =IF(Datenausgabe!H12<>0,0,VLOOKUP(Datenausgabe!H$6,[3]!Verguetung,18,0)) -> 0 | I24: =IF(Datenausgabe!I12<>0,0,VLOOKUP(Datenausgabe!I$6,[3]!Verguetung,18,0)) -> 0 | J24: =IF(Datenausgabe!J12<>0,0,VLOOKUP(Datenausgabe!J$6,[3]!Verguetung,18,0)) -> 0 | K24: =IF(Datenausgabe!K12<>0,0,VLOOKUP(Datenausgabe!K$6,[3]!Verguetung,18,0)) -> 0 | L24: =IF(Datenausgabe!L12<>0,0,VLOOKUP(Datenausgabe!L$6,[3]!Verguetung,18,0)) -> 0 | M24: =IF(Datenausgabe!M12<>0,0,VLOOKUP(Datenausgabe!M$6,[3]!Verguetung,18,0)) -> 0
A25: Tabellenwert 2 | B25: =IF(Datenausgabe!B13<>0,0,VLOOKUP(Datenausgabe!B$7,[2]!Verguetung,18,0)) -> 0 | C25: =IF(Datenausgabe!C13<>0,0,VLOOKUP(Datenausgabe!C$7,[2]!Verguetung,18,0)) -> 0 | D25: =IF(Datenausgabe!D13<>0,0,VLOOKUP(Datenausgabe!D$7,[3]!Verguetung,18,0)) -> 0 | E25: =IF(Datenausgabe!E13<>0,0,VLOOKUP(Datenausgabe!E$7,[3]!Verguetung,18,0)) -> 0 | F25: =IF(Datenausgabe!F13<>0,0,VLOOKUP(Datenausgabe!F$7,[3]!Verguetung,18,0)) -> 0 | G25: =IF(Datenausgabe!G13<>0,0,VLOOKUP(Datenausgabe!G$7,[3]!Verguetung,18,0)) -> 0 | H25: =IF(Datenausgabe!H13<>0,0,VLOOKUP(Datenausgabe!H$7,[3]!Verguetung,18,0)) -> 0 | I25: =IF(Datenausgabe!I13<>0,0,VLOOKUP(Datenausgabe!I$7,[3]!Verguetung,18,0)) -> 0 | J25: =IF(Datenausgabe!J13<>0,0,VLOOKUP(Datenausgabe!J$7,[3]!Verguetung,18,0)) -> 0 | K25: =IF(Datenausgabe!K13<>0,0,VLOOKUP(Datenausgabe!K$7,[3]!Verguetung,18,0)) -> 0 | L25: =IF(Datenausgabe!L13<>0,0,VLOOKUP(Datenausgabe!L$7,[3]!Verguetung,18,0)) -> 0 | M25: =IF(Datenausgabe!M13<>0,0,VLOOKUP(Datenausgabe!M$7,[3]!Verguetung,18,0)) -> 0
A26: verh. OZ TZ Klassif: | B26: =VALUE(MID(Arbeitgeberkosten!$E$10,5,1)) -> 1 | C26: 1 = Teilzeit & Tage ' 2 = ungekürzt' 3 = Tage-Kürzung' 4 = Teilzeit-Kürzung
A27: Kein GBZ 2
A28: Kürzung bei Konk. - 1 | B28: =B24*IF(Datenausgabe!B33=Einstellungen!$B$43,0,IF(Datenausgabe!B33=Einstellungen!$B$44,0.5,1)) -> 0 | C28: =C24*IF(Datenausgabe!C33=Einstellungen!$B$43,0,IF(Datenausgabe!C33=Einstellungen!$B$44,0.5,1)) -> 0 | D28: =D24*IF(Datenausgabe!D33=Einstellungen!$B$43,0,IF(Datenausgabe!D33=Einstellungen!$B$44,0.5,1)) -> 0 | E28: =E24*IF(Datenausgabe!E33=Einstellungen!$B$43,0,IF(Datenausgabe!E33=Einstellungen!$B$44,0.5,1)) -> 0 | F28: =F24*IF(Datenausgabe!F33=Einstellungen!$B$43,0,IF(Datenausgabe!F33=Einstellungen!$B$44,0.5,1)) -> 0 | G28: =G24*IF(Datenausgabe!G33=Einstellungen!$B$43,0,IF(Datenausgabe!G33=Einstellungen!$B$44,0.5,1)) -> 0 | H28: =H24*IF(Datenausgabe!H33=Einstellungen!$B$43,0,IF(Datenausgabe!H33=Einstellungen!$B$44,0.5,1)) -> 0 | I28: =I24*IF(Datenausgabe!I33=Einstellungen!$B$43,0,IF(Datenausgabe!I33=Einstellungen!$B$44,0.5,1)) -> 0 | J28: =J24*IF(Datenausgabe!J33=Einstellungen!$B$43,0,IF(Datenausgabe!J33=Einstellungen!$B$44,0.5,1)) -> 0 | K28: =K24*IF(Datenausgabe!K33=Einstellungen!$B$43,0,IF(Datenausgabe!K33=Einstellungen!$B$44,0.5,1)) -> 0 | L28: =L24*IF(Datenausgabe!L33=Einstellungen!$B$43,0,IF(Datenausgabe!L33=Einstellungen!$B$44,0.5,1)) -> 0 | M28: =M24*IF(Datenausgabe!M33=Einstellungen!$B$43,0,IF(Datenausgabe!M33=Einstellungen!$B$44,0.5,1)) -> 0
A29: TZ Kürzung: | B29: =B28*IF($B$26=1,Datenausgabe!B20/Datenausgabe!B21*Datenausgabe!B22/Datenausgabe!B26,1)*IF($B$26=2,1,1)*IF($B$26=3,Datenausgabe!B22/Datenausgabe!B26,1)*IF($B$26=4,Datenausgabe!B20/Datenausgabe!B21,1) -> 0 | C29: =C28*IF($B$26=1,Datenausgabe!C20/Datenausgabe!C21*Datenausgabe!C22/Datenausgabe!C26,1)*IF($B$26=2,1,1)*IF($B$26=3,Datenausgabe!C22/Datenausgabe!C26,1)*IF($B$26=4,Datenausgabe!C20/Datenausgabe!C21,1) -> 0 | D29: =D28*IF($B$26=1,Datenausgabe!D20/Datenausgabe!D21*Datenausgabe!D22/Datenausgabe!D26,1)*IF($B$26=2,1,1)*IF($B$26=3,Datenausgabe!D22/Datenausgabe!D26,1)*IF($B$26=4,Datenausgabe!D20/Datenausgabe!D21,1) -> 0 | E29: =E28*IF($B$26=1,Datenausgabe!E20/Datenausgabe!E21*Datenausgabe!E22/Datenausgabe!E26,1)*IF($B$26=2,1,1)*IF($B$26=3,Datenausgabe!E22/Datenausgabe!E26,1)*IF($B$26=4,Datenausgabe!E20/Datenausgabe!E21,1) -> 0 | F29: =F28*IF($B$26=1,Datenausgabe!F20/Datenausgabe!F21*Datenausgabe!F22/Datenausgabe!F26,1)*IF($B$26=2,1,1)*IF($B$26=3,Datenausgabe!F22/Datenausgabe!F26,1)*IF($B$26=4,Datenausgabe!F20/Datenausgabe!F21,1) -> 0 | G29: =G28*IF($B$26=1,Datenausgabe!G20/Datenausgabe!G21*Datenausgabe!G22/Datenausgabe!G26,1)*IF($B$26=2,1,1)*IF($B$26=3,Datenausgabe!G22/Datenausgabe!G26,1)*IF($B$26=4,Datenausgabe!G20/Datenausgabe!G21,1) -> 0 | H29: =H28*IF($B$26=1,Datenausgabe!H20/Datenausgabe!H21*Datenausgabe!H22/Datenausgabe!H26,1)*IF($B$26=2,1,1)*IF($B$26=3,Datenausgabe!H22/Datenausgabe!H26,1)*IF($B$26=4,Datenausgabe!H20/Datenausgabe!H21,1) -> 0 | I29: =I28*IF($B$26=1,Datenausgabe!I20/Datenausgabe!I21*Datenausgabe!I22/Datenausgabe!I26,1)*IF($B$26=2,1,1)*IF($B$26=3,Datenausgabe!I22/Datenausgabe!I26,1)*IF($B$26=4,Datenausgabe!I20/Datenausgabe!I21,1) -> 0 | J29: =J28*IF($B$26=1,Datenausgabe!J20/Datenausgabe!J21*Datenausgabe!J22/Datenausgabe!J26,1)*IF($B$26=2,1,1)*IF($B$26=3,Datenausgabe!J22/Datenausgabe!J26,1)*IF($B$26=4,Datenausgabe!J20/Datenausgabe!J21,1) -> 0 | K29: =K28*IF($B$26=1,Datenausgabe!K20/Datenausgabe!K21*Datenausgabe!K22/Datenausgabe!K26,1)*IF($B$26=2,1,1)*IF($B$26=3,Datenausgabe!K22/Datenausgabe!K26,1)*IF($B$26=4,Datenausgabe!K20/Datenausgabe!K21,1) -> 0 | L29: =L28*IF($B$26=1,Datenausgabe!L20/Datenausgabe!L21*Datenausgabe!L22/Datenausgabe!L26,1)*IF($B$26=2,1,1)*IF($B$26=3,Datenausgabe!L22/Datenausgabe!L26,1)*IF($B$26=4,Datenausgabe!L20/Datenausgabe!L21,1) -> 0 | M29: =M28*IF($B$26=1,Datenausgabe!M20/Datenausgabe!M21*Datenausgabe!M22/Datenausgabe!M26,1)*IF($B$26=2,1,1)*IF($B$26=3,Datenausgabe!M22/Datenausgabe!M26,1)*IF($B$26=4,Datenausgabe!M20/Datenausgabe!M21,1) -> 0
A30: verh. OZ TZ 1 | B30: =IF(Datenausgabe!B41,B28*Datenausgabe!B22/Datenausgabe!B26,B29) -> 0 | C30: =IF(Datenausgabe!C41,C28*Datenausgabe!C22/Datenausgabe!C26,C29) -> 0 | D30: =IF(Datenausgabe!D41,D28*Datenausgabe!D22/Datenausgabe!D26,D29) -> 0 | E30: =IF(Datenausgabe!E41,E28*Datenausgabe!E22/Datenausgabe!E26,E29) -> 0 | F30: =IF(Datenausgabe!F41,F28*Datenausgabe!F22/Datenausgabe!F26,F29) -> 0 | G30: =IF(Datenausgabe!G41,G28*Datenausgabe!G22/Datenausgabe!G26,G29) -> 0 | H30: =IF(Datenausgabe!H41,H28*Datenausgabe!H22/Datenausgabe!H26,H29) -> 0 | I30: =IF(Datenausgabe!I41,I28*Datenausgabe!I22/Datenausgabe!I26,I29) -> 0 | J30: =IF(Datenausgabe!J41,J28*Datenausgabe!J22/Datenausgabe!J26,J29) -> 0 | K30: =IF(Datenausgabe!K41,K28*Datenausgabe!K22/Datenausgabe!K26,K29) -> 0 | L30: =IF(Datenausgabe!L41,L28*Datenausgabe!L22/Datenausgabe!L26,L29) -> 0 | M30: =IF(Datenausgabe!M41,M28*Datenausgabe!M22/Datenausgabe!M26,M29) -> 0
A31: Höchstbetrag: | B31: =MAX(B32:B33) -> 0 | C31: =MAX(C32:C33) -> 0 | D31: 0 | E31: 0 | F31: 0 | G31: 0 | H31: 0 | I31: 0 | J31: 0 | K31: 0 | L31: 0 | M31: 0
A32: Kürzung bei Konk. - 1 | B32: =B24*IF(Datenausgabe!B33=Einstellungen!$B$43,0,IF(Datenausgabe!B33=Einstellungen!$B$44,0.5,1)) -> 0 | C32: =C24*IF(Datenausgabe!C33=Einstellungen!$B$43,0,IF(Datenausgabe!C33=Einstellungen!$B$44,0.5,1)) -> 0 | D32: =D24*IF(Datenausgabe!D33=Einstellungen!$B$43,0,IF(Datenausgabe!D33=Einstellungen!$B$44,0.5,1)) -> 0 | E32: =E24*IF(Datenausgabe!E33=Einstellungen!$B$43,0,IF(Datenausgabe!E33=Einstellungen!$B$44,0.5,1)) -> 0 | F32: =F24*IF(Datenausgabe!F33=Einstellungen!$B$43,0,IF(Datenausgabe!F33=Einstellungen!$B$44,0.5,1)) -> 0 | G32: =G24*IF(Datenausgabe!G33=Einstellungen!$B$43,0,IF(Datenausgabe!G33=Einstellungen!$B$44,0.5,1)) -> 0 | H32: =H24*IF(Datenausgabe!H33=Einstellungen!$B$43,0,IF(Datenausgabe!H33=Einstellungen!$B$44,0.5,1)) -> 0 | I32: =I24*IF(Datenausgabe!I33=Einstellungen!$B$43,0,IF(Datenausgabe!I33=Einstellungen!$B$44,0.5,1)) -> 0 | J32: =J24*IF(Datenausgabe!J33=Einstellungen!$B$43,0,IF(Datenausgabe!J33=Einstellungen!$B$44,0.5,1)) -> 0 | K32: =K24*IF(Datenausgabe!K33=Einstellungen!$B$43,0,IF(Datenausgabe!K33=Einstellungen!$B$44,0.5,1)) -> 0 | L32: =L24*IF(Datenausgabe!L33=Einstellungen!$B$43,0,IF(Datenausgabe!L33=Einstellungen!$B$44,0.5,1)) -> 0 | M32: =M24*IF(Datenausgabe!M33=Einstellungen!$B$43,0,IF(Datenausgabe!M33=Einstellungen!$B$44,0.5,1)) -> 0
A33: Kürzung bei Konk. - 2 | B33: =B25*IF(Datenausgabe!B33=Einstellungen!$B$43,0,IF(Datenausgabe!B33=Einstellungen!$B$44,0.5,1)) -> 0 | C33: =C25*IF(Datenausgabe!C33=Einstellungen!$B$43,0,IF(Datenausgabe!C33=Einstellungen!$B$44,0.5,1)) -> 0 | D33: =D25*IF(Datenausgabe!D33=Einstellungen!$B$43,0,IF(Datenausgabe!D33=Einstellungen!$B$44,0.5,1)) -> 0 | E33: =E25*IF(Datenausgabe!E33=Einstellungen!$B$43,0,IF(Datenausgabe!E33=Einstellungen!$B$44,0.5,1)) -> 0 | F33: =F25*IF(Datenausgabe!F33=Einstellungen!$B$43,0,IF(Datenausgabe!F33=Einstellungen!$B$44,0.5,1)) -> 0 | G33: =G25*IF(Datenausgabe!G33=Einstellungen!$B$43,0,IF(Datenausgabe!G33=Einstellungen!$B$44,0.5,1)) -> 0 | H33: =H25*IF(Datenausgabe!H33=Einstellungen!$B$43,0,IF(Datenausgabe!H33=Einstellungen!$B$44,0.5,1)) -> 0 | I33: =I25*IF(Datenausgabe!I33=Einstellungen!$B$43,0,IF(Datenausgabe!I33=Einstellungen!$B$44,0.5,1)) -> 0 | J33: =J25*IF(Datenausgabe!J33=Einstellungen!$B$43,0,IF(Datenausgabe!J33=Einstellungen!$B$44,0.5,1)) -> 0 | K33: =K25*IF(Datenausgabe!K33=Einstellungen!$B$43,0,IF(Datenausgabe!K33=Einstellungen!$B$44,0.5,1)) -> 0 | L33: =L25*IF(Datenausgabe!L33=Einstellungen!$B$43,0,IF(Datenausgabe!L33=Einstellungen!$B$44,0.5,1)) -> 0 | M33: =M25*IF(Datenausgabe!M33=Einstellungen!$B$43,0,IF(Datenausgabe!M33=Einstellungen!$B$44,0.5,1)) -> 0
A34: TZ Kürzung: -1 | B34: =B32*IF($B$26=1,Datenausgabe!B20/Datenausgabe!B21*Datenausgabe!B22/Datenausgabe!B26,1)*IF($B$26=2,1,1)*IF($B$26=3,Datenausgabe!B22/Datenausgabe!B26,1)*IF($B$26=4,Datenausgabe!B20/Datenausgabe!B21,1) -> 0 | C34: =C32*IF($B$26=1,Datenausgabe!C20/Datenausgabe!C21*Datenausgabe!C22/Datenausgabe!C26,1)*IF($B$26=2,1,1)*IF($B$26=3,Datenausgabe!C22/Datenausgabe!C26,1)*IF($B$26=4,Datenausgabe!C20/Datenausgabe!C21,1) -> 0 | D34: =D32*IF($B$26=1,Datenausgabe!D20/Datenausgabe!D21*Datenausgabe!D22/Datenausgabe!D26,1)*IF($B$26=2,1,1)*IF($B$26=3,Datenausgabe!D22/Datenausgabe!D26,1)*IF($B$26=4,Datenausgabe!D20/Datenausgabe!D21,1) -> 0 | E34: =E32*IF($B$26=1,Datenausgabe!E20/Datenausgabe!E21*Datenausgabe!E22/Datenausgabe!E26,1)*IF($B$26=2,1,1)*IF($B$26=3,Datenausgabe!E22/Datenausgabe!E26,1)*IF($B$26=4,Datenausgabe!E20/Datenausgabe!E21,1) -> 0 | F34: =F32*IF($B$26=1,Datenausgabe!F20/Datenausgabe!F21*Datenausgabe!F22/Datenausgabe!F26,1)*IF($B$26=2,1,1)*IF($B$26=3,Datenausgabe!F22/Datenausgabe!F26,1)*IF($B$26=4,Datenausgabe!F20/Datenausgabe!F21,1) -> 0 | G34: =G32*IF($B$26=1,Datenausgabe!G20/Datenausgabe!G21*Datenausgabe!G22/Datenausgabe!G26,1)*IF($B$26=2,1,1)*IF($B$26=3,Datenausgabe!G22/Datenausgabe!G26,1)*IF($B$26=4,Datenausgabe!G20/Datenausgabe!G21,1) -> 0 | H34: =H32*IF($B$26=1,Datenausgabe!H20/Datenausgabe!H21*Datenausgabe!H22/Datenausgabe!H26,1)*IF($B$26=2,1,1)*IF($B$26=3,Datenausgabe!H22/Datenausgabe!H26,1)*IF($B$26=4,Datenausgabe!H20/Datenausgabe!H21,1) -> 0 | I34: =I32*IF($B$26=1,Datenausgabe!I20/Datenausgabe!I21*Datenausgabe!I22/Datenausgabe!I26,1)*IF($B$26=2,1,1)*IF($B$26=3,Datenausgabe!I22/Datenausgabe!I26,1)*IF($B$26=4,Datenausgabe!I20/Datenausgabe!I21,1) -> 0 | J34: =J32*IF($B$26=1,Datenausgabe!J20/Datenausgabe!J21*Datenausgabe!J22/Datenausgabe!J26,1)*IF($B$26=2,1,1)*IF($B$26=3,Datenausgabe!J22/Datenausgabe!J26,1)*IF($B$26=4,Datenausgabe!J20/Datenausgabe!J21,1) -> 0 | K34: =K32*IF($B$26=1,Datenausgabe!K20/Datenausgabe!K21*Datenausgabe!K22/Datenausgabe!K26,1)*IF($B$26=2,1,1)*IF($B$26=3,Datenausgabe!K22/Datenausgabe!K26,1)*IF($B$26=4,Datenausgabe!K20/Datenausgabe!K21,1) -> 0 | L34: =L32*IF($B$26=1,Datenausgabe!L20/Datenausgabe!L21*Datenausgabe!L22/Datenausgabe!L26,1)*IF($B$26=2,1,1)*IF($B$26=3,Datenausgabe!L22/Datenausgabe!L26,1)*IF($B$26=4,Datenausgabe!L20/Datenausgabe!L21,1) -> 0 | M34: =M32*IF($B$26=1,Datenausgabe!M20/Datenausgabe!M21*Datenausgabe!M22/Datenausgabe!M26,1)*IF($B$26=2,1,1)*IF($B$26=3,Datenausgabe!M22/Datenausgabe!M26,1)*IF($B$26=4,Datenausgabe!M20/Datenausgabe!M21,1) -> 0
A35: TZ Kürzung: -2 | B35: =B33*IF($B$26=1,Datenausgabe!B23/Datenausgabe!B24*Datenausgabe!B25/Datenausgabe!B26,1)*IF($B$26=2,1,1)*IF($B$26=3,Datenausgabe!B25/Datenausgabe!B26,1)*IF($B$26=4,Datenausgabe!B23/Datenausgabe!B24,1) -> 0 | C35: =C33*IF($B$26=1,Datenausgabe!C23/Datenausgabe!C24*Datenausgabe!C25/Datenausgabe!C26,1)*IF($B$26=2,1,1)*IF($B$26=3,Datenausgabe!C25/Datenausgabe!C26,1)*IF($B$26=4,Datenausgabe!C23/Datenausgabe!C24,1) -> 0 | D35: =D33*IF($B$26=1,Datenausgabe!D23/Datenausgabe!D24*Datenausgabe!D25/Datenausgabe!D26,1)*IF($B$26=2,1,1)*IF($B$26=3,Datenausgabe!D25/Datenausgabe!D26,1)*IF($B$26=4,Datenausgabe!D23/Datenausgabe!D24,1) -> 0 | E35: =E33*IF($B$26=1,Datenausgabe!E23/Datenausgabe!E24*Datenausgabe!E25/Datenausgabe!E26,1)*IF($B$26=2,1,1)*IF($B$26=3,Datenausgabe!E25/Datenausgabe!E26,1)*IF($B$26=4,Datenausgabe!E23/Datenausgabe!E24,1) -> 0 | F35: =F33*IF($B$26=1,Datenausgabe!F23/Datenausgabe!F24*Datenausgabe!F25/Datenausgabe!F26,1)*IF($B$26=2,1,1)*IF($B$26=3,Datenausgabe!F25/Datenausgabe!F26,1)*IF($B$26=4,Datenausgabe!F23/Datenausgabe!F24,1) -> 0 | G35: =G33*IF($B$26=1,Datenausgabe!G23/Datenausgabe!G24*Datenausgabe!G25/Datenausgabe!G26,1)*IF($B$26=2,1,1)*IF($B$26=3,Datenausgabe!G25/Datenausgabe!G26,1)*IF($B$26=4,Datenausgabe!G23/Datenausgabe!G24,1) -> 0 | H35: =H33*IF($B$26=1,Datenausgabe!H23/Datenausgabe!H24*Datenausgabe!H25/Datenausgabe!H26,1)*IF($B$26=2,1,1)*IF($B$26=3,Datenausgabe!H25/Datenausgabe!H26,1)*IF($B$26=4,Datenausgabe!H23/Datenausgabe!H24,1) -> 0 | I35: =I33*IF($B$26=1,Datenausgabe!I23/Datenausgabe!I24*Datenausgabe!I25/Datenausgabe!I26,1)*IF($B$26=2,1,1)*IF($B$26=3,Datenausgabe!I25/Datenausgabe!I26,1)*IF($B$26=4,Datenausgabe!I23/Datenausgabe!I24,1) -> 0 | J35: =J33*IF($B$26=1,Datenausgabe!J23/Datenausgabe!J24*Datenausgabe!J25/Datenausgabe!J26,1)*IF($B$26=2,1,1)*IF($B$26=3,Datenausgabe!J25/Datenausgabe!J26,1)*IF($B$26=4,Datenausgabe!J23/Datenausgabe!J24,1) -> 0 | K35: =K33*IF($B$26=1,Datenausgabe!K23/Datenausgabe!K24*Datenausgabe!K25/Datenausgabe!K26,1)*IF($B$26=2,1,1)*IF($B$26=3,Datenausgabe!K25/Datenausgabe!K26,1)*IF($B$26=4,Datenausgabe!K23/Datenausgabe!K24,1) -> 0 | L35: =L33*IF($B$26=1,Datenausgabe!L23/Datenausgabe!L24*Datenausgabe!L25/Datenausgabe!L26,1)*IF($B$26=2,1,1)*IF($B$26=3,Datenausgabe!L25/Datenausgabe!L26,1)*IF($B$26=4,Datenausgabe!L23/Datenausgabe!L24,1) -> 0 | M35: =M33*IF($B$26=1,Datenausgabe!M23/Datenausgabe!M24*Datenausgabe!M25/Datenausgabe!M26,1)*IF($B$26=2,1,1)*IF($B$26=3,Datenausgabe!M25/Datenausgabe!M26,1)*IF($B$26=4,Datenausgabe!M23/Datenausgabe!M24,1) -> 0
B36: =IF(Datenausgabe!B41,B31*IF(Datenausgabe!B15,(Datenausgabe!B22+Datenausgabe!B25)/Datenausgabe!B26,Datenausgabe!B22/Datenausgabe!B26),B34+B35) -> 0 | C36: =IF(Datenausgabe!C41,C31*IF(Datenausgabe!C15,(Datenausgabe!C22+Datenausgabe!C25)/Datenausgabe!C26,Datenausgabe!C22/Datenausgabe!C26),C34+C35) -> 0 | D36: =IF(Datenausgabe!D41,D31*IF(Datenausgabe!D15,(Datenausgabe!D22+Datenausgabe!D25)/Datenausgabe!D26,Datenausgabe!D22/Datenausgabe!D26),D34+D35) -> 0 | E36: =IF(Datenausgabe!E41,E31*IF(Datenausgabe!E15,(Datenausgabe!E22+Datenausgabe!E25)/Datenausgabe!E26,Datenausgabe!E22/Datenausgabe!E26),E34+E35) -> 0 | F36: =IF(Datenausgabe!F41,F31*IF(Datenausgabe!F15,(Datenausgabe!F22+Datenausgabe!F25)/Datenausgabe!F26,Datenausgabe!F22/Datenausgabe!F26),F34+F35) -> 0 | G36: =IF(Datenausgabe!G41,G31*IF(Datenausgabe!G15,(Datenausgabe!G22+Datenausgabe!G25)/Datenausgabe!G26,Datenausgabe!G22/Datenausgabe!G26),G34+G35) -> 0 | H36: =IF(Datenausgabe!H41,H31*IF(Datenausgabe!H15,(Datenausgabe!H22+Datenausgabe!H25)/Datenausgabe!H26,Datenausgabe!H22/Datenausgabe!H26),H34+H35) -> 0 | I36: =IF(Datenausgabe!I41,I31*IF(Datenausgabe!I15,(Datenausgabe!I22+Datenausgabe!I25)/Datenausgabe!I26,Datenausgabe!I22/Datenausgabe!I26),I34+I35) -> 0 | J36: =IF(Datenausgabe!J41,J31*IF(Datenausgabe!J15,(Datenausgabe!J22+Datenausgabe!J25)/Datenausgabe!J26,Datenausgabe!J22/Datenausgabe!J26),J34+J35) -> 0 | K36: =IF(Datenausgabe!K41,K31*IF(Datenausgabe!K15,(Datenausgabe!K22+Datenausgabe!K25)/Datenausgabe!K26,Datenausgabe!K22/Datenausgabe!K26),K34+K35) -> 0 | L36: =IF(Datenausgabe!L41,L31*IF(Datenausgabe!L15,(Datenausgabe!L22+Datenausgabe!L25)/Datenausgabe!L26,Datenausgabe!L22/Datenausgabe!L26),L34+L35) -> 0 | M36: =IF(Datenausgabe!M41,M31*IF(Datenausgabe!M15,(Datenausgabe!M22+Datenausgabe!M25)/Datenausgabe!M26,Datenausgabe!M22/Datenausgabe!M26),M34+M35) -> 0
A37: verh. OZ Gesamt | B37: =IF(Datenausgabe!B1,IF(Datenausgabe!B14,B36,B30),0) -> 0 | C37: =IF(Datenausgabe!C1,IF(Datenausgabe!C14,C36,C30),0) -> 0 | D37: =IF(Datenausgabe!D1,IF(Datenausgabe!D14,D36,D30),0) -> 0 | E37: =IF(Datenausgabe!E1,IF(Datenausgabe!E14,E36,E30),0) -> 0 | F37: =IF(Datenausgabe!F1,IF(Datenausgabe!F14,F36,F30),0) -> 0 | G37: =IF(Datenausgabe!G1,IF(Datenausgabe!G14,G36,G30),0) -> 0 | H37: =IF(Datenausgabe!H1,IF(Datenausgabe!H14,H36,H30),0) -> 0 | I37: =IF(Datenausgabe!I1,IF(Datenausgabe!I14,I36,I30),0) -> 0 | J37: =IF(Datenausgabe!J1,IF(Datenausgabe!J14,J36,J30),0) -> 0 | K37: =IF(Datenausgabe!K1,IF(Datenausgabe!K14,K36,K30),0) -> 0 | L37: =IF(Datenausgabe!L1,IF(Datenausgabe!L14,L36,L30),0) -> 0 | M37: =IF(Datenausgabe!M1,IF(Datenausgabe!M14,M36,M30),0) -> 0
A38: Ermittlung der Werte für den Kinder OZ (nur wenn keine Pauschalvergütung angegeben wurde)
A39: Tabellenwert Kind 1 & 2 GBZ 1 | B39: =IF(Datenausgabe!B12<>0,0,VLOOKUP(Datenausgabe!B$6,[2]!Verguetung,19,0)) -> 0 | C39: =IF(Datenausgabe!C12<>0,0,VLOOKUP(Datenausgabe!C$6,[2]!Verguetung,19,0)) -> 0 | D39: =IF(Datenausgabe!D12<>0,0,VLOOKUP(Datenausgabe!D$6,[3]!Verguetung,19,0)) -> 0 | E39: =IF(Datenausgabe!E12<>0,0,VLOOKUP(Datenausgabe!E$6,[3]!Verguetung,19,0)) -> 0 | F39: =IF(Datenausgabe!F12<>0,0,VLOOKUP(Datenausgabe!F$6,[3]!Verguetung,19,0)) -> 0 | G39: =IF(Datenausgabe!G12<>0,0,VLOOKUP(Datenausgabe!G$6,[3]!Verguetung,19,0)) -> 0 | H39: =IF(Datenausgabe!H12<>0,0,VLOOKUP(Datenausgabe!H$6,[3]!Verguetung,19,0)) -> 0 | I39: =IF(Datenausgabe!I12<>0,0,VLOOKUP(Datenausgabe!I$6,[3]!Verguetung,19,0)) -> 0 | J39: =IF(Datenausgabe!J12<>0,0,VLOOKUP(Datenausgabe!J$6,[3]!Verguetung,19,0)) -> 0 | K39: =IF(Datenausgabe!K12<>0,0,VLOOKUP(Datenausgabe!K$6,[3]!Verguetung,19,0)) -> 0 | L39: =IF(Datenausgabe!L12<>0,0,VLOOKUP(Datenausgabe!L$6,[3]!Verguetung,19,0)) -> 0 | M39: =IF(Datenausgabe!M12<>0,0,VLOOKUP(Datenausgabe!M$6,[3]!Verguetung,19,0)) -> 0
A40: Tabellenwert ab Kind 3 GBZ 1 | B40: =IF(Datenausgabe!B12<>0,0,VLOOKUP(Datenausgabe!B$6,[2]!Verguetung,22,0)) -> 0 | C40: =IF(Datenausgabe!C12<>0,0,VLOOKUP(Datenausgabe!C$6,[2]!Verguetung,22,0)) -> 0 | D40: =IF(Datenausgabe!D12<>0,0,VLOOKUP(Datenausgabe!D$6,[3]!Verguetung,22,0)) -> 0 | E40: =IF(Datenausgabe!E12<>0,0,VLOOKUP(Datenausgabe!E$6,[3]!Verguetung,22,0)) -> 0 | F40: =IF(Datenausgabe!F12<>0,0,VLOOKUP(Datenausgabe!F$6,[3]!Verguetung,22,0)) -> 0 | G40: =IF(Datenausgabe!G12<>0,0,VLOOKUP(Datenausgabe!G$6,[3]!Verguetung,22,0)) -> 0 | H40: =IF(Datenausgabe!H12<>0,0,VLOOKUP(Datenausgabe!H$6,[3]!Verguetung,22,0)) -> 0 | I40: =IF(Datenausgabe!I12<>0,0,VLOOKUP(Datenausgabe!I$6,[3]!Verguetung,22,0)) -> 0 | J40: =IF(Datenausgabe!J12<>0,0,VLOOKUP(Datenausgabe!J$6,[3]!Verguetung,22,0)) -> 0 | K40: =IF(Datenausgabe!K12<>0,0,VLOOKUP(Datenausgabe!K$6,[3]!Verguetung,22,0)) -> 0 | L40: =IF(Datenausgabe!L12<>0,0,VLOOKUP(Datenausgabe!L$6,[3]!Verguetung,22,0)) -> 0 | M40: =IF(Datenausgabe!M12<>0,0,VLOOKUP(Datenausgabe!M$6,[3]!Verguetung,22,0)) -> 0
A41: Tabellenwert Kind 1 & 2 GBZ 2 | B41: =IF(Datenausgabe!B13<>0,0,VLOOKUP(Datenausgabe!B$7,[2]!Verguetung,19,0)) -> 0 | C41: =IF(Datenausgabe!C13<>0,0,VLOOKUP(Datenausgabe!C$7,[2]!Verguetung,19,0)) -> 0 | D41: =IF(Datenausgabe!D13<>0,0,VLOOKUP(Datenausgabe!D$7,[3]!Verguetung,19,0)) -> 0 | E41: =IF(Datenausgabe!E13<>0,0,VLOOKUP(Datenausgabe!E$7,[3]!Verguetung,19,0)) -> 0 | F41: =IF(Datenausgabe!F13<>0,0,VLOOKUP(Datenausgabe!F$7,[3]!Verguetung,19,0)) -> 0 | G41: =IF(Datenausgabe!G13<>0,0,VLOOKUP(Datenausgabe!G$7,[3]!Verguetung,19,0)) -> 0 | H41: =IF(Datenausgabe!H13<>0,0,VLOOKUP(Datenausgabe!H$7,[3]!Verguetung,19,0)) -> 0 | I41: =IF(Datenausgabe!I13<>0,0,VLOOKUP(Datenausgabe!I$7,[3]!Verguetung,19,0)) -> 0 | J41: =IF(Datenausgabe!J13<>0,0,VLOOKUP(Datenausgabe!J$7,[3]!Verguetung,19,0)) -> 0 | K41: =IF(Datenausgabe!K13<>0,0,VLOOKUP(Datenausgabe!K$7,[3]!Verguetung,19,0)) -> 0 | L41: =IF(Datenausgabe!L13<>0,0,VLOOKUP(Datenausgabe!L$7,[3]!Verguetung,19,0)) -> 0 | M41: =IF(Datenausgabe!M13<>0,0,VLOOKUP(Datenausgabe!M$7,[3]!Verguetung,19,0)) -> 0
A42: Tabellenwert ab Kind 3 GBZ 2 | B42: =IF(Datenausgabe!B13<>0,0,VLOOKUP(Datenausgabe!B$7,[2]!Verguetung,22,0)) -> 0 | C42: =IF(Datenausgabe!C13<>0,0,VLOOKUP(Datenausgabe!C$7,[2]!Verguetung,22,0)) -> 0 | D42: =IF(Datenausgabe!D13<>0,0,VLOOKUP(Datenausgabe!D$7,[3]!Verguetung,22,0)) -> 0 | E42: =IF(Datenausgabe!E13<>0,0,VLOOKUP(Datenausgabe!E$7,[3]!Verguetung,22,0)) -> 0 | F42: =IF(Datenausgabe!F13<>0,0,VLOOKUP(Datenausgabe!F$7,[3]!Verguetung,22,0)) -> 0 | G42: =IF(Datenausgabe!G13<>0,0,VLOOKUP(Datenausgabe!G$7,[3]!Verguetung,22,0)) -> 0 | H42: =IF(Datenausgabe!H13<>0,0,VLOOKUP(Datenausgabe!H$7,[3]!Verguetung,22,0)) -> 0 | I42: =IF(Datenausgabe!I13<>0,0,VLOOKUP(Datenausgabe!I$7,[3]!Verguetung,22,0)) -> 0 | J42: =IF(Datenausgabe!J13<>0,0,VLOOKUP(Datenausgabe!J$7,[3]!Verguetung,22,0)) -> 0 | K42: =IF(Datenausgabe!K13<>0,0,VLOOKUP(Datenausgabe!K$7,[3]!Verguetung,22,0)) -> 0 | L42: =IF(Datenausgabe!L13<>0,0,VLOOKUP(Datenausgabe!L$7,[3]!Verguetung,22,0)) -> 0 | M42: =IF(Datenausgabe!M13<>0,0,VLOOKUP(Datenausgabe!M$7,[3]!Verguetung,22,0)) -> 0
A43: Kind OZ TZ Klassif: | B43: =VALUE(MID(Arbeitgeberkosten!$E$11,5,1)) -> 1 | C43: 1 = Teilzeit & Tage ' 2 = ungekürzt' 3 = Tage-Kürzung' 4 = Teilzeit-Kürzung
A44: Summe für alle Kinder, GBZ 1 | B44: =IF(Datenausgabe!B36<=2,Datenausgabe!B36*B39,2*B39+(Datenausgabe!B36-2)*B40) -> 0 | C44: =IF(Datenausgabe!C36<=2,Datenausgabe!C36*C39,2*C39+(Datenausgabe!C36-2)*C40) -> 0 | D44: =IF(Datenausgabe!D36<=2,Datenausgabe!D36*D39,2*D39+(Datenausgabe!D36-2)*D40) -> 0 | E44: =IF(Datenausgabe!E36<=2,Datenausgabe!E36*E39,2*E39+(Datenausgabe!E36-2)*E40) -> 0 | F44: =IF(Datenausgabe!F36<=2,Datenausgabe!F36*F39,2*F39+(Datenausgabe!F36-2)*F40) -> 0 | G44: =IF(Datenausgabe!G36<=2,Datenausgabe!G36*G39,2*G39+(Datenausgabe!G36-2)*G40) -> 0 | H44: =IF(Datenausgabe!H36<=2,Datenausgabe!H36*H39,2*H39+(Datenausgabe!H36-2)*H40) -> 0 | I44: =IF(Datenausgabe!I36<=2,Datenausgabe!I36*I39,2*I39+(Datenausgabe!I36-2)*I40) -> 0 | J44: =IF(Datenausgabe!J36<=2,Datenausgabe!J36*J39,2*J39+(Datenausgabe!J36-2)*J40) -> 0 | K44: =IF(Datenausgabe!K36<=2,Datenausgabe!K36*K39,2*K39+(Datenausgabe!K36-2)*K40) -> 0 | L44: =IF(Datenausgabe!L36<=2,Datenausgabe!L36*L39,2*L39+(Datenausgabe!L36-2)*L40) -> 0 | M44: =IF(Datenausgabe!M36<=2,Datenausgabe!M36*M39,2*M39+(Datenausgabe!M36-2)*M40) -> 0
A45: Summe für alle Kinder, GBZ 2 | B45: =IF(Datenausgabe!B36<=2,Datenausgabe!B36*B41,2*B41+(Datenausgabe!B36-2)*B42) -> 0 | C45: =IF(Datenausgabe!C36<=2,Datenausgabe!C36*C41,2*C41+(Datenausgabe!C36-2)*C42) -> 0 | D45: =IF(Datenausgabe!D36<=2,Datenausgabe!D36*D41,2*D41+(Datenausgabe!D36-2)*D42) -> 0 | E45: =IF(Datenausgabe!E36<=2,Datenausgabe!E36*E41,2*E41+(Datenausgabe!E36-2)*E42) -> 0 | F45: =IF(Datenausgabe!F36<=2,Datenausgabe!F36*F41,2*F41+(Datenausgabe!F36-2)*F42) -> 0 | G45: =IF(Datenausgabe!G36<=2,Datenausgabe!G36*G41,2*G41+(Datenausgabe!G36-2)*G42) -> 0 | H45: =IF(Datenausgabe!H36<=2,Datenausgabe!H36*H41,2*H41+(Datenausgabe!H36-2)*H42) -> 0 | I45: =IF(Datenausgabe!I36<=2,Datenausgabe!I36*I41,2*I41+(Datenausgabe!I36-2)*I42) -> 0 | J45: =IF(Datenausgabe!J36<=2,Datenausgabe!J36*J41,2*J41+(Datenausgabe!J36-2)*J42) -> 0 | K45: =IF(Datenausgabe!K36<=2,Datenausgabe!K36*K41,2*K41+(Datenausgabe!K36-2)*K42) -> 0 | L45: =IF(Datenausgabe!L36<=2,Datenausgabe!L36*L41,2*L41+(Datenausgabe!L36-2)*L42) -> 0 | M45: =IF(Datenausgabe!M36<=2,Datenausgabe!M36*M41,2*M41+(Datenausgabe!M36-2)*M42) -> 0
A46: Kein GBZ 2
A47: TZ Kürzung: | B47: =B44*IF($B$43=1,Datenausgabe!B20/Datenausgabe!B21*Datenausgabe!B22/Datenausgabe!B26,1)*IF($B$43=2,1,1)*IF($B$43=3,Datenausgabe!B22/Datenausgabe!B26,1)*IF($B$43=4,Datenausgabe!B20/Datenausgabe!B21,1) -> 0 | C47: =C44*IF($B$43=1,Datenausgabe!C20/Datenausgabe!C21*Datenausgabe!C22/Datenausgabe!C26,1)*IF($B$43=2,1,1)*IF($B$43=3,Datenausgabe!C22/Datenausgabe!C26,1)*IF($B$43=4,Datenausgabe!C20/Datenausgabe!C21,1) -> 0 | D47: =D44*IF($B$43=1,Datenausgabe!D20/Datenausgabe!D21*Datenausgabe!D22/Datenausgabe!D26,1)*IF($B$43=2,1,1)*IF($B$43=3,Datenausgabe!D22/Datenausgabe!D26,1)*IF($B$43=4,Datenausgabe!D20/Datenausgabe!D21,1) -> 0 | E47: =E44*IF($B$43=1,Datenausgabe!E20/Datenausgabe!E21*Datenausgabe!E22/Datenausgabe!E26,1)*IF($B$43=2,1,1)*IF($B$43=3,Datenausgabe!E22/Datenausgabe!E26,1)*IF($B$43=4,Datenausgabe!E20/Datenausgabe!E21,1) -> 0 | F47: =F44*IF($B$43=1,Datenausgabe!F20/Datenausgabe!F21*Datenausgabe!F22/Datenausgabe!F26,1)*IF($B$43=2,1,1)*IF($B$43=3,Datenausgabe!F22/Datenausgabe!F26,1)*IF($B$43=4,Datenausgabe!F20/Datenausgabe!F21,1) -> 0 | G47: =G44*IF($B$43=1,Datenausgabe!G20/Datenausgabe!G21*Datenausgabe!G22/Datenausgabe!G26,1)*IF($B$43=2,1,1)*IF($B$43=3,Datenausgabe!G22/Datenausgabe!G26,1)*IF($B$43=4,Datenausgabe!G20/Datenausgabe!G21,1) -> 0 | H47: =H44*IF($B$43=1,Datenausgabe!H20/Datenausgabe!H21*Datenausgabe!H22/Datenausgabe!H26,1)*IF($B$43=2,1,1)*IF($B$43=3,Datenausgabe!H22/Datenausgabe!H26,1)*IF($B$43=4,Datenausgabe!H20/Datenausgabe!H21,1) -> 0 | I47: =I44*IF($B$43=1,Datenausgabe!I20/Datenausgabe!I21*Datenausgabe!I22/Datenausgabe!I26,1)*IF($B$43=2,1,1)*IF($B$43=3,Datenausgabe!I22/Datenausgabe!I26,1)*IF($B$43=4,Datenausgabe!I20/Datenausgabe!I21,1) -> 0 | J47: =J44*IF($B$43=1,Datenausgabe!J20/Datenausgabe!J21*Datenausgabe!J22/Datenausgabe!J26,1)*IF($B$43=2,1,1)*IF($B$43=3,Datenausgabe!J22/Datenausgabe!J26,1)*IF($B$43=4,Datenausgabe!J20/Datenausgabe!J21,1) -> 0 | K47: =K44*IF($B$43=1,Datenausgabe!K20/Datenausgabe!K21*Datenausgabe!K22/Datenausgabe!K26,1)*IF($B$43=2,1,1)*IF($B$43=3,Datenausgabe!K22/Datenausgabe!K26,1)*IF($B$43=4,Datenausgabe!K20/Datenausgabe!K21,1) -> 0 | L47: =L44*IF($B$43=1,Datenausgabe!L20/Datenausgabe!L21*Datenausgabe!L22/Datenausgabe!L26,1)*IF($B$43=2,1,1)*IF($B$43=3,Datenausgabe!L22/Datenausgabe!L26,1)*IF($B$43=4,Datenausgabe!L20/Datenausgabe!L21,1) -> 0 | M47: =M44*IF($B$43=1,Datenausgabe!M20/Datenausgabe!M21*Datenausgabe!M22/Datenausgabe!M26,1)*IF($B$43=2,1,1)*IF($B$43=3,Datenausgabe!M22/Datenausgabe!M26,1)*IF($B$43=4,Datenausgabe!M20/Datenausgabe!M21,1) -> 0
A48: Kind OZ | B48: =IF(Datenausgabe!B41,B44*Datenausgabe!B22/Datenausgabe!B26,B47) -> 0 | C48: =IF(Datenausgabe!C41,C44*Datenausgabe!C22/Datenausgabe!C26,C47) -> 0 | D48: =IF(Datenausgabe!D41,D44*Datenausgabe!D22/Datenausgabe!D26,D47) -> 0 | E48: =IF(Datenausgabe!E41,E44*Datenausgabe!E22/Datenausgabe!E26,E47) -> 0 | F48: =IF(Datenausgabe!F41,F44*Datenausgabe!F22/Datenausgabe!F26,F47) -> 0 | G48: =IF(Datenausgabe!G41,G44*Datenausgabe!G22/Datenausgabe!G26,G47) -> 0 | H48: =IF(Datenausgabe!H41,H44*Datenausgabe!H22/Datenausgabe!H26,H47) -> 0 | I48: =IF(Datenausgabe!I41,I44*Datenausgabe!I22/Datenausgabe!I26,I47) -> 0 | J48: =IF(Datenausgabe!J41,J44*Datenausgabe!J22/Datenausgabe!J26,J47) -> 0 | K48: =IF(Datenausgabe!K41,K44*Datenausgabe!K22/Datenausgabe!K26,K47) -> 0 | L48: =IF(Datenausgabe!L41,L44*Datenausgabe!L22/Datenausgabe!L26,L47) -> 0 | M48: =IF(Datenausgabe!M41,M44*Datenausgabe!M22/Datenausgabe!M26,M47) -> 0
A49: mit GBZ 2
A50: Höchstbetrag: | B50: =MAX(B44:B45) -> 0 | C50: =MAX(C44:C45) -> 0 | D50: 0 | E50: 0 | F50: 0 | G50: 0 | H50: 0 | I50: 0 | J50: 0 | K50: 0 | L50: 0 | M50: 0
A51: TZ Kürzung: - 1 | B51: =B44*IF($B$43=1,Datenausgabe!B20/Datenausgabe!B21*Datenausgabe!B22/Datenausgabe!B26,1)*IF($B$43=2,1,1)*IF($B$43=3,Datenausgabe!B22/Datenausgabe!B26,1)*IF($B$43=4,Datenausgabe!B20/Datenausgabe!B21,1) -> 0 | C51: =C44*IF($B$43=1,Datenausgabe!C20/Datenausgabe!C21*Datenausgabe!C22/Datenausgabe!C26,1)*IF($B$43=2,1,1)*IF($B$43=3,Datenausgabe!C22/Datenausgabe!C26,1)*IF($B$43=4,Datenausgabe!C20/Datenausgabe!C21,1) -> 0 | D51: =D44*IF($B$43=1,Datenausgabe!D20/Datenausgabe!D21*Datenausgabe!D22/Datenausgabe!D26,1)*IF($B$43=2,1,1)*IF($B$43=3,Datenausgabe!D22/Datenausgabe!D26,1)*IF($B$43=4,Datenausgabe!D20/Datenausgabe!D21,1) -> 0 | E51: =E44*IF($B$43=1,Datenausgabe!E20/Datenausgabe!E21*Datenausgabe!E22/Datenausgabe!E26,1)*IF($B$43=2,1,1)*IF($B$43=3,Datenausgabe!E22/Datenausgabe!E26,1)*IF($B$43=4,Datenausgabe!E20/Datenausgabe!E21,1) -> 0 | F51: =F44*IF($B$43=1,Datenausgabe!F20/Datenausgabe!F21*Datenausgabe!F22/Datenausgabe!F26,1)*IF($B$43=2,1,1)*IF($B$43=3,Datenausgabe!F22/Datenausgabe!F26,1)*IF($B$43=4,Datenausgabe!F20/Datenausgabe!F21,1) -> 0 | G51: =G44*IF($B$43=1,Datenausgabe!G20/Datenausgabe!G21*Datenausgabe!G22/Datenausgabe!G26,1)*IF($B$43=2,1,1)*IF($B$43=3,Datenausgabe!G22/Datenausgabe!G26,1)*IF($B$43=4,Datenausgabe!G20/Datenausgabe!G21,1) -> 0 | H51: =H44*IF($B$43=1,Datenausgabe!H20/Datenausgabe!H21*Datenausgabe!H22/Datenausgabe!H26,1)*IF($B$43=2,1,1)*IF($B$43=3,Datenausgabe!H22/Datenausgabe!H26,1)*IF($B$43=4,Datenausgabe!H20/Datenausgabe!H21,1) -> 0 | I51: =I44*IF($B$43=1,Datenausgabe!I20/Datenausgabe!I21*Datenausgabe!I22/Datenausgabe!I26,1)*IF($B$43=2,1,1)*IF($B$43=3,Datenausgabe!I22/Datenausgabe!I26,1)*IF($B$43=4,Datenausgabe!I20/Datenausgabe!I21,1) -> 0 | J51: =J44*IF($B$43=1,Datenausgabe!J20/Datenausgabe!J21*Datenausgabe!J22/Datenausgabe!J26,1)*IF($B$43=2,1,1)*IF($B$43=3,Datenausgabe!J22/Datenausgabe!J26,1)*IF($B$43=4,Datenausgabe!J20/Datenausgabe!J21,1) -> 0 | K51: =K44*IF($B$43=1,Datenausgabe!K20/Datenausgabe!K21*Datenausgabe!K22/Datenausgabe!K26,1)*IF($B$43=2,1,1)*IF($B$43=3,Datenausgabe!K22/Datenausgabe!K26,1)*IF($B$43=4,Datenausgabe!K20/Datenausgabe!K21,1) -> 0 | L51: =L44*IF($B$43=1,Datenausgabe!L20/Datenausgabe!L21*Datenausgabe!L22/Datenausgabe!L26,1)*IF($B$43=2,1,1)*IF($B$43=3,Datenausgabe!L22/Datenausgabe!L26,1)*IF($B$43=4,Datenausgabe!L20/Datenausgabe!L21,1) -> 0 | M51: =M44*IF($B$43=1,Datenausgabe!M20/Datenausgabe!M21*Datenausgabe!M22/Datenausgabe!M26,1)*IF($B$43=2,1,1)*IF($B$43=3,Datenausgabe!M22/Datenausgabe!M26,1)*IF($B$43=4,Datenausgabe!M20/Datenausgabe!M21,1) -> 0
A52: TZ Kürzung: - 2 | B52: =B45*IF($B$43=1,Datenausgabe!B23/Datenausgabe!B24*Datenausgabe!B25/Datenausgabe!B26,1)*IF($B$43=2,1,1)*IF($B$43=3,Datenausgabe!B25/Datenausgabe!B26,1)*IF($B$43=4,Datenausgabe!B23/Datenausgabe!B24,1) -> 0 | C52: =C45*IF($B$43=1,Datenausgabe!C23/Datenausgabe!C24*Datenausgabe!C25/Datenausgabe!C26,1)*IF($B$43=2,1,1)*IF($B$43=3,Datenausgabe!C25/Datenausgabe!C26,1)*IF($B$43=4,Datenausgabe!C23/Datenausgabe!C24,1) -> 0 | D52: =D45*IF($B$43=1,Datenausgabe!D23/Datenausgabe!D24*Datenausgabe!D25/Datenausgabe!D26,1)*IF($B$43=2,1,1)*IF($B$43=3,Datenausgabe!D25/Datenausgabe!D26,1)*IF($B$43=4,Datenausgabe!D23/Datenausgabe!D24,1) -> 0 | E52: =E45*IF($B$43=1,Datenausgabe!E23/Datenausgabe!E24*Datenausgabe!E25/Datenausgabe!E26,1)*IF($B$43=2,1,1)*IF($B$43=3,Datenausgabe!E25/Datenausgabe!E26,1)*IF($B$43=4,Datenausgabe!E23/Datenausgabe!E24,1) -> 0 | F52: =F45*IF($B$43=1,Datenausgabe!F23/Datenausgabe!F24*Datenausgabe!F25/Datenausgabe!F26,1)*IF($B$43=2,1,1)*IF($B$43=3,Datenausgabe!F25/Datenausgabe!F26,1)*IF($B$43=4,Datenausgabe!F23/Datenausgabe!F24,1) -> 0 | G52: =G45*IF($B$43=1,Datenausgabe!G23/Datenausgabe!G24*Datenausgabe!G25/Datenausgabe!G26,1)*IF($B$43=2,1,1)*IF($B$43=3,Datenausgabe!G25/Datenausgabe!G26,1)*IF($B$43=4,Datenausgabe!G23/Datenausgabe!G24,1) -> 0 | H52: =H45*IF($B$43=1,Datenausgabe!H23/Datenausgabe!H24*Datenausgabe!H25/Datenausgabe!H26,1)*IF($B$43=2,1,1)*IF($B$43=3,Datenausgabe!H25/Datenausgabe!H26,1)*IF($B$43=4,Datenausgabe!H23/Datenausgabe!H24,1) -> 0 | I52: =I45*IF($B$43=1,Datenausgabe!I23/Datenausgabe!I24*Datenausgabe!I25/Datenausgabe!I26,1)*IF($B$43=2,1,1)*IF($B$43=3,Datenausgabe!I25/Datenausgabe!I26,1)*IF($B$43=4,Datenausgabe!I23/Datenausgabe!I24,1) -> 0 | J52: =J45*IF($B$43=1,Datenausgabe!J23/Datenausgabe!J24*Datenausgabe!J25/Datenausgabe!J26,1)*IF($B$43=2,1,1)*IF($B$43=3,Datenausgabe!J25/Datenausgabe!J26,1)*IF($B$43=4,Datenausgabe!J23/Datenausgabe!J24,1) -> 0 | K52: =K45*IF($B$43=1,Datenausgabe!K23/Datenausgabe!K24*Datenausgabe!K25/Datenausgabe!K26,1)*IF($B$43=2,1,1)*IF($B$43=3,Datenausgabe!K25/Datenausgabe!K26,1)*IF($B$43=4,Datenausgabe!K23/Datenausgabe!K24,1) -> 0 | L52: =L45*IF($B$43=1,Datenausgabe!L23/Datenausgabe!L24*Datenausgabe!L25/Datenausgabe!L26,1)*IF($B$43=2,1,1)*IF($B$43=3,Datenausgabe!L25/Datenausgabe!L26,1)*IF($B$43=4,Datenausgabe!L23/Datenausgabe!L24,1) -> 0 | M52: =M45*IF($B$43=1,Datenausgabe!M23/Datenausgabe!M24*Datenausgabe!M25/Datenausgabe!M26,1)*IF($B$43=2,1,1)*IF($B$43=3,Datenausgabe!M25/Datenausgabe!M26,1)*IF($B$43=4,Datenausgabe!M23/Datenausgabe!M24,1) -> 0
B53: =IF(Datenausgabe!B41,B50*IF(Datenausgabe!B15,(Datenausgabe!B22+Datenausgabe!B25)/Datenausgabe!B26,Datenausgabe!B22/Datenausgabe!B26),B50) -> 0 | C53: =IF(Datenausgabe!C41,C50*IF(Datenausgabe!C15,(Datenausgabe!C22+Datenausgabe!C25)/Datenausgabe!C26,Datenausgabe!C22/Datenausgabe!C26),C50) -> 0 | D53: =IF(Datenausgabe!D41,D50*IF(Datenausgabe!D15,(Datenausgabe!D22+Datenausgabe!D25)/Datenausgabe!D26,Datenausgabe!D22/Datenausgabe!D26),D50) -> 0 | E53: =IF(Datenausgabe!E41,E50*IF(Datenausgabe!E15,(Datenausgabe!E22+Datenausgabe!E25)/Datenausgabe!E26,Datenausgabe!E22/Datenausgabe!E26),E50) -> 0 | F53: =IF(Datenausgabe!F41,F50*IF(Datenausgabe!F15,(Datenausgabe!F22+Datenausgabe!F25)/Datenausgabe!F26,Datenausgabe!F22/Datenausgabe!F26),F50) -> 0 | G53: =IF(Datenausgabe!G41,G50*IF(Datenausgabe!G15,(Datenausgabe!G22+Datenausgabe!G25)/Datenausgabe!G26,Datenausgabe!G22/Datenausgabe!G26),G50) -> 0 | H53: =IF(Datenausgabe!H41,H50*IF(Datenausgabe!H15,(Datenausgabe!H22+Datenausgabe!H25)/Datenausgabe!H26,Datenausgabe!H22/Datenausgabe!H26),H50) -> 0 | I53: =IF(Datenausgabe!I41,I50*IF(Datenausgabe!I15,(Datenausgabe!I22+Datenausgabe!I25)/Datenausgabe!I26,Datenausgabe!I22/Datenausgabe!I26),I50) -> 0 | J53: =IF(Datenausgabe!J41,J50*IF(Datenausgabe!J15,(Datenausgabe!J22+Datenausgabe!J25)/Datenausgabe!J26,Datenausgabe!J22/Datenausgabe!J26),J50) -> 0 | K53: =IF(Datenausgabe!K41,K50*IF(Datenausgabe!K15,(Datenausgabe!K22+Datenausgabe!K25)/Datenausgabe!K26,Datenausgabe!K22/Datenausgabe!K26),K50) -> 0 | L53: =IF(Datenausgabe!L41,L50*IF(Datenausgabe!L15,(Datenausgabe!L22+Datenausgabe!L25)/Datenausgabe!L26,Datenausgabe!L22/Datenausgabe!L26),L50) -> 0 | M53: =IF(Datenausgabe!M41,M50*IF(Datenausgabe!M15,(Datenausgabe!M22+Datenausgabe!M25)/Datenausgabe!M26,Datenausgabe!M22/Datenausgabe!M26),M50) -> 0
A54: Kind OZ Gesamt | B54: =IF(Datenausgabe!B1,IF(Datenausgabe!B14,B53,B48),0) -> 0 | C54: =IF(Datenausgabe!C1,IF(Datenausgabe!C14,C53,C48),0) -> 0 | D54: =IF(Datenausgabe!D1,IF(Datenausgabe!D14,D53,D48),0) -> 0 | E54: =IF(Datenausgabe!E1,IF(Datenausgabe!E14,E53,E48),0) -> 0 | F54: =IF(Datenausgabe!F1,IF(Datenausgabe!F14,F53,F48),0) -> 0 | G54: =IF(Datenausgabe!G1,IF(Datenausgabe!G14,G53,G48),0) -> 0 | H54: =IF(Datenausgabe!H1,IF(Datenausgabe!H14,H53,H48),0) -> 0 | I54: =IF(Datenausgabe!I1,IF(Datenausgabe!I14,I53,I48),0) -> 0 | J54: =IF(Datenausgabe!J1,IF(Datenausgabe!J14,J53,J48),0) -> 0 | K54: =IF(Datenausgabe!K1,IF(Datenausgabe!K14,K53,K48),0) -> 0 | L54: =IF(Datenausgabe!L1,IF(Datenausgabe!L14,L53,L48),0) -> 0 | M54: =IF(Datenausgabe!M1,IF(Datenausgabe!M14,M53,M48),0) -> 0
A55: Ermittlung der Werte für die Kindererhöhungsbeträge (nur wenn keine Pauschalvergütung angegeben wurde)
A56: Tabellenwert Kind 1 GBZ 1 | B56: =IF(Datenausgabe!B12<>0,0,VLOOKUP(Datenausgabe!B$6,[2]!Verguetung,20,0)) -> 0 | C56: =IF(Datenausgabe!C12<>0,0,VLOOKUP(Datenausgabe!C$6,[2]!Verguetung,20,0)) -> 0 | D56: =IF(Datenausgabe!D12<>0,0,VLOOKUP(Datenausgabe!D$6,[3]!Verguetung,20,0)) -> 0 | E56: =IF(Datenausgabe!E12<>0,0,VLOOKUP(Datenausgabe!E$6,[3]!Verguetung,20,0)) -> 0 | F56: =IF(Datenausgabe!F12<>0,0,VLOOKUP(Datenausgabe!F$6,[3]!Verguetung,20,0)) -> 0 | G56: =IF(Datenausgabe!G12<>0,0,VLOOKUP(Datenausgabe!G$6,[3]!Verguetung,20,0)) -> 0 | H56: =IF(Datenausgabe!H12<>0,0,VLOOKUP(Datenausgabe!H$6,[3]!Verguetung,20,0)) -> 0 | I56: =IF(Datenausgabe!I12<>0,0,VLOOKUP(Datenausgabe!I$6,[3]!Verguetung,20,0)) -> 0 | J56: =IF(Datenausgabe!J12<>0,0,VLOOKUP(Datenausgabe!J$6,[3]!Verguetung,20,0)) -> 0 | K56: =IF(Datenausgabe!K12<>0,0,VLOOKUP(Datenausgabe!K$6,[3]!Verguetung,20,0)) -> 0 | L56: =IF(Datenausgabe!L12<>0,0,VLOOKUP(Datenausgabe!L$6,[3]!Verguetung,20,0)) -> 0 | M56: =IF(Datenausgabe!M12<>0,0,VLOOKUP(Datenausgabe!M$6,[3]!Verguetung,20,0)) -> 0
A57: Tabellenwert ab Kind 2 GBZ 1 | B57: =IF(Datenausgabe!B12<>0,0,VLOOKUP(Datenausgabe!B$6,[2]!Verguetung,21,0)) -> 0 | C57: =IF(Datenausgabe!C12<>0,0,VLOOKUP(Datenausgabe!C$6,[2]!Verguetung,21,0)) -> 0 | D57: =IF(Datenausgabe!D12<>0,0,VLOOKUP(Datenausgabe!D$6,[3]!Verguetung,21,0)) -> 0 | E57: =IF(Datenausgabe!E12<>0,0,VLOOKUP(Datenausgabe!E$6,[3]!Verguetung,21,0)) -> 0 | F57: =IF(Datenausgabe!F12<>0,0,VLOOKUP(Datenausgabe!F$6,[3]!Verguetung,21,0)) -> 0 | G57: =IF(Datenausgabe!G12<>0,0,VLOOKUP(Datenausgabe!G$6,[3]!Verguetung,21,0)) -> 0 | H57: =IF(Datenausgabe!H12<>0,0,VLOOKUP(Datenausgabe!H$6,[3]!Verguetung,21,0)) -> 0 | I57: =IF(Datenausgabe!I12<>0,0,VLOOKUP(Datenausgabe!I$6,[3]!Verguetung,21,0)) -> 0 | J57: =IF(Datenausgabe!J12<>0,0,VLOOKUP(Datenausgabe!J$6,[3]!Verguetung,21,0)) -> 0 | K57: =IF(Datenausgabe!K12<>0,0,VLOOKUP(Datenausgabe!K$6,[3]!Verguetung,21,0)) -> 0 | L57: =IF(Datenausgabe!L12<>0,0,VLOOKUP(Datenausgabe!L$6,[3]!Verguetung,21,0)) -> 0 | M57: =IF(Datenausgabe!M12<>0,0,VLOOKUP(Datenausgabe!M$6,[3]!Verguetung,21,0)) -> 0
A58: Tabellenwert Kind 1 GBZ 2 | B58: =IF(Datenausgabe!B13<>0,0,VLOOKUP(Datenausgabe!B$7,[2]!Verguetung,20,0)) -> 0 | C58: =IF(Datenausgabe!C13<>0,0,VLOOKUP(Datenausgabe!C$7,[2]!Verguetung,20,0)) -> 0 | D58: =IF(Datenausgabe!D13<>0,0,VLOOKUP(Datenausgabe!D$7,[3]!Verguetung,20,0)) -> 0 | E58: =IF(Datenausgabe!E13<>0,0,VLOOKUP(Datenausgabe!E$7,[3]!Verguetung,20,0)) -> 0 | F58: =IF(Datenausgabe!F13<>0,0,VLOOKUP(Datenausgabe!F$7,[3]!Verguetung,20,0)) -> 0 | G58: =IF(Datenausgabe!G13<>0,0,VLOOKUP(Datenausgabe!G$7,[3]!Verguetung,20,0)) -> 0 | H58: =IF(Datenausgabe!H13<>0,0,VLOOKUP(Datenausgabe!H$7,[3]!Verguetung,20,0)) -> 0 | I58: =IF(Datenausgabe!I13<>0,0,VLOOKUP(Datenausgabe!I$7,[3]!Verguetung,20,0)) -> 0 | J58: =IF(Datenausgabe!J13<>0,0,VLOOKUP(Datenausgabe!J$7,[3]!Verguetung,20,0)) -> 0 | K58: =IF(Datenausgabe!K13<>0,0,VLOOKUP(Datenausgabe!K$7,[3]!Verguetung,20,0)) -> 0 | L58: =IF(Datenausgabe!L13<>0,0,VLOOKUP(Datenausgabe!L$7,[3]!Verguetung,20,0)) -> 0 | M58: =IF(Datenausgabe!M13<>0,0,VLOOKUP(Datenausgabe!M$7,[3]!Verguetung,20,0)) -> 0
A59: Tabellenwert ab Kind 2 GBZ 2 | B59: =IF(Datenausgabe!B13<>0,0,VLOOKUP(Datenausgabe!B$7,[2]!Verguetung,21,0)) -> 0 | C59: =IF(Datenausgabe!C13<>0,0,VLOOKUP(Datenausgabe!C$7,[2]!Verguetung,21,0)) -> 0 | D59: =IF(Datenausgabe!D13<>0,0,VLOOKUP(Datenausgabe!D$7,[3]!Verguetung,21,0)) -> 0 | E59: =IF(Datenausgabe!E13<>0,0,VLOOKUP(Datenausgabe!E$7,[3]!Verguetung,21,0)) -> 0 | F59: =IF(Datenausgabe!F13<>0,0,VLOOKUP(Datenausgabe!F$7,[3]!Verguetung,21,0)) -> 0 | G59: =IF(Datenausgabe!G13<>0,0,VLOOKUP(Datenausgabe!G$7,[3]!Verguetung,21,0)) -> 0 | H59: =IF(Datenausgabe!H13<>0,0,VLOOKUP(Datenausgabe!H$7,[3]!Verguetung,21,0)) -> 0 | I59: =IF(Datenausgabe!I13<>0,0,VLOOKUP(Datenausgabe!I$7,[3]!Verguetung,21,0)) -> 0 | J59: =IF(Datenausgabe!J13<>0,0,VLOOKUP(Datenausgabe!J$7,[3]!Verguetung,21,0)) -> 0 | K59: =IF(Datenausgabe!K13<>0,0,VLOOKUP(Datenausgabe!K$7,[3]!Verguetung,21,0)) -> 0 | L59: =IF(Datenausgabe!L13<>0,0,VLOOKUP(Datenausgabe!L$7,[3]!Verguetung,21,0)) -> 0 | M59: =IF(Datenausgabe!M13<>0,0,VLOOKUP(Datenausgabe!M$7,[3]!Verguetung,21,0)) -> 0
A60: Kind erh. TZ Klassif: | B60: =VALUE(MID(Arbeitgeberkosten!$E$12,5,1)) -> 1 | C60: 1 = Teilzeit & Tage ' 2 = ungekürzt' 3 = Tage-Kürzung' 4 = Teilzeit-Kürzung
A61: Summe für alle Kinder, GBZ 1 | B61: =IF(Datenausgabe!B36<=1,B56*Datenausgabe!B36,(Datenausgabe!B36-1)*B57+B56) -> 0 | C61: =IF(Datenausgabe!C36<=1,C56*Datenausgabe!C36,(Datenausgabe!C36-1)*C57+C56) -> 0 | D61: =IF(Datenausgabe!D36<=1,D56*Datenausgabe!D36,(Datenausgabe!D36-1)*D57+D56) -> 0 | E61: =IF(Datenausgabe!E36<=1,E56*Datenausgabe!E36,(Datenausgabe!E36-1)*E57+E56) -> 0 | F61: =IF(Datenausgabe!F36<=1,F56*Datenausgabe!F36,(Datenausgabe!F36-1)*F57+F56) -> 0 | G61: =IF(Datenausgabe!G36<=1,G56*Datenausgabe!G36,(Datenausgabe!G36-1)*G57+G56) -> 0 | H61: =IF(Datenausgabe!H36<=1,H56*Datenausgabe!H36,(Datenausgabe!H36-1)*H57+H56) -> 0 | I61: =IF(Datenausgabe!I36<=1,I56*Datenausgabe!I36,(Datenausgabe!I36-1)*I57+I56) -> 0 | J61: =IF(Datenausgabe!J36<=1,J56*Datenausgabe!J36,(Datenausgabe!J36-1)*J57+J56) -> 0 | K61: =IF(Datenausgabe!K36<=1,K56*Datenausgabe!K36,(Datenausgabe!K36-1)*K57+K56) -> 0 | L61: =IF(Datenausgabe!L36<=1,L56*Datenausgabe!L36,(Datenausgabe!L36-1)*L57+L56) -> 0 | M61: =IF(Datenausgabe!M36<=1,M56*Datenausgabe!M36,(Datenausgabe!M36-1)*M57+M56) -> 0
A62: Summe für alle Kinder, GBZ 2 | B62: =IF(Datenausgabe!B36<=1,B58*Datenausgabe!B36,(Datenausgabe!B36-1)*B59+B58) -> 0 | C62: =IF(Datenausgabe!C36<=1,C58*Datenausgabe!C36,(Datenausgabe!C36-1)*C59+C58) -> 0 | D62: =IF(Datenausgabe!D36<=1,D58*Datenausgabe!D36,(Datenausgabe!D36-1)*D59+D58) -> 0 | E62: =IF(Datenausgabe!E36<=1,E58*Datenausgabe!E36,(Datenausgabe!E36-1)*E59+E58) -> 0 | F62: =IF(Datenausgabe!F36<=1,F58*Datenausgabe!F36,(Datenausgabe!F36-1)*F59+F58) -> 0 | G62: =IF(Datenausgabe!G36<=1,G58*Datenausgabe!G36,(Datenausgabe!G36-1)*G59+G58) -> 0 | H62: =IF(Datenausgabe!H36<=1,H58*Datenausgabe!H36,(Datenausgabe!H36-1)*H59+H58) -> 0 | I62: =IF(Datenausgabe!I36<=1,I58*Datenausgabe!I36,(Datenausgabe!I36-1)*I59+I58) -> 0 | J62: =IF(Datenausgabe!J36<=1,J58*Datenausgabe!J36,(Datenausgabe!J36-1)*J59+J58) -> 0 | K62: =IF(Datenausgabe!K36<=1,K58*Datenausgabe!K36,(Datenausgabe!K36-1)*K59+K58) -> 0 | L62: =IF(Datenausgabe!L36<=1,L58*Datenausgabe!L36,(Datenausgabe!L36-1)*L59+L58) -> 0 | M62: =IF(Datenausgabe!M36<=1,M58*Datenausgabe!M36,(Datenausgabe!M36-1)*M59+M58) -> 0
A63: Kind erh (ggf. Konk. Bruch) TZ 1 | B63: =IF(Datenausgabe!B35,B61*Datenausgabe!B39/Datenausgabe!B40,IF(Datenausgabe!B34,B61*IF($B$60=1,Datenausgabe!B20/Datenausgabe!B21*Datenausgabe!B22/Datenausgabe!B26,1)*IF($B$60=2,1,1)*IF($B$60=3,Datenausgabe!B22/Datenausgabe!B26,1)*IF($B$60=4,Datenausgabe!B20/Datenausgabe!B21,1),B61)) -> 0 | C63: =IF(Datenausgabe!C35,C61*Datenausgabe!C39/Datenausgabe!C40,IF(Datenausgabe!C34,C61*IF($B$60=1,Datenausgabe!C20/Datenausgabe!C21*Datenausgabe!C22/Datenausgabe!C26,1)*IF($B$60=2,1,1)*IF($B$60=3,Datenausgabe!C22/Datenausgabe!C26,1)*IF($B$60=4,Datenausgabe!C20/Datenausgabe!C21,1),C61)) -> 0 | D63: =IF(Datenausgabe!D35,D61*Datenausgabe!D39/Datenausgabe!D40,IF(Datenausgabe!D34,D61*IF($B$60=1,Datenausgabe!D20/Datenausgabe!D21*Datenausgabe!D22/Datenausgabe!D26,1)*IF($B$60=2,1,1)*IF($B$60=3,Datenausgabe!D22/Datenausgabe!D26,1)*IF($B$60=4,Datenausgabe!D20/Datenausgabe!D21,1),D61)) -> 0 | E63: =IF(Datenausgabe!E35,E61*Datenausgabe!E39/Datenausgabe!E40,IF(Datenausgabe!E34,E61*IF($B$60=1,Datenausgabe!E20/Datenausgabe!E21*Datenausgabe!E22/Datenausgabe!E26,1)*IF($B$60=2,1,1)*IF($B$60=3,Datenausgabe!E22/Datenausgabe!E26,1)*IF($B$60=4,Datenausgabe!E20/Datenausgabe!E21,1),E61)) -> 0 | F63: =IF(Datenausgabe!F35,F61*Datenausgabe!F39/Datenausgabe!F40,IF(Datenausgabe!F34,F61*IF($B$60=1,Datenausgabe!F20/Datenausgabe!F21*Datenausgabe!F22/Datenausgabe!F26,1)*IF($B$60=2,1,1)*IF($B$60=3,Datenausgabe!F22/Datenausgabe!F26,1)*IF($B$60=4,Datenausgabe!F20/Datenausgabe!F21,1),F61)) -> 0 | G63: =IF(Datenausgabe!G35,G61*Datenausgabe!G39/Datenausgabe!G40,IF(Datenausgabe!G34,G61*IF($B$60=1,Datenausgabe!G20/Datenausgabe!G21*Datenausgabe!G22/Datenausgabe!G26,1)*IF($B$60=2,1,1)*IF($B$60=3,Datenausgabe!G22/Datenausgabe!G26,1)*IF($B$60=4,Datenausgabe!G20/Datenausgabe!G21,1),G61)) -> 0 | H63: =IF(Datenausgabe!H35,H61*Datenausgabe!H39/Datenausgabe!H40,IF(Datenausgabe!H34,H61*IF($B$60=1,Datenausgabe!H20/Datenausgabe!H21*Datenausgabe!H22/Datenausgabe!H26,1)*IF($B$60=2,1,1)*IF($B$60=3,Datenausgabe!H22/Datenausgabe!H26,1)*IF($B$60=4,Datenausgabe!H20/Datenausgabe!H21,1),H61)) -> 0 | I63: =IF(Datenausgabe!I35,I61*Datenausgabe!I39/Datenausgabe!I40,IF(Datenausgabe!I34,I61*IF($B$60=1,Datenausgabe!I20/Datenausgabe!I21*Datenausgabe!I22/Datenausgabe!I26,1)*IF($B$60=2,1,1)*IF($B$60=3,Datenausgabe!I22/Datenausgabe!I26,1)*IF($B$60=4,Datenausgabe!I20/Datenausgabe!I21,1),I61)) -> 0 | J63: =IF(Datenausgabe!J35,J61*Datenausgabe!J39/Datenausgabe!J40,IF(Datenausgabe!J34,J61*IF($B$60=1,Datenausgabe!J20/Datenausgabe!J21*Datenausgabe!J22/Datenausgabe!J26,1)*IF($B$60=2,1,1)*IF($B$60=3,Datenausgabe!J22/Datenausgabe!J26,1)*IF($B$60=4,Datenausgabe!J20/Datenausgabe!J21,1),J61)) -> 0 | K63: =IF(Datenausgabe!K35,K61*Datenausgabe!K39/Datenausgabe!K40,IF(Datenausgabe!K34,K61*IF($B$60=1,Datenausgabe!K20/Datenausgabe!K21*Datenausgabe!K22/Datenausgabe!K26,1)*IF($B$60=2,1,1)*IF($B$60=3,Datenausgabe!K22/Datenausgabe!K26,1)*IF($B$60=4,Datenausgabe!K20/Datenausgabe!K21,1),K61)) -> 0 | L63: =IF(Datenausgabe!L35,L61*Datenausgabe!L39/Datenausgabe!L40,IF(Datenausgabe!L34,L61*IF($B$60=1,Datenausgabe!L20/Datenausgabe!L21*Datenausgabe!L22/Datenausgabe!L26,1)*IF($B$60=2,1,1)*IF($B$60=3,Datenausgabe!L22/Datenausgabe!L26,1)*IF($B$60=4,Datenausgabe!L20/Datenausgabe!L21,1),L61)) -> 0 | M63: =IF(Datenausgabe!M35,M61*Datenausgabe!M39/Datenausgabe!M40,IF(Datenausgabe!M34,M61*IF($B$60=1,Datenausgabe!M20/Datenausgabe!M21*Datenausgabe!M22/Datenausgabe!M26,1)*IF($B$60=2,1,1)*IF($B$60=3,Datenausgabe!M22/Datenausgabe!M26,1)*IF($B$60=4,Datenausgabe!M20/Datenausgabe!M21,1),M61)) -> 0
A64: Kind erh (ggf. Konk. Bruch) TZ 2 | B64: =IF(Datenausgabe!B35,B62*Datenausgabe!B39/Datenausgabe!B40,IF(Datenausgabe!B34,B62*IF($B$60=1,Datenausgabe!B23/Datenausgabe!B24*Datenausgabe!B25/Datenausgabe!B26,1)*IF($B$60=2,1,1)*IF($B$60=3,Datenausgabe!B25/Datenausgabe!B26,1)*IF($B$60=4,Datenausgabe!B23/Datenausgabe!B24,1),B62)) -> 0 | C64: =IF(Datenausgabe!C35,C62*Datenausgabe!C39/Datenausgabe!C40,IF(Datenausgabe!C34,C62*IF($B$60=1,Datenausgabe!C23/Datenausgabe!C24*Datenausgabe!C25/Datenausgabe!C26,1)*IF($B$60=2,1,1)*IF($B$60=3,Datenausgabe!C25/Datenausgabe!C26,1)*IF($B$60=4,Datenausgabe!C23/Datenausgabe!C24,1),C62)) -> 0 | D64: =IF(Datenausgabe!D35,D62*Datenausgabe!D39/Datenausgabe!D40,IF(Datenausgabe!D34,D62*IF($B$60=1,Datenausgabe!D23/Datenausgabe!D24*Datenausgabe!D25/Datenausgabe!D26,1)*IF($B$60=2,1,1)*IF($B$60=3,Datenausgabe!D25/Datenausgabe!D26,1)*IF($B$60=4,Datenausgabe!D23/Datenausgabe!D24,1),D62)) -> 0 | E64: =IF(Datenausgabe!E35,E62*Datenausgabe!E39/Datenausgabe!E40,IF(Datenausgabe!E34,E62*IF($B$60=1,Datenausgabe!E23/Datenausgabe!E24*Datenausgabe!E25/Datenausgabe!E26,1)*IF($B$60=2,1,1)*IF($B$60=3,Datenausgabe!E25/Datenausgabe!E26,1)*IF($B$60=4,Datenausgabe!E23/Datenausgabe!E24,1),E62)) -> 0 | F64: =IF(Datenausgabe!F35,F62*Datenausgabe!F39/Datenausgabe!F40,IF(Datenausgabe!F34,F62*IF($B$60=1,Datenausgabe!F23/Datenausgabe!F24*Datenausgabe!F25/Datenausgabe!F26,1)*IF($B$60=2,1,1)*IF($B$60=3,Datenausgabe!F25/Datenausgabe!F26,1)*IF($B$60=4,Datenausgabe!F23/Datenausgabe!F24,1),F62)) -> 0 | G64: =IF(Datenausgabe!G35,G62*Datenausgabe!G39/Datenausgabe!G40,IF(Datenausgabe!G34,G62*IF($B$60=1,Datenausgabe!G23/Datenausgabe!G24*Datenausgabe!G25/Datenausgabe!G26,1)*IF($B$60=2,1,1)*IF($B$60=3,Datenausgabe!G25/Datenausgabe!G26,1)*IF($B$60=4,Datenausgabe!G23/Datenausgabe!G24,1),G62)) -> 0 | H64: =IF(Datenausgabe!H35,H62*Datenausgabe!H39/Datenausgabe!H40,IF(Datenausgabe!H34,H62*IF($B$60=1,Datenausgabe!H23/Datenausgabe!H24*Datenausgabe!H25/Datenausgabe!H26,1)*IF($B$60=2,1,1)*IF($B$60=3,Datenausgabe!H25/Datenausgabe!H26,1)*IF($B$60=4,Datenausgabe!H23/Datenausgabe!H24,1),H62)) -> 0 | I64: =IF(Datenausgabe!I35,I62*Datenausgabe!I39/Datenausgabe!I40,IF(Datenausgabe!I34,I62*IF($B$60=1,Datenausgabe!I23/Datenausgabe!I24*Datenausgabe!I25/Datenausgabe!I26,1)*IF($B$60=2,1,1)*IF($B$60=3,Datenausgabe!I25/Datenausgabe!I26,1)*IF($B$60=4,Datenausgabe!I23/Datenausgabe!I24,1),I62)) -> 0 | J64: =IF(Datenausgabe!J35,J62*Datenausgabe!J39/Datenausgabe!J40,IF(Datenausgabe!J34,J62*IF($B$60=1,Datenausgabe!J23/Datenausgabe!J24*Datenausgabe!J25/Datenausgabe!J26,1)*IF($B$60=2,1,1)*IF($B$60=3,Datenausgabe!J25/Datenausgabe!J26,1)*IF($B$60=4,Datenausgabe!J23/Datenausgabe!J24,1),J62)) -> 0 | K64: =IF(Datenausgabe!K35,K62*Datenausgabe!K39/Datenausgabe!K40,IF(Datenausgabe!K34,K62*IF($B$60=1,Datenausgabe!K23/Datenausgabe!K24*Datenausgabe!K25/Datenausgabe!K26,1)*IF($B$60=2,1,1)*IF($B$60=3,Datenausgabe!K25/Datenausgabe!K26,1)*IF($B$60=4,Datenausgabe!K23/Datenausgabe!K24,1),K62)) -> 0 | L64: =IF(Datenausgabe!L35,L62*Datenausgabe!L39/Datenausgabe!L40,IF(Datenausgabe!L34,L62*IF($B$60=1,Datenausgabe!L23/Datenausgabe!L24*Datenausgabe!L25/Datenausgabe!L26,1)*IF($B$60=2,1,1)*IF($B$60=3,Datenausgabe!L25/Datenausgabe!L26,1)*IF($B$60=4,Datenausgabe!L23/Datenausgabe!L24,1),L62)) -> 0 | M64: =IF(Datenausgabe!M35,M62*Datenausgabe!M39/Datenausgabe!M40,IF(Datenausgabe!M34,M62*IF($B$60=1,Datenausgabe!M23/Datenausgabe!M24*Datenausgabe!M25/Datenausgabe!M26,1)*IF($B$60=2,1,1)*IF($B$60=3,Datenausgabe!M25/Datenausgabe!M26,1)*IF($B$60=4,Datenausgabe!M23/Datenausgabe!M24,1),M62)) -> 0
A65: Kind erh Gesamt | B65: =IF(Datenausgabe!B1,B63+IF(Datenausgabe!B14,B64,0),0) -> 0 | C65: =IF(Datenausgabe!C1,C63+IF(Datenausgabe!C14,C64,0),0) -> 0 | D65: =IF(Datenausgabe!D1,D63+IF(Datenausgabe!D14,D64,0),0) -> 0 | E65: =IF(Datenausgabe!E1,E63+IF(Datenausgabe!E14,E64,0),0) -> 0 | F65: =IF(Datenausgabe!F1,F63+IF(Datenausgabe!F14,F64,0),0) -> 0 | G65: =IF(Datenausgabe!G1,G63+IF(Datenausgabe!G14,G64,0),0) -> 0 | H65: =IF(Datenausgabe!H1,H63+IF(Datenausgabe!H14,H64,0),0) -> 0 | I65: =IF(Datenausgabe!I1,I63+IF(Datenausgabe!I14,I64,0),0) -> 0 | J65: =IF(Datenausgabe!J1,J63+IF(Datenausgabe!J14,J64,0),0) -> 0 | K65: =IF(Datenausgabe!K1,K63+IF(Datenausgabe!K14,K64,0),0) -> 0 | L65: =IF(Datenausgabe!L1,L63+IF(Datenausgabe!L14,L64,0),0) -> 0 | M65: =IF(Datenausgabe!M1,M63+IF(Datenausgabe!M14,M64,0),0) -> 0
A66: Ermittlung der Werte für die Tarifzulage (nur wenn keine Pauschalvergütung angegeben wurde)
A67: Tabellenwert GBZ 1 (ggf. kl. Zul.) | B67: =IF(OR(Datenausgabe!B12<>0,Datenausgabe!B47=Einstellungen!$C$29),0,VLOOKUP(IF(Datenausgabe!B47=Einstellungen!$C$30,Datenausgabe!B$6,Einstellungen!$N$2),[2]!Verguetung,23,0)) -> 0 | C67: =IF(OR(Datenausgabe!C12<>0,Datenausgabe!C47=Einstellungen!$C$29),0,VLOOKUP(IF(Datenausgabe!C47=Einstellungen!$C$30,Datenausgabe!C$6,Einstellungen!$N$2),[2]!Verguetung,23,0)) -> 0 | D67: =IF(OR(Datenausgabe!D12<>0,Datenausgabe!D47=Einstellungen!$C$29),0,VLOOKUP(IF(Datenausgabe!D47=Einstellungen!$C$30,Datenausgabe!D$6,Einstellungen!$N$2),[3]!Verguetung,23,0)) -> 0 | E67: =IF(OR(Datenausgabe!E12<>0,Datenausgabe!E47=Einstellungen!$C$29),0,VLOOKUP(IF(Datenausgabe!E47=Einstellungen!$C$30,Datenausgabe!E$6,Einstellungen!$N$2),[3]!Verguetung,23,0)) -> 0 | F67: =IF(OR(Datenausgabe!F12<>0,Datenausgabe!F47=Einstellungen!$C$29),0,VLOOKUP(IF(Datenausgabe!F47=Einstellungen!$C$30,Datenausgabe!F$6,Einstellungen!$N$2),[3]!Verguetung,23,0)) -> 0 | G67: =IF(OR(Datenausgabe!G12<>0,Datenausgabe!G47=Einstellungen!$C$29),0,VLOOKUP(IF(Datenausgabe!G47=Einstellungen!$C$30,Datenausgabe!G$6,Einstellungen!$N$2),[3]!Verguetung,23,0)) -> 0 | H67: =IF(OR(Datenausgabe!H12<>0,Datenausgabe!H47=Einstellungen!$C$29),0,VLOOKUP(IF(Datenausgabe!H47=Einstellungen!$C$30,Datenausgabe!H$6,Einstellungen!$N$2),[3]!Verguetung,23,0)) -> 0 | I67: =IF(OR(Datenausgabe!I12<>0,Datenausgabe!I47=Einstellungen!$C$29),0,VLOOKUP(IF(Datenausgabe!I47=Einstellungen!$C$30,Datenausgabe!I$6,Einstellungen!$N$2),[3]!Verguetung,23,0)) -> 0 | J67: =IF(OR(Datenausgabe!J12<>0,Datenausgabe!J47=Einstellungen!$C$29),0,VLOOKUP(IF(Datenausgabe!J47=Einstellungen!$C$30,Datenausgabe!J$6,Einstellungen!$N$2),[3]!Verguetung,23,0)) -> 0 | K67: =IF(OR(Datenausgabe!K12<>0,Datenausgabe!K47=Einstellungen!$C$29),0,VLOOKUP(IF(Datenausgabe!K47=Einstellungen!$C$30,Datenausgabe!K$6,Einstellungen!$N$2),[3]!Verguetung,23,0)) -> 0 | L67: =IF(OR(Datenausgabe!L12<>0,Datenausgabe!L47=Einstellungen!$C$29),0,VLOOKUP(IF(Datenausgabe!L47=Einstellungen!$C$30,Datenausgabe!L$6,Einstellungen!$N$2),[3]!Verguetung,23,0)) -> 0 | M67: =IF(OR(Datenausgabe!M12<>0,Datenausgabe!M47=Einstellungen!$C$29),0,VLOOKUP(IF(Datenausgabe!M47=Einstellungen!$C$30,Datenausgabe!M$6,Einstellungen!$N$2),[3]!Verguetung,23,0)) -> 0
A68: Tabellenwert GBZ 2 (ggf. kl. Zul.) | B68: =IF(OR(Datenausgabe!B13<>0,Datenausgabe!B47=Einstellungen!$C$29),0,VLOOKUP(IF(Datenausgabe!B47=Einstellungen!$C$30,Datenausgabe!B$7,Einstellungen!$N$2),[2]!Verguetung,23,0)) -> 0 | C68: =IF(OR(Datenausgabe!C13<>0,Datenausgabe!C47=Einstellungen!$C$29),0,VLOOKUP(IF(Datenausgabe!C47=Einstellungen!$C$30,Datenausgabe!C$7,Einstellungen!$N$2),[2]!Verguetung,23,0)) -> 0 | D68: =IF(OR(Datenausgabe!D13<>0,Datenausgabe!D47=Einstellungen!$C$29),0,VLOOKUP(IF(Datenausgabe!D47=Einstellungen!$C$30,Datenausgabe!D$7,Einstellungen!$N$2),[3]!Verguetung,23,0)) -> 0 | E68: =IF(OR(Datenausgabe!E13<>0,Datenausgabe!E47=Einstellungen!$C$29),0,VLOOKUP(IF(Datenausgabe!E47=Einstellungen!$C$30,Datenausgabe!E$7,Einstellungen!$N$2),[3]!Verguetung,23,0)) -> 0 | F68: =IF(OR(Datenausgabe!F13<>0,Datenausgabe!F47=Einstellungen!$C$29),0,VLOOKUP(IF(Datenausgabe!F47=Einstellungen!$C$30,Datenausgabe!F$7,Einstellungen!$N$2),[3]!Verguetung,23,0)) -> 0 | G68: =IF(OR(Datenausgabe!G13<>0,Datenausgabe!G47=Einstellungen!$C$29),0,VLOOKUP(IF(Datenausgabe!G47=Einstellungen!$C$30,Datenausgabe!G$7,Einstellungen!$N$2),[3]!Verguetung,23,0)) -> 0 | H68: =IF(OR(Datenausgabe!H13<>0,Datenausgabe!H47=Einstellungen!$C$29),0,VLOOKUP(IF(Datenausgabe!H47=Einstellungen!$C$30,Datenausgabe!H$7,Einstellungen!$N$2),[3]!Verguetung,23,0)) -> 0 | I68: =IF(OR(Datenausgabe!I13<>0,Datenausgabe!I47=Einstellungen!$C$29),0,VLOOKUP(IF(Datenausgabe!I47=Einstellungen!$C$30,Datenausgabe!I$7,Einstellungen!$N$2),[3]!Verguetung,23,0)) -> 0 | J68: =IF(OR(Datenausgabe!J13<>0,Datenausgabe!J47=Einstellungen!$C$29),0,VLOOKUP(IF(Datenausgabe!J47=Einstellungen!$C$30,Datenausgabe!J$7,Einstellungen!$N$2),[3]!Verguetung,23,0)) -> 0 | K68: =IF(OR(Datenausgabe!K13<>0,Datenausgabe!K47=Einstellungen!$C$29),0,VLOOKUP(IF(Datenausgabe!K47=Einstellungen!$C$30,Datenausgabe!K$7,Einstellungen!$N$2),[3]!Verguetung,23,0)) -> 0 | L68: =IF(OR(Datenausgabe!L13<>0,Datenausgabe!L47=Einstellungen!$C$29),0,VLOOKUP(IF(Datenausgabe!L47=Einstellungen!$C$30,Datenausgabe!L$7,Einstellungen!$N$2),[3]!Verguetung,23,0)) -> 0 | M68: =IF(OR(Datenausgabe!M13<>0,Datenausgabe!M47=Einstellungen!$C$29),0,VLOOKUP(IF(Datenausgabe!M47=Einstellungen!$C$30,Datenausgabe!M$7,Einstellungen!$N$2),[3]!Verguetung,23,0)) -> 0
A69: Allg. Zulage TZ Klassif: | B69: =VALUE(MID(Arbeitgeberkosten!$E$13,5,1)) -> 1 | C69: 1 = Teilzeit & Tage ' 2 = ungekürzt' 3 = Tage-Kürzung' 4 = Teilzeit-Kürzung
A70: Allg. Zulage TZ 1 | B70: =B67*IF($B$69=1,Datenausgabe!B20/Datenausgabe!B21*Datenausgabe!B22/Datenausgabe!B26,1)*IF($B$69=2,1,1)*IF($B$69=3,Datenausgabe!B22/Datenausgabe!B26,1)*IF($B$69=4,Datenausgabe!B20/Datenausgabe!B21,1) -> 0 | C70: =C67*IF($B$69=1,Datenausgabe!C20/Datenausgabe!C21*Datenausgabe!C22/Datenausgabe!C26,1)*IF($B$69=2,1,1)*IF($B$69=3,Datenausgabe!C22/Datenausgabe!C26,1)*IF($B$69=4,Datenausgabe!C20/Datenausgabe!C21,1) -> 0 | D70: =D67*IF($B$69=1,Datenausgabe!D20/Datenausgabe!D21*Datenausgabe!D22/Datenausgabe!D26,1)*IF($B$69=2,1,1)*IF($B$69=3,Datenausgabe!D22/Datenausgabe!D26,1)*IF($B$69=4,Datenausgabe!D20/Datenausgabe!D21,1) -> 0 | E70: =E67*IF($B$69=1,Datenausgabe!E20/Datenausgabe!E21*Datenausgabe!E22/Datenausgabe!E26,1)*IF($B$69=2,1,1)*IF($B$69=3,Datenausgabe!E22/Datenausgabe!E26,1)*IF($B$69=4,Datenausgabe!E20/Datenausgabe!E21,1) -> 0 | F70: =F67*IF($B$69=1,Datenausgabe!F20/Datenausgabe!F21*Datenausgabe!F22/Datenausgabe!F26,1)*IF($B$69=2,1,1)*IF($B$69=3,Datenausgabe!F22/Datenausgabe!F26,1)*IF($B$69=4,Datenausgabe!F20/Datenausgabe!F21,1) -> 0 | G70: =G67*IF($B$69=1,Datenausgabe!G20/Datenausgabe!G21*Datenausgabe!G22/Datenausgabe!G26,1)*IF($B$69=2,1,1)*IF($B$69=3,Datenausgabe!G22/Datenausgabe!G26,1)*IF($B$69=4,Datenausgabe!G20/Datenausgabe!G21,1) -> 0 | H70: =H67*IF($B$69=1,Datenausgabe!H20/Datenausgabe!H21*Datenausgabe!H22/Datenausgabe!H26,1)*IF($B$69=2,1,1)*IF($B$69=3,Datenausgabe!H22/Datenausgabe!H26,1)*IF($B$69=4,Datenausgabe!H20/Datenausgabe!H21,1) -> 0 | I70: =I67*IF($B$69=1,Datenausgabe!I20/Datenausgabe!I21*Datenausgabe!I22/Datenausgabe!I26,1)*IF($B$69=2,1,1)*IF($B$69=3,Datenausgabe!I22/Datenausgabe!I26,1)*IF($B$69=4,Datenausgabe!I20/Datenausgabe!I21,1) -> 0 | J70: =J67*IF($B$69=1,Datenausgabe!J20/Datenausgabe!J21*Datenausgabe!J22/Datenausgabe!J26,1)*IF($B$69=2,1,1)*IF($B$69=3,Datenausgabe!J22/Datenausgabe!J26,1)*IF($B$69=4,Datenausgabe!J20/Datenausgabe!J21,1) -> 0 | K70: =K67*IF($B$69=1,Datenausgabe!K20/Datenausgabe!K21*Datenausgabe!K22/Datenausgabe!K26,1)*IF($B$69=2,1,1)*IF($B$69=3,Datenausgabe!K22/Datenausgabe!K26,1)*IF($B$69=4,Datenausgabe!K20/Datenausgabe!K21,1) -> 0 | L70: =L67*IF($B$69=1,Datenausgabe!L20/Datenausgabe!L21*Datenausgabe!L22/Datenausgabe!L26,1)*IF($B$69=2,1,1)*IF($B$69=3,Datenausgabe!L22/Datenausgabe!L26,1)*IF($B$69=4,Datenausgabe!L20/Datenausgabe!L21,1) -> 0 | M70: =M67*IF($B$69=1,Datenausgabe!M20/Datenausgabe!M21*Datenausgabe!M22/Datenausgabe!M26,1)*IF($B$69=2,1,1)*IF($B$69=3,Datenausgabe!M22/Datenausgabe!M26,1)*IF($B$69=4,Datenausgabe!M20/Datenausgabe!M21,1) -> 0
A71: Allg. Zulage TZ 2 | B71: =B68*IF($B$69=1,Datenausgabe!B23/Datenausgabe!B24*Datenausgabe!B25/Datenausgabe!B26,1)*IF($B$69=2,1,1)*IF($B$69=3,Datenausgabe!B25/Datenausgabe!B26,1)*IF($B$69=4,Datenausgabe!B23/Datenausgabe!B24,1) -> 0 | C71: =C68*IF($B$69=1,Datenausgabe!C23/Datenausgabe!C24*Datenausgabe!C25/Datenausgabe!C26,1)*IF($B$69=2,1,1)*IF($B$69=3,Datenausgabe!C25/Datenausgabe!C26,1)*IF($B$69=4,Datenausgabe!C23/Datenausgabe!C24,1) -> 0 | D71: =D68*IF($B$69=1,Datenausgabe!D23/Datenausgabe!D24*Datenausgabe!D25/Datenausgabe!D26,1)*IF($B$69=2,1,1)*IF($B$69=3,Datenausgabe!D25/Datenausgabe!D26,1)*IF($B$69=4,Datenausgabe!D23/Datenausgabe!D24,1) -> 0 | E71: =E68*IF($B$69=1,Datenausgabe!E23/Datenausgabe!E24*Datenausgabe!E25/Datenausgabe!E26,1)*IF($B$69=2,1,1)*IF($B$69=3,Datenausgabe!E25/Datenausgabe!E26,1)*IF($B$69=4,Datenausgabe!E23/Datenausgabe!E24,1) -> 0 | F71: =F68*IF($B$69=1,Datenausgabe!F23/Datenausgabe!F24*Datenausgabe!F25/Datenausgabe!F26,1)*IF($B$69=2,1,1)*IF($B$69=3,Datenausgabe!F25/Datenausgabe!F26,1)*IF($B$69=4,Datenausgabe!F23/Datenausgabe!F24,1) -> 0 | G71: =G68*IF($B$69=1,Datenausgabe!G23/Datenausgabe!G24*Datenausgabe!G25/Datenausgabe!G26,1)*IF($B$69=2,1,1)*IF($B$69=3,Datenausgabe!G25/Datenausgabe!G26,1)*IF($B$69=4,Datenausgabe!G23/Datenausgabe!G24,1) -> 0 | H71: =H68*IF($B$69=1,Datenausgabe!H23/Datenausgabe!H24*Datenausgabe!H25/Datenausgabe!H26,1)*IF($B$69=2,1,1)*IF($B$69=3,Datenausgabe!H25/Datenausgabe!H26,1)*IF($B$69=4,Datenausgabe!H23/Datenausgabe!H24,1) -> 0 | I71: =I68*IF($B$69=1,Datenausgabe!I23/Datenausgabe!I24*Datenausgabe!I25/Datenausgabe!I26,1)*IF($B$69=2,1,1)*IF($B$69=3,Datenausgabe!I25/Datenausgabe!I26,1)*IF($B$69=4,Datenausgabe!I23/Datenausgabe!I24,1) -> 0 | J71: =J68*IF($B$69=1,Datenausgabe!J23/Datenausgabe!J24*Datenausgabe!J25/Datenausgabe!J26,1)*IF($B$69=2,1,1)*IF($B$69=3,Datenausgabe!J25/Datenausgabe!J26,1)*IF($B$69=4,Datenausgabe!J23/Datenausgabe!J24,1) -> 0 | K71: =K68*IF($B$69=1,Datenausgabe!K23/Datenausgabe!K24*Datenausgabe!K25/Datenausgabe!K26,1)*IF($B$69=2,1,1)*IF($B$69=3,Datenausgabe!K25/Datenausgabe!K26,1)*IF($B$69=4,Datenausgabe!K23/Datenausgabe!K24,1) -> 0 | L71: =L68*IF($B$69=1,Datenausgabe!L23/Datenausgabe!L24*Datenausgabe!L25/Datenausgabe!L26,1)*IF($B$69=2,1,1)*IF($B$69=3,Datenausgabe!L25/Datenausgabe!L26,1)*IF($B$69=4,Datenausgabe!L23/Datenausgabe!L24,1) -> 0 | M71: =M68*IF($B$69=1,Datenausgabe!M23/Datenausgabe!M24*Datenausgabe!M25/Datenausgabe!M26,1)*IF($B$69=2,1,1)*IF($B$69=3,Datenausgabe!M25/Datenausgabe!M26,1)*IF($B$69=4,Datenausgabe!M23/Datenausgabe!M24,1) -> 0
A72: Allg. Zulage Gesamt | B72: =IF(Datenausgabe!B1,B70+IF(Datenausgabe!B14,B71,0),0) -> 0 | C72: =IF(Datenausgabe!C1,C70+IF(Datenausgabe!C14,C71,0),0) -> 0 | D72: =IF(Datenausgabe!D1,D70+IF(Datenausgabe!D14,D71,0),0) -> 0 | E72: =IF(Datenausgabe!E1,E70+IF(Datenausgabe!E14,E71,0),0) -> 0 | F72: =IF(Datenausgabe!F1,F70+IF(Datenausgabe!F14,F71,0),0) -> 0 | G72: =IF(Datenausgabe!G1,G70+IF(Datenausgabe!G14,G71,0),0) -> 0 | H72: =IF(Datenausgabe!H1,H70+IF(Datenausgabe!H14,H71,0),0) -> 0 | I72: =IF(Datenausgabe!I1,I70+IF(Datenausgabe!I14,I71,0),0) -> 0 | J72: =IF(Datenausgabe!J1,J70+IF(Datenausgabe!J14,J71,0),0) -> 0 | K72: =IF(Datenausgabe!K1,K70+IF(Datenausgabe!K14,K71,0),0) -> 0 | L72: =IF(Datenausgabe!L1,L70+IF(Datenausgabe!L14,L71,0),0) -> 0 | M72: =IF(Datenausgabe!M1,M70+IF(Datenausgabe!M14,M71,0),0) -> 0
A73: Ermittlung der Werte für die VL Zulage
A74: VL Betrag | B74: =Datenausgabe!B46 -> 6.65 | C74: =Datenausgabe!C46 -> 6.65 | D74: =Datenausgabe!D46 -> 6.65 | E74: =Datenausgabe!E46 -> 6.65 | F74: =Datenausgabe!F46 -> 6.65 | G74: =Datenausgabe!G46 -> 6.65 | H74: =Datenausgabe!H46 -> 6.65 | I74: =Datenausgabe!I46 -> 6.65 | J74: =Datenausgabe!J46 -> 6.65 | K74: =Datenausgabe!K46 -> 6.65 | L74: =Datenausgabe!L46 -> 6.65 | M74: =Datenausgabe!M46 -> 6.65
A75: VL TZ Klassif. | B75: =VALUE(MID(Arbeitgeberkosten!$E$14,5,1)) -> 4 | C75: 1 = Teilzeit & Tage ' 2 = ungekürzt' 3 = Tage-Kürzung' 4 = Teilzeit-Kürzung
A76: VL TZ 1 | B76: =B74*IF($B$75=1,Datenausgabe!B20/Datenausgabe!B21*Datenausgabe!B22/Datenausgabe!B26,1)*IF($B$75=2,1,1)*IF($B$75=3,Datenausgabe!B22/Datenausgabe!B26,1)*IF($B$75=4,Datenausgabe!B20/Datenausgabe!B21,1) -> 6.65 | C76: =C74*IF($B$75=1,Datenausgabe!C20/Datenausgabe!C21*Datenausgabe!C22/Datenausgabe!C26,1)*IF($B$75=2,1,1)*IF($B$75=3,Datenausgabe!C22/Datenausgabe!C26,1)*IF($B$75=4,Datenausgabe!C20/Datenausgabe!C21,1) -> 6.65 | D76: =D74*IF($B$75=1,Datenausgabe!D20/Datenausgabe!D21*Datenausgabe!D22/Datenausgabe!D26,1)*IF($B$75=2,1,1)*IF($B$75=3,Datenausgabe!D22/Datenausgabe!D26,1)*IF($B$75=4,Datenausgabe!D20/Datenausgabe!D21,1) -> 6.65 | E76: =E74*IF($B$75=1,Datenausgabe!E20/Datenausgabe!E21*Datenausgabe!E22/Datenausgabe!E26,1)*IF($B$75=2,1,1)*IF($B$75=3,Datenausgabe!E22/Datenausgabe!E26,1)*IF($B$75=4,Datenausgabe!E20/Datenausgabe!E21,1) -> 6.65 | F76: =F74*IF($B$75=1,Datenausgabe!F20/Datenausgabe!F21*Datenausgabe!F22/Datenausgabe!F26,1)*IF($B$75=2,1,1)*IF($B$75=3,Datenausgabe!F22/Datenausgabe!F26,1)*IF($B$75=4,Datenausgabe!F20/Datenausgabe!F21,1) -> 6.65 | G76: =G74*IF($B$75=1,Datenausgabe!G20/Datenausgabe!G21*Datenausgabe!G22/Datenausgabe!G26,1)*IF($B$75=2,1,1)*IF($B$75=3,Datenausgabe!G22/Datenausgabe!G26,1)*IF($B$75=4,Datenausgabe!G20/Datenausgabe!G21,1) -> 6.65 | H76: =H74*IF($B$75=1,Datenausgabe!H20/Datenausgabe!H21*Datenausgabe!H22/Datenausgabe!H26,1)*IF($B$75=2,1,1)*IF($B$75=3,Datenausgabe!H22/Datenausgabe!H26,1)*IF($B$75=4,Datenausgabe!H20/Datenausgabe!H21,1) -> 6.65 | I76: =I74*IF($B$75=1,Datenausgabe!I20/Datenausgabe!I21*Datenausgabe!I22/Datenausgabe!I26,1)*IF($B$75=2,1,1)*IF($B$75=3,Datenausgabe!I22/Datenausgabe!I26,1)*IF($B$75=4,Datenausgabe!I20/Datenausgabe!I21,1) -> 6.65 | J76: =J74*IF($B$75=1,Datenausgabe!J20/Datenausgabe!J21*Datenausgabe!J22/Datenausgabe!J26,1)*IF($B$75=2,1,1)*IF($B$75=3,Datenausgabe!J22/Datenausgabe!J26,1)*IF($B$75=4,Datenausgabe!J20/Datenausgabe!J21,1) -> 6.65 | K76: =K74*IF($B$75=1,Datenausgabe!K20/Datenausgabe!K21*Datenausgabe!K22/Datenausgabe!K26,1)*IF($B$75=2,1,1)*IF($B$75=3,Datenausgabe!K22/Datenausgabe!K26,1)*IF($B$75=4,Datenausgabe!K20/Datenausgabe!K21,1) -> 6.65 | L76: =L74*IF($B$75=1,Datenausgabe!L20/Datenausgabe!L21*Datenausgabe!L22/Datenausgabe!L26,1)*IF($B$75=2,1,1)*IF($B$75=3,Datenausgabe!L22/Datenausgabe!L26,1)*IF($B$75=4,Datenausgabe!L20/Datenausgabe!L21,1) -> 6.65 | M76: =M74*IF($B$75=1,Datenausgabe!M20/Datenausgabe!M21*Datenausgabe!M22/Datenausgabe!M26,1)*IF($B$75=2,1,1)*IF($B$75=3,Datenausgabe!M22/Datenausgabe!M26,1)*IF($B$75=4,Datenausgabe!M20/Datenausgabe!M21,1) -> 6.65
A77: VL TZ 2 | B77: =B74*IF($B$75=1,Datenausgabe!B23/Datenausgabe!B24*Datenausgabe!B25/Datenausgabe!B26,1)*IF($B$75=2,1,1)*IF($B$75=3,Datenausgabe!B25/Datenausgabe!B26,1)*IF($B$75=4,Datenausgabe!B23/Datenausgabe!B24,1)*IF(Datenausgabe!B15,0,1) -> 6.65 | C77: =C74*IF($B$75=1,Datenausgabe!C23/Datenausgabe!C24*Datenausgabe!C25/Datenausgabe!C26,1)*IF($B$75=2,1,1)*IF($B$75=3,Datenausgabe!C25/Datenausgabe!C26,1)*IF($B$75=4,Datenausgabe!C23/Datenausgabe!C24,1)*IF(Datenausgabe!C15,0,1) -> 6.65 | D77: =D74*IF($B$75=1,Datenausgabe!D23/Datenausgabe!D24*Datenausgabe!D25/Datenausgabe!D26,1)*IF($B$75=2,1,1)*IF($B$75=3,Datenausgabe!D25/Datenausgabe!D26,1)*IF($B$75=4,Datenausgabe!D23/Datenausgabe!D24,1)*IF(Datenausgabe!D15,0,1) -> 6.65 | E77: =E74*IF($B$75=1,Datenausgabe!E23/Datenausgabe!E24*Datenausgabe!E25/Datenausgabe!E26,1)*IF($B$75=2,1,1)*IF($B$75=3,Datenausgabe!E25/Datenausgabe!E26,1)*IF($B$75=4,Datenausgabe!E23/Datenausgabe!E24,1)*IF(Datenausgabe!E15,0,1) -> 6.65 | F77: =F74*IF($B$75=1,Datenausgabe!F23/Datenausgabe!F24*Datenausgabe!F25/Datenausgabe!F26,1)*IF($B$75=2,1,1)*IF($B$75=3,Datenausgabe!F25/Datenausgabe!F26,1)*IF($B$75=4,Datenausgabe!F23/Datenausgabe!F24,1)*IF(Datenausgabe!F15,0,1) -> 6.65 | G77: =G74*IF($B$75=1,Datenausgabe!G23/Datenausgabe!G24*Datenausgabe!G25/Datenausgabe!G26,1)*IF($B$75=2,1,1)*IF($B$75=3,Datenausgabe!G25/Datenausgabe!G26,1)*IF($B$75=4,Datenausgabe!G23/Datenausgabe!G24,1)*IF(Datenausgabe!G15,0,1) -> 6.65 | H77: =H74*IF($B$75=1,Datenausgabe!H23/Datenausgabe!H24*Datenausgabe!H25/Datenausgabe!H26,1)*IF($B$75=2,1,1)*IF($B$75=3,Datenausgabe!H25/Datenausgabe!H26,1)*IF($B$75=4,Datenausgabe!H23/Datenausgabe!H24,1)*IF(Datenausgabe!H15,0,1) -> 6.65 | I77: =I74*IF($B$75=1,Datenausgabe!I23/Datenausgabe!I24*Datenausgabe!I25/Datenausgabe!I26,1)*IF($B$75=2,1,1)*IF($B$75=3,Datenausgabe!I25/Datenausgabe!I26,1)*IF($B$75=4,Datenausgabe!I23/Datenausgabe!I24,1)*IF(Datenausgabe!I15,0,1) -> 6.65 | J77: =J74*IF($B$75=1,Datenausgabe!J23/Datenausgabe!J24*Datenausgabe!J25/Datenausgabe!J26,1)*IF($B$75=2,1,1)*IF($B$75=3,Datenausgabe!J25/Datenausgabe!J26,1)*IF($B$75=4,Datenausgabe!J23/Datenausgabe!J24,1)*IF(Datenausgabe!J15,0,1) -> 6.65 | K77: =K74*IF($B$75=1,Datenausgabe!K23/Datenausgabe!K24*Datenausgabe!K25/Datenausgabe!K26,1)*IF($B$75=2,1,1)*IF($B$75=3,Datenausgabe!K25/Datenausgabe!K26,1)*IF($B$75=4,Datenausgabe!K23/Datenausgabe!K24,1)*IF(Datenausgabe!K15,0,1) -> 6.65 | L77: =L74*IF($B$75=1,Datenausgabe!L23/Datenausgabe!L24*Datenausgabe!L25/Datenausgabe!L26,1)*IF($B$75=2,1,1)*IF($B$75=3,Datenausgabe!L25/Datenausgabe!L26,1)*IF($B$75=4,Datenausgabe!L23/Datenausgabe!L24,1)*IF(Datenausgabe!L15,0,1) -> 6.65 | M77: =M74*IF($B$75=1,Datenausgabe!M23/Datenausgabe!M24*Datenausgabe!M25/Datenausgabe!M26,1)*IF($B$75=2,1,1)*IF($B$75=3,Datenausgabe!M25/Datenausgabe!M26,1)*IF($B$75=4,Datenausgabe!M23/Datenausgabe!M24,1)*IF(Datenausgabe!M15,0,1) -> 6.65
A78: VL Ergebnis | B78: =IF(IF(Datenausgabe!B1,B76+IF(Datenausgabe!B14,B77,0),0)>B74,B74,IF(Datenausgabe!B1,B76+IF(Datenausgabe!B14,B77,0),0)) -> 6.65 | C78: =IF(IF(Datenausgabe!C1,C76+IF(Datenausgabe!C14,C77,0),0)>C74,C74,IF(Datenausgabe!C1,C76+IF(Datenausgabe!C14,C77,0),0)) -> 6.65 | D78: =IF(IF(Datenausgabe!D1,D76+IF(Datenausgabe!D14,D77,0),0)>D74,D74,IF(Datenausgabe!D1,D76+IF(Datenausgabe!D14,D77,0),0)) -> 6.65 | E78: =IF(IF(Datenausgabe!E1,E76+IF(Datenausgabe!E14,E77,0),0)>E74,E74,IF(Datenausgabe!E1,E76+IF(Datenausgabe!E14,E77,0),0)) -> 6.65 | F78: =IF(IF(Datenausgabe!F1,F76+IF(Datenausgabe!F14,F77,0),0)>F74,F74,IF(Datenausgabe!F1,F76+IF(Datenausgabe!F14,F77,0),0)) -> 6.65 | G78: =IF(IF(Datenausgabe!G1,G76+IF(Datenausgabe!G14,G77,0),0)>G74,G74,IF(Datenausgabe!G1,G76+IF(Datenausgabe!G14,G77,0),0)) -> 6.65 | H78: =IF(IF(Datenausgabe!H1,H76+IF(Datenausgabe!H14,H77,0),0)>H74,H74,IF(Datenausgabe!H1,H76+IF(Datenausgabe!H14,H77,0),0)) -> 6.65 | I78: =IF(IF(Datenausgabe!I1,I76+IF(Datenausgabe!I14,I77,0),0)>I74,I74,IF(Datenausgabe!I1,I76+IF(Datenausgabe!I14,I77,0),0)) -> 6.65 | J78: =IF(IF(Datenausgabe!J1,J76+IF(Datenausgabe!J14,J77,0),0)>J74,J74,IF(Datenausgabe!J1,J76+IF(Datenausgabe!J14,J77,0),0)) -> 6.65 | K78: =IF(IF(Datenausgabe!K1,K76+IF(Datenausgabe!K14,K77,0),0)>K74,K74,IF(Datenausgabe!K1,K76+IF(Datenausgabe!K14,K77,0),0)) -> 6.65 | L78: =IF(IF(Datenausgabe!L1,L76+IF(Datenausgabe!L14,L77,0),0)>L74,L74,IF(Datenausgabe!L1,L76+IF(Datenausgabe!L14,L77,0),0)) -> 6.65 | M78: =IF(IF(Datenausgabe!M1,M76+IF(Datenausgabe!M14,M77,0),0)>M74,M74,IF(Datenausgabe!M1,M76+IF(Datenausgabe!M14,M77,0),0)) -> 6.65
A79: Zulage 1
A80: eingegebener Betrag | B80: =Datenausgabe!B52 -> 0 | C80: =Datenausgabe!C52 -> 0 | D80: =Datenausgabe!D52 -> 0 | E80: =Datenausgabe!E52 -> 0 | F80: =Datenausgabe!F52 -> 0 | G80: =Datenausgabe!G52 -> 0 | H80: =Datenausgabe!H52 -> 0 | I80: =Datenausgabe!I52 -> 0 | J80: =Datenausgabe!J52 -> 0 | K80: =Datenausgabe!K52 -> 0 | L80: =Datenausgabe!L52 -> 0 | M80: =Datenausgabe!M52 -> 0
A81: Zulage TZ Klass | B81: =IF(Arbeitgeberkosten!$E$15<>"",VALUE(MID(Arbeitgeberkosten!$E$15,5,1)),1) -> 1 | C81: 1 = Teilzeit & Tage ' 2 = ungekürzt' 3 = Tage-Kürzung' 4 = Teilzeit-Kürzung
A82: TZ Betrag 1 | B82: =B80*IF($B$81=1,Datenausgabe!B20/Datenausgabe!B21*Datenausgabe!B22/Datenausgabe!B26,1)*IF($B$81=2,1,1)*IF($B$81=3,Datenausgabe!B22/Datenausgabe!B26,1)*IF($B$81=4,Datenausgabe!B20/Datenausgabe!B21,1) -> 0 | C82: =C80*IF($B$81=1,Datenausgabe!C20/Datenausgabe!C21*Datenausgabe!C22/Datenausgabe!C26,1)*IF($B$81=2,1,1)*IF($B$81=3,Datenausgabe!C22/Datenausgabe!C26,1)*IF($B$81=4,Datenausgabe!C20/Datenausgabe!C21,1) -> 0 | D82: =D80*IF($B$81=1,Datenausgabe!D20/Datenausgabe!D21*Datenausgabe!D22/Datenausgabe!D26,1)*IF($B$81=2,1,1)*IF($B$81=3,Datenausgabe!D22/Datenausgabe!D26,1)*IF($B$81=4,Datenausgabe!D20/Datenausgabe!D21,1) -> 0 | E82: =E80*IF($B$81=1,Datenausgabe!E20/Datenausgabe!E21*Datenausgabe!E22/Datenausgabe!E26,1)*IF($B$81=2,1,1)*IF($B$81=3,Datenausgabe!E22/Datenausgabe!E26,1)*IF($B$81=4,Datenausgabe!E20/Datenausgabe!E21,1) -> 0 | F82: =F80*IF($B$81=1,Datenausgabe!F20/Datenausgabe!F21*Datenausgabe!F22/Datenausgabe!F26,1)*IF($B$81=2,1,1)*IF($B$81=3,Datenausgabe!F22/Datenausgabe!F26,1)*IF($B$81=4,Datenausgabe!F20/Datenausgabe!F21,1) -> 0 | G82: =G80*IF($B$81=1,Datenausgabe!G20/Datenausgabe!G21*Datenausgabe!G22/Datenausgabe!G26,1)*IF($B$81=2,1,1)*IF($B$81=3,Datenausgabe!G22/Datenausgabe!G26,1)*IF($B$81=4,Datenausgabe!G20/Datenausgabe!G21,1) -> 0 | H82: =H80*IF($B$81=1,Datenausgabe!H20/Datenausgabe!H21*Datenausgabe!H22/Datenausgabe!H26,1)*IF($B$81=2,1,1)*IF($B$81=3,Datenausgabe!H22/Datenausgabe!H26,1)*IF($B$81=4,Datenausgabe!H20/Datenausgabe!H21,1) -> 0 | I82: =I80*IF($B$81=1,Datenausgabe!I20/Datenausgabe!I21*Datenausgabe!I22/Datenausgabe!I26,1)*IF($B$81=2,1,1)*IF($B$81=3,Datenausgabe!I22/Datenausgabe!I26,1)*IF($B$81=4,Datenausgabe!I20/Datenausgabe!I21,1) -> 0 | J82: =J80*IF($B$81=1,Datenausgabe!J20/Datenausgabe!J21*Datenausgabe!J22/Datenausgabe!J26,1)*IF($B$81=2,1,1)*IF($B$81=3,Datenausgabe!J22/Datenausgabe!J26,1)*IF($B$81=4,Datenausgabe!J20/Datenausgabe!J21,1) -> 0 | K82: =K80*IF($B$81=1,Datenausgabe!K20/Datenausgabe!K21*Datenausgabe!K22/Datenausgabe!K26,1)*IF($B$81=2,1,1)*IF($B$81=3,Datenausgabe!K22/Datenausgabe!K26,1)*IF($B$81=4,Datenausgabe!K20/Datenausgabe!K21,1) -> 0 | L82: =L80*IF($B$81=1,Datenausgabe!L20/Datenausgabe!L21*Datenausgabe!L22/Datenausgabe!L26,1)*IF($B$81=2,1,1)*IF($B$81=3,Datenausgabe!L22/Datenausgabe!L26,1)*IF($B$81=4,Datenausgabe!L20/Datenausgabe!L21,1) -> 0 | M82: =M80*IF($B$81=1,Datenausgabe!M20/Datenausgabe!M21*Datenausgabe!M22/Datenausgabe!M26,1)*IF($B$81=2,1,1)*IF($B$81=3,Datenausgabe!M22/Datenausgabe!M26,1)*IF($B$81=4,Datenausgabe!M20/Datenausgabe!M21,1) -> 0
A83: TZ Betrag 2 | B83: =B80*IF($B$81=1,Datenausgabe!B23/Datenausgabe!B24*Datenausgabe!B25/Datenausgabe!B26,1)*IF($B$81=2,1,1)*IF($B$81=3,Datenausgabe!B25/Datenausgabe!B26,1)*IF($B$81=4,Datenausgabe!B23/Datenausgabe!B24,1) -> 0 | C83: =C80*IF($B$81=1,Datenausgabe!C23/Datenausgabe!C24*Datenausgabe!C25/Datenausgabe!C26,1)*IF($B$81=2,1,1)*IF($B$81=3,Datenausgabe!C25/Datenausgabe!C26,1)*IF($B$81=4,Datenausgabe!C23/Datenausgabe!C24,1) -> 0 | D83: =D80*IF($B$81=1,Datenausgabe!D23/Datenausgabe!D24*Datenausgabe!D25/Datenausgabe!D26,1)*IF($B$81=2,1,1)*IF($B$81=3,Datenausgabe!D25/Datenausgabe!D26,1)*IF($B$81=4,Datenausgabe!D23/Datenausgabe!D24,1) -> 0 | E83: =E80*IF($B$81=1,Datenausgabe!E23/Datenausgabe!E24*Datenausgabe!E25/Datenausgabe!E26,1)*IF($B$81=2,1,1)*IF($B$81=3,Datenausgabe!E25/Datenausgabe!E26,1)*IF($B$81=4,Datenausgabe!E23/Datenausgabe!E24,1) -> 0 | F83: =F80*IF($B$81=1,Datenausgabe!F23/Datenausgabe!F24*Datenausgabe!F25/Datenausgabe!F26,1)*IF($B$81=2,1,1)*IF($B$81=3,Datenausgabe!F25/Datenausgabe!F26,1)*IF($B$81=4,Datenausgabe!F23/Datenausgabe!F24,1) -> 0 | G83: =G80*IF($B$81=1,Datenausgabe!G23/Datenausgabe!G24*Datenausgabe!G25/Datenausgabe!G26,1)*IF($B$81=2,1,1)*IF($B$81=3,Datenausgabe!G25/Datenausgabe!G26,1)*IF($B$81=4,Datenausgabe!G23/Datenausgabe!G24,1) -> 0 | H83: =H80*IF($B$81=1,Datenausgabe!H23/Datenausgabe!H24*Datenausgabe!H25/Datenausgabe!H26,1)*IF($B$81=2,1,1)*IF($B$81=3,Datenausgabe!H25/Datenausgabe!H26,1)*IF($B$81=4,Datenausgabe!H23/Datenausgabe!H24,1) -> 0 | I83: =I80*IF($B$81=1,Datenausgabe!I23/Datenausgabe!I24*Datenausgabe!I25/Datenausgabe!I26,1)*IF($B$81=2,1,1)*IF($B$81=3,Datenausgabe!I25/Datenausgabe!I26,1)*IF($B$81=4,Datenausgabe!I23/Datenausgabe!I24,1) -> 0 | J83: =J80*IF($B$81=1,Datenausgabe!J23/Datenausgabe!J24*Datenausgabe!J25/Datenausgabe!J26,1)*IF($B$81=2,1,1)*IF($B$81=3,Datenausgabe!J25/Datenausgabe!J26,1)*IF($B$81=4,Datenausgabe!J23/Datenausgabe!J24,1) -> 0 | K83: =K80*IF($B$81=1,Datenausgabe!K23/Datenausgabe!K24*Datenausgabe!K25/Datenausgabe!K26,1)*IF($B$81=2,1,1)*IF($B$81=3,Datenausgabe!K25/Datenausgabe!K26,1)*IF($B$81=4,Datenausgabe!K23/Datenausgabe!K24,1) -> 0 | L83: =L80*IF($B$81=1,Datenausgabe!L23/Datenausgabe!L24*Datenausgabe!L25/Datenausgabe!L26,1)*IF($B$81=2,1,1)*IF($B$81=3,Datenausgabe!L25/Datenausgabe!L26,1)*IF($B$81=4,Datenausgabe!L23/Datenausgabe!L24,1) -> 0 | M83: =M80*IF($B$81=1,Datenausgabe!M23/Datenausgabe!M24*Datenausgabe!M25/Datenausgabe!M26,1)*IF($B$81=2,1,1)*IF($B$81=3,Datenausgabe!M25/Datenausgabe!M26,1)*IF($B$81=4,Datenausgabe!M23/Datenausgabe!M24,1) -> 0
A84: Zulage Ergebnis | B84: =IF(Datenausgabe!B1,B82+IF(AND(Datenausgabe!B15,Datenausgabe!B14),B83,0),0) -> 0 | C84: =IF(Datenausgabe!C1,C82+IF(AND(Datenausgabe!C15,Datenausgabe!C14),C83,0),0) -> 0 | D84: =IF(Datenausgabe!D1,D82+IF(AND(Datenausgabe!D15,Datenausgabe!D14),D83,0),0) -> 0 | E84: =IF(Datenausgabe!E1,E82+IF(AND(Datenausgabe!E15,Datenausgabe!E14),E83,0),0) -> 0 | F84: =IF(Datenausgabe!F1,F82+IF(AND(Datenausgabe!F15,Datenausgabe!F14),F83,0),0) -> 0 | G84: =IF(Datenausgabe!G1,G82+IF(AND(Datenausgabe!G15,Datenausgabe!G14),G83,0),0) -> 0 | H84: =IF(Datenausgabe!H1,H82+IF(AND(Datenausgabe!H15,Datenausgabe!H14),H83,0),0) -> 0 | I84: =IF(Datenausgabe!I1,I82+IF(AND(Datenausgabe!I15,Datenausgabe!I14),I83,0),0) -> 0 | J84: =IF(Datenausgabe!J1,J82+IF(AND(Datenausgabe!J15,Datenausgabe!J14),J83,0),0) -> 0 | K84: =IF(Datenausgabe!K1,K82+IF(AND(Datenausgabe!K15,Datenausgabe!K14),K83,0),0) -> 0 | L84: =IF(Datenausgabe!L1,L82+IF(AND(Datenausgabe!L15,Datenausgabe!L14),L83,0),0) -> 0 | M84: =IF(Datenausgabe!M1,M82+IF(AND(Datenausgabe!M15,Datenausgabe!M14),M83,0),0) -> 0
A85: Zulage 2
A86: eingegebener Betrag | B86: =Datenausgabe!B53 -> 0 | C86: =Datenausgabe!C53 -> 0 | D86: =Datenausgabe!D53 -> 0 | E86: =Datenausgabe!E53 -> 0 | F86: =Datenausgabe!F53 -> 0 | G86: =Datenausgabe!G53 -> 0 | H86: =Datenausgabe!H53 -> 0 | I86: =Datenausgabe!I53 -> 0 | J86: =Datenausgabe!J53 -> 0 | K86: =Datenausgabe!K53 -> 0 | L86: =Datenausgabe!L53 -> 0 | M86: =Datenausgabe!M53 -> 0
A87: Zulage TZ Klass | B87: =IF(Arbeitgeberkosten!$E$16<>"",VALUE(MID(Arbeitgeberkosten!$E$16,5,1)),1) -> 1 | C87: 1 = Teilzeit & Tage ' 2 = ungekürzt' 3 = Tage-Kürzung' 4 = Teilzeit-Kürzung
A88: TZ Betrag 1 | B88: =B86*IF($B$87=1,Datenausgabe!B20/Datenausgabe!B21*Datenausgabe!B22/Datenausgabe!B26,1)*IF($B$87=2,1,1)*IF($B$87=3,Datenausgabe!B22/Datenausgabe!B26,1)*IF($B$87=4,Datenausgabe!B20/Datenausgabe!B21,1) -> 0 | C88: =C86*IF($B$87=1,Datenausgabe!C20/Datenausgabe!C21*Datenausgabe!C22/Datenausgabe!C26,1)*IF($B$87=2,1,1)*IF($B$87=3,Datenausgabe!C22/Datenausgabe!C26,1)*IF($B$87=4,Datenausgabe!C20/Datenausgabe!C21,1) -> 0 | D88: =D86*IF($B$87=1,Datenausgabe!D20/Datenausgabe!D21*Datenausgabe!D22/Datenausgabe!D26,1)*IF($B$87=2,1,1)*IF($B$87=3,Datenausgabe!D22/Datenausgabe!D26,1)*IF($B$87=4,Datenausgabe!D20/Datenausgabe!D21,1) -> 0 | E88: =E86*IF($B$87=1,Datenausgabe!E20/Datenausgabe!E21*Datenausgabe!E22/Datenausgabe!E26,1)*IF($B$87=2,1,1)*IF($B$87=3,Datenausgabe!E22/Datenausgabe!E26,1)*IF($B$87=4,Datenausgabe!E20/Datenausgabe!E21,1) -> 0 | F88: =F86*IF($B$87=1,Datenausgabe!F20/Datenausgabe!F21*Datenausgabe!F22/Datenausgabe!F26,1)*IF($B$87=2,1,1)*IF($B$87=3,Datenausgabe!F22/Datenausgabe!F26,1)*IF($B$87=4,Datenausgabe!F20/Datenausgabe!F21,1) -> 0 | G88: =G86*IF($B$87=1,Datenausgabe!G20/Datenausgabe!G21*Datenausgabe!G22/Datenausgabe!G26,1)*IF($B$87=2,1,1)*IF($B$87=3,Datenausgabe!G22/Datenausgabe!G26,1)*IF($B$87=4,Datenausgabe!G20/Datenausgabe!G21,1) -> 0 | H88: =H86*IF($B$87=1,Datenausgabe!H20/Datenausgabe!H21*Datenausgabe!H22/Datenausgabe!H26,1)*IF($B$87=2,1,1)*IF($B$87=3,Datenausgabe!H22/Datenausgabe!H26,1)*IF($B$87=4,Datenausgabe!H20/Datenausgabe!H21,1) -> 0 | I88: =I86*IF($B$87=1,Datenausgabe!I20/Datenausgabe!I21*Datenausgabe!I22/Datenausgabe!I26,1)*IF($B$87=2,1,1)*IF($B$87=3,Datenausgabe!I22/Datenausgabe!I26,1)*IF($B$87=4,Datenausgabe!I20/Datenausgabe!I21,1) -> 0 | J88: =J86*IF($B$87=1,Datenausgabe!J20/Datenausgabe!J21*Datenausgabe!J22/Datenausgabe!J26,1)*IF($B$87=2,1,1)*IF($B$87=3,Datenausgabe!J22/Datenausgabe!J26,1)*IF($B$87=4,Datenausgabe!J20/Datenausgabe!J21,1) -> 0 | K88: =K86*IF($B$87=1,Datenausgabe!K20/Datenausgabe!K21*Datenausgabe!K22/Datenausgabe!K26,1)*IF($B$87=2,1,1)*IF($B$87=3,Datenausgabe!K22/Datenausgabe!K26,1)*IF($B$87=4,Datenausgabe!K20/Datenausgabe!K21,1) -> 0 | L88: =L86*IF($B$87=1,Datenausgabe!L20/Datenausgabe!L21*Datenausgabe!L22/Datenausgabe!L26,1)*IF($B$87=2,1,1)*IF($B$87=3,Datenausgabe!L22/Datenausgabe!L26,1)*IF($B$87=4,Datenausgabe!L20/Datenausgabe!L21,1) -> 0 | M88: =M86*IF($B$87=1,Datenausgabe!M20/Datenausgabe!M21*Datenausgabe!M22/Datenausgabe!M26,1)*IF($B$87=2,1,1)*IF($B$87=3,Datenausgabe!M22/Datenausgabe!M26,1)*IF($B$87=4,Datenausgabe!M20/Datenausgabe!M21,1) -> 0
A89: TZ Betrag 2 | B89: =B86*IF($B$87=1,Datenausgabe!B23/Datenausgabe!B24*Datenausgabe!B25/Datenausgabe!B26,1)*IF($B$87=2,1,1)*IF($B$87=3,Datenausgabe!B25/Datenausgabe!B26,1)*IF($B$87=4,Datenausgabe!B23/Datenausgabe!B24,1) -> 0 | C89: =C86*IF($B$87=1,Datenausgabe!C23/Datenausgabe!C24*Datenausgabe!C25/Datenausgabe!C26,1)*IF($B$87=2,1,1)*IF($B$87=3,Datenausgabe!C25/Datenausgabe!C26,1)*IF($B$87=4,Datenausgabe!C23/Datenausgabe!C24,1) -> 0 | D89: =D86*IF($B$87=1,Datenausgabe!D23/Datenausgabe!D24*Datenausgabe!D25/Datenausgabe!D26,1)*IF($B$87=2,1,1)*IF($B$87=3,Datenausgabe!D25/Datenausgabe!D26,1)*IF($B$87=4,Datenausgabe!D23/Datenausgabe!D24,1) -> 0 | E89: =E86*IF($B$87=1,Datenausgabe!E23/Datenausgabe!E24*Datenausgabe!E25/Datenausgabe!E26,1)*IF($B$87=2,1,1)*IF($B$87=3,Datenausgabe!E25/Datenausgabe!E26,1)*IF($B$87=4,Datenausgabe!E23/Datenausgabe!E24,1) -> 0 | F89: =F86*IF($B$87=1,Datenausgabe!F23/Datenausgabe!F24*Datenausgabe!F25/Datenausgabe!F26,1)*IF($B$87=2,1,1)*IF($B$87=3,Datenausgabe!F25/Datenausgabe!F26,1)*IF($B$87=4,Datenausgabe!F23/Datenausgabe!F24,1) -> 0 | G89: =G86*IF($B$87=1,Datenausgabe!G23/Datenausgabe!G24*Datenausgabe!G25/Datenausgabe!G26,1)*IF($B$87=2,1,1)*IF($B$87=3,Datenausgabe!G25/Datenausgabe!G26,1)*IF($B$87=4,Datenausgabe!G23/Datenausgabe!G24,1) -> 0 | H89: =H86*IF($B$87=1,Datenausgabe!H23/Datenausgabe!H24*Datenausgabe!H25/Datenausgabe!H26,1)*IF($B$87=2,1,1)*IF($B$87=3,Datenausgabe!H25/Datenausgabe!H26,1)*IF($B$87=4,Datenausgabe!H23/Datenausgabe!H24,1) -> 0 | I89: =I86*IF($B$87=1,Datenausgabe!I23/Datenausgabe!I24*Datenausgabe!I25/Datenausgabe!I26,1)*IF($B$87=2,1,1)*IF($B$87=3,Datenausgabe!I25/Datenausgabe!I26,1)*IF($B$87=4,Datenausgabe!I23/Datenausgabe!I24,1) -> 0 | J89: =J86*IF($B$87=1,Datenausgabe!J23/Datenausgabe!J24*Datenausgabe!J25/Datenausgabe!J26,1)*IF($B$87=2,1,1)*IF($B$87=3,Datenausgabe!J25/Datenausgabe!J26,1)*IF($B$87=4,Datenausgabe!J23/Datenausgabe!J24,1) -> 0 | K89: =K86*IF($B$87=1,Datenausgabe!K23/Datenausgabe!K24*Datenausgabe!K25/Datenausgabe!K26,1)*IF($B$87=2,1,1)*IF($B$87=3,Datenausgabe!K25/Datenausgabe!K26,1)*IF($B$87=4,Datenausgabe!K23/Datenausgabe!K24,1) -> 0 | L89: =L86*IF($B$87=1,Datenausgabe!L23/Datenausgabe!L24*Datenausgabe!L25/Datenausgabe!L26,1)*IF($B$87=2,1,1)*IF($B$87=3,Datenausgabe!L25/Datenausgabe!L26,1)*IF($B$87=4,Datenausgabe!L23/Datenausgabe!L24,1) -> 0 | M89: =M86*IF($B$87=1,Datenausgabe!M23/Datenausgabe!M24*Datenausgabe!M25/Datenausgabe!M26,1)*IF($B$87=2,1,1)*IF($B$87=3,Datenausgabe!M25/Datenausgabe!M26,1)*IF($B$87=4,Datenausgabe!M23/Datenausgabe!M24,1) -> 0
A90: Zulage Ergebnis | B90: =IF(Datenausgabe!B1,B88+IF(AND(Datenausgabe!B15,Datenausgabe!B14),B89,0),0) -> 0 | C90: =IF(Datenausgabe!C1,C88+IF(AND(Datenausgabe!C15,Datenausgabe!C14),C89,0),0) -> 0 | D90: =IF(Datenausgabe!D1,D88+IF(AND(Datenausgabe!D15,Datenausgabe!D14),D89,0),0) -> 0 | E90: =IF(Datenausgabe!E1,E88+IF(AND(Datenausgabe!E15,Datenausgabe!E14),E89,0),0) -> 0 | F90: =IF(Datenausgabe!F1,F88+IF(AND(Datenausgabe!F15,Datenausgabe!F14),F89,0),0) -> 0 | G90: =IF(Datenausgabe!G1,G88+IF(AND(Datenausgabe!G15,Datenausgabe!G14),G89,0),0) -> 0 | H90: =IF(Datenausgabe!H1,H88+IF(AND(Datenausgabe!H15,Datenausgabe!H14),H89,0),0) -> 0 | I90: =IF(Datenausgabe!I1,I88+IF(AND(Datenausgabe!I15,Datenausgabe!I14),I89,0),0) -> 0 | J90: =IF(Datenausgabe!J1,J88+IF(AND(Datenausgabe!J15,Datenausgabe!J14),J89,0),0) -> 0 | K90: =IF(Datenausgabe!K1,K88+IF(AND(Datenausgabe!K15,Datenausgabe!K14),K89,0),0) -> 0 | L90: =IF(Datenausgabe!L1,L88+IF(AND(Datenausgabe!L15,Datenausgabe!L14),L89,0),0) -> 0 | M90: =IF(Datenausgabe!M1,M88+IF(AND(Datenausgabe!M15,Datenausgabe!M14),M89,0),0) -> 0
A91: Zulage 3
A92: eingegebener Betrag | B92: =Datenausgabe!B54 -> 0 | C92: =Datenausgabe!C54 -> 0 | D92: =Datenausgabe!D54 -> 0 | E92: =Datenausgabe!E54 -> 0 | F92: =Datenausgabe!F54 -> 0 | G92: =Datenausgabe!G54 -> 0 | H92: =Datenausgabe!H54 -> 0 | I92: =Datenausgabe!I54 -> 0 | J92: =Datenausgabe!J54 -> 0 | K92: =Datenausgabe!K54 -> 0 | L92: =Datenausgabe!L54 -> 0 | M92: =Datenausgabe!M54 -> 0
A93: Zulage TZ Klass | B93: =IF(Arbeitgeberkosten!$E$17<>"",VALUE(MID(Arbeitgeberkosten!$E$17,5,1)),1) -> 1 | C93: 1 = Teilzeit & Tage ' 2 = ungekürzt' 3 = Tage-Kürzung' 4 = Teilzeit-Kürzung
A94: TZ Betrag 1 | B94: =B92*IF($B$93=1,Datenausgabe!B20/Datenausgabe!B21*Datenausgabe!B22/Datenausgabe!B26,1)*IF($B$93=2,1,1)*IF($B$93=3,Datenausgabe!B22/Datenausgabe!B26,1)*IF($B$93=4,Datenausgabe!B20/Datenausgabe!B21,1) -> 0 | C94: =C92*IF($B$93=1,Datenausgabe!C20/Datenausgabe!C21*Datenausgabe!C22/Datenausgabe!C26,1)*IF($B$93=2,1,1)*IF($B$93=3,Datenausgabe!C22/Datenausgabe!C26,1)*IF($B$93=4,Datenausgabe!C20/Datenausgabe!C21,1) -> 0 | D94: =D92*IF($B$93=1,Datenausgabe!D20/Datenausgabe!D21*Datenausgabe!D22/Datenausgabe!D26,1)*IF($B$93=2,1,1)*IF($B$93=3,Datenausgabe!D22/Datenausgabe!D26,1)*IF($B$93=4,Datenausgabe!D20/Datenausgabe!D21,1) -> 0 | E94: =E92*IF($B$93=1,Datenausgabe!E20/Datenausgabe!E21*Datenausgabe!E22/Datenausgabe!E26,1)*IF($B$93=2,1,1)*IF($B$93=3,Datenausgabe!E22/Datenausgabe!E26,1)*IF($B$93=4,Datenausgabe!E20/Datenausgabe!E21,1) -> 0 | F94: =F92*IF($B$93=1,Datenausgabe!F20/Datenausgabe!F21*Datenausgabe!F22/Datenausgabe!F26,1)*IF($B$93=2,1,1)*IF($B$93=3,Datenausgabe!F22/Datenausgabe!F26,1)*IF($B$93=4,Datenausgabe!F20/Datenausgabe!F21,1) -> 0 | G94: =G92*IF($B$93=1,Datenausgabe!G20/Datenausgabe!G21*Datenausgabe!G22/Datenausgabe!G26,1)*IF($B$93=2,1,1)*IF($B$93=3,Datenausgabe!G22/Datenausgabe!G26,1)*IF($B$93=4,Datenausgabe!G20/Datenausgabe!G21,1) -> 0 | H94: =H92*IF($B$93=1,Datenausgabe!H20/Datenausgabe!H21*Datenausgabe!H22/Datenausgabe!H26,1)*IF($B$93=2,1,1)*IF($B$93=3,Datenausgabe!H22/Datenausgabe!H26,1)*IF($B$93=4,Datenausgabe!H20/Datenausgabe!H21,1) -> 0 | I94: =I92*IF($B$93=1,Datenausgabe!I20/Datenausgabe!I21*Datenausgabe!I22/Datenausgabe!I26,1)*IF($B$93=2,1,1)*IF($B$93=3,Datenausgabe!I22/Datenausgabe!I26,1)*IF($B$93=4,Datenausgabe!I20/Datenausgabe!I21,1) -> 0 | J94: =J92*IF($B$93=1,Datenausgabe!J20/Datenausgabe!J21*Datenausgabe!J22/Datenausgabe!J26,1)*IF($B$93=2,1,1)*IF($B$93=3,Datenausgabe!J22/Datenausgabe!J26,1)*IF($B$93=4,Datenausgabe!J20/Datenausgabe!J21,1) -> 0 | K94: =K92*IF($B$93=1,Datenausgabe!K20/Datenausgabe!K21*Datenausgabe!K22/Datenausgabe!K26,1)*IF($B$93=2,1,1)*IF($B$93=3,Datenausgabe!K22/Datenausgabe!K26,1)*IF($B$93=4,Datenausgabe!K20/Datenausgabe!K21,1) -> 0 | L94: =L92*IF($B$93=1,Datenausgabe!L20/Datenausgabe!L21*Datenausgabe!L22/Datenausgabe!L26,1)*IF($B$93=2,1,1)*IF($B$93=3,Datenausgabe!L22/Datenausgabe!L26,1)*IF($B$93=4,Datenausgabe!L20/Datenausgabe!L21,1) -> 0 | M94: =M92*IF($B$93=1,Datenausgabe!M20/Datenausgabe!M21*Datenausgabe!M22/Datenausgabe!M26,1)*IF($B$93=2,1,1)*IF($B$93=3,Datenausgabe!M22/Datenausgabe!M26,1)*IF($B$93=4,Datenausgabe!M20/Datenausgabe!M21,1) -> 0
A95: TZ Betrag 2 | B95: =B92*IF($B$93=1,Datenausgabe!B23/Datenausgabe!B24*Datenausgabe!B25/Datenausgabe!B26,1)*IF($B$93=2,1,1)*IF($B$93=3,Datenausgabe!B25/Datenausgabe!B26,1)*IF($B$93=4,Datenausgabe!B23/Datenausgabe!B24,1) -> 0 | C95: =C92*IF($B$93=1,Datenausgabe!C23/Datenausgabe!C24*Datenausgabe!C25/Datenausgabe!C26,1)*IF($B$93=2,1,1)*IF($B$93=3,Datenausgabe!C25/Datenausgabe!C26,1)*IF($B$93=4,Datenausgabe!C23/Datenausgabe!C24,1) -> 0 | D95: =D92*IF($B$93=1,Datenausgabe!D23/Datenausgabe!D24*Datenausgabe!D25/Datenausgabe!D26,1)*IF($B$93=2,1,1)*IF($B$93=3,Datenausgabe!D25/Datenausgabe!D26,1)*IF($B$93=4,Datenausgabe!D23/Datenausgabe!D24,1) -> 0 | E95: =E92*IF($B$93=1,Datenausgabe!E23/Datenausgabe!E24*Datenausgabe!E25/Datenausgabe!E26,1)*IF($B$93=2,1,1)*IF($B$93=3,Datenausgabe!E25/Datenausgabe!E26,1)*IF($B$93=4,Datenausgabe!E23/Datenausgabe!E24,1) -> 0 | F95: =F92*IF($B$93=1,Datenausgabe!F23/Datenausgabe!F24*Datenausgabe!F25/Datenausgabe!F26,1)*IF($B$93=2,1,1)*IF($B$93=3,Datenausgabe!F25/Datenausgabe!F26,1)*IF($B$93=4,Datenausgabe!F23/Datenausgabe!F24,1) -> 0 | G95: =G92*IF($B$93=1,Datenausgabe!G23/Datenausgabe!G24*Datenausgabe!G25/Datenausgabe!G26,1)*IF($B$93=2,1,1)*IF($B$93=3,Datenausgabe!G25/Datenausgabe!G26,1)*IF($B$93=4,Datenausgabe!G23/Datenausgabe!G24,1) -> 0 | H95: =H92*IF($B$93=1,Datenausgabe!H23/Datenausgabe!H24*Datenausgabe!H25/Datenausgabe!H26,1)*IF($B$93=2,1,1)*IF($B$93=3,Datenausgabe!H25/Datenausgabe!H26,1)*IF($B$93=4,Datenausgabe!H23/Datenausgabe!H24,1) -> 0 | I95: =I92*IF($B$93=1,Datenausgabe!I23/Datenausgabe!I24*Datenausgabe!I25/Datenausgabe!I26,1)*IF($B$93=2,1,1)*IF($B$93=3,Datenausgabe!I25/Datenausgabe!I26,1)*IF($B$93=4,Datenausgabe!I23/Datenausgabe!I24,1) -> 0 | J95: =J92*IF($B$93=1,Datenausgabe!J23/Datenausgabe!J24*Datenausgabe!J25/Datenausgabe!J26,1)*IF($B$93=2,1,1)*IF($B$93=3,Datenausgabe!J25/Datenausgabe!J26,1)*IF($B$93=4,Datenausgabe!J23/Datenausgabe!J24,1) -> 0 | K95: =K92*IF($B$93=1,Datenausgabe!K23/Datenausgabe!K24*Datenausgabe!K25/Datenausgabe!K26,1)*IF($B$93=2,1,1)*IF($B$93=3,Datenausgabe!K25/Datenausgabe!K26,1)*IF($B$93=4,Datenausgabe!K23/Datenausgabe!K24,1) -> 0 | L95: =L92*IF($B$93=1,Datenausgabe!L23/Datenausgabe!L24*Datenausgabe!L25/Datenausgabe!L26,1)*IF($B$93=2,1,1)*IF($B$93=3,Datenausgabe!L25/Datenausgabe!L26,1)*IF($B$93=4,Datenausgabe!L23/Datenausgabe!L24,1) -> 0 | M95: =M92*IF($B$93=1,Datenausgabe!M23/Datenausgabe!M24*Datenausgabe!M25/Datenausgabe!M26,1)*IF($B$93=2,1,1)*IF($B$93=3,Datenausgabe!M25/Datenausgabe!M26,1)*IF($B$93=4,Datenausgabe!M23/Datenausgabe!M24,1) -> 0
A96: Zulage Ergebnis | B96: =IF(Datenausgabe!B1,B94+IF(AND(Datenausgabe!B15,Datenausgabe!B14),B95,0),0) -> 0 | C96: =IF(Datenausgabe!C1,C94+IF(AND(Datenausgabe!C15,Datenausgabe!C14),C95,0),0) -> 0 | D96: =IF(Datenausgabe!D1,D94+IF(AND(Datenausgabe!D15,Datenausgabe!D14),D95,0),0) -> 0 | E96: =IF(Datenausgabe!E1,E94+IF(AND(Datenausgabe!E15,Datenausgabe!E14),E95,0),0) -> 0 | F96: =IF(Datenausgabe!F1,F94+IF(AND(Datenausgabe!F15,Datenausgabe!F14),F95,0),0) -> 0 | G96: =IF(Datenausgabe!G1,G94+IF(AND(Datenausgabe!G15,Datenausgabe!G14),G95,0),0) -> 0 | H96: =IF(Datenausgabe!H1,H94+IF(AND(Datenausgabe!H15,Datenausgabe!H14),H95,0),0) -> 0 | I96: =IF(Datenausgabe!I1,I94+IF(AND(Datenausgabe!I15,Datenausgabe!I14),I95,0),0) -> 0 | J96: =IF(Datenausgabe!J1,J94+IF(AND(Datenausgabe!J15,Datenausgabe!J14),J95,0),0) -> 0 | K96: =IF(Datenausgabe!K1,K94+IF(AND(Datenausgabe!K15,Datenausgabe!K14),K95,0),0) -> 0 | L96: =IF(Datenausgabe!L1,L94+IF(AND(Datenausgabe!L15,Datenausgabe!L14),L95,0),0) -> 0 | M96: =IF(Datenausgabe!M1,M94+IF(AND(Datenausgabe!M15,Datenausgabe!M14),M95,0),0) -> 0
A97: Zulage 4
A98: eingegebener Betrag | B98: =Datenausgabe!B55 -> 0 | C98: =Datenausgabe!C55 -> 0 | D98: =Datenausgabe!D55 -> 0 | E98: =Datenausgabe!E55 -> 0 | F98: =Datenausgabe!F55 -> 0 | G98: =Datenausgabe!G55 -> 0 | H98: =Datenausgabe!H55 -> 0 | I98: =Datenausgabe!I55 -> 0 | J98: =Datenausgabe!J55 -> 0 | K98: =Datenausgabe!K55 -> 0 | L98: =Datenausgabe!L55 -> 0 | M98: =Datenausgabe!M55 -> 0
A99: Zulage TZ Klass | B99: =IF(Arbeitgeberkosten!$E$18<>"",VALUE(MID(Arbeitgeberkosten!$E$18,5,1)),1) -> 1 | C99: 1 = Teilzeit & Tage ' 2 = ungekürzt' 3 = Tage-Kürzung' 4 = Teilzeit-Kürzung
A100: TZ Betrag 1 | B100: =B98*IF($B$99=1,Datenausgabe!B20/Datenausgabe!B21*Datenausgabe!B22/Datenausgabe!B26,1)*IF($B$99=2,1,1)*IF($B$99=3,Datenausgabe!B22/Datenausgabe!B26,1)*IF($B$99=4,Datenausgabe!B20/Datenausgabe!B21,1) -> 0 | C100: =C98*IF($B$99=1,Datenausgabe!C20/Datenausgabe!C21*Datenausgabe!C22/Datenausgabe!C26,1)*IF($B$99=2,1,1)*IF($B$99=3,Datenausgabe!C22/Datenausgabe!C26,1)*IF($B$99=4,Datenausgabe!C20/Datenausgabe!C21,1) -> 0 | D100: =D98*IF($B$99=1,Datenausgabe!D20/Datenausgabe!D21*Datenausgabe!D22/Datenausgabe!D26,1)*IF($B$99=2,1,1)*IF($B$99=3,Datenausgabe!D22/Datenausgabe!D26,1)*IF($B$99=4,Datenausgabe!D20/Datenausgabe!D21,1) -> 0 | E100: =E98*IF($B$99=1,Datenausgabe!E20/Datenausgabe!E21*Datenausgabe!E22/Datenausgabe!E26,1)*IF($B$99=2,1,1)*IF($B$99=3,Datenausgabe!E22/Datenausgabe!E26,1)*IF($B$99=4,Datenausgabe!E20/Datenausgabe!E21,1) -> 0 | F100: =F98*IF($B$99=1,Datenausgabe!F20/Datenausgabe!F21*Datenausgabe!F22/Datenausgabe!F26,1)*IF($B$99=2,1,1)*IF($B$99=3,Datenausgabe!F22/Datenausgabe!F26,1)*IF($B$99=4,Datenausgabe!F20/Datenausgabe!F21,1) -> 0 | G100: =G98*IF($B$99=1,Datenausgabe!G20/Datenausgabe!G21*Datenausgabe!G22/Datenausgabe!G26,1)*IF($B$99=2,1,1)*IF($B$99=3,Datenausgabe!G22/Datenausgabe!G26,1)*IF($B$99=4,Datenausgabe!G20/Datenausgabe!G21,1) -> 0 | H100: =H98*IF($B$99=1,Datenausgabe!H20/Datenausgabe!H21*Datenausgabe!H22/Datenausgabe!H26,1)*IF($B$99=2,1,1)*IF($B$99=3,Datenausgabe!H22/Datenausgabe!H26,1)*IF($B$99=4,Datenausgabe!H20/Datenausgabe!H21,1) -> 0 | I100: =I98*IF($B$99=1,Datenausgabe!I20/Datenausgabe!I21*Datenausgabe!I22/Datenausgabe!I26,1)*IF($B$99=2,1,1)*IF($B$99=3,Datenausgabe!I22/Datenausgabe!I26,1)*IF($B$99=4,Datenausgabe!I20/Datenausgabe!I21,1) -> 0 | J100: =J98*IF($B$99=1,Datenausgabe!J20/Datenausgabe!J21*Datenausgabe!J22/Datenausgabe!J26,1)*IF($B$99=2,1,1)*IF($B$99=3,Datenausgabe!J22/Datenausgabe!J26,1)*IF($B$99=4,Datenausgabe!J20/Datenausgabe!J21,1) -> 0 | K100: =K98*IF($B$99=1,Datenausgabe!K20/Datenausgabe!K21*Datenausgabe!K22/Datenausgabe!K26,1)*IF($B$99=2,1,1)*IF($B$99=3,Datenausgabe!K22/Datenausgabe!K26,1)*IF($B$99=4,Datenausgabe!K20/Datenausgabe!K21,1) -> 0 | L100: =L98*IF($B$99=1,Datenausgabe!L20/Datenausgabe!L21*Datenausgabe!L22/Datenausgabe!L26,1)*IF($B$99=2,1,1)*IF($B$99=3,Datenausgabe!L22/Datenausgabe!L26,1)*IF($B$99=4,Datenausgabe!L20/Datenausgabe!L21,1) -> 0 | M100: =M98*IF($B$99=1,Datenausgabe!M20/Datenausgabe!M21*Datenausgabe!M22/Datenausgabe!M26,1)*IF($B$99=2,1,1)*IF($B$99=3,Datenausgabe!M22/Datenausgabe!M26,1)*IF($B$99=4,Datenausgabe!M20/Datenausgabe!M21,1) -> 0
A101: TZ Betrag 2 | B101: =B98*IF($B$99=1,Datenausgabe!B23/Datenausgabe!B24*Datenausgabe!B25/Datenausgabe!B26,1)*IF($B$99=2,1,1)*IF($B$99=3,Datenausgabe!B25/Datenausgabe!B26,1)*IF($B$99=4,Datenausgabe!B23/Datenausgabe!B24,1) -> 0 | C101: =C98*IF($B$99=1,Datenausgabe!C23/Datenausgabe!C24*Datenausgabe!C25/Datenausgabe!C26,1)*IF($B$99=2,1,1)*IF($B$99=3,Datenausgabe!C25/Datenausgabe!C26,1)*IF($B$99=4,Datenausgabe!C23/Datenausgabe!C24,1) -> 0 | D101: =D98*IF($B$99=1,Datenausgabe!D23/Datenausgabe!D24*Datenausgabe!D25/Datenausgabe!D26,1)*IF($B$99=2,1,1)*IF($B$99=3,Datenausgabe!D25/Datenausgabe!D26,1)*IF($B$99=4,Datenausgabe!D23/Datenausgabe!D24,1) -> 0 | E101: =E98*IF($B$99=1,Datenausgabe!E23/Datenausgabe!E24*Datenausgabe!E25/Datenausgabe!E26,1)*IF($B$99=2,1,1)*IF($B$99=3,Datenausgabe!E25/Datenausgabe!E26,1)*IF($B$99=4,Datenausgabe!E23/Datenausgabe!E24,1) -> 0 | F101: =F98*IF($B$99=1,Datenausgabe!F23/Datenausgabe!F24*Datenausgabe!F25/Datenausgabe!F26,1)*IF($B$99=2,1,1)*IF($B$99=3,Datenausgabe!F25/Datenausgabe!F26,1)*IF($B$99=4,Datenausgabe!F23/Datenausgabe!F24,1) -> 0 | G101: =G98*IF($B$99=1,Datenausgabe!G23/Datenausgabe!G24*Datenausgabe!G25/Datenausgabe!G26,1)*IF($B$99=2,1,1)*IF($B$99=3,Datenausgabe!G25/Datenausgabe!G26,1)*IF($B$99=4,Datenausgabe!G23/Datenausgabe!G24,1) -> 0 | H101: =H98*IF($B$99=1,Datenausgabe!H23/Datenausgabe!H24*Datenausgabe!H25/Datenausgabe!H26,1)*IF($B$99=2,1,1)*IF($B$99=3,Datenausgabe!H25/Datenausgabe!H26,1)*IF($B$99=4,Datenausgabe!H23/Datenausgabe!H24,1) -> 0 | I101: =I98*IF($B$99=1,Datenausgabe!I23/Datenausgabe!I24*Datenausgabe!I25/Datenausgabe!I26,1)*IF($B$99=2,1,1)*IF($B$99=3,Datenausgabe!I25/Datenausgabe!I26,1)*IF($B$99=4,Datenausgabe!I23/Datenausgabe!I24,1) -> 0 | J101: =J98*IF($B$99=1,Datenausgabe!J23/Datenausgabe!J24*Datenausgabe!J25/Datenausgabe!J26,1)*IF($B$99=2,1,1)*IF($B$99=3,Datenausgabe!J25/Datenausgabe!J26,1)*IF($B$99=4,Datenausgabe!J23/Datenausgabe!J24,1) -> 0 | K101: =K98*IF($B$99=1,Datenausgabe!K23/Datenausgabe!K24*Datenausgabe!K25/Datenausgabe!K26,1)*IF($B$99=2,1,1)*IF($B$99=3,Datenausgabe!K25/Datenausgabe!K26,1)*IF($B$99=4,Datenausgabe!K23/Datenausgabe!K24,1) -> 0 | L101: =L98*IF($B$99=1,Datenausgabe!L23/Datenausgabe!L24*Datenausgabe!L25/Datenausgabe!L26,1)*IF($B$99=2,1,1)*IF($B$99=3,Datenausgabe!L25/Datenausgabe!L26,1)*IF($B$99=4,Datenausgabe!L23/Datenausgabe!L24,1) -> 0 | M101: =M98*IF($B$99=1,Datenausgabe!M23/Datenausgabe!M24*Datenausgabe!M25/Datenausgabe!M26,1)*IF($B$99=2,1,1)*IF($B$99=3,Datenausgabe!M25/Datenausgabe!M26,1)*IF($B$99=4,Datenausgabe!M23/Datenausgabe!M24,1) -> 0
A102: Zulage Ergebnis | B102: =IF(Datenausgabe!B1,B100+IF(AND(Datenausgabe!B15,Datenausgabe!B14),B101,0),0) -> 0 | C102: =IF(Datenausgabe!C1,C100+IF(AND(Datenausgabe!C15,Datenausgabe!C14),C101,0),0) -> 0 | D102: =IF(Datenausgabe!D1,D100+IF(AND(Datenausgabe!D15,Datenausgabe!D14),D101,0),0) -> 0 | E102: =IF(Datenausgabe!E1,E100+IF(AND(Datenausgabe!E15,Datenausgabe!E14),E101,0),0) -> 0 | F102: =IF(Datenausgabe!F1,F100+IF(AND(Datenausgabe!F15,Datenausgabe!F14),F101,0),0) -> 0 | G102: =IF(Datenausgabe!G1,G100+IF(AND(Datenausgabe!G15,Datenausgabe!G14),G101,0),0) -> 0 | H102: =IF(Datenausgabe!H1,H100+IF(AND(Datenausgabe!H15,Datenausgabe!H14),H101,0),0) -> 0 | I102: =IF(Datenausgabe!I1,I100+IF(AND(Datenausgabe!I15,Datenausgabe!I14),I101,0),0) -> 0 | J102: =IF(Datenausgabe!J1,J100+IF(AND(Datenausgabe!J15,Datenausgabe!J14),J101,0),0) -> 0 | K102: =IF(Datenausgabe!K1,K100+IF(AND(Datenausgabe!K15,Datenausgabe!K14),K101,0),0) -> 0 | L102: =IF(Datenausgabe!L1,L100+IF(AND(Datenausgabe!L15,Datenausgabe!L14),L101,0),0) -> 0 | M102: =IF(Datenausgabe!M1,M100+IF(AND(Datenausgabe!M15,Datenausgabe!M14),M101,0),0) -> 0
A103: Urlaubsgeld
A104: Basis-Betrag | B104: =IF(Datenausgabe!B66<>0,Datenausgabe!B66,VLOOKUP(Datenausgabe!B$6,[2]!Verguetung,24,0)) -> 0 | C104: =IF(Datenausgabe!C66<>0,Datenausgabe!C66,VLOOKUP(Datenausgabe!C$6,[2]!Verguetung,24,0)) -> 0 | D104: =IF(Datenausgabe!D66<>0,Datenausgabe!D66,VLOOKUP(Datenausgabe!D$6,[3]!Verguetung,24,0)) -> 0 | E104: =IF(Datenausgabe!E66<>0,Datenausgabe!E66,VLOOKUP(Datenausgabe!E$6,[3]!Verguetung,24,0)) -> 0 | F104: =IF(Datenausgabe!F66<>0,Datenausgabe!F66,VLOOKUP(Datenausgabe!F$6,[3]!Verguetung,24,0)) -> 0 | G104: =IF(Datenausgabe!G66<>0,Datenausgabe!G66,VLOOKUP(Datenausgabe!G$6,[3]!Verguetung,24,0)) -> 0 | H104: =IF(Datenausgabe!H66<>0,Datenausgabe!H66,VLOOKUP(Datenausgabe!H$6,[3]!Verguetung,24,0)) -> 0 | I104: =IF(Datenausgabe!I66<>0,Datenausgabe!I66,VLOOKUP(Datenausgabe!I$6,[3]!Verguetung,24,0)) -> 0 | J104: =IF(Datenausgabe!J66<>0,Datenausgabe!J66,VLOOKUP(Datenausgabe!J$6,[3]!Verguetung,24,0)) -> 0 | K104: =IF(Datenausgabe!K66<>0,Datenausgabe!K66,VLOOKUP(Datenausgabe!K$6,[3]!Verguetung,24,0)) -> 0 | L104: =IF(Datenausgabe!L66<>0,Datenausgabe!L66,VLOOKUP(Datenausgabe!L$6,[3]!Verguetung,24,0)) -> 0 | M104: =IF(Datenausgabe!M66<>0,Datenausgabe!M66,VLOOKUP(Datenausgabe!M$6,[3]!Verguetung,24,0)) -> 0
A105: Urlaubsgeld TZ Klassif: | B105: =IF(Arbeitgeberkosten!$E$19<>"",VALUE(MID(Arbeitgeberkosten!$E$19,5,1)),1) -> 1 | C105: 1 = Teilzeit & Tage ' 2 = ungekürzt' 3 = Tage-Kürzung' 4 = Teilzeit-Kürzung
A106: TZ Betrag 1 | B106: =B104*IF($B$105=1,Datenausgabe!B20/Datenausgabe!B21*Datenausgabe!B22/Datenausgabe!B26,1)*IF($B$105=2,1,1)*IF($B$105=3,Datenausgabe!B22/Datenausgabe!B26,1)*IF($B$105=4,Datenausgabe!B20/Datenausgabe!B21,1) -> 0 | C106: =C104*IF($B$105=1,Datenausgabe!C20/Datenausgabe!C21*Datenausgabe!C22/Datenausgabe!C26,1)*IF($B$105=2,1,1)*IF($B$105=3,Datenausgabe!C22/Datenausgabe!C26,1)*IF($B$105=4,Datenausgabe!C20/Datenausgabe!C21,1) -> 0 | D106: =D104*IF($B$105=1,Datenausgabe!D20/Datenausgabe!D21*Datenausgabe!D22/Datenausgabe!D26,1)*IF($B$105=2,1,1)*IF($B$105=3,Datenausgabe!D22/Datenausgabe!D26,1)*IF($B$105=4,Datenausgabe!D20/Datenausgabe!D21,1) -> 0 | E106: =E104*IF($B$105=1,Datenausgabe!E20/Datenausgabe!E21*Datenausgabe!E22/Datenausgabe!E26,1)*IF($B$105=2,1,1)*IF($B$105=3,Datenausgabe!E22/Datenausgabe!E26,1)*IF($B$105=4,Datenausgabe!E20/Datenausgabe!E21,1) -> 0 | F106: =F104*IF($B$105=1,Datenausgabe!F20/Datenausgabe!F21*Datenausgabe!F22/Datenausgabe!F26,1)*IF($B$105=2,1,1)*IF($B$105=3,Datenausgabe!F22/Datenausgabe!F26,1)*IF($B$105=4,Datenausgabe!F20/Datenausgabe!F21,1) -> 0 | G106: =G104*IF($B$105=1,Datenausgabe!G20/Datenausgabe!G21*Datenausgabe!G22/Datenausgabe!G26,1)*IF($B$105=2,1,1)*IF($B$105=3,Datenausgabe!G22/Datenausgabe!G26,1)*IF($B$105=4,Datenausgabe!G20/Datenausgabe!G21,1) -> 0 | H106: =H104*IF($B$105=1,Datenausgabe!H20/Datenausgabe!H21*Datenausgabe!H22/Datenausgabe!H26,1)*IF($B$105=2,1,1)*IF($B$105=3,Datenausgabe!H22/Datenausgabe!H26,1)*IF($B$105=4,Datenausgabe!H20/Datenausgabe!H21,1) -> 0 | I106: =I104*IF($B$105=1,Datenausgabe!I20/Datenausgabe!I21*Datenausgabe!I22/Datenausgabe!I26,1)*IF($B$105=2,1,1)*IF($B$105=3,Datenausgabe!I22/Datenausgabe!I26,1)*IF($B$105=4,Datenausgabe!I20/Datenausgabe!I21,1) -> 0 | J106: =J104*IF($B$105=1,Datenausgabe!J20/Datenausgabe!J21*Datenausgabe!J22/Datenausgabe!J26,1)*IF($B$105=2,1,1)*IF($B$105=3,Datenausgabe!J22/Datenausgabe!J26,1)*IF($B$105=4,Datenausgabe!J20/Datenausgabe!J21,1) -> 0 | K106: =K104*IF($B$105=1,Datenausgabe!K20/Datenausgabe!K21*Datenausgabe!K22/Datenausgabe!K26,1)*IF($B$105=2,1,1)*IF($B$105=3,Datenausgabe!K22/Datenausgabe!K26,1)*IF($B$105=4,Datenausgabe!K20/Datenausgabe!K21,1) -> 0 | L106: =L104*IF($B$105=1,Datenausgabe!L20/Datenausgabe!L21*Datenausgabe!L22/Datenausgabe!L26,1)*IF($B$105=2,1,1)*IF($B$105=3,Datenausgabe!L22/Datenausgabe!L26,1)*IF($B$105=4,Datenausgabe!L20/Datenausgabe!L21,1) -> 0 | M106: =M104*IF($B$105=1,Datenausgabe!M20/Datenausgabe!M21*Datenausgabe!M22/Datenausgabe!M26,1)*IF($B$105=2,1,1)*IF($B$105=3,Datenausgabe!M22/Datenausgabe!M26,1)*IF($B$105=4,Datenausgabe!M20/Datenausgabe!M21,1) -> 0
A107: TZ Betrag 2 | B107: =B104*IF($B$105=1,Datenausgabe!B23/Datenausgabe!B24*Datenausgabe!B25/Datenausgabe!B26,1)*IF($B$105=2,1,1)*IF($B$105=3,Datenausgabe!B25/Datenausgabe!B26,1)*IF($B$105=4,Datenausgabe!B23/Datenausgabe!B24,1) -> 0 | C107: =C104*IF($B$105=1,Datenausgabe!C23/Datenausgabe!C24*Datenausgabe!C25/Datenausgabe!C26,1)*IF($B$105=2,1,1)*IF($B$105=3,Datenausgabe!C25/Datenausgabe!C26,1)*IF($B$105=4,Datenausgabe!C23/Datenausgabe!C24,1) -> 0 | D107: =D104*IF($B$105=1,Datenausgabe!D23/Datenausgabe!D24*Datenausgabe!D25/Datenausgabe!D26,1)*IF($B$105=2,1,1)*IF($B$105=3,Datenausgabe!D25/Datenausgabe!D26,1)*IF($B$105=4,Datenausgabe!D23/Datenausgabe!D24,1) -> 0 | E107: =E104*IF($B$105=1,Datenausgabe!E23/Datenausgabe!E24*Datenausgabe!E25/Datenausgabe!E26,1)*IF($B$105=2,1,1)*IF($B$105=3,Datenausgabe!E25/Datenausgabe!E26,1)*IF($B$105=4,Datenausgabe!E23/Datenausgabe!E24,1) -> 0 | F107: =F104*IF($B$105=1,Datenausgabe!F23/Datenausgabe!F24*Datenausgabe!F25/Datenausgabe!F26,1)*IF($B$105=2,1,1)*IF($B$105=3,Datenausgabe!F25/Datenausgabe!F26,1)*IF($B$105=4,Datenausgabe!F23/Datenausgabe!F24,1) -> 0 | G107: =G104*IF($B$105=1,Datenausgabe!G23/Datenausgabe!G24*Datenausgabe!G25/Datenausgabe!G26,1)*IF($B$105=2,1,1)*IF($B$105=3,Datenausgabe!G25/Datenausgabe!G26,1)*IF($B$105=4,Datenausgabe!G23/Datenausgabe!G24,1) -> 0 | H107: =H104*IF($B$105=1,Datenausgabe!H23/Datenausgabe!H24*Datenausgabe!H25/Datenausgabe!H26,1)*IF($B$105=2,1,1)*IF($B$105=3,Datenausgabe!H25/Datenausgabe!H26,1)*IF($B$105=4,Datenausgabe!H23/Datenausgabe!H24,1) -> 0 | I107: =I104*IF($B$105=1,Datenausgabe!I23/Datenausgabe!I24*Datenausgabe!I25/Datenausgabe!I26,1)*IF($B$105=2,1,1)*IF($B$105=3,Datenausgabe!I25/Datenausgabe!I26,1)*IF($B$105=4,Datenausgabe!I23/Datenausgabe!I24,1) -> 0 | J107: =J104*IF($B$105=1,Datenausgabe!J23/Datenausgabe!J24*Datenausgabe!J25/Datenausgabe!J26,1)*IF($B$105=2,1,1)*IF($B$105=3,Datenausgabe!J25/Datenausgabe!J26,1)*IF($B$105=4,Datenausgabe!J23/Datenausgabe!J24,1) -> 0 | K107: =K104*IF($B$105=1,Datenausgabe!K23/Datenausgabe!K24*Datenausgabe!K25/Datenausgabe!K26,1)*IF($B$105=2,1,1)*IF($B$105=3,Datenausgabe!K25/Datenausgabe!K26,1)*IF($B$105=4,Datenausgabe!K23/Datenausgabe!K24,1) -> 0 | L107: =L104*IF($B$105=1,Datenausgabe!L23/Datenausgabe!L24*Datenausgabe!L25/Datenausgabe!L26,1)*IF($B$105=2,1,1)*IF($B$105=3,Datenausgabe!L25/Datenausgabe!L26,1)*IF($B$105=4,Datenausgabe!L23/Datenausgabe!L24,1) -> 0 | M107: =M104*IF($B$105=1,Datenausgabe!M23/Datenausgabe!M24*Datenausgabe!M25/Datenausgabe!M26,1)*IF($B$105=2,1,1)*IF($B$105=3,Datenausgabe!M25/Datenausgabe!M26,1)*IF($B$105=4,Datenausgabe!M23/Datenausgabe!M24,1) -> 0
A108: Urlaubsgeld Ergebnis | B108: =IF(Datenausgabe!B65,B106+IF(AND(Datenausgabe!B14,NOT(Datenausgabe!B15)),Nebenrechnungen!B107,0),0) -> 0 | C108: =IF(Datenausgabe!C65,C106+IF(AND(Datenausgabe!C14,NOT(Datenausgabe!C15)),Nebenrechnungen!C107,0),0) -> 0 | D108: =IF(Datenausgabe!D65,D106+IF(AND(Datenausgabe!D14,NOT(Datenausgabe!D15)),Nebenrechnungen!D107,0),0) -> 0 | E108: =IF(Datenausgabe!E65,E106+IF(AND(Datenausgabe!E14,NOT(Datenausgabe!E15)),Nebenrechnungen!E107,0),0) -> 0 | F108: =IF(Datenausgabe!F65,F106+IF(AND(Datenausgabe!F14,NOT(Datenausgabe!F15)),Nebenrechnungen!F107,0),0) -> 0 | G108: =IF(Datenausgabe!G65,G106+IF(AND(Datenausgabe!G14,NOT(Datenausgabe!G15)),Nebenrechnungen!G107,0),0) -> 0 | H108: =IF(Datenausgabe!H65,H106+IF(AND(Datenausgabe!H14,NOT(Datenausgabe!H15)),Nebenrechnungen!H107,0),0) -> 0 | I108: =IF(Datenausgabe!I65,I106+IF(AND(Datenausgabe!I14,NOT(Datenausgabe!I15)),Nebenrechnungen!I107,0),0) -> 0 | J108: =IF(Datenausgabe!J65,J106+IF(AND(Datenausgabe!J14,NOT(Datenausgabe!J15)),Nebenrechnungen!J107,0),0) -> 0 | K108: =IF(Datenausgabe!K65,K106+IF(AND(Datenausgabe!K14,NOT(Datenausgabe!K15)),Nebenrechnungen!K107,0),0) -> 0 | L108: =IF(Datenausgabe!L65,L106+IF(AND(Datenausgabe!L14,NOT(Datenausgabe!L15)),Nebenrechnungen!L107,0),0) -> 0 | M108: =IF(Datenausgabe!M65,M106+IF(AND(Datenausgabe!M14,NOT(Datenausgabe!M15)),Nebenrechnungen!M107,0),0) -> 0
A109: Einmalzahlungen
A110: Tabellenbetrag Tarif 1 | B110: =VLOOKUP(Datenausgabe!B6,EZVorgaben,Datenausgabe!B$2+1,0) -> 0 | C110: =VLOOKUP(Datenausgabe!C6,EZVorgaben,Datenausgabe!C$2+1,0) -> 0 | D110: =VLOOKUP(Datenausgabe!D6,EZVorgaben,Datenausgabe!D$2+1,0) -> 0 | E110: =VLOOKUP(Datenausgabe!E6,EZVorgaben,Datenausgabe!E$2+1,0) -> 0 | F110: =VLOOKUP(Datenausgabe!F6,EZVorgaben,Datenausgabe!F$2+1,0) -> 0 | G110: =VLOOKUP(Datenausgabe!G6,EZVorgaben,Datenausgabe!G$2+1,0) -> 0 | H110: =VLOOKUP(Datenausgabe!H6,EZVorgaben,Datenausgabe!H$2+1,0) -> 0 | I110: =VLOOKUP(Datenausgabe!I6,EZVorgaben,Datenausgabe!I$2+1,0) -> 0 | J110: =VLOOKUP(Datenausgabe!J6,EZVorgaben,Datenausgabe!J$2+1,0) -> 0 | K110: =VLOOKUP(Datenausgabe!K6,EZVorgaben,Datenausgabe!K$2+1,0) -> 0 | L110: =VLOOKUP(Datenausgabe!L6,EZVorgaben,Datenausgabe!L$2+1,0) -> 0 | M110: =VLOOKUP(Datenausgabe!M6,EZVorgaben,Datenausgabe!M$2+1,0) -> 0
A111: Tabellenbetrag Tarif 2 | B111: =VLOOKUP(Datenausgabe!B7,EZVorgaben,Datenausgabe!B$2+1,0) -> 0 | C111: =VLOOKUP(Datenausgabe!C7,EZVorgaben,Datenausgabe!C$2+1,0) -> 0 | D111: =VLOOKUP(Datenausgabe!D7,EZVorgaben,Datenausgabe!D$2+1,0) -> 0 | E111: =VLOOKUP(Datenausgabe!E7,EZVorgaben,Datenausgabe!E$2+1,0) -> 0 | F111: =VLOOKUP(Datenausgabe!F7,EZVorgaben,Datenausgabe!F$2+1,0) -> 0 | G111: =VLOOKUP(Datenausgabe!G7,EZVorgaben,Datenausgabe!G$2+1,0) -> 0 | H111: =VLOOKUP(Datenausgabe!H7,EZVorgaben,Datenausgabe!H$2+1,0) -> 0 | I111: =VLOOKUP(Datenausgabe!I7,EZVorgaben,Datenausgabe!I$2+1,0) -> 0 | J111: =VLOOKUP(Datenausgabe!J7,EZVorgaben,Datenausgabe!J$2+1,0) -> 0 | K111: =VLOOKUP(Datenausgabe!K7,EZVorgaben,Datenausgabe!K$2+1,0) -> 0 | L111: =VLOOKUP(Datenausgabe!L7,EZVorgaben,Datenausgabe!L$2+1,0) -> 0 | M111: =VLOOKUP(Datenausgabe!M7,EZVorgaben,Datenausgabe!M$2+1,0) -> 0
A112: EZ TZ Klassifizierung | B112: =IF(Arbeitgeberkosten!$E$21<>"",VALUE(MID(Arbeitgeberkosten!$E$21,5,1)),1) -> 1 | C112: 1 = Teilzeit & Tage ' 2 = ungekürzt' 3 = Tage-Kürzung' 4 = Teilzeit-Kürzung
A113: Abbweichender betrag | B113: =IF(Datenausgabe!B79,Datenausgabe!B80,0)*IF($B$112=1,Datenausgabe!B20/Datenausgabe!B21*Datenausgabe!B22/Datenausgabe!B26,1)*IF($B$112=2,1,1)*IF($B$112=3,Datenausgabe!B22/Datenausgabe!B26,1)*IF($B$112=4,Datenausgabe!B20/Datenausgabe!B21,1) -> 0 | C113: =IF(Datenausgabe!C79,Datenausgabe!C80,0)*IF($B$112=1,Datenausgabe!C20/Datenausgabe!C21*Datenausgabe!C22/Datenausgabe!C26,1)*IF($B$112=2,1,1)*IF($B$112=3,Datenausgabe!C22/Datenausgabe!C26,1)*IF($B$112=4,Datenausgabe!C20/Datenausgabe!C21,1) -> 0 | D113: =IF(Datenausgabe!D79,Datenausgabe!D80,0)*IF($B$112=1,Datenausgabe!D20/Datenausgabe!D21*Datenausgabe!D22/Datenausgabe!D26,1)*IF($B$112=2,1,1)*IF($B$112=3,Datenausgabe!D22/Datenausgabe!D26,1)*IF($B$112=4,Datenausgabe!D20/Datenausgabe!D21,1) -> 0 | E113: =IF(Datenausgabe!E79,Datenausgabe!E80,0)*IF($B$112=1,Datenausgabe!E20/Datenausgabe!E21*Datenausgabe!E22/Datenausgabe!E26,1)*IF($B$112=2,1,1)*IF($B$112=3,Datenausgabe!E22/Datenausgabe!E26,1)*IF($B$112=4,Datenausgabe!E20/Datenausgabe!E21,1) -> 0 | F113: =IF(Datenausgabe!F79,Datenausgabe!F80,0)*IF($B$112=1,Datenausgabe!F20/Datenausgabe!F21*Datenausgabe!F22/Datenausgabe!F26,1)*IF($B$112=2,1,1)*IF($B$112=3,Datenausgabe!F22/Datenausgabe!F26,1)*IF($B$112=4,Datenausgabe!F20/Datenausgabe!F21,1) -> 0 | G113: =IF(Datenausgabe!G79,Datenausgabe!G80,0)*IF($B$112=1,Datenausgabe!G20/Datenausgabe!G21*Datenausgabe!G22/Datenausgabe!G26,1)*IF($B$112=2,1,1)*IF($B$112=3,Datenausgabe!G22/Datenausgabe!G26,1)*IF($B$112=4,Datenausgabe!G20/Datenausgabe!G21,1) -> 0 | H113: =IF(Datenausgabe!H79,Datenausgabe!H80,0)*IF($B$112=1,Datenausgabe!H20/Datenausgabe!H21*Datenausgabe!H22/Datenausgabe!H26,1)*IF($B$112=2,1,1)*IF($B$112=3,Datenausgabe!H22/Datenausgabe!H26,1)*IF($B$112=4,Datenausgabe!H20/Datenausgabe!H21,1) -> 0 | I113: =IF(Datenausgabe!I79,Datenausgabe!I80,0)*IF($B$112=1,Datenausgabe!I20/Datenausgabe!I21*Datenausgabe!I22/Datenausgabe!I26,1)*IF($B$112=2,1,1)*IF($B$112=3,Datenausgabe!I22/Datenausgabe!I26,1)*IF($B$112=4,Datenausgabe!I20/Datenausgabe!I21,1) -> 0 | J113: =IF(Datenausgabe!J79,Datenausgabe!J80,0)*IF($B$112=1,Datenausgabe!J20/Datenausgabe!J21*Datenausgabe!J22/Datenausgabe!J26,1)*IF($B$112=2,1,1)*IF($B$112=3,Datenausgabe!J22/Datenausgabe!J26,1)*IF($B$112=4,Datenausgabe!J20/Datenausgabe!J21,1) -> 0 | K113: =IF(Datenausgabe!K79,Datenausgabe!K80,0)*IF($B$112=1,Datenausgabe!K20/Datenausgabe!K21*Datenausgabe!K22/Datenausgabe!K26,1)*IF($B$112=2,1,1)*IF($B$112=3,Datenausgabe!K22/Datenausgabe!K26,1)*IF($B$112=4,Datenausgabe!K20/Datenausgabe!K21,1) -> 0 | L113: =IF(Datenausgabe!L79,Datenausgabe!L80,0)*IF($B$112=1,Datenausgabe!L20/Datenausgabe!L21*Datenausgabe!L22/Datenausgabe!L26,1)*IF($B$112=2,1,1)*IF($B$112=3,Datenausgabe!L22/Datenausgabe!L26,1)*IF($B$112=4,Datenausgabe!L20/Datenausgabe!L21,1) -> 0 | M113: =IF(Datenausgabe!M79,Datenausgabe!M80,0)*IF($B$112=1,Datenausgabe!M20/Datenausgabe!M21*Datenausgabe!M22/Datenausgabe!M26,1)*IF($B$112=2,1,1)*IF($B$112=3,Datenausgabe!M22/Datenausgabe!M26,1)*IF($B$112=4,Datenausgabe!M20/Datenausgabe!M21,1) -> 0
A114: Einmalzahlung TZ 1 | B114: =B110*IF($B$112=1,Datenausgabe!B20/Datenausgabe!B21*Datenausgabe!B22/Datenausgabe!B26,1)*IF($B$112=2,1,1)*IF($B$112=3,Datenausgabe!B22/Datenausgabe!B26,1)*IF($B$112=4,Datenausgabe!B20/Datenausgabe!B21,1) -> 0 | C114: =C110*IF($B$112=1,Datenausgabe!C20/Datenausgabe!C21*Datenausgabe!C22/Datenausgabe!C26,1)*IF($B$112=2,1,1)*IF($B$112=3,Datenausgabe!C22/Datenausgabe!C26,1)*IF($B$112=4,Datenausgabe!C20/Datenausgabe!C21,1) -> 0 | D114: =D110*IF($B$112=1,Datenausgabe!D20/Datenausgabe!D21*Datenausgabe!D22/Datenausgabe!D26,1)*IF($B$112=2,1,1)*IF($B$112=3,Datenausgabe!D22/Datenausgabe!D26,1)*IF($B$112=4,Datenausgabe!D20/Datenausgabe!D21,1) -> 0 | E114: =E110*IF($B$112=1,Datenausgabe!E20/Datenausgabe!E21*Datenausgabe!E22/Datenausgabe!E26,1)*IF($B$112=2,1,1)*IF($B$112=3,Datenausgabe!E22/Datenausgabe!E26,1)*IF($B$112=4,Datenausgabe!E20/Datenausgabe!E21,1) -> 0 | F114: =F110*IF($B$112=1,Datenausgabe!F20/Datenausgabe!F21*Datenausgabe!F22/Datenausgabe!F26,1)*IF($B$112=2,1,1)*IF($B$112=3,Datenausgabe!F22/Datenausgabe!F26,1)*IF($B$112=4,Datenausgabe!F20/Datenausgabe!F21,1) -> 0 | G114: =G110*IF($B$112=1,Datenausgabe!G20/Datenausgabe!G21*Datenausgabe!G22/Datenausgabe!G26,1)*IF($B$112=2,1,1)*IF($B$112=3,Datenausgabe!G22/Datenausgabe!G26,1)*IF($B$112=4,Datenausgabe!G20/Datenausgabe!G21,1) -> 0 | H114: =H110*IF($B$112=1,Datenausgabe!H20/Datenausgabe!H21*Datenausgabe!H22/Datenausgabe!H26,1)*IF($B$112=2,1,1)*IF($B$112=3,Datenausgabe!H22/Datenausgabe!H26,1)*IF($B$112=4,Datenausgabe!H20/Datenausgabe!H21,1) -> 0 | I114: =I110*IF($B$112=1,Datenausgabe!I20/Datenausgabe!I21*Datenausgabe!I22/Datenausgabe!I26,1)*IF($B$112=2,1,1)*IF($B$112=3,Datenausgabe!I22/Datenausgabe!I26,1)*IF($B$112=4,Datenausgabe!I20/Datenausgabe!I21,1) -> 0 | J114: =J110*IF($B$112=1,Datenausgabe!J20/Datenausgabe!J21*Datenausgabe!J22/Datenausgabe!J26,1)*IF($B$112=2,1,1)*IF($B$112=3,Datenausgabe!J22/Datenausgabe!J26,1)*IF($B$112=4,Datenausgabe!J20/Datenausgabe!J21,1) -> 0 | K114: =K110*IF($B$112=1,Datenausgabe!K20/Datenausgabe!K21*Datenausgabe!K22/Datenausgabe!K26,1)*IF($B$112=2,1,1)*IF($B$112=3,Datenausgabe!K22/Datenausgabe!K26,1)*IF($B$112=4,Datenausgabe!K20/Datenausgabe!K21,1) -> 0 | L114: =L110*IF($B$112=1,Datenausgabe!L20/Datenausgabe!L21*Datenausgabe!L22/Datenausgabe!L26,1)*IF($B$112=2,1,1)*IF($B$112=3,Datenausgabe!L22/Datenausgabe!L26,1)*IF($B$112=4,Datenausgabe!L20/Datenausgabe!L21,1) -> 0 | M114: =M110*IF($B$112=1,Datenausgabe!M20/Datenausgabe!M21*Datenausgabe!M22/Datenausgabe!M26,1)*IF($B$112=2,1,1)*IF($B$112=3,Datenausgabe!M22/Datenausgabe!M26,1)*IF($B$112=4,Datenausgabe!M20/Datenausgabe!M21,1) -> 0
A115: Einmalzahlung TZ 2 | B115: =B111*IF($B$112=1,Datenausgabe!B23/Datenausgabe!B24*Datenausgabe!B25/Datenausgabe!B26,1)*IF($B$112=2,1,1)*IF($B$112=3,Datenausgabe!B25/Datenausgabe!B26,1)*IF($B$112=4,Datenausgabe!B23/Datenausgabe!B24,1) -> 0 | C115: =C111*IF($B$112=1,Datenausgabe!C23/Datenausgabe!C24*Datenausgabe!C25/Datenausgabe!C26,1)*IF($B$112=2,1,1)*IF($B$112=3,Datenausgabe!C25/Datenausgabe!C26,1)*IF($B$112=4,Datenausgabe!C23/Datenausgabe!C24,1) -> 0 | D115: =D111*IF($B$112=1,Datenausgabe!D23/Datenausgabe!D24*Datenausgabe!D25/Datenausgabe!D26,1)*IF($B$112=2,1,1)*IF($B$112=3,Datenausgabe!D25/Datenausgabe!D26,1)*IF($B$112=4,Datenausgabe!D23/Datenausgabe!D24,1) -> 0 | E115: =E111*IF($B$112=1,Datenausgabe!E23/Datenausgabe!E24*Datenausgabe!E25/Datenausgabe!E26,1)*IF($B$112=2,1,1)*IF($B$112=3,Datenausgabe!E25/Datenausgabe!E26,1)*IF($B$112=4,Datenausgabe!E23/Datenausgabe!E24,1) -> 0 | F115: =F111*IF($B$112=1,Datenausgabe!F23/Datenausgabe!F24*Datenausgabe!F25/Datenausgabe!F26,1)*IF($B$112=2,1,1)*IF($B$112=3,Datenausgabe!F25/Datenausgabe!F26,1)*IF($B$112=4,Datenausgabe!F23/Datenausgabe!F24,1) -> 0 | G115: =G111*IF($B$112=1,Datenausgabe!G23/Datenausgabe!G24*Datenausgabe!G25/Datenausgabe!G26,1)*IF($B$112=2,1,1)*IF($B$112=3,Datenausgabe!G25/Datenausgabe!G26,1)*IF($B$112=4,Datenausgabe!G23/Datenausgabe!G24,1) -> 0 | H115: =H111*IF($B$112=1,Datenausgabe!H23/Datenausgabe!H24*Datenausgabe!H25/Datenausgabe!H26,1)*IF($B$112=2,1,1)*IF($B$112=3,Datenausgabe!H25/Datenausgabe!H26,1)*IF($B$112=4,Datenausgabe!H23/Datenausgabe!H24,1) -> 0 | I115: =I111*IF($B$112=1,Datenausgabe!I23/Datenausgabe!I24*Datenausgabe!I25/Datenausgabe!I26,1)*IF($B$112=2,1,1)*IF($B$112=3,Datenausgabe!I25/Datenausgabe!I26,1)*IF($B$112=4,Datenausgabe!I23/Datenausgabe!I24,1) -> 0 | J115: =J111*IF($B$112=1,Datenausgabe!J23/Datenausgabe!J24*Datenausgabe!J25/Datenausgabe!J26,1)*IF($B$112=2,1,1)*IF($B$112=3,Datenausgabe!J25/Datenausgabe!J26,1)*IF($B$112=4,Datenausgabe!J23/Datenausgabe!J24,1) -> 0 | K115: =K111*IF($B$112=1,Datenausgabe!K23/Datenausgabe!K24*Datenausgabe!K25/Datenausgabe!K26,1)*IF($B$112=2,1,1)*IF($B$112=3,Datenausgabe!K25/Datenausgabe!K26,1)*IF($B$112=4,Datenausgabe!K23/Datenausgabe!K24,1) -> 0 | L115: =L111*IF($B$112=1,Datenausgabe!L23/Datenausgabe!L24*Datenausgabe!L25/Datenausgabe!L26,1)*IF($B$112=2,1,1)*IF($B$112=3,Datenausgabe!L25/Datenausgabe!L26,1)*IF($B$112=4,Datenausgabe!L23/Datenausgabe!L24,1) -> 0 | M115: =M111*IF($B$112=1,Datenausgabe!M23/Datenausgabe!M24*Datenausgabe!M25/Datenausgabe!M26,1)*IF($B$112=2,1,1)*IF($B$112=3,Datenausgabe!M25/Datenausgabe!M26,1)*IF($B$112=4,Datenausgabe!M23/Datenausgabe!M24,1) -> 0
A116: Einmalzahlung Ergebnis | B116: =IF(Datenausgabe!B1,IF(Datenausgabe!B79,IF(B113<>0,B113,B114+IF(Datenausgabe!B14,B115,0)),0),0) -> 0 | C116: =IF(Datenausgabe!C1,IF(Datenausgabe!C79,IF(C113<>0,C113,C114+IF(Datenausgabe!C14,C115,0)),0),0) -> 0 | D116: =IF(Datenausgabe!D1,IF(Datenausgabe!D79,IF(D113<>0,D113,D114+IF(Datenausgabe!D14,D115,0)),0),0) -> 0 | E116: =IF(Datenausgabe!E1,IF(Datenausgabe!E79,IF(E113<>0,E113,E114+IF(Datenausgabe!E14,E115,0)),0),0) -> 0 | F116: =IF(Datenausgabe!F1,IF(Datenausgabe!F79,IF(F113<>0,F113,F114+IF(Datenausgabe!F14,F115,0)),0),0) -> 0 | G116: =IF(Datenausgabe!G1,IF(Datenausgabe!G79,IF(G113<>0,G113,G114+IF(Datenausgabe!G14,G115,0)),0),0) -> 0 | H116: =IF(Datenausgabe!H1,IF(Datenausgabe!H79,IF(H113<>0,H113,H114+IF(Datenausgabe!H14,H115,0)),0),0) -> 0 | I116: =IF(Datenausgabe!I1,IF(Datenausgabe!I79,IF(I113<>0,I113,I114+IF(Datenausgabe!I14,I115,0)),0),0) -> 0 | J116: =IF(Datenausgabe!J1,IF(Datenausgabe!J79,IF(J113<>0,J113,J114+IF(Datenausgabe!J14,J115,0)),0),0) -> 0 | K116: =IF(Datenausgabe!K1,IF(Datenausgabe!K79,IF(K113<>0,K113,K114+IF(Datenausgabe!K14,K115,0)),0),0) -> 0 | L116: =IF(Datenausgabe!L1,IF(Datenausgabe!L79,IF(L113<>0,L113,L114+IF(Datenausgabe!L14,L115,0)),0),0) -> 0 | M116: =IF(Datenausgabe!M1,IF(Datenausgabe!M79,IF(M113<>0,M113,M114+IF(Datenausgabe!M14,M115,0)),0),0) -> 0
A117: Sonderzuwendung
A118: Monatsnummer | B118: =Datenausgabe!B2 -> 1 | C118: =Datenausgabe!C2 -> 2 | D118: =Datenausgabe!D2 -> 3 | E118: =Datenausgabe!E2 -> 4 | F118: =Datenausgabe!F2 -> 5 | G118: =Datenausgabe!G2 -> 6 | H118: =Datenausgabe!H2 -> 7 | I118: =Datenausgabe!I2 -> 8 | J118: =Datenausgabe!J2 -> 9 | K118: =Datenausgabe!K2 -> 10 | L118: =Datenausgabe!L2 -> 11 | M118: =Datenausgabe!M2 -> 12
A119: Bemessungsgrundlage: | B119: =SUM(IF(MID(Arbeitgeberkosten!$E$7:$E$18,6,1)="J",Arbeitgeberkosten!F7:F18,0)) -> 0 | C119: =SUM(IF(MID(Arbeitgeberkosten!$E$7:$E$18,6,1)="J",Arbeitgeberkosten!G7:G18,0)) -> 0 | D119: =SUM(IF(MID(Arbeitgeberkosten!$E$7:$E$18,6,1)="J",Arbeitgeberkosten!H7:H18,0)) -> 0 | E119: =SUM(IF(MID(Arbeitgeberkosten!$E$7:$E$18,6,1)="J",Arbeitgeberkosten!I7:I18,0)) -> 0 | F119: =SUM(IF(MID(Arbeitgeberkosten!$E$7:$E$18,6,1)="J",Arbeitgeberkosten!J7:J18,0)) -> 0 | G119: =SUM(IF(MID(Arbeitgeberkosten!$E$7:$E$18,6,1)="J",Arbeitgeberkosten!K7:K18,0)) -> 0 | H119: =SUM(IF(MID(Arbeitgeberkosten!$E$7:$E$18,6,1)="J",Arbeitgeberkosten!L7:L18,0)) -> 0 | I119: =SUM(IF(MID(Arbeitgeberkosten!$E$7:$E$18,6,1)="J",Arbeitgeberkosten!M7:M18,0)) -> 0 | J119: =SUM(IF(MID(Arbeitgeberkosten!$E$7:$E$18,6,1)="J",Arbeitgeberkosten!N7:N18,0)) -> 0 | K119: =SUM(IF(MID(Arbeitgeberkosten!$E$7:$E$18,6,1)="J",Arbeitgeberkosten!O7:O18,0)) -> 0 | L119: =SUM(IF(MID(Arbeitgeberkosten!$E$7:$E$18,6,1)="J",Arbeitgeberkosten!P7:P18,0)) -> 0 | M119: =SUM(IF(MID(Arbeitgeberkosten!$E$7:$E$18,6,1)="J",Arbeitgeberkosten!Q7:Q18,0)) -> 0
A120: Anz. Kinder | B120: =Datenausgabe!B36 -> 0 | C120: =Datenausgabe!C36 -> 0 | D120: =Datenausgabe!D36 -> 0 | E120: =Datenausgabe!E36 -> 0 | F120: =Datenausgabe!F36 -> 0 | G120: =Datenausgabe!G36 -> 0 | H120: =Datenausgabe!H36 -> 0 | I120: =Datenausgabe!I36 -> 0 | J120: =Datenausgabe!J36 -> 0 | K120: =Datenausgabe!K36 -> 0 | L120: =Datenausgabe!L36 -> 0 | M120: =Datenausgabe!M36 -> 0
A121: TZ Faktor | B121: =Datenausgabe!B20/Datenausgabe!B21 -> 1 | C121: =Datenausgabe!C20/Datenausgabe!C21 -> 1 | D121: =Datenausgabe!D20/Datenausgabe!D21 -> 1 | E121: =Datenausgabe!E20/Datenausgabe!E21 -> 1 | F121: =Datenausgabe!F20/Datenausgabe!F21 -> 1 | G121: =Datenausgabe!G20/Datenausgabe!G21 -> 1 | H121: =Datenausgabe!H20/Datenausgabe!H21 -> 1 | I121: =Datenausgabe!I20/Datenausgabe!I21 -> 1 | J121: =Datenausgabe!J20/Datenausgabe!J21 -> 1 | K121: =Datenausgabe!K20/Datenausgabe!K21 -> 1 | L121: =Datenausgabe!L20/Datenausgabe!L21 -> 1 | M121: =Datenausgabe!M20/Datenausgabe!M21 -> 1
A122: Bemessungsgrdl. Monat 1 | B122: =IF(Datenausgabe!B$68,HLOOKUP(Datenausgabe!B72,$B$118:$M$119,2,0),0) -> 0 | C122: =IF(Datenausgabe!C$68,HLOOKUP(Datenausgabe!C72,$B$118:$M$119,2,0),0) -> 0 | D122: =IF(Datenausgabe!D$68,HLOOKUP(Datenausgabe!D72,$B$118:$M$119,2,0),0) -> 0 | E122: =IF(Datenausgabe!E$68,HLOOKUP(Datenausgabe!E72,$B$118:$M$119,2,0),0) -> 0 | F122: =IF(Datenausgabe!F$68,HLOOKUP(Datenausgabe!F72,$B$118:$M$119,2,0),0) -> 0 | G122: =IF(Datenausgabe!G$68,HLOOKUP(Datenausgabe!G72,$B$118:$M$119,2,0),0) -> 0 | H122: =IF(Datenausgabe!H$68,HLOOKUP(Datenausgabe!H72,$B$118:$M$119,2,0),0) -> 0 | I122: =IF(Datenausgabe!I$68,HLOOKUP(Datenausgabe!I72,$B$118:$M$119,2,0),0) -> 0 | J122: =IF(Datenausgabe!J$68,HLOOKUP(Datenausgabe!J72,$B$118:$M$119,2,0),0) -> 0 | K122: =IF(Datenausgabe!K$68,HLOOKUP(Datenausgabe!K72,$B$118:$M$119,2,0),0) -> 0 | L122: =IF(Datenausgabe!L$68,HLOOKUP(Datenausgabe!L72,$B$118:$M$119,2,0),0) -> 0 | M122: =IF(Datenausgabe!M$68,HLOOKUP(Datenausgabe!M72,$B$118:$M$119,2,0),0) -> 0
A123: Bemessungsgrdl. Monat 2 | B123: =IF(Datenausgabe!B$68,HLOOKUP(Datenausgabe!B73,$B$118:$M$119,2,0),0) -> 0 | C123: =IF(Datenausgabe!C$68,HLOOKUP(Datenausgabe!C73,$B$118:$M$119,2,0),0) -> 0 | D123: =IF(Datenausgabe!D$68,HLOOKUP(Datenausgabe!D73,$B$118:$M$119,2,0),0) -> 0 | E123: =IF(Datenausgabe!E$68,HLOOKUP(Datenausgabe!E73,$B$118:$M$119,2,0),0) -> 0 | F123: =IF(Datenausgabe!F$68,HLOOKUP(Datenausgabe!F73,$B$118:$M$119,2,0),0) -> 0 | G123: =IF(Datenausgabe!G$68,HLOOKUP(Datenausgabe!G73,$B$118:$M$119,2,0),0) -> 0 | H123: =IF(Datenausgabe!H$68,HLOOKUP(Datenausgabe!H73,$B$118:$M$119,2,0),0) -> 0 | I123: =IF(Datenausgabe!I$68,HLOOKUP(Datenausgabe!I73,$B$118:$M$119,2,0),0) -> 0 | J123: =IF(Datenausgabe!J$68,HLOOKUP(Datenausgabe!J73,$B$118:$M$119,2,0),0) -> 0 | K123: =IF(Datenausgabe!K$68,HLOOKUP(Datenausgabe!K73,$B$118:$M$119,2,0),0) -> 0 | L123: =IF(Datenausgabe!L$68,HLOOKUP(Datenausgabe!L73,$B$118:$M$119,2,0),0) -> 0 | M123: =IF(Datenausgabe!M$68,HLOOKUP(Datenausgabe!M73,$B$118:$M$119,2,0),0) -> 0
A124: Bemessungsgrdl. Monat 3 | B124: =IF(Datenausgabe!B$68,HLOOKUP(Datenausgabe!B74,$B$118:$M$119,2,0),0) -> 0 | C124: =IF(Datenausgabe!C$68,HLOOKUP(Datenausgabe!C74,$B$118:$M$119,2,0),0) -> 0 | D124: =IF(Datenausgabe!D$68,HLOOKUP(Datenausgabe!D74,$B$118:$M$119,2,0),0) -> 0 | E124: =IF(Datenausgabe!E$68,HLOOKUP(Datenausgabe!E74,$B$118:$M$119,2,0),0) -> 0 | F124: =IF(Datenausgabe!F$68,HLOOKUP(Datenausgabe!F74,$B$118:$M$119,2,0),0) -> 0 | G124: =IF(Datenausgabe!G$68,HLOOKUP(Datenausgabe!G74,$B$118:$M$119,2,0),0) -> 0 | H124: =IF(Datenausgabe!H$68,HLOOKUP(Datenausgabe!H74,$B$118:$M$119,2,0),0) -> 0 | I124: =IF(Datenausgabe!I$68,HLOOKUP(Datenausgabe!I74,$B$118:$M$119,2,0),0) -> 0 | J124: =IF(Datenausgabe!J$68,HLOOKUP(Datenausgabe!J74,$B$118:$M$119,2,0),0) -> 0 | K124: =IF(Datenausgabe!K$68,HLOOKUP(Datenausgabe!K74,$B$118:$M$119,2,0),0) -> 0 | L124: =IF(Datenausgabe!L$68,HLOOKUP(Datenausgabe!L74,$B$118:$M$119,2,0),0) -> 0 | M124: =IF(Datenausgabe!M$68,HLOOKUP(Datenausgabe!M74,$B$118:$M$119,2,0),0) -> 0
A125: Mittelwert: | B125: =AVERAGE(B122:B124) -> 0 | C125: =AVERAGE(C122:C124) -> 0 | D125: 0 | E125: 0 | F125: 0 | G125: 0 | H125: 0 | I125: 0 | J125: 0 | K125: 0 | L125: 0 | M125: 0
A126: Zuwendung % | B126: =IF(Datenausgabe!B78,Datenausgabe!B69/100,VLOOKUP(Datenausgabe!B$6,[2]!Verguetung,26,0)) -> 0.6881 | C126: =IF(Datenausgabe!C78,Datenausgabe!C69/100,VLOOKUP(Datenausgabe!C$6,[2]!Verguetung,26,0)) -> 0.6881 | D126: =IF(Datenausgabe!D78,Datenausgabe!D69/100,VLOOKUP(Datenausgabe!D$6,[3]!Verguetung,26,0)) -> 0.6809 | E126: =IF(Datenausgabe!E78,Datenausgabe!E69/100,VLOOKUP(Datenausgabe!E$6,[3]!Verguetung,26,0)) -> 0.6809 | F126: =IF(Datenausgabe!F78,Datenausgabe!F69/100,VLOOKUP(Datenausgabe!F$6,[3]!Verguetung,26,0)) -> 0.6809 | G126: =IF(Datenausgabe!G78,Datenausgabe!G69/100,VLOOKUP(Datenausgabe!G$6,[3]!Verguetung,26,0)) -> 0.6809 | H126: =IF(Datenausgabe!H78,Datenausgabe!H69/100,VLOOKUP(Datenausgabe!H$6,[3]!Verguetung,26,0)) -> 0.6809 | I126: =IF(Datenausgabe!I78,Datenausgabe!I69/100,VLOOKUP(Datenausgabe!I$6,[3]!Verguetung,26,0)) -> 0.6809 | J126: =IF(Datenausgabe!J78,Datenausgabe!J69/100,VLOOKUP(Datenausgabe!J$6,[3]!Verguetung,26,0)) -> 0.6809 | K126: =IF(Datenausgabe!K78,Datenausgabe!K69/100,VLOOKUP(Datenausgabe!K$6,[3]!Verguetung,26,0)) -> 0.6809 | L126: =IF(Datenausgabe!L78,Datenausgabe!L69/100,VLOOKUP(Datenausgabe!L$6,[3]!Verguetung,26,0)) -> 0.6809 | M126: =IF(Datenausgabe!M78,Datenausgabe!M69/100,VLOOKUP(Datenausgabe!M$6,[3]!Verguetung,26,0)) -> 0.6809
A127: Zuwendung | B127: =IF(Datenausgabe!B75,B125,B122)*B126 -> 0 | C127: =IF(Datenausgabe!C75,C125,C122)*C126 -> 0 | D127: =IF(Datenausgabe!D75,D125,D122)*D126 -> 0 | E127: =IF(Datenausgabe!E75,E125,E122)*E126 -> 0 | F127: =IF(Datenausgabe!F75,F125,F122)*F126 -> 0 | G127: =IF(Datenausgabe!G75,G125,G122)*G126 -> 0 | H127: =IF(Datenausgabe!H75,H125,H122)*H126 -> 0 | I127: =IF(Datenausgabe!I75,I125,I122)*I126 -> 0 | J127: =IF(Datenausgabe!J75,J125,J122)*J126 -> 0 | K127: =IF(Datenausgabe!K75,K125,K122)*K126 -> 0 | L127: =IF(Datenausgabe!L75,L125,L122)*L126 -> 0 | M127: =IF(Datenausgabe!M75,M125,M122)*M126 -> 0
A128: Kinderbetrag kürzen? | B128: =IF(LEFT(Datenausgabe!B4,5)="BBesG",FALSE,TRUE) -> TRUE | C128: =IF(LEFT(Datenausgabe!C4,5)="BBesG",FALSE,TRUE) -> TRUE | D128: =IF(LEFT(Datenausgabe!D4,5)="BBesG",FALSE,TRUE) -> TRUE | E128: =IF(LEFT(Datenausgabe!E4,5)="BBesG",FALSE,TRUE) -> TRUE | F128: =IF(LEFT(Datenausgabe!F4,5)="BBesG",FALSE,TRUE) -> TRUE | G128: =IF(LEFT(Datenausgabe!G4,5)="BBesG",FALSE,TRUE) -> TRUE | H128: =IF(LEFT(Datenausgabe!H4,5)="BBesG",FALSE,TRUE) -> TRUE | I128: =IF(LEFT(Datenausgabe!I4,5)="BBesG",FALSE,TRUE) -> TRUE | J128: =IF(LEFT(Datenausgabe!J4,5)="BBesG",FALSE,TRUE) -> TRUE | K128: =IF(LEFT(Datenausgabe!K4,5)="BBesG",FALSE,TRUE) -> TRUE | L128: =IF(LEFT(Datenausgabe!L4,5)="BBesG",FALSE,TRUE) -> TRUE | M128: =IF(LEFT(Datenausgabe!M4,5)="BBesG",FALSE,TRUE) -> TRUE
A129: Kinderbetrag | B129: =HLOOKUP(Datenausgabe!B72,$B$118:$M$121,3,0)*Datenausgabe!B71*IF(B128,HLOOKUP(Datenausgabe!B72,$B$118:$M$121,4,0),1) -> 0 | C129: =HLOOKUP(Datenausgabe!C72,$B$118:$M$121,3,0)*Datenausgabe!C71*IF(C128,HLOOKUP(Datenausgabe!C72,$B$118:$M$121,4,0),1) -> 0 | D129: =HLOOKUP(Datenausgabe!D72,$B$118:$M$121,3,0)*Datenausgabe!D71*IF(D128,HLOOKUP(Datenausgabe!D72,$B$118:$M$121,4,0),1) -> 0 | E129: =HLOOKUP(Datenausgabe!E72,$B$118:$M$121,3,0)*Datenausgabe!E71*IF(E128,HLOOKUP(Datenausgabe!E72,$B$118:$M$121,4,0),1) -> 0 | F129: =HLOOKUP(Datenausgabe!F72,$B$118:$M$121,3,0)*Datenausgabe!F71*IF(F128,HLOOKUP(Datenausgabe!F72,$B$118:$M$121,4,0),1) -> 0 | G129: =HLOOKUP(Datenausgabe!G72,$B$118:$M$121,3,0)*Datenausgabe!G71*IF(G128,HLOOKUP(Datenausgabe!G72,$B$118:$M$121,4,0),1) -> 0 | H129: =HLOOKUP(Datenausgabe!H72,$B$118:$M$121,3,0)*Datenausgabe!H71*IF(H128,HLOOKUP(Datenausgabe!H72,$B$118:$M$121,4,0),1) -> 0 | I129: =HLOOKUP(Datenausgabe!I72,$B$118:$M$121,3,0)*Datenausgabe!I71*IF(I128,HLOOKUP(Datenausgabe!I72,$B$118:$M$121,4,0),1) -> 0 | J129: =HLOOKUP(Datenausgabe!J72,$B$118:$M$121,3,0)*Datenausgabe!J71*IF(J128,HLOOKUP(Datenausgabe!J72,$B$118:$M$121,4,0),1) -> 0 | K129: =HLOOKUP(Datenausgabe!K72,$B$118:$M$121,3,0)*Datenausgabe!K71*IF(K128,HLOOKUP(Datenausgabe!K72,$B$118:$M$121,4,0),1) -> 0 | L129: =HLOOKUP(Datenausgabe!L72,$B$118:$M$121,3,0)*Datenausgabe!L71*IF(L128,HLOOKUP(Datenausgabe!L72,$B$118:$M$121,4,0),1) -> 0 | M129: =HLOOKUP(Datenausgabe!M72,$B$118:$M$121,3,0)*Datenausgabe!M71*IF(M128,HLOOKUP(Datenausgabe!M72,$B$118:$M$121,4,0),1) -> 0
A130: Weihnachtsgeld Ergebnis | B130: =IF(Datenausgabe!B68,B127+B129,0) -> 0 | C130: =IF(Datenausgabe!C68,C127+C129,0) -> 0 | D130: =IF(Datenausgabe!D68,D127+D129,0) -> 0 | E130: =IF(Datenausgabe!E68,E127+E129,0) -> 0 | F130: =IF(Datenausgabe!F68,F127+F129,0) -> 0 | G130: =IF(Datenausgabe!G68,G127+G129,0) -> 0 | H130: =IF(Datenausgabe!H68,H127+H129,0) -> 0 | I130: =IF(Datenausgabe!I68,I127+I129,0) -> 0 | J130: =IF(Datenausgabe!J68,J127+J129,0) -> 0 | K130: =IF(Datenausgabe!K68,K127+K129,0) -> 0 | L130: =IF(Datenausgabe!L68,L127+L129,0) -> 0 | M130: =IF(Datenausgabe!M68,M127+M129,0) -> 0
A131: Leistungsentgelt
A132: Monatsnummer | B132: =Datenausgabe!B2-1 -> 0 | C132: =Datenausgabe!C2-1 -> 1 | D132: =Datenausgabe!D2-1 -> 2 | E132: =Datenausgabe!E2-1 -> 3 | F132: =Datenausgabe!F2-1 -> 4 | G132: =Datenausgabe!G2-1 -> 5 | H132: =Datenausgabe!H2-1 -> 6 | I132: =Datenausgabe!I2-1 -> 7 | J132: =Datenausgabe!J2-1 -> 8 | K132: =Datenausgabe!K2-1 -> 9 | L132: =Datenausgabe!L2-1 -> 10 | M132: =Datenausgabe!M2-1 -> 11
A133: Bemessungsgrundlage: | B133: =Arbeitgeberkosten!F7+Arbeitgeberkosten!F8 -> 0 | C133: =Arbeitgeberkosten!G7+Arbeitgeberkosten!G8 -> 0 | D133: =Arbeitgeberkosten!H7+Arbeitgeberkosten!H8 -> 0 | E133: =Arbeitgeberkosten!I7+Arbeitgeberkosten!I8 -> 0 | F133: =Arbeitgeberkosten!J7+Arbeitgeberkosten!J8 -> 0 | G133: =Arbeitgeberkosten!K7+Arbeitgeberkosten!K8 -> 0 | H133: =Arbeitgeberkosten!L7+Arbeitgeberkosten!L8 -> 0 | I133: =Arbeitgeberkosten!M7+Arbeitgeberkosten!M8 -> 0 | J133: =Arbeitgeberkosten!N7+Arbeitgeberkosten!N8 -> 0 | K133: =Arbeitgeberkosten!O7+Arbeitgeberkosten!O8 -> 0 | L133: =Arbeitgeberkosten!P7+Arbeitgeberkosten!P8 -> 0 | M133: =Arbeitgeberkosten!Q7+Arbeitgeberkosten!Q8 -> 0
A134: Leistungsentgelt | B134: =IF(Datenausgabe!B91,Datenausgabe!B93,IF(Datenausgabe!B90,0,HLOOKUP(Datenausgabe!B95,$B$132:$M$133,2,0)*Datenausgabe!B94/100)) -> 0 | C134: =IF(Datenausgabe!C91,Datenausgabe!C93,IF(Datenausgabe!C90,0,HLOOKUP(Datenausgabe!C95,$B$132:$M$133,2,0)*Datenausgabe!C94/100)) -> 0 | D134: =IF(Datenausgabe!D91,Datenausgabe!D93,IF(Datenausgabe!D90,0,HLOOKUP(Datenausgabe!D95,$B$132:$M$133,2,0)*Datenausgabe!D94/100)) -> 0 | E134: =IF(Datenausgabe!E91,Datenausgabe!E93,IF(Datenausgabe!E90,0,HLOOKUP(Datenausgabe!E95,$B$132:$M$133,2,0)*Datenausgabe!E94/100)) -> 0 | F134: =IF(Datenausgabe!F91,Datenausgabe!F93,IF(Datenausgabe!F90,0,HLOOKUP(Datenausgabe!F95,$B$132:$M$133,2,0)*Datenausgabe!F94/100)) -> 0 | G134: =IF(Datenausgabe!G91,Datenausgabe!G93,IF(Datenausgabe!G90,0,HLOOKUP(Datenausgabe!G95,$B$132:$M$133,2,0)*Datenausgabe!G94/100)) -> 0 | H134: =IF(Datenausgabe!H91,Datenausgabe!H93,IF(Datenausgabe!H90,0,HLOOKUP(Datenausgabe!H95,$B$132:$M$133,2,0)*Datenausgabe!H94/100)) -> 0 | I134: =IF(Datenausgabe!I91,Datenausgabe!I93,IF(Datenausgabe!I90,0,HLOOKUP(Datenausgabe!I95,$B$132:$M$133,2,0)*Datenausgabe!I94/100)) -> 0 | J134: =IF(Datenausgabe!J91,Datenausgabe!J93,IF(Datenausgabe!J90,0,HLOOKUP(Datenausgabe!J95,$B$132:$M$133,2,0)*Datenausgabe!J94/100)) -> 0 | K134: =IF(Datenausgabe!K91,Datenausgabe!K93,IF(Datenausgabe!K90,0,HLOOKUP(Datenausgabe!K95,$B$132:$M$133,2,0)*Datenausgabe!K94/100)) -> 0 | L134: =IF(Datenausgabe!L91,Datenausgabe!L93,IF(Datenausgabe!L90,0,HLOOKUP(Datenausgabe!L95,$B$132:$M$133,2,0)*Datenausgabe!L94/100)) -> 0 | M134: =IF(Datenausgabe!M91,Datenausgabe!M93,IF(Datenausgabe!M90,0,HLOOKUP(Datenausgabe!M95,$B$132:$M$133,2,0)*Datenausgabe!M94/100)) -> 0
A135: Pauschalsteuern
A136: Für ZVK zu versteuern: | B136: =Arbeitgeberkosten!F47+B279 -> 0 | C136: =Arbeitgeberkosten!G47+C279 -> 0 | D136: =Arbeitgeberkosten!H47+D279 -> 0 | E136: =Arbeitgeberkosten!I47+E279 -> 0 | F136: =Arbeitgeberkosten!J47+F279 -> 0 | G136: =Arbeitgeberkosten!K47+G279 -> 0 | H136: =Arbeitgeberkosten!L47+H279 -> 0 | I136: =Arbeitgeberkosten!M47+I279 -> 0 | J136: =Arbeitgeberkosten!N47+J279 -> 0 | K136: =Arbeitgeberkosten!O47+K279 -> 0 | L136: =Arbeitgeberkosten!P47+L279 -> 0 | M136: =Arbeitgeberkosten!Q47+M279 -> 0
A137: Pausch. LSt | B137: =ROUNDDOWN(B136*Datenausgabe!B112/100,2) -> 0 | C137: =ROUNDDOWN(C136*Datenausgabe!C112/100,2) -> 0 | D137: =ROUNDDOWN(D136*Datenausgabe!D112/100,2) -> 0 | E137: =ROUNDDOWN(E136*Datenausgabe!E112/100,2) -> 0 | F137: =ROUNDDOWN(F136*Datenausgabe!F112/100,2) -> 0 | G137: =ROUNDDOWN(G136*Datenausgabe!G112/100,2) -> 0 | H137: =ROUNDDOWN(H136*Datenausgabe!H112/100,2) -> 0 | I137: =ROUNDDOWN(I136*Datenausgabe!I112/100,2) -> 0 | J137: =ROUNDDOWN(J136*Datenausgabe!J112/100,2) -> 0 | K137: =ROUNDDOWN(K136*Datenausgabe!K112/100,2) -> 0 | L137: =ROUNDDOWN(L136*Datenausgabe!L112/100,2) -> 0 | M137: =ROUNDDOWN(M136*Datenausgabe!M112/100,2) -> 0
A138: Pausch Soli | B138: =ROUNDDOWN(B137*Datenausgabe!B113/100,2) -> 0 | C138: =ROUNDDOWN(C137*Datenausgabe!C113/100,2) -> 0 | D138: =ROUNDDOWN(D137*Datenausgabe!D113/100,2) -> 0 | E138: =ROUNDDOWN(E137*Datenausgabe!E113/100,2) -> 0 | F138: =ROUNDDOWN(F137*Datenausgabe!F113/100,2) -> 0 | G138: =ROUNDDOWN(G137*Datenausgabe!G113/100,2) -> 0 | H138: =ROUNDDOWN(H137*Datenausgabe!H113/100,2) -> 0 | I138: =ROUNDDOWN(I137*Datenausgabe!I113/100,2) -> 0 | J138: =ROUNDDOWN(J137*Datenausgabe!J113/100,2) -> 0 | K138: =ROUNDDOWN(K137*Datenausgabe!K113/100,2) -> 0 | L138: =ROUNDDOWN(L137*Datenausgabe!L113/100,2) -> 0 | M138: =ROUNDDOWN(M137*Datenausgabe!M113/100,2) -> 0
A139: Pausch KiSt | B139: =ROUNDDOWN(B137*Datenausgabe!B114/100,2) -> 0 | C139: =ROUNDDOWN(C137*Datenausgabe!C114/100,2) -> 0 | D139: =ROUNDDOWN(D137*Datenausgabe!D114/100,2) -> 0 | E139: =ROUNDDOWN(E137*Datenausgabe!E114/100,2) -> 0 | F139: =ROUNDDOWN(F137*Datenausgabe!F114/100,2) -> 0 | G139: =ROUNDDOWN(G137*Datenausgabe!G114/100,2) -> 0 | H139: =ROUNDDOWN(H137*Datenausgabe!H114/100,2) -> 0 | I139: =ROUNDDOWN(I137*Datenausgabe!I114/100,2) -> 0 | J139: =ROUNDDOWN(J137*Datenausgabe!J114/100,2) -> 0 | K139: =ROUNDDOWN(K137*Datenausgabe!K114/100,2) -> 0 | L139: =ROUNDDOWN(L137*Datenausgabe!L114/100,2) -> 0 | M139: =ROUNDDOWN(M137*Datenausgabe!M114/100,2) -> 0
A140: Pauschalsteuer ZVK gesamt | B140: =SUM(B137:B139) -> 0 | C140: =SUM(C137:C139) -> 0 | D140: 0 | E140: 0 | F140: 0 | G140: 0 | H140: 0 | I140: 0 | J140: 0 | K140: 0 | L140: 0 | M140: 0
A141: Für Zulagen Pauschal zu verst. | B141: =SUM(IF(MID(Arbeitgeberkosten!$E$7:$E$22,2,1)="P",Arbeitgeberkosten!F7:F22,0)) -> 0 | C141: =SUM(IF(MID(Arbeitgeberkosten!$E$7:$E$22,2,1)="P",Arbeitgeberkosten!G7:G22,0)) -> 0 | D141: =SUM(IF(MID(Arbeitgeberkosten!$E$7:$E$22,2,1)="P",Arbeitgeberkosten!H7:H22,0)) -> 0 | E141: =SUM(IF(MID(Arbeitgeberkosten!$E$7:$E$22,2,1)="P",Arbeitgeberkosten!I7:I22,0)) -> 0 | F141: =SUM(IF(MID(Arbeitgeberkosten!$E$7:$E$22,2,1)="P",Arbeitgeberkosten!J7:J22,0)) -> 0 | G141: =SUM(IF(MID(Arbeitgeberkosten!$E$7:$E$22,2,1)="P",Arbeitgeberkosten!K7:K22,0)) -> 0 | H141: =SUM(IF(MID(Arbeitgeberkosten!$E$7:$E$22,2,1)="P",Arbeitgeberkosten!L7:L22,0)) -> 0 | I141: =SUM(IF(MID(Arbeitgeberkosten!$E$7:$E$22,2,1)="P",Arbeitgeberkosten!M7:M22,0)) -> 0 | J141: =SUM(IF(MID(Arbeitgeberkosten!$E$7:$E$22,2,1)="P",Arbeitgeberkosten!N7:N22,0)) -> 0 | K141: =SUM(IF(MID(Arbeitgeberkosten!$E$7:$E$22,2,1)="P",Arbeitgeberkosten!O7:O22,0)) -> 0 | L141: =SUM(IF(MID(Arbeitgeberkosten!$E$7:$E$22,2,1)="P",Arbeitgeberkosten!P7:P22,0)) -> 0 | M141: =SUM(IF(MID(Arbeitgeberkosten!$E$7:$E$22,2,1)="P",Arbeitgeberkosten!Q7:Q22,0)) -> 0
A142: Pausch. LSt | B142: =ROUNDDOWN(B141*Datenausgabe!B115/100,2) -> 0 | C142: =ROUNDDOWN(C141*Datenausgabe!C115/100,2) -> 0 | D142: =ROUNDDOWN(D141*Datenausgabe!D115/100,2) -> 0 | E142: =ROUNDDOWN(E141*Datenausgabe!E115/100,2) -> 0 | F142: =ROUNDDOWN(F141*Datenausgabe!F115/100,2) -> 0 | G142: =ROUNDDOWN(G141*Datenausgabe!G115/100,2) -> 0 | H142: =ROUNDDOWN(H141*Datenausgabe!H115/100,2) -> 0 | I142: =ROUNDDOWN(I141*Datenausgabe!I115/100,2) -> 0 | J142: =ROUNDDOWN(J141*Datenausgabe!J115/100,2) -> 0 | K142: =ROUNDDOWN(K141*Datenausgabe!K115/100,2) -> 0 | L142: =ROUNDDOWN(L141*Datenausgabe!L115/100,2) -> 0 | M142: =ROUNDDOWN(M141*Datenausgabe!M115/100,2) -> 0
A143: Pausch Soli | B143: =ROUNDDOWN(B142*Datenausgabe!B116/100,2) -> 0 | C143: =ROUNDDOWN(C142*Datenausgabe!C116/100,2) -> 0 | D143: =ROUNDDOWN(D142*Datenausgabe!D116/100,2) -> 0 | E143: =ROUNDDOWN(E142*Datenausgabe!E116/100,2) -> 0 | F143: =ROUNDDOWN(F142*Datenausgabe!F116/100,2) -> 0 | G143: =ROUNDDOWN(G142*Datenausgabe!G116/100,2) -> 0 | H143: =ROUNDDOWN(H142*Datenausgabe!H116/100,2) -> 0 | I143: =ROUNDDOWN(I142*Datenausgabe!I116/100,2) -> 0 | J143: =ROUNDDOWN(J142*Datenausgabe!J116/100,2) -> 0 | K143: =ROUNDDOWN(K142*Datenausgabe!K116/100,2) -> 0 | L143: =ROUNDDOWN(L142*Datenausgabe!L116/100,2) -> 0 | M143: =ROUNDDOWN(M142*Datenausgabe!M116/100,2) -> 0
A144: Pausch KiSt | B144: =ROUNDDOWN(B142*Datenausgabe!B117/100,2) -> 0 | C144: =ROUNDDOWN(C142*Datenausgabe!C117/100,2) -> 0 | D144: =ROUNDDOWN(D142*Datenausgabe!D117/100,2) -> 0 | E144: =ROUNDDOWN(E142*Datenausgabe!E117/100,2) -> 0 | F144: =ROUNDDOWN(F142*Datenausgabe!F117/100,2) -> 0 | G144: =ROUNDDOWN(G142*Datenausgabe!G117/100,2) -> 0 | H144: =ROUNDDOWN(H142*Datenausgabe!H117/100,2) -> 0 | I144: =ROUNDDOWN(I142*Datenausgabe!I117/100,2) -> 0 | J144: =ROUNDDOWN(J142*Datenausgabe!J117/100,2) -> 0 | K144: =ROUNDDOWN(K142*Datenausgabe!K117/100,2) -> 0 | L144: =ROUNDDOWN(L142*Datenausgabe!L117/100,2) -> 0 | M144: =ROUNDDOWN(M142*Datenausgabe!M117/100,2) -> 0
A145: Pauschalsteuer Zulagen gesamt | B145: =SUM(B142:B144) -> 0 | C145: =SUM(C142:C144) -> 0 | D145: 0 | E145: 0 | F145: 0 | G145: 0 | H145: 0 | I145: 0 | J145: 0 | K145: 0 | L145: 0 | M145: 0
A146: Pauschalsteuer AG gesamt: | B146: =IF(Datenausgabe!B157="VBL",B140,0)+IF(Datenausgabe!B118,B145,0) -> 0 | C146: =IF(Datenausgabe!C157="VBL",C140,0)+IF(Datenausgabe!C118,C145,0) -> 0 | D146: =IF(Datenausgabe!D157="VBL",D140,0)+IF(Datenausgabe!D118,D145,0) -> 0 | E146: =IF(Datenausgabe!E157="VBL",E140,0)+IF(Datenausgabe!E118,E145,0) -> 0 | F146: =IF(Datenausgabe!F157="VBL",F140,0)+IF(Datenausgabe!F118,F145,0) -> 0 | G146: =IF(Datenausgabe!G157="VBL",G140,0)+IF(Datenausgabe!G118,G145,0) -> 0 | H146: =IF(Datenausgabe!H157="VBL",H140,0)+IF(Datenausgabe!H118,H145,0) -> 0 | I146: =IF(Datenausgabe!I157="VBL",I140,0)+IF(Datenausgabe!I118,I145,0) -> 0 | J146: =IF(Datenausgabe!J157="VBL",J140,0)+IF(Datenausgabe!J118,J145,0) -> 0 | K146: =IF(Datenausgabe!K157="VBL",K140,0)+IF(Datenausgabe!K118,K145,0) -> 0 | L146: =IF(Datenausgabe!L157="VBL",L140,0)+IF(Datenausgabe!L118,L145,0) -> 0 | M146: =IF(Datenausgabe!M157="VBL",M140,0)+IF(Datenausgabe!M118,M145,0) -> 0
A147: Pauschalsteuer AN gesamt: | B147: =IF(Datenausgabe!B118,0,B145)+IF(Datenausgabe!B157="KZVK",B140,0) -> 0 | C147: =IF(Datenausgabe!C118,0,C145)+IF(Datenausgabe!C157="KZVK",C140,0) -> 0 | D147: =IF(Datenausgabe!D118,0,D145)+IF(Datenausgabe!D157="KZVK",D140,0) -> 0 | E147: =IF(Datenausgabe!E118,0,E145)+IF(Datenausgabe!E157="KZVK",E140,0) -> 0 | F147: =IF(Datenausgabe!F118,0,F145)+IF(Datenausgabe!F157="KZVK",F140,0) -> 0 | G147: =IF(Datenausgabe!G118,0,G145)+IF(Datenausgabe!G157="KZVK",G140,0) -> 0 | H147: =IF(Datenausgabe!H118,0,H145)+IF(Datenausgabe!H157="KZVK",H140,0) -> 0 | I147: =IF(Datenausgabe!I118,0,I145)+IF(Datenausgabe!I157="KZVK",I140,0) -> 0 | J147: =IF(Datenausgabe!J118,0,J145)+IF(Datenausgabe!J157="KZVK",J140,0) -> 0 | K147: =IF(Datenausgabe!K118,0,K145)+IF(Datenausgabe!K157="KZVK",K140,0) -> 0 | L147: =IF(Datenausgabe!L118,0,L145)+IF(Datenausgabe!L157="KZVK",L140,0) -> 0 | M147: =IF(Datenausgabe!M118,0,M145)+IF(Datenausgabe!M157="KZVK",M140,0) -> 0
A148: SV Brutto
A149: SVBrutto: | B149: =Arbeitgeberkosten!F28 -> 6.65 | C149: =Arbeitgeberkosten!G28 -> 6.65 | D149: =Arbeitgeberkosten!H28 -> 6.65 | E149: =Arbeitgeberkosten!I28 -> 6.65 | F149: =Arbeitgeberkosten!J28 -> 6.65 | G149: =Arbeitgeberkosten!K28 -> 6.65 | H149: =Arbeitgeberkosten!L28 -> 6.65 | I149: =Arbeitgeberkosten!M28 -> 6.65 | J149: =Arbeitgeberkosten!N28 -> 6.65 | K149: =Arbeitgeberkosten!O28 -> 6.65 | L149: =Arbeitgeberkosten!P28 -> 6.65 | M149: =Arbeitgeberkosten!Q28 -> 6.65
A150: Hinzur Verteilen? | B150: =IF(Arbeitgeberkosten!F22>0,TRUE,FALSE) -> FALSE | C150: =IF(Arbeitgeberkosten!G22>0,TRUE,FALSE) -> FALSE | D150: =IF(Arbeitgeberkosten!H22>0,TRUE,FALSE) -> FALSE | E150: =IF(Arbeitgeberkosten!I22>0,TRUE,FALSE) -> FALSE | F150: =IF(Arbeitgeberkosten!J22>0,TRUE,FALSE) -> FALSE | G150: =IF(Arbeitgeberkosten!K22>0,TRUE,FALSE) -> FALSE | H150: =IF(Arbeitgeberkosten!L22>0,TRUE,FALSE) -> FALSE | I150: =IF(Arbeitgeberkosten!M22>0,TRUE,FALSE) -> FALSE | J150: =IF(Arbeitgeberkosten!N22>0,TRUE,FALSE) -> FALSE | K150: =IF(Arbeitgeberkosten!O22>0,TRUE,FALSE) -> FALSE | L150: =IF(Arbeitgeberkosten!P22>0,TRUE,FALSE) -> FALSE | M150: =IF(Arbeitgeberkosten!Q22>0,TRUE,FALSE) -> FALSE
A151: Einmalzahlungen | B151: =SUM(IF(MID(Arbeitgeberkosten!$E$7:$E$22,3,1)="E",Arbeitgeberkosten!F7:F22,0)) -> 0 | C151: =SUM(IF(MID(Arbeitgeberkosten!$E$7:$E$22,3,1)="E",Arbeitgeberkosten!G7:G22,0)) -> 0 | D151: =SUM(IF(MID(Arbeitgeberkosten!$E$7:$E$22,3,1)="E",Arbeitgeberkosten!H7:H22,0)) -> 0 | E151: =SUM(IF(MID(Arbeitgeberkosten!$E$7:$E$22,3,1)="E",Arbeitgeberkosten!I7:I22,0)) -> 0 | F151: =SUM(IF(MID(Arbeitgeberkosten!$E$7:$E$22,3,1)="E",Arbeitgeberkosten!J7:J22,0)) -> 0 | G151: =SUM(IF(MID(Arbeitgeberkosten!$E$7:$E$22,3,1)="E",Arbeitgeberkosten!K7:K22,0)) -> 0 | H151: =SUM(IF(MID(Arbeitgeberkosten!$E$7:$E$22,3,1)="E",Arbeitgeberkosten!L7:L22,0)) -> 0 | I151: =SUM(IF(MID(Arbeitgeberkosten!$E$7:$E$22,3,1)="E",Arbeitgeberkosten!M7:M22,0)) -> 0 | J151: =SUM(IF(MID(Arbeitgeberkosten!$E$7:$E$22,3,1)="E",Arbeitgeberkosten!N7:N22,0)) -> 0 | K151: =SUM(IF(MID(Arbeitgeberkosten!$E$7:$E$22,3,1)="E",Arbeitgeberkosten!O7:O22,0)) -> 0 | L151: =SUM(IF(MID(Arbeitgeberkosten!$E$7:$E$22,3,1)="E",Arbeitgeberkosten!P7:P22,0)) -> 0 | M151: =SUM(IF(MID(Arbeitgeberkosten!$E$7:$E$22,3,1)="E",Arbeitgeberkosten!Q7:Q22,0)) -> 0
A152: Hinzurechnungsbetrag 1 | B152: =Arbeitgeberkosten!F25 -> 0 | C152: =Arbeitgeberkosten!G25 -> 0 | D152: =Arbeitgeberkosten!H25 -> 0 | E152: =Arbeitgeberkosten!I25 -> 0 | F152: =Arbeitgeberkosten!J25 -> 0 | G152: =Arbeitgeberkosten!K25 -> 0 | H152: =Arbeitgeberkosten!L25 -> 0 | I152: =Arbeitgeberkosten!M25 -> 0 | J152: =Arbeitgeberkosten!N25 -> 0 | K152: =Arbeitgeberkosten!O25 -> 0 | L152: =Arbeitgeberkosten!P25 -> 0 | M152: =Arbeitgeberkosten!Q25 -> 0
A153: Hinzurechnungsbetrag 2 | B153: =Arbeitgeberkosten!F27 -> 0 | C153: =Arbeitgeberkosten!G27 -> 0 | D153: =Arbeitgeberkosten!H27 -> 0 | E153: =Arbeitgeberkosten!I27 -> 0 | F153: =Arbeitgeberkosten!J27 -> 0 | G153: =Arbeitgeberkosten!K27 -> 0 | H153: =Arbeitgeberkosten!L27 -> 0 | I153: =Arbeitgeberkosten!M27 -> 0 | J153: =Arbeitgeberkosten!N27 -> 0 | K153: =Arbeitgeberkosten!O27 -> 0 | L153: =Arbeitgeberkosten!P27 -> 0 | M153: =Arbeitgeberkosten!Q27 -> 0
A154: Bereinigtes SVBrutto: | B154: =B149-SUM(B151:B153) -> 6.65 | C154: =C149-SUM(C151:C153) -> 6.65 | D154: 6.65 | E154: 6.65 | F154: 6.65 | G154: 6.65 | H154: 6.65 | I154: 6.65 | J154: 6.65 | K154: 6.65 | L154: 6.65 | M154: 6.65
A155: Hinzur. Betrag 1 Anteil SV Monat | B155: =IF(AND(B154>0,SUM(Arbeitgeberkosten!F19:F21)>=150),ROUNDDOWN(B152*B154/(B154+B151),2),B152) -> 0 | C155: =IF(AND(C154>0,SUM(Arbeitgeberkosten!G19:G21)<=150),ROUNDDOWN(C152*C154/(C154+C151),2),C152) -> 0 | D155: =IF(AND(D154>0,SUM(Arbeitgeberkosten!H19:H21)<=150),ROUNDDOWN(D152*D154/(D154+D151),2),D152) -> 0 | E155: =IF(AND(E154>0,SUM(Arbeitgeberkosten!I19:I21)<=150),ROUNDDOWN(E152*E154/(E154+E151),2),E152) -> 0 | F155: =IF(AND(F154>0,SUM(Arbeitgeberkosten!J19:J21)<=150),ROUNDDOWN(F152*F154/(F154+F151),2),F152) -> 0 | G155: =IF(AND(G154>0,SUM(Arbeitgeberkosten!K19:K21)<=150),ROUNDDOWN(G152*G154/(G154+G151),2),G152) -> 0 | H155: =IF(AND(H154>0,SUM(Arbeitgeberkosten!L19:L21)<=150),ROUNDDOWN(H152*H154/(H154+H151),2),H152) -> 0 | I155: =IF(AND(I154>0,SUM(Arbeitgeberkosten!M19:M21)<=150),ROUNDDOWN(I152*I154/(I154+I151),2),I152) -> 0 | J155: =IF(AND(J154>0,SUM(Arbeitgeberkosten!N19:N21)<=150),ROUNDDOWN(J152*J154/(J154+J151),2),J152) -> 0 | K155: =IF(AND(K154>0,SUM(Arbeitgeberkosten!O19:O21)<=150),ROUNDDOWN(K152*K154/(K154+K151),2),K152) -> 0 | L155: =IF(AND(L154>0,SUM(Arbeitgeberkosten!P19:P21)<=150),ROUNDDOWN(L152*L154/(L154+L151),2),L152) -> 0 | M155: =IF(AND(M154>0,SUM(Arbeitgeberkosten!Q19:Q21)<=150),ROUNDDOWN(M152*M154/(M154+M151),2),M152) -> 0
A156: Hinzur. Betrag 2 Anteil SV Monat | B156: =IF(B154>0,ROUNDDOWN(B153*B154/(B154+B151),2),B153) -> 0 | C156: =IF(C154>0,ROUNDDOWN(C153*C154/(C154+C151),2),C153) -> 0 | D156: 0 | E156: 0 | F156: 0 | G156: 0 | H156: 0 | I156: 0 | J156: 0 | K156: 0 | L156: 0 | M156: 0
A157: Hinzur. Betrag 1 Anteil EGA | B157: =B152-B155 -> 0 | C157: =C152-C155 -> 0 | D157: 0 | E157: 0 | F157: 0 | G157: 0 | H157: 0 | I157: 0 | J157: 0 | K157: 0 | L157: 0 | M157: 0
A158: Hinzur. Betrag 2 Anteil EGA | B158: =B153-B156 -> 0 | C158: =C153-C156 -> 0 | D158: 0 | E158: 0 | F158: 0 | G158: 0 | H158: 0 | I158: 0 | J158: 0 | K158: 0 | L158: 0 | M158: 0
A159: Bemessungsgrenze KV | B159: =Datenausgabe!B133 -> 4687.5 | C159: =Datenausgabe!C133 -> 4687.5 | D159: =Datenausgabe!D133 -> 4687.5 | E159: =Datenausgabe!E133 -> 4687.5 | F159: =Datenausgabe!F133 -> 4687.5 | G159: =Datenausgabe!G133 -> 4687.5 | H159: =Datenausgabe!H133 -> 4687.5 | I159: =Datenausgabe!I133 -> 4687.5 | J159: =Datenausgabe!J133 -> 4687.5 | K159: =Datenausgabe!K133 -> 4687.5 | L159: =Datenausgabe!L133 -> 4687.5 | M159: =Datenausgabe!M133 -> 4687.5
A160: KV = | B160: =IF(Datenausgabe!B129,IF(SUM(B154:B156,IF(B150,0,B157:B158))>B159,B159,SUM(B154:B156,IF(B150,0,B157:B158))),0) -> 6.65 | C160: =IF(Datenausgabe!C129,IF(SUM(C154:C156,IF(C150,0,C157:C158))>C159,C159,SUM(C154:C156,IF(C150,0,C157:C158))),0) -> 6.65 | D160: =IF(Datenausgabe!D129,IF(SUM(D154:D156,IF(D150,0,D157:D158))>D159,D159,SUM(D154:D156,IF(D150,0,D157:D158))),0) -> 6.65 | E160: =IF(Datenausgabe!E129,IF(SUM(E154:E156,IF(E150,0,E157:E158))>E159,E159,SUM(E154:E156,IF(E150,0,E157:E158))),0) -> 6.65 | F160: =IF(Datenausgabe!F129,IF(SUM(F154:F156,IF(F150,0,F157:F158))>F159,F159,SUM(F154:F156,IF(F150,0,F157:F158))),0) -> 6.65 | G160: =IF(Datenausgabe!G129,IF(SUM(G154:G156,IF(G150,0,G157:G158))>G159,G159,SUM(G154:G156,IF(G150,0,G157:G158))),0) -> 6.65 | H160: =IF(Datenausgabe!H129,IF(SUM(H154:H156,IF(H150,0,H157:H158))>H159,H159,SUM(H154:H156,IF(H150,0,H157:H158))),0) -> 6.65 | I160: =IF(Datenausgabe!I129,IF(SUM(I154:I156,IF(I150,0,I157:I158))>I159,I159,SUM(I154:I156,IF(I150,0,I157:I158))),0) -> 6.65 | J160: =IF(Datenausgabe!J129,IF(SUM(J154:J156,IF(J150,0,J157:J158))>J159,J159,SUM(J154:J156,IF(J150,0,J157:J158))),0) -> 6.65 | K160: =IF(Datenausgabe!K129,IF(SUM(K154:K156,IF(K150,0,K157:K158))>K159,K159,SUM(K154:K156,IF(K150,0,K157:K158))),0) -> 6.65 | L160: =IF(Datenausgabe!L129,IF(SUM(L154:L156,IF(L150,0,L157:L158))>L159,L159,SUM(L154:L156,IF(L150,0,L157:L158))),0) -> 6.65 | M160: =IF(Datenausgabe!M129,IF(SUM(M154:M156,IF(M150,0,M157:M158))>M159,M159,SUM(M154:M156,IF(M150,0,M157:M158))),0) -> 6.65
A161: Bemessungsgrenze RV | B161: =Datenausgabe!B134 -> 6900 | C161: =Datenausgabe!C134 -> 6900 | D161: =Datenausgabe!D134 -> 6900 | E161: =Datenausgabe!E134 -> 6900 | F161: =Datenausgabe!F134 -> 6900 | G161: =Datenausgabe!G134 -> 6900 | H161: =Datenausgabe!H134 -> 6900 | I161: =Datenausgabe!I134 -> 6900 | J161: =Datenausgabe!J134 -> 6900 | K161: =Datenausgabe!K134 -> 6900 | L161: =Datenausgabe!L134 -> 6900 | M161: =Datenausgabe!M134 -> 6900
A162: RV = | B162: =IF(Datenausgabe!B129,IF(SUM(B154:B156,IF(B150,0,B157:B158))>B161,B161,SUM(B154:B156,IF(B150,0,B157:B158))),0) -> 6.65 | C162: =IF(Datenausgabe!C129,IF(SUM(C154:C156,IF(C150,0,C157:C158))>C161,C161,SUM(C154:C156,IF(C150,0,C157:C158))),0) -> 6.65 | D162: =IF(Datenausgabe!D129,IF(SUM(D154:D156,IF(D150,0,D157:D158))>D161,D161,SUM(D154:D156,IF(D150,0,D157:D158))),0) -> 6.65 | E162: =IF(Datenausgabe!E129,IF(SUM(E154:E156,IF(E150,0,E157:E158))>E161,E161,SUM(E154:E156,IF(E150,0,E157:E158))),0) -> 6.65 | F162: =IF(Datenausgabe!F129,IF(SUM(F154:F156,IF(F150,0,F157:F158))>F161,F161,SUM(F154:F156,IF(F150,0,F157:F158))),0) -> 6.65 | G162: =IF(Datenausgabe!G129,IF(SUM(G154:G156,IF(G150,0,G157:G158))>G161,G161,SUM(G154:G156,IF(G150,0,G157:G158))),0) -> 6.65 | H162: =IF(Datenausgabe!H129,IF(SUM(H154:H156,IF(H150,0,H157:H158))>H161,H161,SUM(H154:H156,IF(H150,0,H157:H158))),0) -> 6.65 | I162: =IF(Datenausgabe!I129,IF(SUM(I154:I156,IF(I150,0,I157:I158))>I161,I161,SUM(I154:I156,IF(I150,0,I157:I158))),0) -> 6.65 | J162: =IF(Datenausgabe!J129,IF(SUM(J154:J156,IF(J150,0,J157:J158))>J161,J161,SUM(J154:J156,IF(J150,0,J157:J158))),0) -> 6.65 | K162: =IF(Datenausgabe!K129,IF(SUM(K154:K156,IF(K150,0,K157:K158))>K161,K161,SUM(K154:K156,IF(K150,0,K157:K158))),0) -> 6.65 | L162: =IF(Datenausgabe!L129,IF(SUM(L154:L156,IF(L150,0,L157:L158))>L161,L161,SUM(L154:L156,IF(L150,0,L157:L158))),0) -> 6.65 | M162: =IF(Datenausgabe!M129,IF(SUM(M154:M156,IF(M150,0,M157:M158))>M161,M161,SUM(M154:M156,IF(M150,0,M157:M158))),0) -> 6.65
A163: SV Brutto EGA-2
A164: Anteilige KV BBG | B164: =Datenausgabe!B$2*Datenausgabe!B133 -> 4687.5 | C164: =Datenausgabe!C$2*Datenausgabe!C133 -> 9375 | D164: =Datenausgabe!D$2*Datenausgabe!D133 -> 14062.5 | E164: =Datenausgabe!E$2*Datenausgabe!E133 -> 18750 | F164: =Datenausgabe!F$2*Datenausgabe!F133 -> 23437.5 | G164: =Datenausgabe!G$2*Datenausgabe!G133 -> 28125 | H164: =Datenausgabe!H$2*Datenausgabe!H133 -> 32812.5 | I164: =Datenausgabe!I$2*Datenausgabe!I133 -> 37500 | J164: =Datenausgabe!J$2*Datenausgabe!J133 -> 42187.5 | K164: =Datenausgabe!K$2*Datenausgabe!K133 -> 46875 | L164: =Datenausgabe!L$2*Datenausgabe!L133 -> 51562.5 | M164: =Datenausgabe!M$2*Datenausgabe!M133 -> 56250
A165: Anteilige RV BBG | B165: =Datenausgabe!B$2*Datenausgabe!B134 -> 6900 | C165: =Datenausgabe!C$2*Datenausgabe!C134 -> 13800 | D165: =Datenausgabe!D$2*Datenausgabe!D134 -> 20700 | E165: =Datenausgabe!E$2*Datenausgabe!E134 -> 27600 | F165: =Datenausgabe!F$2*Datenausgabe!F134 -> 34500 | G165: =Datenausgabe!G$2*Datenausgabe!G134 -> 41400 | H165: =Datenausgabe!H$2*Datenausgabe!H134 -> 48300 | I165: =Datenausgabe!I$2*Datenausgabe!I134 -> 55200 | J165: =Datenausgabe!J$2*Datenausgabe!J134 -> 62100 | K165: =Datenausgabe!K$2*Datenausgabe!K134 -> 69000 | L165: =Datenausgabe!L$2*Datenausgabe!L134 -> 75900 | M165: =Datenausgabe!M$2*Datenausgabe!M134 -> 82800
A166: EZ mit Hinzurechnungsanteilen | B166: =B151+IF(B150,SUM(B157:B158),0) -> 0 | C166: =C151+IF(C150,SUM(C157:C158),0) -> 0 | D166: 0 | E166: 0 | F166: 0 | G166: 0 | H166: 0 | I166: 0 | J166: 0 | K166: 0 | L166: 0 | M166: 0
A167: Bis einschl.. diesen Monat verbr. KV | B167: =SUM(Arbeitgeberkosten!$F$29:F29)+SUM(Arbeitgeberkosten!$E$31:E31) -> 6.65 | C167: =SUM(Arbeitgeberkosten!$F$29:G29)+SUM(Arbeitgeberkosten!$E$31:F31) -> 13.3 | D167: =SUM(Arbeitgeberkosten!$F$29:H29)+SUM(Arbeitgeberkosten!$E$31:G31) -> 19.95 | E167: =SUM(Arbeitgeberkosten!$F$29:I29)+SUM(Arbeitgeberkosten!$E$31:H31) -> 26.6 | F167: =SUM(Arbeitgeberkosten!$F$29:J29)+SUM(Arbeitgeberkosten!$E$31:I31) -> 33.25 | G167: =SUM(Arbeitgeberkosten!$F$29:K29)+SUM(Arbeitgeberkosten!$E$31:J31) -> 39.9 | H167: =SUM(Arbeitgeberkosten!$F$29:L29)+SUM(Arbeitgeberkosten!$E$31:K31) -> 46.55 | I167: =SUM(Arbeitgeberkosten!$F$29:M29)+SUM(Arbeitgeberkosten!$E$31:L31) -> 53.2 | J167: =SUM(Arbeitgeberkosten!$F$29:N29)+SUM(Arbeitgeberkosten!$E$31:M31) -> 59.85 | K167: =SUM(Arbeitgeberkosten!$F$29:O29)+SUM(Arbeitgeberkosten!$E$31:N31) -> 66.5 | L167: =SUM(Arbeitgeberkosten!$F$29:P29)+SUM(Arbeitgeberkosten!$E$31:O31) -> 73.15 | M167: =SUM(Arbeitgeberkosten!$F$29:Q29)+SUM(Arbeitgeberkosten!$E$31:P31) -> 79.8
A168: Bis einschl.. diesen Monat verbr. RV | B168: =SUM(Arbeitgeberkosten!$F$30:F30)+SUM(Arbeitgeberkosten!$E$32:E32) -> 6.65 | C168: =SUM(Arbeitgeberkosten!$F$30:G30)+SUM(Arbeitgeberkosten!$E$32:F32) -> 13.3 | D168: =SUM(Arbeitgeberkosten!$F$30:H30)+SUM(Arbeitgeberkosten!$E$32:G32) -> 19.95 | E168: =SUM(Arbeitgeberkosten!$F$30:I30)+SUM(Arbeitgeberkosten!$E$32:H32) -> 26.6 | F168: =SUM(Arbeitgeberkosten!$F$30:J30)+SUM(Arbeitgeberkosten!$E$32:I32) -> 33.25 | G168: =SUM(Arbeitgeberkosten!$F$30:K30)+SUM(Arbeitgeberkosten!$E$32:J32) -> 39.9 | H168: =SUM(Arbeitgeberkosten!$F$30:L30)+SUM(Arbeitgeberkosten!$E$32:K32) -> 46.55 | I168: =SUM(Arbeitgeberkosten!$F$30:M30)+SUM(Arbeitgeberkosten!$E$32:L32) -> 53.2 | J168: =SUM(Arbeitgeberkosten!$F$30:N30)+SUM(Arbeitgeberkosten!$E$32:M32) -> 59.85 | K168: =SUM(Arbeitgeberkosten!$F$30:O30)+SUM(Arbeitgeberkosten!$E$32:N32) -> 66.5 | L168: =SUM(Arbeitgeberkosten!$F$30:P30)+SUM(Arbeitgeberkosten!$E$32:O32) -> 73.15 | M168: =SUM(Arbeitgeberkosten!$F$30:Q30)+SUM(Arbeitgeberkosten!$E$32:P32) -> 79.8
A169: Verfügbar für EZ - KV | B169: =IF(B164>=B167,B164-B167,0) -> 4680.85 | C169: =IF(C164>=C167,C164-C167,0) -> 9361.7 | D169: 14042.55 | E169: 18723.4 | F169: 23404.25 | G169: 28085.1 | H169: 32765.95 | I169: 37446.8 | J169: 42127.65 | K169: 46808.5 | L169: 51489.35 | M169: 56170.2
A170: Verfügbar für EZ - RV | B170: =IF(B165>=B168,B165-B168,0) -> 6893.35 | C170: =IF(C165>=C168,C165-C168,0) -> 13786.7 | D170: 20680.05 | E170: 27573.4 | F170: 34466.75 | G170: 41360.1 | H170: 48253.45 | I170: 55146.8 | J170: 62040.15 | K170: 68933.5 | L170: 75826.85 | M170: 82720.2
A171: EGA 2 KV | B171: =IF(Datenausgabe!B129,IF(B169>B$166,B$166,B169),0) -> 0 | C171: =IF(Datenausgabe!C129,IF(C169>C$166,C$166,C169),0) -> 0 | D171: =IF(Datenausgabe!D129,IF(D169>D$166,D$166,D169),0) -> 0 | E171: =IF(Datenausgabe!E129,IF(E169>E$166,E$166,E169),0) -> 0 | F171: =IF(Datenausgabe!F129,IF(F169>F$166,F$166,F169),0) -> 0 | G171: =IF(Datenausgabe!G129,IF(G169>G$166,G$166,G169),0) -> 0 | H171: =IF(Datenausgabe!H129,IF(H169>H$166,H$166,H169),0) -> 0 | I171: =IF(Datenausgabe!I129,IF(I169>I$166,I$166,I169),0) -> 0 | J171: =IF(Datenausgabe!J129,IF(J169>J$166,J$166,J169),0) -> 0 | K171: =IF(Datenausgabe!K129,IF(K169>K$166,K$166,K169),0) -> 0 | L171: =IF(Datenausgabe!L129,IF(L169>L$166,L$166,L169),0) -> 0 | M171: =IF(Datenausgabe!M129,IF(M169>M$166,M$166,M169),0) -> 0
A172: EGA 2 RV | B172: =IF(Datenausgabe!B129,IF(B170>B$166,B$166,B170),0) -> 0 | C172: =IF(Datenausgabe!C129,IF(C170>C$166,C$166,C170),0) -> 0 | D172: =IF(Datenausgabe!D129,IF(D170>D$166,D$166,D170),0) -> 0 | E172: =IF(Datenausgabe!E129,IF(E170>E$166,E$166,E170),0) -> 0 | F172: =IF(Datenausgabe!F129,IF(F170>F$166,F$166,F170),0) -> 0 | G172: =IF(Datenausgabe!G129,IF(G170>G$166,G$166,G170),0) -> 0 | H172: =IF(Datenausgabe!H129,IF(H170>H$166,H$166,H170),0) -> 0 | I172: =IF(Datenausgabe!I129,IF(I170>I$166,I$166,I170),0) -> 0 | J172: =IF(Datenausgabe!J129,IF(J170>J$166,J$166,J170),0) -> 0 | K172: =IF(Datenausgabe!K129,IF(K170>K$166,K$166,K170),0) -> 0 | L172: =IF(Datenausgabe!L129,IF(L170>L$166,L$166,L170),0) -> 0 | M172: =IF(Datenausgabe!M129,IF(M170>M$166,M$166,M170),0) -> 0
A173: Gleitzone
A174: Tatsächliches Entgelt: | B174: =Arbeitgeberkosten!F28 -> 6.65 | C174: =Arbeitgeberkosten!G28 -> 6.65 | D174: =Arbeitgeberkosten!H28 -> 6.65 | E174: =Arbeitgeberkosten!I28 -> 6.65 | F174: =Arbeitgeberkosten!J28 -> 6.65 | G174: =Arbeitgeberkosten!K28 -> 6.65 | H174: =Arbeitgeberkosten!L28 -> 6.65 | I174: =Arbeitgeberkosten!M28 -> 6.65 | J174: =Arbeitgeberkosten!N28 -> 6.65 | K174: =Arbeitgeberkosten!O28 -> 6.65 | L174: =Arbeitgeberkosten!P28 -> 6.65 | M174: =Arbeitgeberkosten!Q28 -> 6.65
A175: F * 450 + ([850/(850-450)] - [450/(850-450)] * F) * (Arbeitsentgelt - 450)
A177: Beitragspflichtiges Entgelt | B177: =IF(B174<>0,IF(B174>Datenausgabe!B180,Datenausgabe!B178*Datenausgabe!B180+((Datenausgabe!B179/(Datenausgabe!B179-Datenausgabe!B180))-(Datenausgabe!B180/(Datenausgabe!B179-Datenausgabe!B180))*Datenausgabe!B178)*(B174-Datenausgabe!B180),B174*Datenausgabe!B178),0) -> 5.01 | C177: =IF(C174<>0,IF(C174>Datenausgabe!C180,Datenausgabe!C178*Datenausgabe!C180+((Datenausgabe!C179/(Datenausgabe!C179-Datenausgabe!C180))-(Datenausgabe!C180/(Datenausgabe!C179-Datenausgabe!C180))*Datenausgabe!C178)*(C174-Datenausgabe!C180),C174*Datenausgabe!C178),0) -> 5.01 | D177: =IF(D174<>0,IF(D174>Datenausgabe!D180,Datenausgabe!D178*Datenausgabe!D180+((Datenausgabe!D179/(Datenausgabe!D179-Datenausgabe!D180))-(Datenausgabe!D180/(Datenausgabe!D179-Datenausgabe!D180))*Datenausgabe!D178)*(D174-Datenausgabe!D180),D174*Datenausgabe!D178),0) -> 5.01 | E177: =IF(E174<>0,IF(E174>Datenausgabe!E180,Datenausgabe!E178*Datenausgabe!E180+((Datenausgabe!E179/(Datenausgabe!E179-Datenausgabe!E180))-(Datenausgabe!E180/(Datenausgabe!E179-Datenausgabe!E180))*Datenausgabe!E178)*(E174-Datenausgabe!E180),E174*Datenausgabe!E178),0) -> 5.01 | F177: =IF(F174<>0,IF(F174>Datenausgabe!F180,Datenausgabe!F178*Datenausgabe!F180+((Datenausgabe!F179/(Datenausgabe!F179-Datenausgabe!F180))-(Datenausgabe!F180/(Datenausgabe!F179-Datenausgabe!F180))*Datenausgabe!F178)*(F174-Datenausgabe!F180),F174*Datenausgabe!F178),0) -> 5.01 | G177: =IF(G174<>0,IF(G174>Datenausgabe!G180,Datenausgabe!G178*Datenausgabe!G180+((Datenausgabe!G179/(Datenausgabe!G179-Datenausgabe!G180))-(Datenausgabe!G180/(Datenausgabe!G179-Datenausgabe!G180))*Datenausgabe!G178)*(G174-Datenausgabe!G180),G174*Datenausgabe!G178),0) -> 5.01 | H177: =IF(H174<>0,IF(H174>Datenausgabe!H180,Datenausgabe!H178*Datenausgabe!H180+((Datenausgabe!H179/(Datenausgabe!H179-Datenausgabe!H180))-(Datenausgabe!H180/(Datenausgabe!H179-Datenausgabe!H180))*Datenausgabe!H178)*(H174-Datenausgabe!H180),H174*Datenausgabe!H178),0) -> 5.01 | I177: =IF(I174<>0,IF(I174>Datenausgabe!I180,Datenausgabe!I178*Datenausgabe!I180+((Datenausgabe!I179/(Datenausgabe!I179-Datenausgabe!I180))-(Datenausgabe!I180/(Datenausgabe!I179-Datenausgabe!I180))*Datenausgabe!I178)*(I174-Datenausgabe!I180),I174*Datenausgabe!I178),0) -> 5.01 | J177: =IF(J174<>0,IF(J174>Datenausgabe!J180,Datenausgabe!J178*Datenausgabe!J180+((Datenausgabe!J179/(Datenausgabe!J179-Datenausgabe!J180))-(Datenausgabe!J180/(Datenausgabe!J179-Datenausgabe!J180))*Datenausgabe!J178)*(J174-Datenausgabe!J180),J174*Datenausgabe!J178),0) -> 5.01 | K177: =IF(K174<>0,IF(K174>Datenausgabe!K180,Datenausgabe!K178*Datenausgabe!K180+((Datenausgabe!K179/(Datenausgabe!K179-Datenausgabe!K180))-(Datenausgabe!K180/(Datenausgabe!K179-Datenausgabe!K180))*Datenausgabe!K178)*(K174-Datenausgabe!K180),K174*Datenausgabe!K178),0) -> 5.01 | L177: =IF(L174<>0,IF(L174>Datenausgabe!L180,Datenausgabe!L178*Datenausgabe!L180+((Datenausgabe!L179/(Datenausgabe!L179-Datenausgabe!L180))-(Datenausgabe!L180/(Datenausgabe!L179-Datenausgabe!L180))*Datenausgabe!L178)*(L174-Datenausgabe!L180),L174*Datenausgabe!L178),0) -> 5.01 | M177: =IF(M174<>0,IF(M174>Datenausgabe!M180,Datenausgabe!M178*Datenausgabe!M180+((Datenausgabe!M179/(Datenausgabe!M179-Datenausgabe!M180))-(Datenausgabe!M180/(Datenausgabe!M179-Datenausgabe!M180))*Datenausgabe!M178)*(M174-Datenausgabe!M180),M174*Datenausgabe!M178),0) -> 5.01
A178: Gesamtbeitrag:
A179: KV | B179: =B$177*(Datenausgabe!B138+Datenausgabe!B142/2)/100*2 -> 0.79 | C179: =C$177*(Datenausgabe!C138+Datenausgabe!C142/2)/100*2 -> 0.79 | D179: =D$177*(Datenausgabe!D138+Datenausgabe!D142/2)/100*2 -> 0.79 | E179: =E$177*(Datenausgabe!E138+Datenausgabe!E142/2)/100*2 -> 0.79 | F179: =F$177*(Datenausgabe!F138+Datenausgabe!F142/2)/100*2 -> 0.79 | G179: =G$177*(Datenausgabe!G138+Datenausgabe!G142/2)/100*2 -> 0.79 | H179: =H$177*(Datenausgabe!H138+Datenausgabe!H142/2)/100*2 -> 0.79 | I179: =I$177*(Datenausgabe!I138+Datenausgabe!I142/2)/100*2 -> 0.79 | J179: =J$177*(Datenausgabe!J138+Datenausgabe!J142/2)/100*2 -> 0.79 | K179: =K$177*(Datenausgabe!K138+Datenausgabe!K142/2)/100*2 -> 0.79 | L179: =L$177*(Datenausgabe!L138+Datenausgabe!L142/2)/100*2 -> 0.79 | M179: =M$177*(Datenausgabe!M138+Datenausgabe!M142/2)/100*2 -> 0.79
A180: PV | B180: =B$177*Datenausgabe!B139/100*2 -> 0.15 | C180: =C$177*Datenausgabe!C139/100*2 -> 0.15 | D180: =D$177*Datenausgabe!D139/100*2 -> 0.15 | E180: =E$177*Datenausgabe!E139/100*2 -> 0.15 | F180: =F$177*Datenausgabe!F139/100*2 -> 0.15 | G180: =G$177*Datenausgabe!G139/100*2 -> 0.15 | H180: =H$177*Datenausgabe!H139/100*2 -> 0.15 | I180: =I$177*Datenausgabe!I139/100*2 -> 0.15 | J180: =J$177*Datenausgabe!J139/100*2 -> 0.15 | K180: =K$177*Datenausgabe!K139/100*2 -> 0.15 | L180: =L$177*Datenausgabe!L139/100*2 -> 0.15 | M180: =M$177*Datenausgabe!M139/100*2 -> 0.15
A181: RV | B181: =IF(Datenausgabe!B176,B$174,B$177)*Datenausgabe!B140/100*2 -> 0.93 | C181: =IF(Datenausgabe!C176,C$174,C$177)*Datenausgabe!C140/100*2 -> 0.93 | D181: =IF(Datenausgabe!D176,D$174,D$177)*Datenausgabe!D140/100*2 -> 0.93 | E181: =IF(Datenausgabe!E176,E$174,E$177)*Datenausgabe!E140/100*2 -> 0.93 | F181: =IF(Datenausgabe!F176,F$174,F$177)*Datenausgabe!F140/100*2 -> 0.93 | G181: =IF(Datenausgabe!G176,G$174,G$177)*Datenausgabe!G140/100*2 -> 0.93 | H181: =IF(Datenausgabe!H176,H$174,H$177)*Datenausgabe!H140/100*2 -> 0.93 | I181: =IF(Datenausgabe!I176,I$174,I$177)*Datenausgabe!I140/100*2 -> 0.93 | J181: =IF(Datenausgabe!J176,J$174,J$177)*Datenausgabe!J140/100*2 -> 0.93 | K181: =IF(Datenausgabe!K176,K$174,K$177)*Datenausgabe!K140/100*2 -> 0.93 | L181: =IF(Datenausgabe!L176,L$174,L$177)*Datenausgabe!L140/100*2 -> 0.93 | M181: =IF(Datenausgabe!M176,M$174,M$177)*Datenausgabe!M140/100*2 -> 0.93
A182: AV | B182: =B$177*Datenausgabe!B141/100*2 -> 0.12 | C182: =C$177*Datenausgabe!C141/100*2 -> 0.12 | D182: =D$177*Datenausgabe!D141/100*2 -> 0.12 | E182: =E$177*Datenausgabe!E141/100*2 -> 0.12 | F182: =F$177*Datenausgabe!F141/100*2 -> 0.12 | G182: =G$177*Datenausgabe!G141/100*2 -> 0.12 | H182: =H$177*Datenausgabe!H141/100*2 -> 0.12 | I182: =I$177*Datenausgabe!I141/100*2 -> 0.12 | J182: =J$177*Datenausgabe!J141/100*2 -> 0.12 | K182: =K$177*Datenausgabe!K141/100*2 -> 0.12 | L182: =L$177*Datenausgabe!L141/100*2 -> 0.12 | M182: =M$177*Datenausgabe!M141/100*2 -> 0.12
A183: Arbeitgeber
A184: KV | B184: =B$174*(Datenausgabe!B138+(Datenausgabe!B142/2))/100 -> 0.52 | C184: =C$174*(Datenausgabe!C138+(Datenausgabe!C142/2))/100 -> 0.52 | D184: =D$174*(Datenausgabe!D138+(Datenausgabe!D142/2))/100 -> 0.52 | E184: =E$174*(Datenausgabe!E138+(Datenausgabe!E142/2))/100 -> 0.52 | F184: =F$174*(Datenausgabe!F138+(Datenausgabe!F142/2))/100 -> 0.52 | G184: =G$174*(Datenausgabe!G138+(Datenausgabe!G142/2))/100 -> 0.52 | H184: =H$174*(Datenausgabe!H138+(Datenausgabe!H142/2))/100 -> 0.52 | I184: =I$174*(Datenausgabe!I138+(Datenausgabe!I142/2))/100 -> 0.52 | J184: =J$174*(Datenausgabe!J138+(Datenausgabe!J142/2))/100 -> 0.52 | K184: =K$174*(Datenausgabe!K138+(Datenausgabe!K142/2))/100 -> 0.52 | L184: =L$174*(Datenausgabe!L138+(Datenausgabe!L142/2))/100 -> 0.52 | M184: =M$174*(Datenausgabe!M138+(Datenausgabe!M142/2))/100 -> 0.52
A185: PV | B185: =B$174*Datenausgabe!B139/100 -> 0.1 | C185: =C$174*Datenausgabe!C139/100 -> 0.1 | D185: =D$174*Datenausgabe!D139/100 -> 0.1 | E185: =E$174*Datenausgabe!E139/100 -> 0.1 | F185: =F$174*Datenausgabe!F139/100 -> 0.1 | G185: =G$174*Datenausgabe!G139/100 -> 0.1 | H185: =H$174*Datenausgabe!H139/100 -> 0.1 | I185: =I$174*Datenausgabe!I139/100 -> 0.1 | J185: =J$174*Datenausgabe!J139/100 -> 0.1 | K185: =K$174*Datenausgabe!K139/100 -> 0.1 | L185: =L$174*Datenausgabe!L139/100 -> 0.1 | M185: =M$174*Datenausgabe!M139/100 -> 0.1
A186: RV | B186: =B$174*Datenausgabe!B140/100 -> 0.62 | C186: =C$174*Datenausgabe!C140/100 -> 0.62 | D186: =D$174*Datenausgabe!D140/100 -> 0.62 | E186: =E$174*Datenausgabe!E140/100 -> 0.62 | F186: =F$174*Datenausgabe!F140/100 -> 0.62 | G186: =G$174*Datenausgabe!G140/100 -> 0.62 | H186: =H$174*Datenausgabe!H140/100 -> 0.62 | I186: =I$174*Datenausgabe!I140/100 -> 0.62 | J186: =J$174*Datenausgabe!J140/100 -> 0.62 | K186: =K$174*Datenausgabe!K140/100 -> 0.62 | L186: =L$174*Datenausgabe!L140/100 -> 0.62 | M186: =M$174*Datenausgabe!M140/100 -> 0.62
A187: AV | B187: =B$174*Datenausgabe!B141/100 -> 0.08 | C187: =C$174*Datenausgabe!C141/100 -> 0.08 | D187: =D$174*Datenausgabe!D141/100 -> 0.08 | E187: =E$174*Datenausgabe!E141/100 -> 0.08 | F187: =F$174*Datenausgabe!F141/100 -> 0.08 | G187: =G$174*Datenausgabe!G141/100 -> 0.08 | H187: =H$174*Datenausgabe!H141/100 -> 0.08 | I187: =I$174*Datenausgabe!I141/100 -> 0.08 | J187: =J$174*Datenausgabe!J141/100 -> 0.08 | K187: =K$174*Datenausgabe!K141/100 -> 0.08 | L187: =L$174*Datenausgabe!L141/100 -> 0.08 | M187: =M$174*Datenausgabe!M141/100 -> 0.08
A188: Arbeitnehmer
A189: KV | B189: =B179-B184 -> 0.27 | C189: =C179-C184 -> 0.27 | D189: 0.27 | E189: 0.27 | F189: 0.27 | G189: 0.27 | H189: 0.27 | I189: 0.27 | J189: 0.27 | K189: 0.27 | L189: 0.27 | M189: 0.27
A190: PV | B190: =B180-B185+IF(Datenausgabe!B132,0,(B$177*Datenausgabe!B143/100)) -> 0.06 | C190: =C180-C185+IF(Datenausgabe!C132,0,(C$177*Datenausgabe!C143/100)) -> 0.06 | D190: =D180-D185+IF(Datenausgabe!D132,0,(D$177*Datenausgabe!D143/100)) -> 0.06 | E190: =E180-E185+IF(Datenausgabe!E132,0,(E$177*Datenausgabe!E143/100)) -> 0.06 | F190: =F180-F185+IF(Datenausgabe!F132,0,(F$177*Datenausgabe!F143/100)) -> 0.06 | G190: =G180-G185+IF(Datenausgabe!G132,0,(G$177*Datenausgabe!G143/100)) -> 0.06 | H190: =H180-H185+IF(Datenausgabe!H132,0,(H$177*Datenausgabe!H143/100)) -> 0.06 | I190: =I180-I185+IF(Datenausgabe!I132,0,(I$177*Datenausgabe!I143/100)) -> 0.06 | J190: =J180-J185+IF(Datenausgabe!J132,0,(J$177*Datenausgabe!J143/100)) -> 0.06 | K190: =K180-K185+IF(Datenausgabe!K132,0,(K$177*Datenausgabe!K143/100)) -> 0.06 | L190: =L180-L185+IF(Datenausgabe!L132,0,(L$177*Datenausgabe!L143/100)) -> 0.06 | M190: =M180-M185+IF(Datenausgabe!M132,0,(M$177*Datenausgabe!M143/100)) -> 0.06
A191: RV | B191: =B181-B186+(B$177*Datenausgabe!B144/100) -> 0.31 | C191: =C181-C186+(C$177*Datenausgabe!C144/100) -> 0.31 | D191: =D181-D186+(D$177*Datenausgabe!D144/100) -> 0.31 | E191: =E181-E186+(E$177*Datenausgabe!E144/100) -> 0.31 | F191: =F181-F186+(F$177*Datenausgabe!F144/100) -> 0.31 | G191: =G181-G186+(G$177*Datenausgabe!G144/100) -> 0.31 | H191: =H181-H186+(H$177*Datenausgabe!H144/100) -> 0.31 | I191: =I181-I186+(I$177*Datenausgabe!I144/100) -> 0.31 | J191: =J181-J186+(J$177*Datenausgabe!J144/100) -> 0.31 | K191: =K181-K186+(K$177*Datenausgabe!K144/100) -> 0.31 | L191: =L181-L186+(L$177*Datenausgabe!L144/100) -> 0.31 | M191: =M181-M186+(M$177*Datenausgabe!M144/100) -> 0.31
A192: AV | B192: =B182-B187+(B$177*Datenausgabe!B145/100) -> 0.04 | C192: =C182-C187+(C$177*Datenausgabe!C145/100) -> 0.04 | D192: =D182-D187+(D$177*Datenausgabe!D145/100) -> 0.04 | E192: =E182-E187+(E$177*Datenausgabe!E145/100) -> 0.04 | F192: =F182-F187+(F$177*Datenausgabe!F145/100) -> 0.04 | G192: =G182-G187+(G$177*Datenausgabe!G145/100) -> 0.04 | H192: =H182-H187+(H$177*Datenausgabe!H145/100) -> 0.04 | I192: =I182-I187+(I$177*Datenausgabe!I145/100) -> 0.04 | J192: =J182-J187+(J$177*Datenausgabe!J145/100) -> 0.04 | K192: =K182-K187+(K$177*Datenausgabe!K145/100) -> 0.04 | L192: =L182-L187+(L$177*Datenausgabe!L145/100) -> 0.04 | M192: =M182-M187+(M$177*Datenausgabe!M145/100) -> 0.04
A193: KZVK Indiv. Steuerpflicht | B193: =SUM(B196:M196) -> 3312
A194: Umlage | B194: =Arbeitgeberkosten!F46 -> 0 | C194: =Arbeitgeberkosten!G46 -> 0 | D194: =Arbeitgeberkosten!H46 -> 0 | E194: =Arbeitgeberkosten!I46 -> 0 | F194: =Arbeitgeberkosten!J46 -> 0 | G194: =Arbeitgeberkosten!K46 -> 0 | H194: =Arbeitgeberkosten!L46 -> 0 | I194: =Arbeitgeberkosten!M46 -> 0 | J194: =Arbeitgeberkosten!N46 -> 0 | K194: =Arbeitgeberkosten!O46 -> 0 | L194: =Arbeitgeberkosten!P46 -> 0 | M194: =Arbeitgeberkosten!Q46 -> 0
B195: =B193 -> 3312
A196: Steuerfrei | B196: =Datenausgabe!B134*Datenausgabe!B163/100 -> 276 | C196: =Datenausgabe!C134*Datenausgabe!C163/100 -> 276 | D196: =Datenausgabe!D134*Datenausgabe!D163/100 -> 276 | E196: =Datenausgabe!E134*Datenausgabe!E163/100 -> 276 | F196: =Datenausgabe!F134*Datenausgabe!F163/100 -> 276 | G196: =Datenausgabe!G134*Datenausgabe!G163/100 -> 276 | H196: =Datenausgabe!H134*Datenausgabe!H163/100 -> 276 | I196: =Datenausgabe!I134*Datenausgabe!I163/100 -> 276 | J196: =Datenausgabe!J134*Datenausgabe!J163/100 -> 276 | K196: =Datenausgabe!K134*Datenausgabe!K163/100 -> 276 | L196: =Datenausgabe!L134*Datenausgabe!L163/100 -> 276 | M196: =Datenausgabe!M134*Datenausgabe!M163/100 -> 276
A197: Steuerpflichtig | B197: =IF(SUM($B$194:B194)-$B$195>0,SUM($B$194:B194)-$B$195,0) -> 0 | C197: =IF(SUM($B$194:C194)-$B$195>0,SUM($B$194:C194)-$B$195,0) -> 0 | D197: =IF(SUM($B$194:D194)-$B$195>0,SUM($B$194:D194)-$B$195,0) -> 0 | E197: =IF(SUM($B$194:E194)-$B$195>0,SUM($B$194:E194)-$B$195,0) -> 0 | F197: =IF(SUM($B$194:F194)-$B$195>0,SUM($B$194:F194)-$B$195,0) -> 0 | G197: =IF(SUM($B$194:G194)-$B$195>0,SUM($B$194:G194)-$B$195,0) -> 0 | H197: =IF(SUM($B$194:H194)-$B$195>0,SUM($B$194:H194)-$B$195,0) -> 0 | I197: =IF(SUM($B$194:I194)-$B$195>0,SUM($B$194:I194)-$B$195,0) -> 0 | J197: =IF(SUM($B$194:J194)-$B$195>0,SUM($B$194:J194)-$B$195,0) -> 0 | K197: =IF(SUM($B$194:K194)-$B$195>0,SUM($B$194:K194)-$B$195,0) -> 0 | L197: =IF(SUM($B$194:L194)-$B$195>0,SUM($B$194:L194)-$B$195,0) -> 0 | M197: =IF(SUM($B$194:M194)-$B$195>0,SUM($B$194:M194)-$B$195,0) -> 0
A198: Steuern
A199: RV_frei | B199: =IF(OR(LEFT(Datenausgabe!B4,4)="BesO",Datenausgabe!B4="Priester"),2,0) -> 0 | C199: =IF(OR(LEFT(Datenausgabe!C4,4)="BesO",Datenausgabe!C4="Priester"),2,0) -> 0 | D199: =IF(OR(LEFT(Datenausgabe!D4,4)="BesO",Datenausgabe!D4="Priester"),2,0) -> 0 | E199: =IF(OR(LEFT(Datenausgabe!E4,4)="BesO",Datenausgabe!E4="Priester"),2,0) -> 0 | F199: =IF(OR(LEFT(Datenausgabe!F4,4)="BesO",Datenausgabe!F4="Priester"),2,0) -> 0 | G199: =IF(OR(LEFT(Datenausgabe!G4,4)="BesO",Datenausgabe!G4="Priester"),2,0) -> 0 | H199: =IF(OR(LEFT(Datenausgabe!H4,4)="BesO",Datenausgabe!H4="Priester"),2,0) -> 0 | I199: =IF(OR(LEFT(Datenausgabe!I4,4)="BesO",Datenausgabe!I4="Priester"),2,0) -> 0 | J199: =IF(OR(LEFT(Datenausgabe!J4,4)="BesO",Datenausgabe!J4="Priester"),2,0) -> 0 | K199: =IF(OR(LEFT(Datenausgabe!K4,4)="BesO",Datenausgabe!K4="Priester"),2,0) -> 0 | L199: =IF(OR(LEFT(Datenausgabe!L4,4)="BesO",Datenausgabe!L4="Priester"),2,0) -> 0 | M199: =IF(OR(LEFT(Datenausgabe!M4,4)="BesO",Datenausgabe!M4="Priester"),2,0) -> 0
A200: Zahlungszeitraum | B200: 2 | C200: 2 | D200: 2 | E200: 2 | F200: 2 | G200: 2 | H200: 2 | I200: 2 | J200: 2 | K200: 2 | L200: 2 | M200: 2
A201: AltersE | B201: =IF(Datenausgabe!B119,1,0) -> 0 | C201: =IF(Datenausgabe!C119,1,0) -> 0 | D201: =IF(Datenausgabe!D119,1,0) -> 0 | E201: =IF(Datenausgabe!E119,1,0) -> 0 | F201: =IF(Datenausgabe!F119,1,0) -> 0 | G201: =IF(Datenausgabe!G119,1,0) -> 0 | H201: =IF(Datenausgabe!H119,1,0) -> 0 | I201: =IF(Datenausgabe!I119,1,0) -> 0 | J201: =IF(Datenausgabe!J119,1,0) -> 0 | K201: =IF(Datenausgabe!K119,1,0) -> 0 | L201: =IF(Datenausgabe!L119,1,0) -> 0 | M201: =IF(Datenausgabe!M119,1,0) -> 0
... 116 more rows

Sheet Hinweise
A1: V 20.1 | G1: © Bischöfliches Generalvikariat Münster, Gr. 612 Zentrale Gehaltsabrechnungsstelle (ZGASt)
A2: Brutto-Arbeitgeberkosten
A3: Jahres-Nettoberechnung
A4: Monats-Nettoberechnung
A5: Prüfung-GFB
A6: =Datenausgabe!A1 -> 2020
A8: Enthaltene Tarife:
A9: Ø | B9: Kirchliche Arbeits- und Vertragsordnung (KAVO)
A10: Ø | B10: Kirchliche Arbeits- und Vertragsordnung - Neufassung (KAVO nF)
A11: Ø | B11: Sozial und Erziehungsdienst KAVO
A12: Ø | B12: Sozial und Erziehungsdienst TVöD
A13: Ø | B13: Tarifvertrag öffentlicher Dienst (TVöD)
A14: Ø | B14: Tarifvertrag Länder (TV-L)
A15: Ø | B15: Landesbesoldungsordnungen A, B, C, W
A16: Ø | B16: Priester
A20: (sollte bei einem Mausklick auf den Button "Berechnung beginnen" kein Menü erscheinen, aktivieren Sie bitte die Verwendung von Makros!)
A22: Trotz intensiver Testläufe ist nicht auszuschließen, dass diese Excel-Datei Fehler beinhaltet. Es wird keine Gewährleistung oder Haftung für etwaige Schäden, die durch die Installation oder Nutzung entstehen übernommen.
A25: Bedienungshinweise:
A26: 1. | B26: Menü starten und Werte eingeben
A28: 2. | B28: Die Berechnung auf dem Tabellenblatt "Brutto Arbeitgeberkosten" überprüfen und ggf. falsche Beträge
B29: korrigieren. Hierbei insbesondere auf Weihnachtsgeld und Einmalzahlungen achten, da z. B.
B30: beim Weihnachtsgeld manuell vorgegegebene Zulagen nicht automatisch berücksichtigt werden.
A32: 3. | B32: Ergänzen der gelben Eingabefelder (z. B. Name, BDA usw.) Diese sind nicht berechnungsrelevant,
B33: und dienen lediglich zur Information. Ausnahme: Beträge für Privatabzüge!
A35: Fragen und Antworten:
A36: F: | B36: Was soll der 6-stellige Klassifzierungsschlüssel? In Kidicap gibt es doch auch nur 5 Stellen....
A37: A: | B37: Auf der 6. Stelle wird mit einem J bzw. N angegeben, ob der Bruttobestandteil bei der Zuwendungs-
B38: berechnung zu berücksichtigen ist.
A40: F: | B40: Auf den einzelnen Blättern stehen recht wenige Angaben zu den eingegebenen Tarifdaten. Was tun,
B41: wenn im Ausdruck mehr Daten als Information benötigt werden?
A42: A: | B42: Das zusätzliche Tabellenblatt "Berechnungsgundlagen" enthält für jeden Monat die wichtigsten einge-
B43: gebenen Daten. Einfach ausdrucken und mit zur Berechnung legen.

Sheet Arbeitgeberkosten
A1: Brutto Arbeitgeberkosten | F1: =Datenausgabe!A1 -> 2020
B2: Name | E2: Familienstand: | G2: =Datenausgabe!B32 -> ledig | H2: Tarifgruppe: | I2: =Datenausgabe!B6 -> KAVO nF, EG 15 Ü | L2: StKl. | M2: =Datenausgabe!B102 -> 1 | O2: Zuwendung %: | P2: =SUM(IF(Nebenrechnungen!B127:M127>0,Nebenrechnungen!B126:M126,0)) -> 0
B3: Vorname: | E3: Kinder: | G3: =Datenausgabe!B36 -> 0 | H3: Stufe: | I3: =Datenausgabe!B8 -> 1 | L3: KFB: | M3: =Datenausgabe!B103 -> 0
B4: Geburtsdatum: | E4: Personalnummer: | H4: Beschäftigungsumfang: | J4: =Datenausgabe!B20&" / "&Datenausgabe!B21 -> 39 / 39 | L4: ST Freibetr.: | M4: =Datenausgabe!B108 -> 0
A6: Nr. | E6: Klassif. | F6: =DATE(Datenausgabe!$A$1,Datenausgabe!B2,1) -> 2020-01-01 | G6: =DATE(Datenausgabe!$A$1,Datenausgabe!C2,1) -> 2020-02-01 | H6: =DATE(Datenausgabe!$A$1,Datenausgabe!D2,1) -> 2020-03-01 | I6: =DATE(Datenausgabe!$A$1,Datenausgabe!E2,1) -> 2020-04-01 | J6: =DATE(Datenausgabe!$A$1,Datenausgabe!F2,1) -> 2020-05-01 | K6: =DATE(Datenausgabe!$A$1,Datenausgabe!G2,1) -> 2020-06-01 | L6: =DATE(Datenausgabe!$A$1,Datenausgabe!H2,1) -> 2020-07-01 | M6: =DATE(Datenausgabe!$A$1,Datenausgabe!I2,1) -> 2020-08-01 | N6: =DATE(Datenausgabe!$A$1,Datenausgabe!J2,1) -> 2020-09-01 | O6: =DATE(Datenausgabe!$A$1,Datenausgabe!K2,1) -> 2020-10-01 | P6: =DATE(Datenausgabe!$A$1,Datenausgabe!L2,1) -> 2020-11-01 | Q6: =DATE(Datenausgabe!$A$1,Datenausgabe!M2,1) -> 2020-12-01 | R6: Summe | S6: Gesamt
A7: =ROW()-6 -> 1 | B7: Grundvergütung | E7: JJJJ1J | F7: =Nebenrechnungen!B9 -> 0 | G7: =Nebenrechnungen!C9 -> 0 | H7: =Nebenrechnungen!D9 -> 0 | I7: =Nebenrechnungen!E9 -> 0 | J7: =Nebenrechnungen!F9 -> 0 | K7: =Nebenrechnungen!G9 -> 0 | L7: =Nebenrechnungen!H9 -> 0 | M7: =Nebenrechnungen!I9 -> 0 | N7: =Nebenrechnungen!J9 -> 0 | O7: =Nebenrechnungen!K9 -> 0 | P7: =Nebenrechnungen!L9 -> 0 | Q7: =Nebenrechnungen!M9 -> 0 | R7: =SUM(F7:Q7) -> 0
A8: =ROW()-6 -> 2 | B8: Differenz indiv. Stufe | E8: =E7 -> JJJJ1J | F8: =Nebenrechnungen!B15 -> 0 | G8: =Nebenrechnungen!C15 -> 0 | H8: =Nebenrechnungen!D15 -> 0 | I8: =Nebenrechnungen!E15 -> 0 | J8: =Nebenrechnungen!F15 -> 0 | K8: =Nebenrechnungen!G15 -> 0 | L8: =Nebenrechnungen!H15 -> 0 | M8: =Nebenrechnungen!I15 -> 0 | N8: =Nebenrechnungen!J15 -> 0 | O8: =Nebenrechnungen!K15 -> 0 | P8: =Nebenrechnungen!L15 -> 0 | Q8: =Nebenrechnungen!M15 -> 0 | R8: 0
A9: =ROW()-6 -> 3 | B9: OZ ledigen Anteil | E9: JJJJ1J | F9: =Nebenrechnungen!B22 -> 0 | G9: =Nebenrechnungen!C22 -> 0 | H9: =Nebenrechnungen!D22 -> 0 | I9: =Nebenrechnungen!E22 -> 0 | J9: =Nebenrechnungen!F22 -> 0 | K9: =Nebenrechnungen!G22 -> 0 | L9: =Nebenrechnungen!H22 -> 0 | M9: =Nebenrechnungen!I22 -> 0 | N9: =Nebenrechnungen!J22 -> 0 | O9: =Nebenrechnungen!K22 -> 0 | P9: =Nebenrechnungen!L22 -> 0 | Q9: =Nebenrechnungen!M22 -> 0 | R9: 0
A10: 4 | B10: OZ verh. Anteil | E10: JJJJ1J | F10: =Nebenrechnungen!B37 -> 0 | G10: =Nebenrechnungen!C37 -> 0 | H10: =Nebenrechnungen!D37 -> 0 | I10: =Nebenrechnungen!E37 -> 0 | J10: =Nebenrechnungen!F37 -> 0 | K10: =Nebenrechnungen!G37 -> 0 | L10: =Nebenrechnungen!H37 -> 0 | M10: =Nebenrechnungen!I37 -> 0 | N10: =Nebenrechnungen!J37 -> 0 | O10: =Nebenrechnungen!K37 -> 0 | P10: =Nebenrechnungen!L37 -> 0 | Q10: =Nebenrechnungen!M37 -> 0 | R10: 0
A11: 5 | B11: OZ Kinder Anteil | E11: JJJJ1J | F11: =Nebenrechnungen!B54 -> 0 | G11: =Nebenrechnungen!C54 -> 0 | H11: =Nebenrechnungen!D54 -> 0 | I11: =Nebenrechnungen!E54 -> 0 | J11: =Nebenrechnungen!F54 -> 0 | K11: =Nebenrechnungen!G54 -> 0 | L11: =Nebenrechnungen!H54 -> 0 | M11: =Nebenrechnungen!I54 -> 0 | N11: =Nebenrechnungen!J54 -> 0 | O11: =Nebenrechnungen!K54 -> 0 | P11: =Nebenrechnungen!L54 -> 0 | Q11: =Nebenrechnungen!M54 -> 0 | R11: 0
A12: 6 | B12: OZ Kinder erh. | E12: JJJJ1J | F12: =Nebenrechnungen!B65 -> 0 | G12: =Nebenrechnungen!C65 -> 0 | H12: =Nebenrechnungen!D65 -> 0 | I12: =Nebenrechnungen!E65 -> 0 | J12: =Nebenrechnungen!F65 -> 0 | K12: =Nebenrechnungen!G65 -> 0 | L12: =Nebenrechnungen!H65 -> 0 | M12: =Nebenrechnungen!I65 -> 0 | N12: =Nebenrechnungen!J65 -> 0 | O12: =Nebenrechnungen!K65 -> 0 | P12: =Nebenrechnungen!L65 -> 0 | Q12: =Nebenrechnungen!M65 -> 0 | R12: 0
A13: 7 | B13: Allg. Zulage | E13: JJJJ1J | F13: =Nebenrechnungen!B72 -> 0 | G13: =Nebenrechnungen!C72 -> 0 | H13: =Nebenrechnungen!D72 -> 0 | I13: =Nebenrechnungen!E72 -> 0 | J13: =Nebenrechnungen!F72 -> 0 | K13: =Nebenrechnungen!G72 -> 0 | L13: =Nebenrechnungen!H72 -> 0 | M13: =Nebenrechnungen!I72 -> 0 | N13: =Nebenrechnungen!J72 -> 0 | O13: =Nebenrechnungen!K72 -> 0 | P13: =Nebenrechnungen!L72 -> 0 | Q13: =Nebenrechnungen!M72 -> 0 | R13: 0
A14: 8 | B14: VL | E14: JJJN4N | F14: =Nebenrechnungen!B78 -> 6.65 | G14: =Nebenrechnungen!C78 -> 6.65 | H14: =Nebenrechnungen!D78 -> 6.65 | I14: =Nebenrechnungen!E78 -> 6.65 | J14: =Nebenrechnungen!F78 -> 6.65 | K14: =Nebenrechnungen!G78 -> 6.65 | L14: =Nebenrechnungen!H78 -> 6.65 | M14: =Nebenrechnungen!I78 -> 6.65 | N14: =Nebenrechnungen!J78 -> 6.65 | O14: =Nebenrechnungen!K78 -> 6.65 | P14: =Nebenrechnungen!L78 -> 6.65 | Q14: =Nebenrechnungen!M78 -> 6.65 | R14: 79.8
A15: 9 | B15: =Datenausgabe!B48 -> 0 | E15: =Datenausgabe!B56 -> JJJJ1J | F15: =Nebenrechnungen!B84 -> 0 | G15: =Nebenrechnungen!C84 -> 0 | H15: =Nebenrechnungen!D84 -> 0 | I15: =Nebenrechnungen!E84 -> 0 | J15: =Nebenrechnungen!F84 -> 0 | K15: =Nebenrechnungen!G84 -> 0 | L15: =Nebenrechnungen!H84 -> 0 | M15: =Nebenrechnungen!I84 -> 0 | N15: =Nebenrechnungen!J84 -> 0 | O15: =Nebenrechnungen!K84 -> 0 | P15: =Nebenrechnungen!L84 -> 0 | Q15: =Nebenrechnungen!M84 -> 0 | R15: 0
A16: 10 | B16: =Datenausgabe!B49 -> 0 | E16: =Datenausgabe!B57 -> JJJJ1J | F16: =Nebenrechnungen!B90 -> 0 | G16: =Nebenrechnungen!C90 -> 0 | H16: =Nebenrechnungen!D90 -> 0 | I16: =Nebenrechnungen!E90 -> 0 | J16: =Nebenrechnungen!F90 -> 0 | K16: =Nebenrechnungen!G90 -> 0 | L16: =Nebenrechnungen!H90 -> 0 | M16: =Nebenrechnungen!I90 -> 0 | N16: =Nebenrechnungen!J90 -> 0 | O16: =Nebenrechnungen!K90 -> 0 | P16: =Nebenrechnungen!L90 -> 0 | Q16: =Nebenrechnungen!M90 -> 0 | R16: 0
A17: 11 | B17: =Datenausgabe!B50 -> 0 | E17: =Datenausgabe!B58 -> JJJJ1J | F17: =Nebenrechnungen!B96 -> 0 | G17: =Nebenrechnungen!C96 -> 0 | H17: =Nebenrechnungen!D96 -> 0 | I17: =Nebenrechnungen!E96 -> 0 | J17: =Nebenrechnungen!F96 -> 0 | K17: =Nebenrechnungen!G96 -> 0 | L17: =Nebenrechnungen!H96 -> 0 | M17: =Nebenrechnungen!I96 -> 0 | N17: =Nebenrechnungen!J96 -> 0 | O17: =Nebenrechnungen!K96 -> 0 | P17: =Nebenrechnungen!L96 -> 0 | Q17: =Nebenrechnungen!M96 -> 0 | R17: 0
A18: 12 | B18: =Datenausgabe!B51 -> 0 | E18: =Datenausgabe!B59 -> JJJJ1J | F18: =Nebenrechnungen!B102 -> 0 | G18: =Nebenrechnungen!C102 -> 0 | H18: =Nebenrechnungen!D102 -> 0 | I18: =Nebenrechnungen!E102 -> 0 | J18: =Nebenrechnungen!F102 -> 0 | K18: =Nebenrechnungen!G102 -> 0 | L18: =Nebenrechnungen!H102 -> 0 | M18: =Nebenrechnungen!I102 -> 0 | N18: =Nebenrechnungen!J102 -> 0 | O18: =Nebenrechnungen!K102 -> 0 | P18: =Nebenrechnungen!L102 -> 0 | Q18: =Nebenrechnungen!M102 -> 0 | R18: 0
A19: 13 | B19: Urlaubsgeld | E19: =Datenausgabe!B67 -> JJEN1J | F19: =Nebenrechnungen!B108 -> 0 | G19: =Nebenrechnungen!C108 -> 0 | H19: =Nebenrechnungen!D108 -> 0 | I19: =Nebenrechnungen!E108 -> 0 | J19: =Nebenrechnungen!F108 -> 0 | K19: =Nebenrechnungen!G108 -> 0 | L19: =Nebenrechnungen!H108 -> 0 | M19: =Nebenrechnungen!I108 -> 0 | N19: =Nebenrechnungen!J108 -> 0 | O19: =Nebenrechnungen!K108 -> 0 | P19: =Nebenrechnungen!L108 -> 0 | Q19: =Nebenrechnungen!M108 -> 0 | R19: 0
A20: 14 | B20: Leistungsentgelt | E20: JSEJ1N | F20: =Nebenrechnungen!B134 -> 0 | G20: =Nebenrechnungen!C134 -> 0 | H20: =Nebenrechnungen!D134 -> 0 | I20: =Nebenrechnungen!E134 -> 0 | J20: =Nebenrechnungen!F134 -> 0 | K20: =Nebenrechnungen!G134 -> 0 | L20: =Nebenrechnungen!H134 -> 0 | M20: =Nebenrechnungen!I134 -> 0 | N20: =Nebenrechnungen!J134 -> 0 | O20: =Nebenrechnungen!K134 -> 0 | P20: =Nebenrechnungen!L134 -> 0 | Q20: =Nebenrechnungen!M134 -> 0 | R20: 0
A21: 15 | B21: Einmalzahlungen | E21: =Datenausgabe!B81 -> JJEJ1J | F21: =Nebenrechnungen!B116 -> 0 | G21: =Nebenrechnungen!C116 -> 0 | H21: =Nebenrechnungen!D116 -> 0 | I21: =Nebenrechnungen!E116 -> 0 | J21: =Nebenrechnungen!F116 -> 0 | K21: =Nebenrechnungen!G116 -> 0 | L21: =Nebenrechnungen!H116 -> 0 | M21: =Nebenrechnungen!I116 -> 0 | N21: =Nebenrechnungen!J116 -> 0 | O21: =Nebenrechnungen!K116 -> 0 | P21: =Nebenrechnungen!L116 -> 0 | Q21: =Nebenrechnungen!M116 -> 0 | R21: 0
A22: 16 | B22: Sonderzuwendung | E22: =Datenausgabe!B76 -> JSEJ1J | F22: =Nebenrechnungen!B130 -> 0 | G22: =Nebenrechnungen!C130 -> 0 | H22: =Nebenrechnungen!D130 -> 0 | I22: =Nebenrechnungen!E130 -> 0 | J22: =Nebenrechnungen!F130 -> 0 | K22: =Nebenrechnungen!G130 -> 0 | L22: =Nebenrechnungen!H130 -> 0 | M22: =Nebenrechnungen!I130 -> 0 | N22: =Nebenrechnungen!J130 -> 0 | O22: =Nebenrechnungen!K130 -> 0 | P22: =Nebenrechnungen!L130 -> 0 | Q22: =Nebenrechnungen!M130 -> 0 | R22: 0
A23: 17 | B23: SUMME | F23: =SUM(IF(LEFT($E$7:$E$22,1)<>"N",F7:F22,0)) -> 6.65 | G23: =SUM(IF(LEFT($E$7:$E$22,1)<>"N",G7:G22,0)) -> 6.65 | H23: =SUM(IF(LEFT($E$7:$E$22,1)<>"N",H7:H22,0)) -> 6.65 | I23: =SUM(IF(LEFT($E$7:$E$22,1)<>"N",I7:I22,0)) -> 6.65 | J23: =SUM(IF(LEFT($E$7:$E$22,1)<>"N",J7:J22,0)) -> 6.65 | K23: =SUM(IF(LEFT($E$7:$E$22,1)<>"N",K7:K22,0)) -> 6.65 | L23: =SUM(IF(LEFT($E$7:$E$22,1)<>"N",L7:L22,0)) -> 6.65 | M23: =SUM(IF(LEFT($E$7:$E$22,1)<>"N",M7:M22,0)) -> 6.65 | N23: =SUM(IF(LEFT($E$7:$E$22,1)<>"N",N7:N22,0)) -> 6.65 | O23: =SUM(IF(LEFT($E$7:$E$22,1)<>"N",O7:O22,0)) -> 6.65 | P23: =SUM(IF(LEFT($E$7:$E$22,1)<>"N",P7:P22,0)) -> 6.65 | Q23: =SUM(IF(LEFT($E$7:$E$22,1)<>"N",Q7:Q22,0)) -> 6.65 | R23: Ä | S23: =SUM(F23:Q23) -> 79.8
A24: 18 | B24: Umlage ZVK steuerfreier Teil | F24: =IF(Datenausgabe!B156,IF(Datenausgabe!B157="VBL",Nebenrechnungen!B256,Nebenrechnungen!B277),0)*IF(Datenausgabe!B102=6,0,1) -> 0 | G24: =IF(Datenausgabe!C157="VBL",Nebenrechnungen!C256,Nebenrechnungen!C277)*IF(Datenausgabe!C102=6,0,1) -> 0 | H24: =IF(Datenausgabe!D157="VBL",Nebenrechnungen!D256,Nebenrechnungen!D277)*IF(Datenausgabe!D102=6,0,1) -> 0 | I24: =IF(Datenausgabe!E157="VBL",Nebenrechnungen!E256,Nebenrechnungen!E277)*IF(Datenausgabe!E102=6,0,1) -> 0 | J24: =IF(Datenausgabe!F157="VBL",Nebenrechnungen!F256,Nebenrechnungen!F277)*IF(Datenausgabe!F102=6,0,1) -> 0 | K24: =IF(Datenausgabe!G157="VBL",Nebenrechnungen!G256,Nebenrechnungen!G277)*IF(Datenausgabe!G102=6,0,1) -> 0 | L24: =IF(Datenausgabe!H157="VBL",Nebenrechnungen!H256,Nebenrechnungen!H277)*IF(Datenausgabe!H102=6,0,1) -> 0 | M24: =IF(Datenausgabe!I157="VBL",Nebenrechnungen!I256,Nebenrechnungen!I277)*IF(Datenausgabe!I102=6,0,1) -> 0 | N24: =IF(Datenausgabe!J157="VBL",Nebenrechnungen!J256,Nebenrechnungen!J277)*IF(Datenausgabe!J102=6,0,1) -> 0 | O24: =IF(Datenausgabe!K157="VBL",Nebenrechnungen!K256,Nebenrechnungen!K277)*IF(Datenausgabe!K102=6,0,1) -> 0 | P24: =IF(Datenausgabe!L157="VBL",Nebenrechnungen!L256,Nebenrechnungen!L277)*IF(Datenausgabe!L102=6,0,1) -> 0 | Q24: =IF(Datenausgabe!M157="VBL",Nebenrechnungen!M256,Nebenrechnungen!M277)*IF(Datenausgabe!M102=6,0,1) -> 0 | R24: 0
A25: 19 | B25: =IF(Datenausgabe!B157="VBL","Hinzu. Betrag § 1 Abs. 1 S. 4 SvEV","Umlage ZVK pauschverst. Teil") -> Umlage ZVK pauschverst. Teil | F25: =IF(Datenausgabe!B156,IF(Datenausgabe!B157="VBL",Nebenrechnungen!B264,Nebenrechnungen!B279),0)*IF(Datenausgabe!B102=6,0,1) -> 0 | G25: =IF(Datenausgabe!C156,IF(Datenausgabe!C157="VBL",Nebenrechnungen!C264,Nebenrechnungen!C279),0)*IF(Datenausgabe!C102=6,0,1) -> 0 | H25: =IF(Datenausgabe!D156,IF(Datenausgabe!D157="VBL",Nebenrechnungen!D264,Nebenrechnungen!D279),0)*IF(Datenausgabe!D102=6,0,1) -> 0 | I25: =IF(Datenausgabe!E156,IF(Datenausgabe!E157="VBL",Nebenrechnungen!E264,Nebenrechnungen!E279),0)*IF(Datenausgabe!E102=6,0,1) -> 0 | J25: =IF(Datenausgabe!F156,IF(Datenausgabe!F157="VBL",Nebenrechnungen!F264,Nebenrechnungen!F279),0)*IF(Datenausgabe!F102=6,0,1) -> 0 | K25: =IF(Datenausgabe!G156,IF(Datenausgabe!G157="VBL",Nebenrechnungen!G264,Nebenrechnungen!G279),0)*IF(Datenausgabe!G102=6,0,1) -> 0 | L25: =IF(Datenausgabe!H156,IF(Datenausgabe!H157="VBL",Nebenrechnungen!H264,Nebenrechnungen!H279),0)*IF(Datenausgabe!H102=6,0,1) -> 0 | M25: =IF(Datenausgabe!I156,IF(Datenausgabe!I157="VBL",Nebenrechnungen!I264,Nebenrechnungen!I279),0)*IF(Datenausgabe!I102=6,0,1) -> 0 | N25: =IF(Datenausgabe!J156,IF(Datenausgabe!J157="VBL",Nebenrechnungen!J264,Nebenrechnungen!J279),0)*IF(Datenausgabe!J102=6,0,1) -> 0 | O25: =IF(Datenausgabe!K156,IF(Datenausgabe!K157="VBL",Nebenrechnungen!K264,Nebenrechnungen!K279),0)*IF(Datenausgabe!K102=6,0,1) -> 0 | P25: =IF(Datenausgabe!L156,IF(Datenausgabe!L157="VBL",Nebenrechnungen!L264,Nebenrechnungen!L279),0)*IF(Datenausgabe!L102=6,0,1) -> 0 | Q25: =IF(Datenausgabe!M156,IF(Datenausgabe!M157="VBL",Nebenrechnungen!M264,Nebenrechnungen!M279),0)*IF(Datenausgabe!M102=6,0,1) -> 0 | R25: 0
A26: 20 | B26: Umlage ZVK steuerplichtiger Teil | F26: =IF(Datenausgabe!B156,IF(Datenausgabe!B102=6,F46,IF(Datenausgabe!B157="VBL",Nebenrechnungen!B258,Nebenrechnungen!B280)),0) -> 0 | G26: =IF(Datenausgabe!C156,IF(Datenausgabe!C102=6,G46,IF(Datenausgabe!C157="VBL",Nebenrechnungen!C258,Nebenrechnungen!C280)),0) -> 0 | H26: =IF(Datenausgabe!D156,IF(Datenausgabe!D102=6,H46,IF(Datenausgabe!D157="VBL",Nebenrechnungen!D258,Nebenrechnungen!D280)),0) -> 0 | I26: =IF(Datenausgabe!E156,IF(Datenausgabe!E102=6,I46,IF(Datenausgabe!E157="VBL",Nebenrechnungen!E258,Nebenrechnungen!E280)),0) -> 0 | J26: =IF(Datenausgabe!F156,IF(Datenausgabe!F102=6,J46,IF(Datenausgabe!F157="VBL",Nebenrechnungen!F258,Nebenrechnungen!F280)),0) -> 0 | K26: =IF(Datenausgabe!G156,IF(Datenausgabe!G102=6,K46,IF(Datenausgabe!G157="VBL",Nebenrechnungen!G258,Nebenrechnungen!G280)),0) -> 0 | L26: =IF(Datenausgabe!H156,IF(Datenausgabe!H102=6,L46,IF(Datenausgabe!H157="VBL",Nebenrechnungen!H258,Nebenrechnungen!H280)),0) -> 0 | M26: =IF(Datenausgabe!I156,IF(Datenausgabe!I102=6,M46,IF(Datenausgabe!I157="VBL",Nebenrechnungen!I258,Nebenrechnungen!I280)),0) -> 0 | N26: =IF(Datenausgabe!J156,IF(Datenausgabe!J102=6,N46,IF(Datenausgabe!J157="VBL",Nebenrechnungen!J258,Nebenrechnungen!J280)),0) -> 0 | O26: =IF(Datenausgabe!K156,IF(Datenausgabe!K102=6,O46,IF(Datenausgabe!K157="VBL",Nebenrechnungen!K258,Nebenrechnungen!K280)),0) -> 0 | P26: =IF(Datenausgabe!L156,IF(Datenausgabe!L102=6,P46,IF(Datenausgabe!L157="VBL",Nebenrechnungen!L258,Nebenrechnungen!L280)),0) -> 0 | Q26: =IF(Datenausgabe!M156,IF(Datenausgabe!M102=6,Q46,IF(Datenausgabe!M157="VBL",Nebenrechnungen!M258,Nebenrechnungen!M280)),0) -> 0 | R26: 0
A27: 21 | B27: =IF(Datenausgabe!B157="VBL","Hinzu. Betrag § 1 Abs. 1 S. 3 SvEV","Hinzur. Beträge Sozialversicherung") -> Hinzur. Beträge Sozialversicherung | F27: =IF(OR(Datenausgabe!B102=6,Datenausgabe!B185),F46,IF(Datenausgabe!B156,IF(Datenausgabe!B157="KZVK",Nebenrechnungen!B288+Nebenrechnungen!B293,Nebenrechnungen!B269),0)) -> 0 | G27: =IF(OR(Datenausgabe!C102=6,Datenausgabe!C185),G46,IF(Datenausgabe!C156,IF(Datenausgabe!C157="KZVK",Nebenrechnungen!C288+Nebenrechnungen!C293,Nebenrechnungen!C269),0)) -> 0 | H27: =IF(OR(Datenausgabe!D102=6,Datenausgabe!D185),H46,IF(Datenausgabe!D156,IF(Datenausgabe!D157="KZVK",Nebenrechnungen!D288+Nebenrechnungen!D293,Nebenrechnungen!D269),0)) -> 0 | I27: =IF(OR(Datenausgabe!E102=6,Datenausgabe!E185),I46,IF(Datenausgabe!E156,IF(Datenausgabe!E157="KZVK",Nebenrechnungen!E288+Nebenrechnungen!E293,Nebenrechnungen!E269),0)) -> 0 | J27: =IF(OR(Datenausgabe!F102=6,Datenausgabe!F185),J46,IF(Datenausgabe!F156,IF(Datenausgabe!F157="KZVK",Nebenrechnungen!F288+Nebenrechnungen!F293,Nebenrechnungen!F269),0)) -> 0 | K27: =IF(OR(Datenausgabe!G102=6,Datenausgabe!G185),K46,IF(Datenausgabe!G156,IF(Datenausgabe!G157="KZVK",Nebenrechnungen!G288+Nebenrechnungen!G293,Nebenrechnungen!G269),0)) -> 0 | L27: =IF(OR(Datenausgabe!H102=6,Datenausgabe!H185),L46,IF(Datenausgabe!H156,IF(Datenausgabe!H157="KZVK",Nebenrechnungen!H288+Nebenrechnungen!H293,Nebenrechnungen!H269),0)) -> 0 | M27: =IF(OR(Datenausgabe!I102=6,Datenausgabe!I185),M46,IF(Datenausgabe!I156,IF(Datenausgabe!I157="KZVK",Nebenrechnungen!I288+Nebenrechnungen!I293,Nebenrechnungen!I269),0)) -> 0 | N27: =IF(OR(Datenausgabe!J102=6,Datenausgabe!J185),N46,IF(Datenausgabe!J156,IF(Datenausgabe!J157="KZVK",Nebenrechnungen!J288+Nebenrechnungen!J293,Nebenrechnungen!J269),0)) -> 0 | O27: =IF(OR(Datenausgabe!K102=6,Datenausgabe!K185),O46,IF(Datenausgabe!K156,IF(Datenausgabe!K157="KZVK",Nebenrechnungen!K288+Nebenrechnungen!K293,Nebenrechnungen!K269),0)) -> 0 | P27: =IF(OR(Datenausgabe!L102=6,Datenausgabe!L185),P46,IF(Datenausgabe!L156,IF(Datenausgabe!L157="KZVK",Nebenrechnungen!L288+Nebenrechnungen!L293,Nebenrechnungen!L269),0)) -> 0 | Q27: =IF(OR(Datenausgabe!M102=6,Datenausgabe!M185),Q46,IF(Datenausgabe!M156,IF(Datenausgabe!M157="KZVK",Nebenrechnungen!M288+Nebenrechnungen!M293,Nebenrechnungen!M269),0)) -> 0 | R27: 0
A28: 22 | B28: Soz. Vers. pfl. Entgelt | F28: =IF(Datenausgabe!B129,IF(Datenausgabe!B157="VBL",F25+F26+F27,F27)+SUM(IF(MID($E$7:$E$22,3,1)<>"N",F7:F22,0))+(IF(AND(Datenausgabe!B157="KZVK",Datenausgabe!B102<>6),Nebenrechnungen!B318,0)),0) -> 6.65 | G28: =IF(Datenausgabe!C129,IF(Datenausgabe!C157="VBL",G25+G26+G27,G27)+SUM(IF(MID($E$7:$E$22,3,1)<>"N",G7:G22,0))+(IF(AND(Datenausgabe!C157="KZVK",Datenausgabe!C102<>6),Nebenrechnungen!C318,0)),0) -> 6.65 | H28: =IF(Datenausgabe!D129,IF(Datenausgabe!D157="VBL",H25+H26+H27,H27)+SUM(IF(MID($E$7:$E$22,3,1)<>"N",H7:H22,0))+(IF(AND(Datenausgabe!D157="KZVK",Datenausgabe!D102<>6),Nebenrechnungen!D318,0)),0) -> 6.65 | I28: =IF(Datenausgabe!E129,IF(Datenausgabe!E157="VBL",I25+I26+I27,I27)+SUM(IF(MID($E$7:$E$22,3,1)<>"N",I7:I22,0))+(IF(AND(Datenausgabe!E157="KZVK",Datenausgabe!E102<>6),Nebenrechnungen!E318,0)),0) -> 6.65 | J28: =IF(Datenausgabe!F129,IF(Datenausgabe!F157="VBL",J25+J26+J27,J27)+SUM(IF(MID($E$7:$E$22,3,1)<>"N",J7:J22,0))+(IF(AND(Datenausgabe!F157="KZVK",Datenausgabe!F102<>6),Nebenrechnungen!F318,0)),0) -> 6.65 | K28: =IF(Datenausgabe!G129,IF(Datenausgabe!G157="VBL",K25+K26+K27,K27)+SUM(IF(MID($E$7:$E$22,3,1)<>"N",K7:K22,0))+(IF(AND(Datenausgabe!G157="KZVK",Datenausgabe!G102<>6),Nebenrechnungen!G318,0)),0) -> 6.65 | L28: =IF(Datenausgabe!H129,IF(Datenausgabe!H157="VBL",L25+L26+L27,L27)+SUM(IF(MID($E$7:$E$22,3,1)<>"N",L7:L22,0))+(IF(AND(Datenausgabe!H157="KZVK",Datenausgabe!H102<>6),Nebenrechnungen!H318,0)),0) -> 6.65 | M28: =IF(Datenausgabe!I129,IF(Datenausgabe!I157="VBL",M25+M26+M27,M27)+SUM(IF(MID($E$7:$E$22,3,1)<>"N",M7:M22,0))+(IF(AND(Datenausgabe!I157="KZVK",Datenausgabe!I102<>6),Nebenrechnungen!I318,0)),0) -> 6.65 | N28: =IF(Datenausgabe!J129,IF(Datenausgabe!J157="VBL",N25+N26+N27,N27)+SUM(IF(MID($E$7:$E$22,3,1)<>"N",N7:N22,0))+(IF(AND(Datenausgabe!J157="KZVK",Datenausgabe!J102<>6),Nebenrechnungen!J318,0)),0) -> 6.65 | O28: =IF(Datenausgabe!K129,IF(Datenausgabe!K157="VBL",O25+O26+O27,O27)+SUM(IF(MID($E$7:$E$22,3,1)<>"N",O7:O22,0))+(IF(AND(Datenausgabe!K157="KZVK",Datenausgabe!K102<>6),Nebenrechnungen!K318,0)),0) -> 6.65 | P28: =IF(Datenausgabe!L129,IF(Datenausgabe!L157="VBL",P25+P26+P27,P27)+SUM(IF(MID($E$7:$E$22,3,1)<>"N",P7:P22,0))+(IF(AND(Datenausgabe!L157="KZVK",Datenausgabe!L102<>6),Nebenrechnungen!L318,0)),0) -> 6.65 | Q28: =IF(Datenausgabe!M129,IF(Datenausgabe!M157="VBL",Q25+Q26+Q27,Q27)+SUM(IF(MID($E$7:$E$22,3,1)<>"N",Q7:Q22,0))+(IF(AND(Datenausgabe!M157="KZVK",Datenausgabe!M102<>6),Nebenrechnungen!M318,0)),0) -> 6.65 | R28: 79.8
A29: 23 | B29: KV / PV Brutto ohne Einmalzahlungen | F29: =Nebenrechnungen!B160 -> 6.65 | G29: =Nebenrechnungen!C160 -> 6.65 | H29: =Nebenrechnungen!D160 -> 6.65 | I29: =Nebenrechnungen!E160 -> 6.65 | J29: =Nebenrechnungen!F160 -> 6.65 | K29: =Nebenrechnungen!G160 -> 6.65 | L29: =Nebenrechnungen!H160 -> 6.65 | M29: =Nebenrechnungen!I160 -> 6.65 | N29: =Nebenrechnungen!J160 -> 6.65 | O29: =Nebenrechnungen!K160 -> 6.65 | P29: =Nebenrechnungen!L160 -> 6.65 | Q29: =Nebenrechnungen!M160 -> 6.65 | R29: 79.8
A30: 24 | B30: RV / AV Brutto ohne Einmalzahlungen | F30: =Nebenrechnungen!B162 -> 6.65 | G30: =Nebenrechnungen!C162 -> 6.65 | H30: =Nebenrechnungen!D162 -> 6.65 | I30: =Nebenrechnungen!E162 -> 6.65 | J30: =Nebenrechnungen!F162 -> 6.65 | K30: =Nebenrechnungen!G162 -> 6.65 | L30: =Nebenrechnungen!H162 -> 6.65 | M30: =Nebenrechnungen!I162 -> 6.65 | N30: =Nebenrechnungen!J162 -> 6.65 | O30: =Nebenrechnungen!K162 -> 6.65 | P30: =Nebenrechnungen!L162 -> 6.65 | Q30: =Nebenrechnungen!M162 -> 6.65 | R30: 79.8
A31: 25 | B31: KV Anteil SB (EGA-2) | F31: =Nebenrechnungen!B171 -> 0 | G31: =Nebenrechnungen!C171 -> 0 | H31: =Nebenrechnungen!D171 -> 0 | I31: =Nebenrechnungen!E171 -> 0 | J31: =Nebenrechnungen!F171 -> 0 | K31: =Nebenrechnungen!G171 -> 0 | L31: =Nebenrechnungen!H171 -> 0 | M31: =Nebenrechnungen!I171 -> 0 | N31: =Nebenrechnungen!J171 -> 0 | O31: =Nebenrechnungen!K171 -> 0 | P31: =Nebenrechnungen!L171 -> 0 | Q31: =Nebenrechnungen!M171 -> 0 | R31: 0
A32: 26 | B32: RV Anteil SB (EGA-2) | F32: =Nebenrechnungen!B172 -> 0 | G32: =Nebenrechnungen!C172 -> 0 | H32: =Nebenrechnungen!D172 -> 0 | I32: =Nebenrechnungen!E172 -> 0 | J32: =Nebenrechnungen!F172 -> 0 | K32: =Nebenrechnungen!G172 -> 0 | L32: =Nebenrechnungen!H172 -> 0 | M32: =Nebenrechnungen!I172 -> 0 | N32: =Nebenrechnungen!J172 -> 0 | O32: =Nebenrechnungen!K172 -> 0 | P32: =Nebenrechnungen!L172 -> 0 | Q32: =Nebenrechnungen!M172 -> 0 | R32: 0
A33: 27 | B33: Ermäßigtes Gleitzonen Brutto | F33: =IF(Datenausgabe!B175=2,Nebenrechnungen!B177,0) -> 0 | G33: =IF(Datenausgabe!C175=2,Nebenrechnungen!C177,0) -> 0 | H33: =IF(Datenausgabe!D175=2,Nebenrechnungen!D177,0) -> 0 | I33: =IF(Datenausgabe!E175=2,Nebenrechnungen!E177,0) -> 0 | J33: =IF(Datenausgabe!F175=2,Nebenrechnungen!F177,0) -> 0 | K33: =IF(Datenausgabe!G175=2,Nebenrechnungen!G177,0) -> 0 | L33: =IF(Datenausgabe!H175=2,Nebenrechnungen!H177,0) -> 0 | M33: =IF(Datenausgabe!I175=2,Nebenrechnungen!I177,0) -> 0 | N33: =IF(Datenausgabe!J175=2,Nebenrechnungen!J177,0) -> 0 | O33: =IF(Datenausgabe!K175=2,Nebenrechnungen!K177,0) -> 0 | P33: =IF(Datenausgabe!L175=2,Nebenrechnungen!L177,0) -> 0 | Q33: =IF(Datenausgabe!M175=2,Nebenrechnungen!M177,0) -> 0 | R33: 0
A34: 28 | B34: Zus. Vers. pfl. Entgelt | F34: =IF(Datenausgabe!B156,SUM(IF(MID($E$7:$E$22,4,1)="J",F7:F22,0)),0) -> 0 | G34: =IF(Datenausgabe!C156,SUM(IF(MID($E$7:$E$22,4,1)="J",G7:G22,0)),0) -> 0 | H34: =IF(Datenausgabe!D156,SUM(IF(MID($E$7:$E$22,4,1)="J",H7:H22,0)),0) -> 0 | I34: =IF(Datenausgabe!E156,SUM(IF(MID($E$7:$E$22,4,1)="J",I7:I22,0)),0) -> 0 | J34: =IF(Datenausgabe!F156,SUM(IF(MID($E$7:$E$22,4,1)="J",J7:J22,0)),0) -> 0 | K34: =IF(Datenausgabe!G156,SUM(IF(MID($E$7:$E$22,4,1)="J",K7:K22,0)),0) -> 0 | L34: =IF(Datenausgabe!H156,SUM(IF(MID($E$7:$E$22,4,1)="J",L7:L22,0)),0) -> 0 | M34: =IF(Datenausgabe!I156,SUM(IF(MID($E$7:$E$22,4,1)="J",M7:M22,0)),0) -> 0 | N34: =IF(Datenausgabe!J156,SUM(IF(MID($E$7:$E$22,4,1)="J",N7:N22,0)),0) -> 0 | O34: =IF(Datenausgabe!K156,SUM(IF(MID($E$7:$E$22,4,1)="J",O7:O22,0)),0) -> 0 | P34: =IF(Datenausgabe!L156,SUM(IF(MID($E$7:$E$22,4,1)="J",P7:P22,0)),0) -> 0 | Q34: =IF(Datenausgabe!M156,SUM(IF(MID($E$7:$E$22,4,1)="J",Q7:Q22,0)),0) -> 0 | R34: 0
A35: 29 | B35: =IF(Datenausgabe!B175=1,"Pausch. KV Beitrag","Krankenversicherung") -> Krankenversicherung | F35: =IF(Datenausgabe!B175=2,Nebenrechnungen!B184,IF(Datenausgabe!B175=1,F29*Datenausgabe!B182/100,IF(Datenausgabe!B146=1,Nebenrechnungen!B298,0))) -> 0.52 | G35: =IF(Datenausgabe!C175=2,Nebenrechnungen!C184,IF(Datenausgabe!C175=1,G29*Datenausgabe!C182/100,IF(Datenausgabe!C146=1,Nebenrechnungen!C298,0))) -> 0.52 | H35: =IF(Datenausgabe!D175=2,Nebenrechnungen!D184,IF(Datenausgabe!D175=1,H29*Datenausgabe!D182/100,IF(Datenausgabe!D146=1,Nebenrechnungen!D298,0))) -> 0.52 | I35: =IF(Datenausgabe!E175=2,Nebenrechnungen!E184,IF(Datenausgabe!E175=1,I29*Datenausgabe!E182/100,IF(Datenausgabe!E146=1,Nebenrechnungen!E298,0))) -> 0.52 | J35: =IF(Datenausgabe!F175=2,Nebenrechnungen!F184,IF(Datenausgabe!F175=1,J29*Datenausgabe!F182/100,IF(Datenausgabe!F146=1,Nebenrechnungen!F298,0))) -> 0.52 | K35: =IF(Datenausgabe!G175=2,Nebenrechnungen!G184,IF(Datenausgabe!G175=1,K29*Datenausgabe!G182/100,IF(Datenausgabe!G146=1,Nebenrechnungen!G298,0))) -> 0.52 | L35: =IF(Datenausgabe!H175=2,Nebenrechnungen!H184,IF(Datenausgabe!H175=1,L29*Datenausgabe!H182/100,IF(Datenausgabe!H146=1,Nebenrechnungen!H298,0))) -> 0.52 | M35: =IF(Datenausgabe!I175=2,Nebenrechnungen!I184,IF(Datenausgabe!I175=1,M29*Datenausgabe!I182/100,IF(Datenausgabe!I146=1,Nebenrechnungen!I298,0))) -> 0.52 | N35: =IF(Datenausgabe!J175=2,Nebenrechnungen!J184,IF(Datenausgabe!J175=1,N29*Datenausgabe!J182/100,IF(Datenausgabe!J146=1,Nebenrechnungen!J298,0))) -> 0.52 | O35: =IF(Datenausgabe!K175=2,Nebenrechnungen!K184,IF(Datenausgabe!K175=1,O29*Datenausgabe!K182/100,IF(Datenausgabe!K146=1,Nebenrechnungen!K298,0))) -> 0.52 | P35: =IF(Datenausgabe!L175=2,Nebenrechnungen!L184,IF(Datenausgabe!L175=1,P29*Datenausgabe!L182/100,IF(Datenausgabe!L146=1,Nebenrechnungen!L298,0))) -> 0.52 | Q35: =IF(Datenausgabe!M175=2,Nebenrechnungen!M184,IF(Datenausgabe!M175=1,Q29*Datenausgabe!M182/100,IF(Datenausgabe!M146=1,Nebenrechnungen!M298,0))) -> 0.52 | R35: 6.24
A36: 30 | B36: =IF(Datenausgabe!B175=1,"Pausch. RV Beitrag","Rentenversicherung") -> Rentenversicherung | F36: =IF(Datenausgabe!B175=0,F30*Datenausgabe!B140/100,IF(Datenausgabe!B175=1,F30*Datenausgabe!B183/100,Nebenrechnungen!B186)) -> 0.62 | G36: =IF(Datenausgabe!C175=0,G30*Datenausgabe!C140/100,IF(Datenausgabe!C175=1,G30*Datenausgabe!C183/100,Nebenrechnungen!C186)) -> 0.62 | H36: =IF(Datenausgabe!D175=0,H30*Datenausgabe!D140/100,IF(Datenausgabe!D175=1,H30*Datenausgabe!D183/100,Nebenrechnungen!D186)) -> 0.62 | I36: =IF(Datenausgabe!E175=0,I30*Datenausgabe!E140/100,IF(Datenausgabe!E175=1,I30*Datenausgabe!E183/100,Nebenrechnungen!E186)) -> 0.62 | J36: =IF(Datenausgabe!F175=0,J30*Datenausgabe!F140/100,IF(Datenausgabe!F175=1,J30*Datenausgabe!F183/100,Nebenrechnungen!F186)) -> 0.62 | K36: =IF(Datenausgabe!G175=0,K30*Datenausgabe!G140/100,IF(Datenausgabe!G175=1,K30*Datenausgabe!G183/100,Nebenrechnungen!G186)) -> 0.62 | L36: =IF(Datenausgabe!H175=0,L30*Datenausgabe!H140/100,IF(Datenausgabe!H175=1,L30*Datenausgabe!H183/100,Nebenrechnungen!H186)) -> 0.62 | M36: =IF(Datenausgabe!I175=0,M30*Datenausgabe!I140/100,IF(Datenausgabe!I175=1,M30*Datenausgabe!I183/100,Nebenrechnungen!I186)) -> 0.62 | N36: =IF(Datenausgabe!J175=0,N30*Datenausgabe!J140/100,IF(Datenausgabe!J175=1,N30*Datenausgabe!J183/100,Nebenrechnungen!J186)) -> 0.62 | O36: =IF(Datenausgabe!K175=0,O30*Datenausgabe!K140/100,IF(Datenausgabe!K175=1,O30*Datenausgabe!K183/100,Nebenrechnungen!K186)) -> 0.62 | P36: =IF(Datenausgabe!L175=0,P30*Datenausgabe!L140/100,IF(Datenausgabe!L175=1,P30*Datenausgabe!L183/100,Nebenrechnungen!L186)) -> 0.62 | Q36: =IF(Datenausgabe!M175=0,Q30*Datenausgabe!M140/100,IF(Datenausgabe!M175=1,Q30*Datenausgabe!M183/100,Nebenrechnungen!M186)) -> 0.62 | R36: 7.44
A37: 31 | B37: =IF(Datenausgabe!B175=1,"","Arbeitslosenversicherung") -> Arbeitslosenversicherung | F37: =IF(Datenausgabe!B175=0,F30*Datenausgabe!B141/100,IF(Datenausgabe!B175=1,F28*0,Nebenrechnungen!B187)) -> 0.08 | G37: =IF(Datenausgabe!C175=0,G30*Datenausgabe!C141/100,IF(Datenausgabe!C175=1,G28*0,Nebenrechnungen!C187)) -> 0.08 | H37: =IF(Datenausgabe!D175=0,H30*Datenausgabe!D141/100,IF(Datenausgabe!D175=1,H28*0,Nebenrechnungen!D187)) -> 0.08 | I37: =IF(Datenausgabe!E175=0,I30*Datenausgabe!E141/100,IF(Datenausgabe!E175=1,I28*0,Nebenrechnungen!E187)) -> 0.08 | J37: =IF(Datenausgabe!F175=0,J30*Datenausgabe!F141/100,IF(Datenausgabe!F175=1,J28*0,Nebenrechnungen!F187)) -> 0.08 | K37: =IF(Datenausgabe!G175=0,K30*Datenausgabe!G141/100,IF(Datenausgabe!G175=1,K28*0,Nebenrechnungen!G187)) -> 0.08 | L37: =IF(Datenausgabe!H175=0,L30*Datenausgabe!H141/100,IF(Datenausgabe!H175=1,L28*0,Nebenrechnungen!H187)) -> 0.08 | M37: =IF(Datenausgabe!I175=0,M30*Datenausgabe!I141/100,IF(Datenausgabe!I175=1,M28*0,Nebenrechnungen!I187)) -> 0.08 | N37: =IF(Datenausgabe!J175=0,N30*Datenausgabe!J141/100,IF(Datenausgabe!J175=1,N28*0,Nebenrechnungen!J187)) -> 0.08 | O37: =IF(Datenausgabe!K175=0,O30*Datenausgabe!K141/100,IF(Datenausgabe!K175=1,O28*0,Nebenrechnungen!K187)) -> 0.08 | P37: =IF(Datenausgabe!L175=0,P30*Datenausgabe!L141/100,IF(Datenausgabe!L175=1,P28*0,Nebenrechnungen!L187)) -> 0.08 | Q37: =IF(Datenausgabe!M175=0,Q30*Datenausgabe!M141/100,IF(Datenausgabe!M175=1,Q28*0,Nebenrechnungen!M187)) -> 0.08 | R37: 0.96
A38: 32 | B38: =IF(Datenausgabe!B175=1,"","Pflegeversicherung") -> Pflegeversicherung | F38: =IF(Datenausgabe!B175=2,Nebenrechnungen!B185,IF(Datenausgabe!B175=1,0,IF(Datenausgabe!B146=1,Nebenrechnungen!B303,0))) -> 0.1 | G38: =IF(Datenausgabe!C175=2,Nebenrechnungen!C185,IF(Datenausgabe!C175=1,0,IF(Datenausgabe!C146=1,Nebenrechnungen!C303,0))) -> 0.1 | H38: =IF(Datenausgabe!D175=2,Nebenrechnungen!D185,IF(Datenausgabe!D175=1,0,IF(Datenausgabe!D146=1,Nebenrechnungen!D303,0))) -> 0.1 | I38: =IF(Datenausgabe!E175=2,Nebenrechnungen!E185,IF(Datenausgabe!E175=1,0,IF(Datenausgabe!E146=1,Nebenrechnungen!E303,0))) -> 0.1 | J38: =IF(Datenausgabe!F175=2,Nebenrechnungen!F185,IF(Datenausgabe!F175=1,0,IF(Datenausgabe!F146=1,Nebenrechnungen!F303,0))) -> 0.1 | K38: =IF(Datenausgabe!G175=2,Nebenrechnungen!G185,IF(Datenausgabe!G175=1,0,IF(Datenausgabe!G146=1,Nebenrechnungen!G303,0))) -> 0.1 | L38: =IF(Datenausgabe!H175=2,Nebenrechnungen!H185,IF(Datenausgabe!H175=1,0,IF(Datenausgabe!H146=1,Nebenrechnungen!H303,0))) -> 0.1 | M38: =IF(Datenausgabe!I175=2,Nebenrechnungen!I185,IF(Datenausgabe!I175=1,0,IF(Datenausgabe!I146=1,Nebenrechnungen!I303,0))) -> 0.1 | N38: =IF(Datenausgabe!J175=2,Nebenrechnungen!J185,IF(Datenausgabe!J175=1,0,IF(Datenausgabe!J146=1,Nebenrechnungen!J303,0))) -> 0.1 | O38: =IF(Datenausgabe!K175=2,Nebenrechnungen!K185,IF(Datenausgabe!K175=1,0,IF(Datenausgabe!K146=1,Nebenrechnungen!K303,0))) -> 0.1 | P38: =IF(Datenausgabe!L175=2,Nebenrechnungen!L185,IF(Datenausgabe!L175=1,0,IF(Datenausgabe!L146=1,Nebenrechnungen!L303,0))) -> 0.1 | Q38: =IF(Datenausgabe!M175=2,Nebenrechnungen!M185,IF(Datenausgabe!M175=1,0,IF(Datenausgabe!M146=1,Nebenrechnungen!M303,0))) -> 0.1 | R38: 1.2
A39: 33 | B39: =IF(Datenausgabe!B175=1,"Pausch. KV Beitrag für EZ","Krankenversicherung EGA") -> Krankenversicherung EGA | F39: =IF(Datenausgabe!B175=2,0,IF(Datenausgabe!B175=1,F31*Datenausgabe!B182/100,IF(Datenausgabe!B146=1,Nebenrechnungen!B299,0))) -> 0 | G39: =IF(Datenausgabe!C175=2,0,IF(Datenausgabe!C175=1,G31*Datenausgabe!C182/100,IF(Datenausgabe!C146=1,Nebenrechnungen!C299,0))) -> 0 | H39: =IF(Datenausgabe!D175=2,0,IF(Datenausgabe!D175=1,H31*Datenausgabe!D182/100,IF(Datenausgabe!D146=1,Nebenrechnungen!D299,0))) -> 0 | I39: =IF(Datenausgabe!E175=2,0,IF(Datenausgabe!E175=1,I31*Datenausgabe!E182/100,IF(Datenausgabe!E146=1,Nebenrechnungen!E299,0))) -> 0 | J39: =IF(Datenausgabe!F175=2,0,IF(Datenausgabe!F175=1,J31*Datenausgabe!F182/100,IF(Datenausgabe!F146=1,Nebenrechnungen!F299,0))) -> 0 | K39: =IF(Datenausgabe!G175=2,0,IF(Datenausgabe!G175=1,K31*Datenausgabe!G182/100,IF(Datenausgabe!G146=1,Nebenrechnungen!G299,0))) -> 0 | L39: =IF(Datenausgabe!H175=2,0,IF(Datenausgabe!H175=1,L31*Datenausgabe!H182/100,IF(Datenausgabe!H146=1,Nebenrechnungen!H299,0))) -> 0 | M39: =IF(Datenausgabe!I175=2,0,IF(Datenausgabe!I175=1,M31*Datenausgabe!I182/100,IF(Datenausgabe!I146=1,Nebenrechnungen!I299,0))) -> 0 | N39: =IF(Datenausgabe!J175=2,0,IF(Datenausgabe!J175=1,N31*Datenausgabe!J182/100,IF(Datenausgabe!J146=1,Nebenrechnungen!J299,0))) -> 0 | O39: =IF(Datenausgabe!K175=2,0,IF(Datenausgabe!K175=1,O31*Datenausgabe!K182/100,IF(Datenausgabe!K146=1,Nebenrechnungen!K299,0))) -> 0 | P39: =IF(Datenausgabe!L175=2,0,IF(Datenausgabe!L175=1,P31*Datenausgabe!L182/100,IF(Datenausgabe!L146=1,Nebenrechnungen!L299,0))) -> 0 | Q39: =IF(Datenausgabe!M175=2,0,IF(Datenausgabe!M175=1,Q31*Datenausgabe!M182/100,IF(Datenausgabe!M146=1,Nebenrechnungen!M299,0))) -> 0 | R39: 0
A40: 34 | B40: =IF(Datenausgabe!B175=1,"Pausch. RV Beitrag für EZ","Rentenversicherung EGA") -> Rentenversicherung EGA | F40: =IF(Datenausgabe!B175=0,F32*Datenausgabe!B140/100,IF(Datenausgabe!B175=1,F32*Datenausgabe!B183/100,0)) -> 0 | G40: =IF(Datenausgabe!C175=0,G32*Datenausgabe!C140/100,IF(Datenausgabe!C175=1,G32*Datenausgabe!C183/100,0)) -> 0 | H40: =IF(Datenausgabe!D175=0,H32*Datenausgabe!D140/100,IF(Datenausgabe!D175=1,H32*Datenausgabe!D183/100,0)) -> 0 | I40: =IF(Datenausgabe!E175=0,I32*Datenausgabe!E140/100,IF(Datenausgabe!E175=1,I32*Datenausgabe!E183/100,0)) -> 0 | J40: =IF(Datenausgabe!F175=0,J32*Datenausgabe!F140/100,IF(Datenausgabe!F175=1,J32*Datenausgabe!F183/100,0)) -> 0 | K40: =IF(Datenausgabe!G175=0,K32*Datenausgabe!G140/100,IF(Datenausgabe!G175=1,K32*Datenausgabe!G183/100,0)) -> 0 | L40: =IF(Datenausgabe!H175=0,L32*Datenausgabe!H140/100,IF(Datenausgabe!H175=1,L32*Datenausgabe!H183/100,0)) -> 0 | M40: =IF(Datenausgabe!I175=0,M32*Datenausgabe!I140/100,IF(Datenausgabe!I175=1,M32*Datenausgabe!I183/100,0)) -> 0 | N40: =IF(Datenausgabe!J175=0,N32*Datenausgabe!J140/100,IF(Datenausgabe!J175=1,N32*Datenausgabe!J183/100,0)) -> 0 | O40: =IF(Datenausgabe!K175=0,O32*Datenausgabe!K140/100,IF(Datenausgabe!K175=1,O32*Datenausgabe!K183/100,0)) -> 0 | P40: =IF(Datenausgabe!L175=0,P32*Datenausgabe!L140/100,IF(Datenausgabe!L175=1,P32*Datenausgabe!L183/100,0)) -> 0 | Q40: =IF(Datenausgabe!M175=0,Q32*Datenausgabe!M140/100,IF(Datenausgabe!M175=1,Q32*Datenausgabe!M183/100,0)) -> 0 | R40: 0
A41: 35 | B41: =IF(Datenausgabe!B175=1,"","Arbeitslosenversicherung EGA") -> Arbeitslosenversicherung EGA | F41: =IF(Datenausgabe!B175=0,F32*Datenausgabe!B141/100,F32*0) -> 0 | G41: =IF(Datenausgabe!C175=0,G32*Datenausgabe!C141/100,G32*0) -> 0 | H41: =IF(Datenausgabe!D175=0,H32*Datenausgabe!D141/100,H32*0) -> 0 | I41: =IF(Datenausgabe!E175=0,I32*Datenausgabe!E141/100,I32*0) -> 0 | J41: =IF(Datenausgabe!F175=0,J32*Datenausgabe!F141/100,J32*0) -> 0 | K41: =IF(Datenausgabe!G175=0,K32*Datenausgabe!G141/100,K32*0) -> 0 | L41: =IF(Datenausgabe!H175=0,L32*Datenausgabe!H141/100,L32*0) -> 0 | M41: =IF(Datenausgabe!I175=0,M32*Datenausgabe!I141/100,M32*0) -> 0 | N41: =IF(Datenausgabe!J175=0,N32*Datenausgabe!J141/100,N32*0) -> 0 | O41: =IF(Datenausgabe!K175=0,O32*Datenausgabe!K141/100,O32*0) -> 0 | P41: =IF(Datenausgabe!L175=0,P32*Datenausgabe!L141/100,P32*0) -> 0 | Q41: =IF(Datenausgabe!M175=0,Q32*Datenausgabe!M141/100,Q32*0) -> 0 | R41: 0
A42: 36 | B42: =IF(Datenausgabe!B175=1,"","Pflegeversicherung EGA") -> Pflegeversicherung EGA | F42: =IF(Datenausgabe!B175=2,0,IF(Datenausgabe!B175=1,0,IF(Datenausgabe!B146=1,Nebenrechnungen!B304,0))) -> 0 | G42: =IF(Datenausgabe!C175=2,0,IF(Datenausgabe!C175=1,0,IF(Datenausgabe!C146=1,Nebenrechnungen!C304,0))) -> 0 | H42: =IF(Datenausgabe!D175=2,0,IF(Datenausgabe!D175=1,0,IF(Datenausgabe!D146=1,Nebenrechnungen!D304,0))) -> 0 | I42: =IF(Datenausgabe!E175=2,0,IF(Datenausgabe!E175=1,0,IF(Datenausgabe!E146=1,Nebenrechnungen!E304,0))) -> 0 | J42: =IF(Datenausgabe!F175=2,0,IF(Datenausgabe!F175=1,0,IF(Datenausgabe!F146=1,Nebenrechnungen!F304,0))) -> 0 | K42: =IF(Datenausgabe!G175=2,0,IF(Datenausgabe!G175=1,0,IF(Datenausgabe!G146=1,Nebenrechnungen!G304,0))) -> 0 | L42: =IF(Datenausgabe!H175=2,0,IF(Datenausgabe!H175=1,0,IF(Datenausgabe!H146=1,Nebenrechnungen!H304,0))) -> 0 | M42: =IF(Datenausgabe!I175=2,0,IF(Datenausgabe!I175=1,0,IF(Datenausgabe!I146=1,Nebenrechnungen!I304,0))) -> 0 | N42: =IF(Datenausgabe!J175=2,0,IF(Datenausgabe!J175=1,0,IF(Datenausgabe!J146=1,Nebenrechnungen!J304,0))) -> 0 | O42: =IF(Datenausgabe!K175=2,0,IF(Datenausgabe!K175=1,0,IF(Datenausgabe!K146=1,Nebenrechnungen!K304,0))) -> 0 | P42: =IF(Datenausgabe!L175=2,0,IF(Datenausgabe!L175=1,0,IF(Datenausgabe!L146=1,Nebenrechnungen!L304,0))) -> 0 | Q42: =IF(Datenausgabe!M175=2,0,IF(Datenausgabe!M175=1,0,IF(Datenausgabe!M146=1,Nebenrechnungen!M304,0))) -> 0 | R42: 0
A43: 37 | B43: =IF(Datenausgabe!B175=1,"Pausch.Lohnsteuer","Freiwillige Kranken- u. Pflegevers.") -> Freiwillige Kranken- u. Pflegevers. | F43: =IF(AND(Datenausgabe!B175=1,Datenausgabe!B184=2),F28*Datenausgabe!B181/100,IF(AND(Datenausgabe!B175=0,Nebenrechnungen!B308>0),Nebenrechnungen!B308,0)) -> 0 | G43: =IF(AND(Datenausgabe!C175=1,Datenausgabe!C184=2),G28*Datenausgabe!C181/100,IF(Nebenrechnungen!C308>0,Nebenrechnungen!C308,0)) -> 0 | H43: =IF(AND(Datenausgabe!D175=1,Datenausgabe!D184=2),H28*Datenausgabe!D181/100,IF(Nebenrechnungen!D308>0,Nebenrechnungen!D308,0)) -> 0 | I43: =IF(AND(Datenausgabe!E175=1,Datenausgabe!E184=2),I28*Datenausgabe!E181/100,IF(Nebenrechnungen!E308>0,Nebenrechnungen!E308,0)) -> 0 | J43: =IF(AND(Datenausgabe!F175=1,Datenausgabe!F184=2),J28*Datenausgabe!F181/100,IF(Nebenrechnungen!F308>0,Nebenrechnungen!F308,0)) -> 0 | K43: =IF(AND(Datenausgabe!G175=1,Datenausgabe!G184=2),K28*Datenausgabe!G181/100,IF(Nebenrechnungen!G308>0,Nebenrechnungen!G308,0)) -> 0 | L43: =IF(AND(Datenausgabe!H175=1,Datenausgabe!H184=2),L28*Datenausgabe!H181/100,IF(Nebenrechnungen!H308>0,Nebenrechnungen!H308,0)) -> 0 | M43: =IF(AND(Datenausgabe!I175=1,Datenausgabe!I184=2),M28*Datenausgabe!I181/100,IF(Nebenrechnungen!I308>0,Nebenrechnungen!I308,0)) -> 0 | N43: =IF(AND(Datenausgabe!J175=1,Datenausgabe!J184=2),N28*Datenausgabe!J181/100,IF(Nebenrechnungen!J308>0,Nebenrechnungen!J308,0)) -> 0 | O43: =IF(AND(Datenausgabe!K175=1,Datenausgabe!K184=2),O28*Datenausgabe!K181/100,IF(Nebenrechnungen!K308>0,Nebenrechnungen!K308,0)) -> 0 | P43: =IF(AND(Datenausgabe!L175=1,Datenausgabe!L184=2),P28*Datenausgabe!L181/100,IF(Nebenrechnungen!L308>0,Nebenrechnungen!L308,0)) -> 0 | Q43: =IF(AND(Datenausgabe!M175=1,Datenausgabe!M184=2),Q28*Datenausgabe!M181/100,IF(Nebenrechnungen!M308>0,Nebenrechnungen!M308,0)) -> 0 | R43: 0
A44: 38 | B44: =IF(R44=0,"","Umlage nach LFZG") -> Umlage nach LFZG | F44: =IF(OR(Datenausgabe!B136<>0,Datenausgabe!B137<>0),F30/100*(Datenausgabe!B136+Datenausgabe!B137),0) -> 0.01 | G44: =IF(OR(Datenausgabe!C136<>0,Datenausgabe!C137<>0),G30/100*(Datenausgabe!C136+Datenausgabe!C137),0) -> 0.01 | H44: =IF(OR(Datenausgabe!D136<>0,Datenausgabe!D137<>0),H30/100*(Datenausgabe!D136+Datenausgabe!D137),0) -> 0.01 | I44: =IF(OR(Datenausgabe!E136<>0,Datenausgabe!E137<>0),I30/100*(Datenausgabe!E136+Datenausgabe!E137),0) -> 0.01 | J44: =IF(OR(Datenausgabe!F136<>0,Datenausgabe!F137<>0),J30/100*(Datenausgabe!F136+Datenausgabe!F137),0) -> 0.01 | K44: =IF(OR(Datenausgabe!G136<>0,Datenausgabe!G137<>0),K30/100*(Datenausgabe!G136+Datenausgabe!G137),0) -> 0.01 | L44: =IF(OR(Datenausgabe!H136<>0,Datenausgabe!H137<>0),L30/100*(Datenausgabe!H136+Datenausgabe!H137),0) -> 0.01 | M44: =IF(OR(Datenausgabe!I136<>0,Datenausgabe!I137<>0),M30/100*(Datenausgabe!I136+Datenausgabe!I137),0) -> 0.01 | N44: =IF(OR(Datenausgabe!J136<>0,Datenausgabe!J137<>0),N30/100*(Datenausgabe!J136+Datenausgabe!J137),0) -> 0.01 | O44: =IF(OR(Datenausgabe!K136<>0,Datenausgabe!K137<>0),O30/100*(Datenausgabe!K136+Datenausgabe!K137),0) -> 0.01 | P44: =IF(OR(Datenausgabe!L136<>0,Datenausgabe!L137<>0),P30/100*(Datenausgabe!L136+Datenausgabe!L137),0) -> 0.01 | Q44: =IF(OR(Datenausgabe!M136<>0,Datenausgabe!M137<>0),Q30/100*(Datenausgabe!M136+Datenausgabe!M137),0) -> 0.01 | R44: =SUM(F44:Q44) -> 0.12
A45: 39 | B45: SUMME Arbeitgeberanteile zur SV | F45: =SUM(F35:F44) -> 1.33 | G45: 1.33 | H45: 1.33 | I45: 1.33 | J45: 1.33 | K45: 1.33 | L45: 1.33 | M45: 1.33 | N45: 1.33 | O45: 1.33 | P45: 1.33 | Q45: 1.33 | R45: Ä | S45: =SUM(F45:Q45) -> 15.96
A46: 40 | B46: Beitrag Zusatz Vers. | F46: =F34*Datenausgabe!B158/100 -> 0 | G46: =G34*Datenausgabe!C158/100 -> 0 | H46: =H34*Datenausgabe!D158/100 -> 0 | I46: =I34*Datenausgabe!E158/100 -> 0 | J46: =J34*Datenausgabe!F158/100 -> 0 | K46: =K34*Datenausgabe!G158/100 -> 0 | L46: =L34*Datenausgabe!H158/100 -> 0 | M46: =M34*Datenausgabe!I158/100 -> 0 | N46: =N34*Datenausgabe!J158/100 -> 0 | O46: =O34*Datenausgabe!K158/100 -> 0 | P46: =P34*Datenausgabe!L158/100 -> 0 | Q46: =Q34*Datenausgabe!M158/100 -> 0 | R46: 0
A47: 41 | B47: Pauschal zu versteuernder Betrag für ZVK | F47: =IF(Datenausgabe!B102=6,0,IF(Datenausgabe!B157="KZVK",Nebenrechnungen!B279,Nebenrechnungen!B257)) -> 0 | G47: =IF(Datenausgabe!C102=6,0,IF(Datenausgabe!C157="KZVK",0,Nebenrechnungen!C257)) -> 0 | H47: =IF(Datenausgabe!D102=6,0,IF(Datenausgabe!D157="KZVK",0,Nebenrechnungen!D257)) -> 0 | I47: =IF(Datenausgabe!E102=6,0,IF(Datenausgabe!E157="KZVK",0,Nebenrechnungen!E257)) -> 0 | J47: =IF(Datenausgabe!F102=6,0,IF(Datenausgabe!F157="KZVK",0,Nebenrechnungen!F257)) -> 0 | K47: =IF(Datenausgabe!G102=6,0,IF(Datenausgabe!G157="KZVK",0,Nebenrechnungen!G257)) -> 0 | L47: =IF(Datenausgabe!H102=6,0,IF(Datenausgabe!H157="KZVK",0,Nebenrechnungen!H257)) -> 0 | M47: =IF(Datenausgabe!I102=6,0,IF(Datenausgabe!I157="KZVK",0,Nebenrechnungen!I257)) -> 0 | N47: =IF(Datenausgabe!J102=6,0,IF(Datenausgabe!J157="KZVK",0,Nebenrechnungen!J257)) -> 0 | O47: =IF(Datenausgabe!K102=6,0,IF(Datenausgabe!K157="KZVK",0,Nebenrechnungen!K257)) -> 0 | P47: =IF(Datenausgabe!L102=6,0,IF(Datenausgabe!L157="KZVK",0,Nebenrechnungen!L257)) -> 0 | Q47: =IF(Datenausgabe!M102=6,0,IF(Datenausgabe!M157="KZVK",0,Nebenrechnungen!M257)) -> 0 | R47: 0
A48: 42 | B48: Pauschalsteuer:ZVK & Zulagen | F48: =Nebenrechnungen!B146 -> 0 | G48: =Nebenrechnungen!C146 -> 0 | H48: =Nebenrechnungen!D146 -> 0 | I48: =Nebenrechnungen!E146 -> 0 | J48: =Nebenrechnungen!F146 -> 0 | K48: =Nebenrechnungen!G146 -> 0 | L48: =Nebenrechnungen!H146 -> 0 | M48: =Nebenrechnungen!I146 -> 0 | N48: =Nebenrechnungen!J146 -> 0 | O48: =Nebenrechnungen!K146 -> 0 | P48: =Nebenrechnungen!L146 -> 0 | Q48: =Nebenrechnungen!M146 -> 0 | R48: 0
A49: 43 | B49: Sanierungsgeld | F49: =IF(Datenausgabe!B157="VBL",F34*Datenausgabe!B164/100,0) -> 0 | G49: =IF(Datenausgabe!C157="VBL",G34*Datenausgabe!C164/100,0) -> 0 | H49: =IF(Datenausgabe!D157="VBL",H34*Datenausgabe!D164/100,0) -> 0 | I49: =IF(Datenausgabe!E157="VBL",I34*Datenausgabe!E164/100,0) -> 0 | J49: =IF(Datenausgabe!F157="VBL",J34*Datenausgabe!F164/100,0) -> 0 | K49: =IF(Datenausgabe!G157="VBL",K34*Datenausgabe!G164/100,0) -> 0 | L49: =IF(Datenausgabe!H157="VBL",L34*Datenausgabe!H164/100,0) -> 0 | M49: =IF(Datenausgabe!I157="VBL",M34*Datenausgabe!I164/100,0) -> 0 | N49: =IF(Datenausgabe!J157="VBL",N34*Datenausgabe!J164/100,0) -> 0 | O49: =IF(Datenausgabe!K157="VBL",O34*Datenausgabe!K164/100,0) -> 0 | P49: =IF(Datenausgabe!L157="VBL",P34*Datenausgabe!L164/100,0) -> 0 | Q49: =IF(Datenausgabe!M157="VBL",Q34*Datenausgabe!M164/100,0) -> 0 | R49: 0
A50: 44 | B50: SUMME Zusatzversorgung | F50: =F46+F48+F49 -> 0 | G50: =G46+G48+G49 -> 0 | H50: 0 | I50: 0 | J50: 0 | K50: 0 | L50: 0 | M50: 0 | N50: 0 | O50: 0 | P50: 0 | Q50: 0 | R50: Ä | S50: =SUM(F50:Q50) -> 0
A51: 45 | B51: Gesamtpersonalaufwand | F51: =F23+F45+F50 -> 7.98 | G51: =G23+G45+G50 -> 7.98 | H51: 7.98 | I51: 7.98 | J51: 7.98 | K51: 7.98 | L51: 7.98 | M51: 7.98 | N51: 7.98 | O51: 7.98 | P51: 7.98 | Q51: 7.98 | S51: =SUM(F51:Q51) -> 95.76
A52: Bemerkungen: | P52: Arbeitgeber
O58: =TODAY() -> 2020-04-03
O59: Ort, Datum | R59: Unterschrift

Sheet Nettoberechnung Jahr
A1: Netto Entgeltberechnung | F1: =Datenausgabe!A1 -> 2020
B2: Name | C2: =Arbeitgeberkosten!C2 -> 0 | E2: Familienstand: | G2: =Arbeitgeberkosten!G2 -> ledig | H2: Tarifgruppe: | I2: =Datenausgabe!B6 -> KAVO nF, EG 15 Ü | L2: StKl. | M2: =Datenausgabe!B102 -> 1 | O2: Zuwendung %: | P2: =Arbeitgeberkosten!P2 -> 0
B3: Vorname: | C3: =Arbeitgeberkosten!C3 -> 0 | E3: Kinder: | G3: =Arbeitgeberkosten!G3 -> 0 | H3: Stufe: | I3: =Datenausgabe!B8 -> 1 | L3: KFB: | M3: =Datenausgabe!B103 -> 0
B4: Geburtsdatum: | C4: =Arbeitgeberkosten!C4 -> 0 | E4: Personalnummer: | G4: =Arbeitgeberkosten!G4 -> 0 | H4: Beschäftigungsumfang: | J4: =Datenausgabe!B20&" / "&Datenausgabe!B21 -> 39 / 39 | L4: ST Freibetr.: | M4: =Datenausgabe!B108 -> 0
A5: Nr. | E5: Klassif. | F5: =DATE(Datenausgabe!$A$1,Datenausgabe!B2,1) -> 2020-01-01 | G5: =DATE(Datenausgabe!$A$1,Datenausgabe!C2,1) -> 2020-02-01 | H5: =DATE(Datenausgabe!$A$1,Datenausgabe!D2,1) -> 2020-03-01 | I5: =DATE(Datenausgabe!$A$1,Datenausgabe!E2,1) -> 2020-04-01 | J5: =DATE(Datenausgabe!$A$1,Datenausgabe!F2,1) -> 2020-05-01 | K5: =DATE(Datenausgabe!$A$1,Datenausgabe!G2,1) -> 2020-06-01 | L5: =DATE(Datenausgabe!$A$1,Datenausgabe!H2,1) -> 2020-07-01 | M5: =DATE(Datenausgabe!$A$1,Datenausgabe!I2,1) -> 2020-08-01 | N5: =DATE(Datenausgabe!$A$1,Datenausgabe!J2,1) -> 2020-09-01 | O5: =DATE(Datenausgabe!$A$1,Datenausgabe!K2,1) -> 2020-10-01 | P5: =DATE(Datenausgabe!$A$1,Datenausgabe!L2,1) -> 2020-11-01 | Q5: =DATE(Datenausgabe!$A$1,Datenausgabe!M2,1) -> 2020-12-01 | R5: Summe | S5: Gesamt
A6: =ROW()-5 -> 1 | B6: Grundvergütung | E6: JJJJ1J | F6: =Arbeitgeberkosten!F7 -> 0 | G6: =Arbeitgeberkosten!G7 -> 0 | H6: =Arbeitgeberkosten!H7 -> 0 | I6: =Arbeitgeberkosten!I7 -> 0 | J6: =Arbeitgeberkosten!J7 -> 0 | K6: =Arbeitgeberkosten!K7 -> 0 | L6: =Arbeitgeberkosten!L7 -> 0 | M6: =Arbeitgeberkosten!M7 -> 0 | N6: =Arbeitgeberkosten!N7 -> 0 | O6: =Arbeitgeberkosten!O7 -> 0 | P6: =Arbeitgeberkosten!P7 -> 0 | Q6: =Arbeitgeberkosten!Q7 -> 0 | R6: =SUM(F6:Q6) -> 0
A7: =ROW()-5 -> 2 | B7: Differenz indiv. Stufe | E7: =E6 -> JJJJ1J | F7: =Arbeitgeberkosten!F8 -> 0 | G7: =Arbeitgeberkosten!G8 -> 0 | H7: =Arbeitgeberkosten!H8 -> 0 | I7: =Arbeitgeberkosten!I8 -> 0 | J7: =Arbeitgeberkosten!J8 -> 0 | K7: =Arbeitgeberkosten!K8 -> 0 | L7: =Arbeitgeberkosten!L8 -> 0 | M7: =Arbeitgeberkosten!M8 -> 0 | N7: =Arbeitgeberkosten!N8 -> 0 | O7: =Arbeitgeberkosten!O8 -> 0 | P7: =Arbeitgeberkosten!P8 -> 0 | Q7: =Arbeitgeberkosten!Q8 -> 0 | R7: 0
A8: 3 | B8: OZ ledigen Anteil | E8: JJJJ1J | F8: =Arbeitgeberkosten!F9 -> 0 | G8: =Arbeitgeberkosten!G9 -> 0 | H8: =Arbeitgeberkosten!H9 -> 0 | I8: =Arbeitgeberkosten!I9 -> 0 | J8: =Arbeitgeberkosten!J9 -> 0 | K8: =Arbeitgeberkosten!K9 -> 0 | L8: =Arbeitgeberkosten!L9 -> 0 | M8: =Arbeitgeberkosten!M9 -> 0 | N8: =Arbeitgeberkosten!N9 -> 0 | O8: =Arbeitgeberkosten!O9 -> 0 | P8: =Arbeitgeberkosten!P9 -> 0 | Q8: =Arbeitgeberkosten!Q9 -> 0 | R8: 0
A9: 4 | B9: OZ verh. Anteil | E9: JJJJ1J | F9: =Arbeitgeberkosten!F10 -> 0 | G9: =Arbeitgeberkosten!G10 -> 0 | H9: =Arbeitgeberkosten!H10 -> 0 | I9: =Arbeitgeberkosten!I10 -> 0 | J9: =Arbeitgeberkosten!J10 -> 0 | K9: =Arbeitgeberkosten!K10 -> 0 | L9: =Arbeitgeberkosten!L10 -> 0 | M9: =Arbeitgeberkosten!M10 -> 0 | N9: =Arbeitgeberkosten!N10 -> 0 | O9: =Arbeitgeberkosten!O10 -> 0 | P9: =Arbeitgeberkosten!P10 -> 0 | Q9: =Arbeitgeberkosten!Q10 -> 0 | R9: 0
A10: 5 | B10: OZ Kinder Anteil | E10: JJJJ1J | F10: =Arbeitgeberkosten!F11 -> 0 | G10: =Arbeitgeberkosten!G11 -> 0 | H10: =Arbeitgeberkosten!H11 -> 0 | I10: =Arbeitgeberkosten!I11 -> 0 | J10: =Arbeitgeberkosten!J11 -> 0 | K10: =Arbeitgeberkosten!K11 -> 0 | L10: =Arbeitgeberkosten!L11 -> 0 | M10: =Arbeitgeberkosten!M11 -> 0 | N10: =Arbeitgeberkosten!N11 -> 0 | O10: =Arbeitgeberkosten!O11 -> 0 | P10: =Arbeitgeberkosten!P11 -> 0 | Q10: =Arbeitgeberkosten!Q11 -> 0 | R10: 0
A11: 6 | B11: OZ Kinder erh. | E11: JJJJ1J | F11: =Arbeitgeberkosten!F12 -> 0 | G11: =Arbeitgeberkosten!G12 -> 0 | H11: =Arbeitgeberkosten!H12 -> 0 | I11: =Arbeitgeberkosten!I12 -> 0 | J11: =Arbeitgeberkosten!J12 -> 0 | K11: =Arbeitgeberkosten!K12 -> 0 | L11: =Arbeitgeberkosten!L12 -> 0 | M11: =Arbeitgeberkosten!M12 -> 0 | N11: =Arbeitgeberkosten!N12 -> 0 | O11: =Arbeitgeberkosten!O12 -> 0 | P11: =Arbeitgeberkosten!P12 -> 0 | Q11: =Arbeitgeberkosten!Q12 -> 0 | R11: 0
A12: 7 | B12: Allg. Zulage | E12: JJJJ1J | F12: =Arbeitgeberkosten!F13 -> 0 | G12: =Arbeitgeberkosten!G13 -> 0 | H12: =Arbeitgeberkosten!H13 -> 0 | I12: =Arbeitgeberkosten!I13 -> 0 | J12: =Arbeitgeberkosten!J13 -> 0 | K12: =Arbeitgeberkosten!K13 -> 0 | L12: =Arbeitgeberkosten!L13 -> 0 | M12: =Arbeitgeberkosten!M13 -> 0 | N12: =Arbeitgeberkosten!N13 -> 0 | O12: =Arbeitgeberkosten!O13 -> 0 | P12: =Arbeitgeberkosten!P13 -> 0 | Q12: =Arbeitgeberkosten!Q13 -> 0 | R12: 0
A13: 8 | B13: VL | E13: JJJN4J | F13: =Arbeitgeberkosten!F14 -> 6.65 | G13: =Arbeitgeberkosten!G14 -> 6.65 | H13: =Arbeitgeberkosten!H14 -> 6.65 | I13: =Arbeitgeberkosten!I14 -> 6.65 | J13: =Arbeitgeberkosten!J14 -> 6.65 | K13: =Arbeitgeberkosten!K14 -> 6.65 | L13: =Arbeitgeberkosten!L14 -> 6.65 | M13: =Arbeitgeberkosten!M14 -> 6.65 | N13: =Arbeitgeberkosten!N14 -> 6.65 | O13: =Arbeitgeberkosten!O14 -> 6.65 | P13: =Arbeitgeberkosten!P14 -> 6.65 | Q13: =Arbeitgeberkosten!Q14 -> 6.65 | R13: 79.8
A14: 9 | B14: =Arbeitgeberkosten!B15 -> 0 | E14: =Arbeitgeberkosten!E15 -> JJJJ1J | F14: =Arbeitgeberkosten!F15 -> 0 | G14: =Arbeitgeberkosten!G15 -> 0 | H14: =Arbeitgeberkosten!H15 -> 0 | I14: =Arbeitgeberkosten!I15 -> 0 | J14: =Arbeitgeberkosten!J15 -> 0 | K14: =Arbeitgeberkosten!K15 -> 0 | L14: =Arbeitgeberkosten!L15 -> 0 | M14: =Arbeitgeberkosten!M15 -> 0 | N14: =Arbeitgeberkosten!N15 -> 0 | O14: =Arbeitgeberkosten!O15 -> 0 | P14: =Arbeitgeberkosten!P15 -> 0 | Q14: =Arbeitgeberkosten!Q15 -> 0 | R14: 0
A15: 10 | B15: =Arbeitgeberkosten!B16 -> 0 | E15: =Arbeitgeberkosten!E16 -> JJJJ1J | F15: =Arbeitgeberkosten!F16 -> 0 | G15: =Arbeitgeberkosten!G16 -> 0 | H15: =Arbeitgeberkosten!H16 -> 0 | I15: =Arbeitgeberkosten!I16 -> 0 | J15: =Arbeitgeberkosten!J16 -> 0 | K15: =Arbeitgeberkosten!K16 -> 0 | L15: =Arbeitgeberkosten!L16 -> 0 | M15: =Arbeitgeberkosten!M16 -> 0 | N15: =Arbeitgeberkosten!N16 -> 0 | O15: =Arbeitgeberkosten!O16 -> 0 | P15: =Arbeitgeberkosten!P16 -> 0 | Q15: =Arbeitgeberkosten!Q16 -> 0 | R15: 0
A16: 11 | B16: =Arbeitgeberkosten!B17 -> 0 | E16: =Arbeitgeberkosten!E17 -> JJJJ1J | F16: =Arbeitgeberkosten!F17 -> 0 | G16: =Arbeitgeberkosten!G17 -> 0 | H16: =Arbeitgeberkosten!H17 -> 0 | I16: =Arbeitgeberkosten!I17 -> 0 | J16: =Arbeitgeberkosten!J17 -> 0 | K16: =Arbeitgeberkosten!K17 -> 0 | L16: =Arbeitgeberkosten!L17 -> 0 | M16: =Arbeitgeberkosten!M17 -> 0 | N16: =Arbeitgeberkosten!N17 -> 0 | O16: =Arbeitgeberkosten!O17 -> 0 | P16: =Arbeitgeberkosten!P17 -> 0 | Q16: =Arbeitgeberkosten!Q17 -> 0 | R16: 0
A17: 12 | B17: =Arbeitgeberkosten!B18 -> 0 | E17: =Arbeitgeberkosten!E18 -> JJJJ1J | F17: =Arbeitgeberkosten!F18 -> 0 | G17: =Arbeitgeberkosten!G18 -> 0 | H17: =Arbeitgeberkosten!H18 -> 0 | I17: =Arbeitgeberkosten!I18 -> 0 | J17: =Arbeitgeberkosten!J18 -> 0 | K17: =Arbeitgeberkosten!K18 -> 0 | L17: =Arbeitgeberkosten!L18 -> 0 | M17: =Arbeitgeberkosten!M18 -> 0 | N17: =Arbeitgeberkosten!N18 -> 0 | O17: =Arbeitgeberkosten!O18 -> 0 | P17: =Arbeitgeberkosten!P18 -> 0 | Q17: =Arbeitgeberkosten!Q18 -> 0 | R17: 0
A18: 13 | B18: KV + PV Zuschuss | E18: JNNN1N | F18: =IF(AND(Arbeitgeberkosten!F43>0,Datenausgabe!B175=0),Arbeitgeberkosten!F43,0) -> 0 | G18: =IF(AND(Arbeitgeberkosten!G43>0,Datenausgabe!C175=0),Arbeitgeberkosten!G43,0) -> 0 | H18: =IF(AND(Arbeitgeberkosten!H43>0,Datenausgabe!D175=0),Arbeitgeberkosten!H43,0) -> 0 | I18: =IF(AND(Arbeitgeberkosten!I43>0,Datenausgabe!E175=0),Arbeitgeberkosten!I43,0) -> 0 | J18: =IF(AND(Arbeitgeberkosten!J43>0,Datenausgabe!F175=0),Arbeitgeberkosten!J43,0) -> 0 | K18: =IF(AND(Arbeitgeberkosten!K43>0,Datenausgabe!G175=0),Arbeitgeberkosten!K43,0) -> 0 | L18: =IF(AND(Arbeitgeberkosten!L43>0,Datenausgabe!H175=0),Arbeitgeberkosten!L43,0) -> 0 | M18: =IF(AND(Arbeitgeberkosten!M43>0,Datenausgabe!I175=0),Arbeitgeberkosten!M43,0) -> 0 | N18: =IF(AND(Arbeitgeberkosten!N43>0,Datenausgabe!J175=0),Arbeitgeberkosten!N43,0) -> 0 | O18: =IF(AND(Arbeitgeberkosten!O43>0,Datenausgabe!K175=0),Arbeitgeberkosten!O43,0) -> 0 | P18: =IF(AND(Arbeitgeberkosten!P43>0,Datenausgabe!L175=0),Arbeitgeberkosten!P43,0) -> 0 | Q18: =IF(AND(Arbeitgeberkosten!Q43>0,Datenausgabe!M175=0),Arbeitgeberkosten!Q43,0) -> 0
A19: 14 | B19: Urlaubsgeld | E19: =Datenausgabe!B67 -> JJEN1J | F19: =Arbeitgeberkosten!F19 -> 0 | G19: =Arbeitgeberkosten!G19 -> 0 | H19: =Arbeitgeberkosten!H19 -> 0 | I19: =Arbeitgeberkosten!I19 -> 0 | J19: =Arbeitgeberkosten!J19 -> 0 | K19: =Arbeitgeberkosten!K19 -> 0 | L19: =Arbeitgeberkosten!L19 -> 0 | M19: =Arbeitgeberkosten!M19 -> 0 | N19: =Arbeitgeberkosten!N19 -> 0 | O19: =Arbeitgeberkosten!O19 -> 0 | P19: =Arbeitgeberkosten!P19 -> 0 | Q19: =Arbeitgeberkosten!Q19 -> 0 | R19: 0
A20: 15 | B20: =Arbeitgeberkosten!B20 -> Leistungsentgelt | E20: =Arbeitgeberkosten!E20 -> JSEJ1N | F20: =Arbeitgeberkosten!F20 -> 0 | G20: =Arbeitgeberkosten!G20 -> 0 | H20: =Arbeitgeberkosten!H20 -> 0 | I20: =Arbeitgeberkosten!I20 -> 0 | J20: =Arbeitgeberkosten!J20 -> 0 | K20: =Arbeitgeberkosten!K20 -> 0 | L20: =Arbeitgeberkosten!L20 -> 0 | M20: =Arbeitgeberkosten!M20 -> 0 | N20: =Arbeitgeberkosten!N20 -> 0 | O20: =Arbeitgeberkosten!O20 -> 0 | P20: =Arbeitgeberkosten!P20 -> 0 | Q20: =Arbeitgeberkosten!Q20 -> 0 | R20: 0
A21: 16 | B21: Einmalzahlungen | E21: =Arbeitgeberkosten!E21 -> JJEJ1J | F21: =Arbeitgeberkosten!F21 -> 0 | G21: =Arbeitgeberkosten!G21 -> 0 | H21: =Arbeitgeberkosten!H21 -> 0 | I21: =Arbeitgeberkosten!I21 -> 0 | J21: =Arbeitgeberkosten!J21 -> 0 | K21: =Arbeitgeberkosten!K21 -> 0 | L21: =Arbeitgeberkosten!L21 -> 0 | M21: =Arbeitgeberkosten!M21 -> 0 | N21: =Arbeitgeberkosten!N21 -> 0 | O21: =Arbeitgeberkosten!O21 -> 0 | P21: =Arbeitgeberkosten!P21 -> 0 | Q21: =Arbeitgeberkosten!Q21 -> 0 | R21: 0
A22: 17 | B22: Sonderzuwendung | E22: =Datenausgabe!B76 -> JSEJ1J | F22: =Arbeitgeberkosten!F22 -> 0 | G22: =Arbeitgeberkosten!G22 -> 0 | H22: =Arbeitgeberkosten!H22 -> 0 | I22: =Arbeitgeberkosten!I22 -> 0 | J22: =Arbeitgeberkosten!J22 -> 0 | K22: =Arbeitgeberkosten!K22 -> 0 | L22: =Arbeitgeberkosten!L22 -> 0 | M22: =Arbeitgeberkosten!M22 -> 0 | N22: =Arbeitgeberkosten!N22 -> 0 | O22: =Arbeitgeberkosten!O22 -> 0 | P22: =Arbeitgeberkosten!P22 -> 0 | Q22: =Arbeitgeberkosten!Q22 -> 0 | R22: 0
A23: 18 | B23: SUMME | F23: =Arbeitgeberkosten!F23+F18 -> 6.65 | G23: =Arbeitgeberkosten!G23+G18 -> 6.65 | H23: =Arbeitgeberkosten!H23+H18 -> 6.65 | I23: =Arbeitgeberkosten!I23+I18 -> 6.65 | J23: =Arbeitgeberkosten!J23+J18 -> 6.65 | K23: =Arbeitgeberkosten!K23+K18 -> 6.65 | L23: =Arbeitgeberkosten!L23+L18 -> 6.65 | M23: =Arbeitgeberkosten!M23+M18 -> 6.65 | N23: =Arbeitgeberkosten!N23+N18 -> 6.65 | O23: =Arbeitgeberkosten!O23+O18 -> 6.65 | P23: =Arbeitgeberkosten!P23+P18 -> 6.65 | Q23: =Arbeitgeberkosten!Q23+Q18 -> 6.65 | R23: Ä | S23: =SUM(F23:Q23) -> 79.8
A24: 19 | B24: =Arbeitgeberkosten!B24 -> Umlage ZVK steuerfreier Teil | F24: =Arbeitgeberkosten!F24 -> 0 | G24: =Arbeitgeberkosten!G24 -> 0 | H24: =Arbeitgeberkosten!H24 -> 0 | I24: =Arbeitgeberkosten!I24 -> 0 | J24: =Arbeitgeberkosten!J24 -> 0 | K24: =Arbeitgeberkosten!K24 -> 0 | L24: =Arbeitgeberkosten!L24 -> 0 | M24: =Arbeitgeberkosten!M24 -> 0 | N24: =Arbeitgeberkosten!N24 -> 0 | O24: =Arbeitgeberkosten!O24 -> 0 | P24: =Arbeitgeberkosten!P24 -> 0 | Q24: =Arbeitgeberkosten!Q24 -> 0 | R24: =SUM(F24:Q24) -> 0
A25: 20 | B25: =Arbeitgeberkosten!B25 -> Umlage ZVK pauschverst. Teil | F25: =Arbeitgeberkosten!F25 -> 0 | G25: =Arbeitgeberkosten!G25 -> 0 | H25: =Arbeitgeberkosten!H25 -> 0 | I25: =Arbeitgeberkosten!I25 -> 0 | J25: =Arbeitgeberkosten!J25 -> 0 | K25: =Arbeitgeberkosten!K25 -> 0 | L25: =Arbeitgeberkosten!L25 -> 0 | M25: =Arbeitgeberkosten!M25 -> 0 | N25: =Arbeitgeberkosten!N25 -> 0 | O25: =Arbeitgeberkosten!O25 -> 0 | P25: =Arbeitgeberkosten!P25 -> 0 | Q25: =Arbeitgeberkosten!Q25 -> 0 | R25: 0
A26: 21 | B26: =Arbeitgeberkosten!B26 -> Umlage ZVK steuerplichtiger Teil | F26: =Arbeitgeberkosten!F26 -> 0 | G26: =Arbeitgeberkosten!G26 -> 0 | H26: =Arbeitgeberkosten!H26 -> 0 | I26: =Arbeitgeberkosten!I26 -> 0 | J26: =Arbeitgeberkosten!J26 -> 0 | K26: =Arbeitgeberkosten!K26 -> 0 | L26: =Arbeitgeberkosten!L26 -> 0 | M26: =Arbeitgeberkosten!M26 -> 0 | N26: =Arbeitgeberkosten!N26 -> 0 | O26: =Arbeitgeberkosten!O26 -> 0 | P26: =Arbeitgeberkosten!P26 -> 0 | Q26: =Arbeitgeberkosten!Q26 -> 0 | R26: 0
A27: 22 | B27: =Arbeitgeberkosten!B27 -> Hinzur. Beträge Sozialversicherung | F27: =Arbeitgeberkosten!F27 -> 0 | G27: =Arbeitgeberkosten!G27 -> 0 | H27: =Arbeitgeberkosten!H27 -> 0 | I27: =Arbeitgeberkosten!I27 -> 0 | J27: =Arbeitgeberkosten!J27 -> 0 | K27: =Arbeitgeberkosten!K27 -> 0 | L27: =Arbeitgeberkosten!L27 -> 0 | M27: =Arbeitgeberkosten!M27 -> 0 | N27: =Arbeitgeberkosten!N27 -> 0 | O27: =Arbeitgeberkosten!O27 -> 0 | P27: =Arbeitgeberkosten!P27 -> 0 | Q27: =Arbeitgeberkosten!Q27 -> 0 | R27: 0
A28: 23 | B28: Soz. Vers. pfl. Entgelt | F28: =Arbeitgeberkosten!F28 -> 6.65 | G28: =Arbeitgeberkosten!G28 -> 6.65 | H28: =Arbeitgeberkosten!H28 -> 6.65 | I28: =Arbeitgeberkosten!I28 -> 6.65 | J28: =Arbeitgeberkosten!J28 -> 6.65 | K28: =Arbeitgeberkosten!K28 -> 6.65 | L28: =Arbeitgeberkosten!L28 -> 6.65 | M28: =Arbeitgeberkosten!M28 -> 6.65 | N28: =Arbeitgeberkosten!N28 -> 6.65 | O28: =Arbeitgeberkosten!O28 -> 6.65 | P28: =Arbeitgeberkosten!P28 -> 6.65 | Q28: =Arbeitgeberkosten!Q28 -> 6.65 | R28: 79.8
A29: 24 | B29: KV / PV Brutto ohne Einmalzahlungen | F29: =Arbeitgeberkosten!F29 -> 6.65 | G29: =Arbeitgeberkosten!G29 -> 6.65 | H29: =Arbeitgeberkosten!H29 -> 6.65 | I29: =Arbeitgeberkosten!I29 -> 6.65 | J29: =Arbeitgeberkosten!J29 -> 6.65 | K29: =Arbeitgeberkosten!K29 -> 6.65 | L29: =Arbeitgeberkosten!L29 -> 6.65 | M29: =Arbeitgeberkosten!M29 -> 6.65 | N29: =Arbeitgeberkosten!N29 -> 6.65 | O29: =Arbeitgeberkosten!O29 -> 6.65 | P29: =Arbeitgeberkosten!P29 -> 6.65 | Q29: =Arbeitgeberkosten!Q29 -> 6.65 | R29: 79.8
A30: 25 | B30: RV / AV Brutto ohne Einmalzahlungen | F30: =Arbeitgeberkosten!F30 -> 6.65 | G30: =Arbeitgeberkosten!G30 -> 6.65 | H30: =Arbeitgeberkosten!H30 -> 6.65 | I30: =Arbeitgeberkosten!I30 -> 6.65 | J30: =Arbeitgeberkosten!J30 -> 6.65 | K30: =Arbeitgeberkosten!K30 -> 6.65 | L30: =Arbeitgeberkosten!L30 -> 6.65 | M30: =Arbeitgeberkosten!M30 -> 6.65 | N30: =Arbeitgeberkosten!N30 -> 6.65 | O30: =Arbeitgeberkosten!O30 -> 6.65 | P30: =Arbeitgeberkosten!P30 -> 6.65 | Q30: =Arbeitgeberkosten!Q30 -> 6.65 | R30: 79.8
A31: 26 | B31: KV Anteil SB (EGA-2) | F31: =Arbeitgeberkosten!F31 -> 0 | G31: =Arbeitgeberkosten!G31 -> 0 | H31: =Arbeitgeberkosten!H31 -> 0 | I31: =Arbeitgeberkosten!I31 -> 0 | J31: =Arbeitgeberkosten!J31 -> 0 | K31: =Arbeitgeberkosten!K31 -> 0 | L31: =Arbeitgeberkosten!L31 -> 0 | M31: =Arbeitgeberkosten!M31 -> 0 | N31: =Arbeitgeberkosten!N31 -> 0 | O31: =Arbeitgeberkosten!O31 -> 0 | P31: =Arbeitgeberkosten!P31 -> 0 | Q31: =Arbeitgeberkosten!Q31 -> 0 | R31: 0
A32: 27 | B32: RV Anteil SB (EGA-2) | F32: =Arbeitgeberkosten!F32 -> 0 | G32: =Arbeitgeberkosten!G32 -> 0 | H32: =Arbeitgeberkosten!H32 -> 0 | I32: =Arbeitgeberkosten!I32 -> 0 | J32: =Arbeitgeberkosten!J32 -> 0 | K32: =Arbeitgeberkosten!K32 -> 0 | L32: =Arbeitgeberkosten!L32 -> 0 | M32: =Arbeitgeberkosten!M32 -> 0 | N32: =Arbeitgeberkosten!N32 -> 0 | O32: =Arbeitgeberkosten!O32 -> 0 | P32: =Arbeitgeberkosten!P32 -> 0 | Q32: =Arbeitgeberkosten!Q32 -> 0 | R32: 0
A33: 28 | B33: Ermäßigtes Gleitzonen Brutto | F33: =Arbeitgeberkosten!F33 -> 0 | G33: =Arbeitgeberkosten!G33 -> 0 | H33: =Arbeitgeberkosten!H33 -> 0 | I33: =Arbeitgeberkosten!I33 -> 0 | J33: =Arbeitgeberkosten!J33 -> 0 | K33: =Arbeitgeberkosten!K33 -> 0 | L33: =Arbeitgeberkosten!L33 -> 0 | M33: =Arbeitgeberkosten!M33 -> 0 | N33: =Arbeitgeberkosten!N33 -> 0 | O33: =Arbeitgeberkosten!O33 -> 0 | P33: =Arbeitgeberkosten!P33 -> 0 | Q33: =Arbeitgeberkosten!Q33 -> 0 | R33: 0
A34: 29 | B34: Zus. Vers. pfl. Entgelt | F34: =Arbeitgeberkosten!F34 -> 0 | G34: =Arbeitgeberkosten!G34 -> 0 | H34: =Arbeitgeberkosten!H34 -> 0 | I34: =Arbeitgeberkosten!I34 -> 0 | J34: =Arbeitgeberkosten!J34 -> 0 | K34: =Arbeitgeberkosten!K34 -> 0 | L34: =Arbeitgeberkosten!L34 -> 0 | M34: =Arbeitgeberkosten!M34 -> 0 | N34: =Arbeitgeberkosten!N34 -> 0 | O34: =Arbeitgeberkosten!O34 -> 0 | P34: =Arbeitgeberkosten!P34 -> 0 | Q34: =Arbeitgeberkosten!Q34 -> 0 | R34: 0
A35: 30 | B35: Steuerpflichtiges Entgelt | F35: =IF(Datenausgabe!B101,SUM(IF(MID($E$6:$E$22,2,1)<>"N",F6:F22,0))-SUM(IF(MID($E$6:$E$22,2,1)="P",F6:F22,0))+IF(Datenausgabe!B157="VBL",F26,F26),0)-(IF(AND(Datenausgabe!B157="KZVK",Nebenrechnungen!B286=0,Datenausgabe!B102<>6),F54,0)) -> 6.65 | G35: =IF(Datenausgabe!C101,SUM(IF(MID($E$6:$E$22,2,1)<>"N",G6:G22,0))-SUM(IF(MID($E$6:$E$22,2,1)="P",G6:G22,0))+IF(Datenausgabe!C157="VBL",G26,G26),0)-(IF(AND(Datenausgabe!C157="KZVK",Nebenrechnungen!C286=0,Datenausgabe!C102<>6),G54,0)) -> 6.65 | H35: =IF(Datenausgabe!D101,SUM(IF(MID($E$6:$E$22,2,1)<>"N",H6:H22,0))-SUM(IF(MID($E$6:$E$22,2,1)="P",H6:H22,0))+IF(Datenausgabe!D157="VBL",H26,H26),0)-(IF(AND(Datenausgabe!D157="KZVK",Nebenrechnungen!D286=0,Datenausgabe!D102<>6),H54,0)) -> 6.65 | I35: =IF(Datenausgabe!E101,SUM(IF(MID($E$6:$E$22,2,1)<>"N",I6:I22,0))-SUM(IF(MID($E$6:$E$22,2,1)="P",I6:I22,0))+IF(Datenausgabe!E157="VBL",I26,I26),0)-(IF(AND(Datenausgabe!E157="KZVK",Nebenrechnungen!E286=0,Datenausgabe!E102<>6),I54,0)) -> 6.65 | J35: =IF(Datenausgabe!F101,SUM(IF(MID($E$6:$E$22,2,1)<>"N",J6:J22,0))-SUM(IF(MID($E$6:$E$22,2,1)="P",J6:J22,0))+IF(Datenausgabe!F157="VBL",J26,J26),0)-(IF(AND(Datenausgabe!F157="KZVK",Nebenrechnungen!F286=0,Datenausgabe!F102<>6),J54,0)) -> 6.65 | K35: =IF(Datenausgabe!G101,SUM(IF(MID($E$6:$E$22,2,1)<>"N",K6:K22,0))-SUM(IF(MID($E$6:$E$22,2,1)="P",K6:K22,0))+IF(Datenausgabe!G157="VBL",K26,K26),0)-(IF(AND(Datenausgabe!G157="KZVK",Nebenrechnungen!G286=0,Datenausgabe!G102<>6),K54,0)) -> 6.65 | L35: =IF(Datenausgabe!H101,SUM(IF(MID($E$6:$E$22,2,1)<>"N",L6:L22,0))-SUM(IF(MID($E$6:$E$22,2,1)="P",L6:L22,0))+IF(Datenausgabe!H157="VBL",L26,L26),0)-(IF(AND(Datenausgabe!H157="KZVK",Nebenrechnungen!H286=0,Datenausgabe!H102<>6),L54,0)) -> 6.65 | M35: =IF(Datenausgabe!I101,SUM(IF(MID($E$6:$E$22,2,1)<>"N",M6:M22,0))-SUM(IF(MID($E$6:$E$22,2,1)="P",M6:M22,0))+IF(Datenausgabe!I157="VBL",M26,M26),0)-(IF(AND(Datenausgabe!I157="KZVK",Nebenrechnungen!I286=0,Datenausgabe!I102<>6),M54,0)) -> 6.65 | N35: =IF(Datenausgabe!J101,SUM(IF(MID($E$6:$E$22,2,1)<>"N",N6:N22,0))-SUM(IF(MID($E$6:$E$22,2,1)="P",N6:N22,0))+IF(Datenausgabe!J157="VBL",N26,N26),0)-(IF(AND(Datenausgabe!J157="KZVK",Nebenrechnungen!J286=0,Datenausgabe!J102<>6),N54,0)) -> 6.65 | O35: =IF(Datenausgabe!K101,SUM(IF(MID($E$6:$E$22,2,1)<>"N",O6:O22,0))-SUM(IF(MID($E$6:$E$22,2,1)="P",O6:O22,0))+IF(Datenausgabe!K157="VBL",O26,O26),0)-(IF(AND(Datenausgabe!K157="KZVK",Nebenrechnungen!K286=0,Datenausgabe!K102<>6),O54,0)) -> 6.65 | P35: =IF(Datenausgabe!L101,SUM(IF(MID($E$6:$E$22,2,1)<>"N",P6:P22,0))-SUM(IF(MID($E$6:$E$22,2,1)="P",P6:P22,0))+IF(Datenausgabe!L157="VBL",P26,P26),0)-(IF(AND(Datenausgabe!L157="KZVK",Nebenrechnungen!L286=0,Datenausgabe!L102<>6),P54,0)) -> 6.65 | Q35: =IF(Datenausgabe!M101,SUM(IF(MID($E$6:$E$22,2,1)<>"N",Q6:Q22,0))-SUM(IF(MID($E$6:$E$22,2,1)="P",Q6:Q22,0))+IF(Datenausgabe!M157="VBL",Q26,Q26),0)-(IF(AND(Datenausgabe!M157="KZVK",Nebenrechnungen!M286=0,Datenausgabe!M102<>6),Q54,0)) -> 6.65 | R35: 79.8
A36: 31 | B36: Lohnsteuer | F36: =IF(Datenausgabe!B$175=1,IF(Datenausgabe!B184=1,F28*Datenausgabe!B181/100,IF(Datenausgabe!B184=0,Nebenrechnungen!B227,0)),Nebenrechnungen!B227) -> 0 | G36: =IF(Datenausgabe!C$175=1,IF(Datenausgabe!C184=1,G28*Datenausgabe!C181/100,IF(Datenausgabe!C184=0,Nebenrechnungen!C227,0)),Nebenrechnungen!C227) -> 0 | H36: =IF(Datenausgabe!D$175=1,IF(Datenausgabe!D184=1,H28*Datenausgabe!D181/100,IF(Datenausgabe!D184=0,Nebenrechnungen!D227,0)),Nebenrechnungen!D227) -> 0 | I36: =IF(Datenausgabe!E$175=1,IF(Datenausgabe!E184=1,I28*Datenausgabe!E181/100,IF(Datenausgabe!E184=0,Nebenrechnungen!E227,0)),Nebenrechnungen!E227) -> 0 | J36: =IF(Datenausgabe!F$175=1,IF(Datenausgabe!F184=1,J28*Datenausgabe!F181/100,IF(Datenausgabe!F184=0,Nebenrechnungen!F227,0)),Nebenrechnungen!F227) -> 0 | K36: =IF(Datenausgabe!G$175=1,IF(Datenausgabe!G184=1,K28*Datenausgabe!G181/100,IF(Datenausgabe!G184=0,Nebenrechnungen!G227,0)),Nebenrechnungen!G227) -> 0 | L36: =IF(Datenausgabe!H$175=1,IF(Datenausgabe!H184=1,L28*Datenausgabe!H181/100,IF(Datenausgabe!H184=0,Nebenrechnungen!H227,0)),Nebenrechnungen!H227) -> 0 | M36: =IF(Datenausgabe!I$175=1,IF(Datenausgabe!I184=1,M28*Datenausgabe!I181/100,IF(Datenausgabe!I184=0,Nebenrechnungen!I227,0)),Nebenrechnungen!I227) -> 0 | N36: =IF(Datenausgabe!J$175=1,IF(Datenausgabe!J184=1,N28*Datenausgabe!J181/100,IF(Datenausgabe!J184=0,Nebenrechnungen!J227,0)),Nebenrechnungen!J227) -> 0 | O36: =IF(Datenausgabe!K$175=1,IF(Datenausgabe!K184=1,O28*Datenausgabe!K181/100,IF(Datenausgabe!K184=0,Nebenrechnungen!K227,0)),Nebenrechnungen!K227) -> 0 | P36: =IF(Datenausgabe!L$175=1,IF(Datenausgabe!L184=1,P28*Datenausgabe!L181/100,IF(Datenausgabe!L184=0,Nebenrechnungen!L227,0)),Nebenrechnungen!L227) -> 0 | Q36: =IF(Datenausgabe!M$175=1,IF(Datenausgabe!M184=1,Q28*Datenausgabe!M181/100,IF(Datenausgabe!M184=0,Nebenrechnungen!M227,0)),Nebenrechnungen!M227) -> 0 | R36: 0
A37: 32 | B37: Kirchensteuer | F37: =IF(Datenausgabe!B$175=1,IF(Datenausgabe!B184=0,Nebenrechnungen!B228,0),Nebenrechnungen!B228) -> 0 | G37: =IF(Datenausgabe!C$175=1,IF(Datenausgabe!C184=0,Nebenrechnungen!C228,0),Nebenrechnungen!C228) -> 0 | H37: =IF(Datenausgabe!D$175=1,IF(Datenausgabe!D184=0,Nebenrechnungen!D228,0),Nebenrechnungen!D228) -> 0 | I37: =IF(Datenausgabe!E$175=1,IF(Datenausgabe!E184=0,Nebenrechnungen!E228,0),Nebenrechnungen!E228) -> 0 | J37: =IF(Datenausgabe!F$175=1,IF(Datenausgabe!F184=0,Nebenrechnungen!F228,0),Nebenrechnungen!F228) -> 0 | K37: =IF(Datenausgabe!G$175=1,IF(Datenausgabe!G184=0,Nebenrechnungen!G228,0),Nebenrechnungen!G228) -> 0 | L37: =IF(Datenausgabe!H$175=1,IF(Datenausgabe!H184=0,Nebenrechnungen!H228,0),Nebenrechnungen!H228) -> 0 | M37: =IF(Datenausgabe!I$175=1,IF(Datenausgabe!I184=0,Nebenrechnungen!I228,0),Nebenrechnungen!I228) -> 0 | N37: =IF(Datenausgabe!J$175=1,IF(Datenausgabe!J184=0,Nebenrechnungen!J228,0),Nebenrechnungen!J228) -> 0 | O37: =IF(Datenausgabe!K$175=1,IF(Datenausgabe!K184=0,Nebenrechnungen!K228,0),Nebenrechnungen!K228) -> 0 | P37: =IF(Datenausgabe!L$175=1,IF(Datenausgabe!L184=0,Nebenrechnungen!L228,0),Nebenrechnungen!L228) -> 0 | Q37: =IF(Datenausgabe!M$175=1,IF(Datenausgabe!M184=0,Nebenrechnungen!M228,0),Nebenrechnungen!M228) -> 0 | R37: 0
A38: 33 | B38: Solidaritätszuschlag | F38: =IF(Datenausgabe!B$175=1,IF(Datenausgabe!B184=0,Nebenrechnungen!B229,0),Nebenrechnungen!B229) -> 0 | G38: =IF(Datenausgabe!C$175=1,IF(Datenausgabe!C184=0,Nebenrechnungen!C229,0),Nebenrechnungen!C229) -> 0 | H38: =IF(Datenausgabe!D$175=1,IF(Datenausgabe!D184=0,Nebenrechnungen!D229,0),Nebenrechnungen!D229) -> 0 | I38: =IF(Datenausgabe!E$175=1,IF(Datenausgabe!E184=0,Nebenrechnungen!E229,0),Nebenrechnungen!E229) -> 0 | J38: =IF(Datenausgabe!F$175=1,IF(Datenausgabe!F184=0,Nebenrechnungen!F229,0),Nebenrechnungen!F229) -> 0 | K38: =IF(Datenausgabe!G$175=1,IF(Datenausgabe!G184=0,Nebenrechnungen!G229,0),Nebenrechnungen!G229) -> 0 | L38: =IF(Datenausgabe!H$175=1,IF(Datenausgabe!H184=0,Nebenrechnungen!H229,0),Nebenrechnungen!H229) -> 0 | M38: =IF(Datenausgabe!I$175=1,IF(Datenausgabe!I184=0,Nebenrechnungen!I229,0),Nebenrechnungen!I229) -> 0 | N38: =IF(Datenausgabe!J$175=1,IF(Datenausgabe!J184=0,Nebenrechnungen!J229,0),Nebenrechnungen!J229) -> 0 | O38: =IF(Datenausgabe!K$175=1,IF(Datenausgabe!K184=0,Nebenrechnungen!K229,0),Nebenrechnungen!K229) -> 0 | P38: =IF(Datenausgabe!L$175=1,IF(Datenausgabe!L184=0,Nebenrechnungen!L229,0),Nebenrechnungen!L229) -> 0 | Q38: =IF(Datenausgabe!M$175=1,IF(Datenausgabe!M184=0,Nebenrechnungen!M229,0),Nebenrechnungen!M229) -> 0 | R38: 0
A39: 34 | B39: Lohnsteuer SB | F39: =IF(Datenausgabe!B$175=1,IF(Datenausgabe!B184=0,Nebenrechnungen!B230,0),Nebenrechnungen!B230) -> 0 | G39: =IF(Datenausgabe!C$175=1,IF(Datenausgabe!C184=0,Nebenrechnungen!C230,0),Nebenrechnungen!C230) -> 0 | H39: =IF(Datenausgabe!D$175=1,IF(Datenausgabe!D184=0,Nebenrechnungen!D230,0),Nebenrechnungen!D230) -> 0 | I39: =IF(Datenausgabe!E$175=1,IF(Datenausgabe!E184=0,Nebenrechnungen!E230,0),Nebenrechnungen!E230) -> 0 | J39: =IF(Datenausgabe!F$175=1,IF(Datenausgabe!F184=0,Nebenrechnungen!F230,0),Nebenrechnungen!F230) -> 0 | K39: =IF(Datenausgabe!G$175=1,IF(Datenausgabe!G184=0,Nebenrechnungen!G230,0),Nebenrechnungen!G230) -> 0 | L39: =IF(Datenausgabe!H$175=1,IF(Datenausgabe!H184=0,Nebenrechnungen!H230,0),Nebenrechnungen!H230) -> 0 | M39: =IF(Datenausgabe!I$175=1,IF(Datenausgabe!I184=0,Nebenrechnungen!I230,0),Nebenrechnungen!I230) -> 0 | N39: =IF(Datenausgabe!J$175=1,IF(Datenausgabe!J184=0,Nebenrechnungen!J230,0),Nebenrechnungen!J230) -> 0 | O39: =IF(Datenausgabe!K$175=1,IF(Datenausgabe!K184=0,Nebenrechnungen!K230,0),Nebenrechnungen!K230) -> 0 | P39: =IF(Datenausgabe!L$175=1,IF(Datenausgabe!L184=0,Nebenrechnungen!L230,0),Nebenrechnungen!L230) -> 0 | Q39: =IF(Datenausgabe!M$175=1,IF(Datenausgabe!M184=0,Nebenrechnungen!M230,0),Nebenrechnungen!M230) -> 0 | R39: 0
